Workbook

Sheet Summary
B2: Inputs: | L2: Assumptions: | N2: Current year plus three required data set.
C3: Rate Impact for Year (2025-2029) | D3: 2025 | I3: Include CA Climate Credit in Rates | J3: N | L3: Current Effective Rates | N3: 2025-11-15
C4: Baseline Region - (Residential bill) | D4: 9 warm | I4: Typical residential average usage kWh/month | J4: 500 | L4: Sales Forecast | N4: =D3 -> 2025
L5: Residential bill calculated using | N5: Schedule D, Basic, Single Family | S5: Annual Usage
L6: Non-CARE bill impact calculated with average summer usage of | P6: =IF($D$4="All",SUMPRODUCT('Res Bill Impact'!P$22:P$30,'Res Bill Impact'!$T$22:$T$30),VLOOKUP(D$4,'Res Bill Impact'!$O$22:$S$30,2,FALSE)) -> 736.1896342 | Q6: kWh per month | R6: Non-CARE | S6: =(P6*4)+(P7*8) -> 6577.192703
B7: Pending Proceedings | D7: Include in Impact (Y) | E7: Applicable Year(s) | L7: Non-CARE bill impact calculated with average winter usage of | P7: =IF($D$4="All",SUMPRODUCT('Res Bill Impact'!Q$22:Q$30,'Res Bill Impact'!$T$22:$T$30),VLOOKUP(D$4,'Res Bill Impact'!$O$22:$S$30,3,FALSE)) -> 454.0542708 | Q7: kWh per month
B8: 2026 ERRA Forecast | D8: Y | E8: 2026 | L8: CARE bill impact calculated with average summer usage of | P8: =IF($D$4="All",SUMPRODUCT('Res Bill Impact'!R$22:R$30,'Res Bill Impact'!$U$22:$U$30),VLOOKUP(D$4,'Res Bill Impact'!$O$22:$S$30,4,FALSE)) -> 685.496621 | Q8: kWh per month | R8: CARE | S8: =(P8*4)+(P10*8) -> 6135.943566
B9: 2022 ERRA Review | D9: Y | E9: 2026
B10: 2023 ERRA Review | D10: Y | E10: 2026 | L10: CARE bill impact calculated with average winter usage of | P10: =IF($D$4="All",SUMPRODUCT('Res Bill Impact'!S$22:S$30,'Res Bill Impact'!$U$22:$U$30),VLOOKUP(D$4,'Res Bill Impact'!$O$22:$S$30,5,FALSE)) -> 424.2446352 | Q10: kWh per month
B11: 2024 ERRA Review | D11: Y | E11: 2027 | L11: Essential Use (Basic) bill impact calculated with average summer usage of | P11: =IF($D$4="All",SUMPRODUCT('Res Bill Impact'!I$22:I$30,'Res Bill Impact'!$T$22:$T$30),VLOOKUP(D$4,'Res Bill Impact'!$H$22:$L$30,2,FALSE)) -> 514.0473 | Q11: kWh per month | R11: Essential Use (Basic) | S11: =(P11*4)+(P12*8) -> 4976.2212
B12: Woolsey CEMA (As Filed, does not yet reflect settled value) | D12: Y | E12: 2026 | L12: Essential Use (Basic) bill impact calculated with average winter usage of | P12: =IF($D$4="All",SUMPRODUCT('Res Bill Impact'!J$22:J$30,'Res Bill Impact'!$T$22:$T$30),VLOOKUP(D$4,'Res Bill Impact'!$H$22:$L$30,3,FALSE)) -> 365.004 | Q12: kWh per month
B13: Woolsey WEMA FRC (As Filed, does not yet reflect settled value) | D13: Y | E13: 2026-2029 | L13: Essential Use (All-Electric) bill impact calculated with average summer usage of | P13: =IF($D$4="All",SUMPRODUCT('Res Bill Impact'!K$22:K$30,'Res Bill Impact'!$T$22:$T$30),VLOOKUP(D$4,'Res Bill Impact'!$H$22:$L$30,4,FALSE)) -> 380.2125 | Q13: kWh per month | R13: Essential Use (All-Electric) | S13: =(P13*4)+(P15*8) -> 4903.2204
B14: Section 851 - Sale of Hydroelectric San Bernardino | D14: Y | E14: 2026
B15: Section 851 - Sale of Hydroelectric Fontana Union Water | D15: Y | E15: 2026 | L15: Essential Use (All-Electric) bill impact calculated with average winter usage of | P15: =IF($D$4="All",SUMPRODUCT('Res Bill Impact'!L$22:L$30,'Res Bill Impact'!$T$22:$T$30),VLOOKUP(D$4,'Res Bill Impact'!$H$22:$L$30,5,FALSE)) -> 422.7963 | Q15: kWh per month
B16: Section 851 - Sale of Hydroelectric TULE | D16: Y | E16: 2026 | L16: Average monthly usage is for all customers (Non-CARE and CARE) based on seasonal usage in | R16: 2024
B17: 2026 Cost of Capital (Prorposed Decision) | D17: Y | E17: 2026-2029 | L17: Summer season | N17: 4 | O17: months
B18: NextGen | D18: Y | E18: 2026-2029 | L18: Winter Season | N18: 8 | O18: months
B19: Diablo Canyon Extended Operations NBC | D19: Y | E19: 2026-2029 | L19: Residential Bi-Annual Climate Credit | N19: -56
B20: IQP 2027 Bridge Funding | D20: Y | E20: 2027-2029
B21: 2024 WMCE (to be filed 12/4) | D21: Y | E21: 2027
B22: Energy Efficiency Program and Portfolio | D22: Y | E22: 2026-2029
B29: Outputs:
D30: (A) | E30: (B) | F30: (C) | G30: (D) | H30: (D)/(A) | I30: (D)/(B) | J30: (D)/(C) | N30: (A) | O30: (B) | P30: (C) | Q30: (D) | R30: (D)/(A) | S30: (D)/(B) | T30: (D)/(C)
B31: Bundled Average Rates - ¢/kWh | L31: Total System (Bundled and Unbundled) Average Rates - ¢/kWh
B32: Customer Group | D32: 2025-01-01 | E32: =N3 -> 2025-11-15 | F32: =$D$3&" Authorized" -> 2025 Authorized | G32: =$D$3&" w/Pending" -> 2025 w/Pending | H32: ="% Change over "&MONTH(D32)&"/"&DAY(D32)&"/"&YEAR(D32) -> % Change over 1/1/2025 | I32: ="% Change over "&MONTH(E32)&"/"&DAY(E32)&"/"&YEAR(E32) -> % Change over 11/15/2025 | J32: % Change over Authorized | L32: Customer Group | N32: =$D$32 -> 2025-01-01 | O32: =$E$32 -> 2025-11-15 | P32: =$D$3&" Authorized" -> 2025 Authorized | Q32: =$D$3&" w/Pending" -> 2025 w/Pending | R32: =$H$32 -> % Change over 1/1/2025 | S32: =$I$32 -> % Change over 11/15/2025 | T32: % Change over Authorized
B33: Residential | D33: =IF(J3="Y",'SAR and RAR'!W28,'SAR and RAR'!X28) -> 31.62973815 | E33: ='SAR and RAR'!G28 -> 35.26067261 | F33: ='SAR and RAR'!H28 -> 35.19707852 | G33: ='SAR and RAR'!I28 -> 35.19707852 | H33: =$G33/D33-1 -> 0.1127843791 | I33: =$G33/E33-1 -> -0.00180354163 | J33: =$G33/F33-1 -> 0 | L33: Total Residential (RAR) | N33: =IF(J3="Y",'SAR and RAR'!Z28,'SAR and RAR'!AA28) -> 28.36130718 | O33: ='SAR and RAR'!O28 -> 31.47521736 | P33: ='SAR and RAR'!P28 -> 31.75203184 | Q33: ='SAR and RAR'!Q28 -> 31.75203184 | R33: =$Q33/N33-1 -> 0.1195545974 | S33: 0.008794680523 | T33: 0
C34: Small Commercial | D34: =IF(J3="Y",'SAR and AR (GS1)'!W28,'SAR and AR (GS1)'!X28) -> 29.17406766 | E34: ='SAR and AR (GS1)'!G28 -> 31.98340855 | F34: ='SAR and AR (GS1)'!H28 -> 31.83393023 | G34: ='SAR and AR (GS1)'!I28 -> 31.83393023 | H34: 0.09117215311 | I34: =$G34/E34-1 -> -0.004673620915 | J34: =$G34/F34-1 -> 0 | M34: Total Small Commercial (AR) | N34: =IF(J3="Y",'SAR and AR (GS1)'!Z28,'SAR and AR (GS1)'!AA28) -> 25.77950096 | O34: ='SAR and AR (GS1)'!O28 -> 28.07280751 | P34: ='SAR and AR (GS1)'!P28 -> 27.94838136 | Q34: ='SAR and AR (GS1)'!Q28 -> 27.94838136 | R34: =$Q34/N34-1 -> 0.08413197742 | S34: =$Q34/O34-1 -> -0.004432266215 | T34: =$Q34/P34-1 -> 0
B35: System | D35: =IF(J3="Y",'SAR and RAR'!W29,'SAR and RAR'!X29) -> 27.30660685 | E35: ='SAR and RAR'!G29 -> 30.16320305 | F35: ='SAR and RAR'!H29 -> 30.05062364 | G35: ='SAR and RAR'!I29 -> 30.05062364 | H35: 0.1004891162 | I35: =$G35/E35-1 -> -0.003732342697 | J35: =$G35/F35-1 -> 0 | L35: Total System (SAR) | N35: =IF(J3="Y",'SAR and RAR'!Z29,'SAR and RAR'!AA29) -> 22.91911704 | O35: ='SAR and RAR'!O29 -> 25.12602979 | P35: ='SAR and RAR'!P29 -> 25.3240327 | Q35: ='SAR and RAR'!Q29 -> 25.3240327 | R35: 0.1049305544 | S35: 0.007880390047 | T35: 0
B38: Bundled Residential Monthly Average Bills
D39: =$D$32 -> 2025-01-01 | E39: =$E$32 -> 2025-11-15 | F39: =$D$3&" Authorized" -> 2025 Authorized | G39: =$D$3&" w/Pending" -> 2025 w/Pending | H39: =$H$32 -> % Change over 1/1/2025 | I39: =$I$32 -> % Change over 11/15/2025 | J39: % Change over Authorized
B40: Non-CARE | D40: =((D46*4)+(D52*8))/12 -> 186.8593137 | E40: =((E46*4)+(E52*8))/12 -> 203.611794 | F40: 201.4338162 | G40: 201.4338162 | H40: =$G40/D40-1 -> 0.07799719576 | I40: -0.01069671755 | J40: =$G40/F40-1 -> 0
B41: CARE | D41: 104.2673392 | E41: =((E47*4)+(E53*8))/12 -> 110.9797794 | F41: 109.6609254 | G41: 109.6609254 | H41: 0.0517284343 | I41: -0.01188373233 | J41: 0
B42: Total | D42: 157.9521226 | E42: =((E48*4)+(E54*8))/12 -> 171.1905889 | F42: 169.3133044 | G42: 169.3133044 | H42: 0.0719280095 | I42: -0.01096604967 | J42: =$G42/F42-1 -> 0
B44: Bundled Residential Monthly Average Bills - Summer
D45: =$D$32 -> 2025-01-01 | E45: =$E$32 -> 2025-11-15 | F45: =$D$3&" Authorized" -> 2025 Authorized | G45: =$D$3&" w/Pending" -> 2025 w/Pending | H45: =$H$32 -> % Change over 1/1/2025 | I45: =$I$32 -> % Change over 11/15/2025 | J45: % Change over Authorized
B46: Non-CARE | D46: =VLOOKUP($D$4,'Res Bill Impact'!$B$37:$J$46,2,FALSE)+O19 -> 257.9491103 | E46: =VLOOKUP($D$4,'Res Bill Impact'!$B$37:$J$46,4,FALSE) -> 272.8875363 | F46: =VLOOKUP($D$4,'Res Bill Impact'!$B$37:$J$46,6,FALSE) -> 269.9103798 | G46: =VLOOKUP($D$4,'Res Bill Impact'!$B$37:$J$46,8,FALSE) -> 269.9103798 | H46: =$G46/D46-1 -> 0.04637065619 | I46: -0.01090982947 | J46: =$G46/F46-1 -> 0
B47: CARE | D47: =VLOOKUP($D$4,'Res Bill Impact'!$B$52:$J$61,2,FALSE) -> 145.4334121 | E47: =VLOOKUP($D$4,'Res Bill Impact'!$B$52:$J$61,4,FALSE) -> 152.8746518 | F47: =VLOOKUP($D$4,'Res Bill Impact'!$B$52:$J$61,6,FALSE) -> 151.0724903 | G47: =VLOOKUP($D$4,'Res Bill Impact'!$B$52:$J$61,8,FALSE) -> 151.0724903 | H47: 0.03877429644 | I47: -0.01178849134 | J47: 0
B48: Total | D48: =D46*0.65+D47*0.35 -> 218.5686159 | E48: =E46*0.65+E47*0.35 -> 230.8830267 | F48: =F46*0.65+F47*0.35 -> 228.3171185 | G48: =G46*0.65+G47*0.35 -> 228.3171185 | H48: 0.04460156606 | I48: -0.0111134555 | J48: =$G48/F48-1 -> 0
B50: Bundled Residential Monthly Average Bills - Winter
D51: =$D$32 -> 2025-01-01 | E51: =$E$32 -> 2025-11-15 | F51: =$D$3&" Authorized" -> 2025 Authorized | G51: =$D$3&" w/Pending" -> 2025 w/Pending | H51: =$H$32 -> % Change over 1/1/2025 | I51: =$I$32 -> % Change over 11/15/2025 | J51: % Change over Authorized
B52: Non-CARE | D52: =VLOOKUP($D$4,'Res Bill Impact'!$B$37:$J$46,3,FALSE) -> 151.3144154 | E52: =VLOOKUP($D$4,'Res Bill Impact'!$B$37:$J$46,5,FALSE) -> 168.9739229 | F52: =VLOOKUP($D$4,'Res Bill Impact'!$B$37:$J$46,7,FALSE) -> 167.1955344 | G52: =VLOOKUP($D$4,'Res Bill Impact'!$B$37:$J$46,9,FALSE) -> 167.1955344 | H52: =$G52/D52-1 -> 0.1049544348 | I52: -0.01052463305 | J52: =$G52/F52-1 -> 0
B53: CARE | D53: =VLOOKUP($D$4,'Res Bill Impact'!$B$52:$J$61,3,FALSE) -> 83.68430279 | E53: =VLOOKUP($D$4,'Res Bill Impact'!$B$52:$J$61,5,FALSE) -> 90.03234322 | F53: =VLOOKUP($D$4,'Res Bill Impact'!$B$52:$J$61,7,FALSE) -> 88.95514299 | G53: =VLOOKUP($D$4,'Res Bill Impact'!$B$52:$J$61,9,FALSE) -> 88.95514299 | H53: 0.06298481338 | I53: -0.01196459178 | J53: 0
B54: Total | D54: =D52*0.65+D53*0.35 -> 127.643876 | E54: =E52*0.65+E53*0.35 -> 141.34437 | F54: =F52*0.65+F53*0.35 -> 139.8113974 | G54: =G52*0.65+G53*0.35 -> 139.8113974 | H54: 0.09532397298 | I54: -0.01084565751 | J54: 0
B57: Bundled Residential Monthly Average Bills
D58: =$D$32 -> 2025-01-01 | E58: =$E$32 -> 2025-11-15 | F58: =$D$3&" Authorized" -> 2025 Authorized | G58: =$D$3&" w/Pending" -> 2025 w/Pending | H58: =$H$32 -> % Change over 1/1/2025 | I58: =$I$32 -> % Change over 11/15/2025 | J58: % Change over Authorized
B59: Essential Use (Basic) - Non-CARE | D59: =((D66*4)+(D73*8))/12 -> 129.7299798 | E59: 147.1095073 | F59: 145.5833509 | G59: 145.5833509 | H59: =$G59/D59-1 -> 0.1222028339 | I59: -0.01037428748 | J59: =$G59/F59-1 -> 0
B60: Essential Use (Basic) - CARE | D60: 77.88462184 | E60: 83.84420894 | F60: 82.83839625 | G60: 82.83839625 | H60: 0.06360401173 | I60: -0.0119962095 | J60: =$G60/F60-1 -> 0
B61: Essential Use (All-Electric) - Non-CARE | D61: 127.7037209 | E61: 145.168781 | F61: 143.6650133 | G61: 143.6650133 | H61: 0.1249869015 | I61: -0.01035875419 | J61: 0
B62: Essential Use (All-Electric) - CARE | D62: 76.61452959 | E62: 82.56517409 | F62: 81.57411659 | G62: 81.57411659 | H62: 0.06473428772 | I62: -0.01200333564 | J62: 0
B64: Bundled Residential Monthly Average Bills - Summer
D65: =$D$32 -> 2025-01-01 | E65: =$E$32 -> 2025-11-15 | F65: =$D$3&" Authorized" -> 2025 Authorized | G65: =$D$3&" w/Pending" -> 2025 w/Pending | H65: =$H$32 -> % Change over 1/1/2025 | I65: =$I$32 -> % Change over 11/15/2025 | J65: % Change over Authorized
B66: Essential Use (Basic) - Non-CARE | D66: =VLOOKUP($D$4,'Res Bill Impact'!$L$37:$T$46,2,FALSE) -> 162.8255414 | E66: =VLOOKUP($D$4,'Res Bill Impact'!$L$37:$T$46,4,FALSE) -> 178.8080363 | F66: =VLOOKUP($D$4,'Res Bill Impact'!$L$37:$T$46,6,FALSE) -> 176.9161995 | G66: =VLOOKUP($D$4,'Res Bill Impact'!$L$37:$T$46,8,FALSE) -> 176.9161995 | H66: =$G66/D66-1 -> 0.08653837745 | I66: -0.01058026723 | J66: =$G66/F66-1 -> 0
B67: Essential Use (Basic) - CARE | D67: =VLOOKUP($D$4,'Res Bill Impact'!$V$37:$AD$46,2,FALSE) -> 98.62946196 | E67: =VLOOKUP($D$4,'Res Bill Impact'!$V$37:$AD$46,4,FALSE) -> 104.7351115 | F67: =VLOOKUP($D$4,'Res Bill Impact'!$V$37:$AD$46,6,FALSE) -> 103.4882972 | G67: =VLOOKUP($D$4,'Res Bill Impact'!$V$37:$AD$46,8,FALSE) -> 103.4882972 | H67: 0.049263528 | I67: -0.01190445356 | J67: =$G67/F67-1 -> 0
B68: Essential Use (All-Electric) - Non-CARE | D68: =VLOOKUP($D$4,'Res Bill Impact'!$L$52:$T$61,2,FALSE) -> 118.2478462 | E68: =VLOOKUP($D$4,'Res Bill Impact'!$L$52:$T$61,4,FALSE) -> 136.1120584 | F68: =VLOOKUP($D$4,'Res Bill Impact'!$L$52:$T$61,6,FALSE) -> 134.7127708 | G68: =VLOOKUP($D$4,'Res Bill Impact'!$L$52:$T$61,8,FALSE) -> 134.7127708 | H68: 0.1392407998 | I68: -0.01028040862 | J68: 0
B69: Essential Use (All-Electric) - CARE | D69: =VLOOKUP($D$4,'Res Bill Impact'!$V$52:$AD$61,2,FALSE) -> 70.68743242 | E69: =VLOOKUP($D$4,'Res Bill Impact'!$V$52:$AD$61,4,FALSE) -> 76.59634479 | F69: =VLOOKUP($D$4,'Res Bill Impact'!$V$46:$AD$61,6,FALSE) -> 75.67414489 | G69: =VLOOKUP($D$4,'Res Bill Impact'!$V$52:$AD$61,8,FALSE) -> 75.67414489 | H69: 0.07054595563 | I69: -0.01203973775 | J69: 0
B71: Bundled Residential Monthly Average Bills - Winter
D72: =$D$32 -> 2025-01-01 | E72: =$E$32 -> 2025-11-15 | F72: =$D$3&" Authorized" -> 2025 Authorized | G72: =$D$3&" w/Pending" -> 2025 w/Pending | H72: =$H$32 -> % Change over 1/1/2025 | I72: =$I$32 -> % Change over 11/15/2025 | J72: % Change over Authorized
B73: Essential Use (Basic) - Non-CARE | D73: =VLOOKUP($D$4,'Res Bill Impact'!$L$37:$T$46,3,FALSE) -> 113.182199 | E73: =VLOOKUP($D$4,'Res Bill Impact'!$L$37:$T$46,5,FALSE) -> 131.2602427 | F73: =VLOOKUP($D$4,'Res Bill Impact'!$L$37:$T$46,7,FALSE) -> 129.9169267 | G73: =VLOOKUP($D$4,'Res Bill Impact'!$L$37:$T$46,9,FALSE) -> 129.9169267 | H73: =$G73/D73-1 -> 0.1478565343 | I73: -0.01023399049 | J73: =$G73/F73-1 -> 0
B74: Essential Use (Basic) - CARE | D74: =VLOOKUP($D$4,'Res Bill Impact'!$V$37:$AD$46,3,FALSE) -> 67.51220179 | E74: =VLOOKUP($D$4,'Res Bill Impact'!$V$37:$AD$46,5,FALSE) -> 73.39875767 | F74: =VLOOKUP($D$4,'Res Bill Impact'!$V$37:$AD$46,7,FALSE) -> 72.51344576 | G74: =VLOOKUP($D$4,'Res Bill Impact'!$V$37:$AD$46,9,FALSE) -> 72.51344576 | H74: 0.07407911221 | I74: -0.01206167429 | J74: 0
B75: Essential Use (All-Electric) - Non-CARE | D75: =VLOOKUP($D$4,'Res Bill Impact'!$L$52:$T$61,3,FALSE) -> 132.4316583 | E75: =VLOOKUP($D$4,'Res Bill Impact'!$L$52:$T$61,5,FALSE) -> 149.6971423 | F75: =VLOOKUP($D$4,'Res Bill Impact'!$L$52:$T$61,7,FALSE) -> 148.1411345 | G75: =VLOOKUP($D$4,'Res Bill Impact'!$L$52:$T$61,9,FALSE) -> 148.1411345 | H75: 0.1186232691 | I75: -0.01039437202 | J75: 0
B76: Essential Use (All-Electric) - CARE | D76: =VLOOKUP($D$4,'Res Bill Impact'!$V$52:$AD$61,3,FALSE) -> 79.57807818 | E76: =VLOOKUP($D$4,'Res Bill Impact'!$V$52:$AD$61,5,FALSE) -> 85.54958874 | F76: =VLOOKUP($D$4,'Res Bill Impact'!$V$46:$AD$61,7,FALSE) -> 84.52410245 | G76: =VLOOKUP($D$4,'Res Bill Impact'!$V$52:$AD$61,9,FALSE) -> 84.52410245 | H76: 0.06215310021 | I76: -0.01198703943 | J76: 0
B79: Bundled Residential Monthly Average Bills
D80: =$D$32 -> 2025-01-01 | E80: =$E$32 -> 2025-11-15 | F80: =$D$3&" Authorized" -> 2025 Authorized | G80: =$D$3&" w/Pending" -> 2025 w/Pending | H80: =$H$32 -> % Change over 1/1/2025 | I80: =$I$32 -> % Change over 11/15/2025 | J80: % Change over Authorized
B81: =J4&"kWh Monthly Usage - Non-CARE" -> 500kWh Monthly Usage - Non-CARE | D81: =((D86*4)+(D91*8))/12 -> 166.708113 | E81: 183.730488 | F81: 181.7818648 | G81: 181.7818648 | H81: =$G81/D81-1 -> 0.09042002569 | I81: =$G81/E81-1 -> -0.01060587822 | J81: =$G81/F81-1 -> 0
B82: =J4&"kWh Monthly Usage - CARE" -> 500kWh Monthly Usage - CARE | D82: 101.4753954 | E82: 108.1291786 | F82: 106.8432097 | G82: 106.8432097 | H82: =$G82/D82-1 -> 0.05289769234 | I82: =$G82/E82-1 -> -0.01189289436 | J82: 0
B84: Bundled Residential Monthly Average Bills - Summer
D85: =$D$32 -> 2025-01-01 | E85: =$E$32 -> 2025-11-15 | F85: =$D$3&" Authorized" -> 2025 Authorized | G85: =$D$3&" w/Pending" -> 2025 w/Pending | H85: =$H$32 -> % Change over 1/1/2025 | I85: =$I$32 -> % Change over 11/15/2025 | J85: % Change over Authorized
B86: =J4&"kWh Monthly Usage - Non-CARE" -> 500kWh Monthly Usage - Non-CARE | D86: =VLOOKUP($D$4,'Res Bill Impact'!$L$67:$T$76,2,FALSE) -> 158.1466667 | E86: =VLOOKUP($D$4,'Res Bill Impact'!$L$67:$T$76,4,FALSE) -> 174.3266667 | F86: =VLOOKUP($D$4,'Res Bill Impact'!$L$67:$T$76,6,FALSE) -> 172.4865278 | G86: =VLOOKUP($D$4,'Res Bill Impact'!$L$67:$T$76,8,FALSE) -> 172.4865278 | H86: =$G86/D86-1 -> 0.09067444455 | I86: =$G86/E86-1 -> -0.01055569338 | J86: =$G86/F86-1 -> 0
B87: =J4&"kWh Monthly Usage - CARE" -> 500kWh Monthly Usage - CARE | D87: =VLOOKUP($D$4,'Res Bill Impact'!$V$67:$AD$76,2,FALSE) -> 95.69666667 | E87: =VLOOKUP($D$4,'Res Bill Impact'!$V$67:$AD$76,4,FALSE) -> 101.7816667 | F87: =VLOOKUP($D$4,'Res Bill Impact'!$V$67:$AD$76,6,FALSE) -> 100.5689239 | G87: =VLOOKUP($D$4,'Res Bill Impact'!$V$67:$AD$76,8,FALSE) -> 100.5689239 | H87: =$G87/D87-1 -> 0.05091355239 | I87: =$G87/E87-1 -> -0.01191513941 | J87: 0
B89: Bundled Residential Monthly Average Bills - Winter
D90: =$D$32 -> 2025-01-01 | E90: =$E$32 -> 2025-11-15 | F90: =$D$3&" Authorized" -> 2025 Authorized | G90: =$D$3&" w/Pending" -> 2025 w/Pending | H90: =$H$32 -> % Change over 1/1/2025 | I90: =$I$32 -> % Change over 11/15/2025 | J90: % Change over Authorized
B91: =J4&"kWh Monthly Usage - Non-CARE" -> 500kWh Monthly Usage - Non-CARE | D91: =VLOOKUP($D$4,'Res Bill Impact'!$L$67:$T$76,3,FALSE) -> 170.9888361 | E91: =VLOOKUP($D$4,'Res Bill Impact'!$L$67:$T$76,5,FALSE) -> 188.4323987 | F91: =VLOOKUP($D$4,'Res Bill Impact'!$L$67:$T$76,7,FALSE) -> 186.4295334 | G91: =VLOOKUP($D$4,'Res Bill Impact'!$L$67:$T$76,9,FALSE) -> 186.4295334 | H91: =$G91/D91-1 -> 0.09030237036 | I91: =$G91/E91-1 -> -0.01062909226 | J91: =$G91/F91-1 -> 0
B92: =J4&"kWh Monthly Usage - CARE" -> 500kWh Monthly Usage - CARE | D92: =VLOOKUP($D$4,'Res Bill Impact'!$V$67:$AD$76,3,FALSE) -> 104.3647598 | E92: =VLOOKUP($D$4,'Res Bill Impact'!$V$67:$AD$76,5,FALSE) -> 111.3029345 | F92: =VLOOKUP($D$4,'Res Bill Impact'!$V$67:$AD$76,7,FALSE) -> 109.9803526 | G92: =VLOOKUP($D$4,'Res Bill Impact'!$V$67:$AD$76,9,FALSE) -> 109.9803526 | H92: =$G92/D92-1 -> 0.0538073652 | I92: =$G92/E92-1 -> -0.0118827233 | J92: 0
B95: Bundled Residential Monthly Average Bills
D96: =$D$32 -> 2025-01-01 | E96: =$E$32 -> 2025-11-15 | F96: =$D$3&" Authorized" -> 2025 Authorized | G96: =$D$3&" w/Pending" -> 2025 w/Pending | H96: =$H$32 -> % Change over 1/1/2025 | I96: =$I$32 -> % Change over 11/15/2025 | J96: % Change over Authorized
B97: All-Electric - Non-CARE | D97: =((D103*4)+(D109*8))/12 -> 139.7381152 | E97: =((E103*4)+(E109*8))/12 -> 157.3667024 | F97: 155.722217 | G97: 155.722217 | H97: =$G97/D97-1 -> 0.114386127 | I97: -0.01045002101 | J97: =$G97/F97-1 -> 0
B98: All-Electric - CARE | D98: =((D104*4)+(D110*8))/12 -> 81.86581957 | E98: 88.10731801 | F98: 87.05232525 | G98: 87.05232525 | H98: 0.06335373797 | I98: -0.01197395162 | J98: 0
B99: All-Electric - Total | D99: =((D105*4)+(D111*8))/12 -> 119.4828118 | E99: 133.1259179 | F99: 131.6877549 | G99: 131.6877549 | H99: 0.102148108 | I99: -0.01080302743 | J99: =$G99/F99-1 -> 0
B101: Bundled Residential Monthly Average Bills - Summer
D102: =$D$32 -> 2025-01-01 | E102: =$E$32 -> 2025-11-15 | F102: =$D$3&" Authorized" -> 2025 Authorized | G102: =$D$3&" w/Pending" -> 2025 w/Pending | H102: =$H$32 -> % Change over 1/1/2025 | I102: =$I$32 -> % Change over 11/15/2025 | J102: % Change over Authorized
B103: All-Electric - Non-CARE | D103: =VLOOKUP($D$4,'Res Bill Impact'!$B$67:$J$76,2,FALSE) -> 182.7427053 | E103: =VLOOKUP($D$4,'Res Bill Impact'!$B$67:$J$76,4,FALSE) -> 199.8990269 | F103: =VLOOKUP($D$4,'Res Bill Impact'!$B$67:$J$76,6,FALSE) -> 197.7638803 | G103: =VLOOKUP($D$4,'Res Bill Impact'!$B$67:$J$76,8,FALSE) -> 197.7638803 | H103: =$G103/D103-1 -> 0.08219849313 | I103: =$G103/E103-1 -> -0.01068112572 | J103: =$G103/F103-1 -> 0
B104: All-Electric - CARE | D104: =VLOOKUP($D$4,'Res Bill Impact'!$B$82:$J$91,2,FALSE) -> 106.1209049 | E104: =VLOOKUP($D$4,'Res Bill Impact'!$B$82:$J$91,4,FALSE) -> 113.0409413 | F104: =VLOOKUP($D$4,'Res Bill Impact'!$B$82:$J$91,6,FALSE) -> 111.6983093 | G104: =VLOOKUP($D$4,'Res Bill Impact'!$B$82:$J$91,8,FALSE) -> 111.6983093 | H104: =$G104/D104-1 -> 0.05255707586 | I104: =$G104/E104-1 -> -0.01187739546 | J104: =$G104/F104-1 -> 0
B105: All-Electric - Total | D105: =D103*0.65+D104*0.35 -> 155.9250751 | E105: =E103*0.65+E104*0.35 -> 169.498697 | F105: =F103*0.65+F104*0.35 -> 167.6409305 | G105: =G103*0.65+G104*0.35 -> 167.6409305 | H105: =$G105/D105-1 -> 0.07513772431 | I105: =$G105/E105-1 -> -0.0109603586 | J105: =$G105/F105-1 -> 0
B107: Bundled Residential Monthly Average Bills - Winter
D108: =$D$32 -> 2025-01-01 | E108: =$E$32 -> 2025-11-15 | F108: =$D$3&" Authorized" -> 2025 Authorized | G108: =$D$3&" w/Pending" -> 2025 w/Pending | H108: =$H$32 -> % Change over 1/1/2025 | I108: =$I$32 -> % Change over 11/15/2025 | J108: % Change over Authorized
B109: All-Electric - Non-CARE | D109: =VLOOKUP($D$4,'Res Bill Impact'!$B$67:$J$76,3,FALSE) -> 118.2358202 | E109: =VLOOKUP($D$4,'Res Bill Impact'!$B$67:$J$76,5,FALSE) -> 136.1005401 | F109: =VLOOKUP($D$4,'Res Bill Impact'!$B$67:$J$76,7,FALSE) -> 134.7013854 | G109: =VLOOKUP($D$4,'Res Bill Impact'!$B$67:$J$76,9,FALSE) -> 134.7013854 | H109: =$G109/D109-1 -> 0.1392603794 | I109: -0.01028030234 | J109: =$G109/F109-1 -> 0
B110: All-Electric - CARE | D110: =VLOOKUP($D$4,'Res Bill Impact'!$B$82:$J$91,3,FALSE) -> 69.73827691 | E110: =VLOOKUP($D$4,'Res Bill Impact'!$B$82:$J$91,5,FALSE) -> 75.64050637 | F110: =VLOOKUP($D$4,'Res Bill Impact'!$B$82:$J$91,7,FALSE) -> 74.72933321 | G110: =VLOOKUP($D$4,'Res Bill Impact'!$B$82:$J$91,9,FALSE) -> 74.72933321 | H110: 0.07156839141 | I110: -0.01204610079 | J110: 0
B111: All-Electric - Total | D111: =D109*0.65+D110*0.35 -> 101.2616801 | E111: =E109*0.65+E110*0.35 -> 114.9395283 | F111: =F109*0.65+F110*0.35 -> 113.7111671 | G111: =G109*0.65+G110*0.35 -> 113.7111671 | H111: 0.1229437144 | I111: -0.01068702109 | J111: 0
B113: Small Commercial Monthly Average Bills
D114: =$D$32 -> 2025-01-01 | E114: =$E$32 -> 2025-11-15 | F114: =$D$3&" Authorized" -> 2025 Authorized | G114: =$D$3&" w/Pending" -> 2025 w/Pending | H114: =$H$32 -> % Change over 1/1/2025 | I114: =$I$32 -> % Change over 11/15/2025 | J114: % Change over Authorized
B115: NAICS 531 | D115: =((D121*4)+(D127*8))/12 -> 200.0192632 | E115: =((E121*4)+(E127*8))/12 -> 218.9711688 | F115: 218.1539631 | G115: 218.1539631 | H115: =$G115/D115-1 -> 0.09066476715 | I115: -0.003732024022 | J115: =$G115/F115-1 -> 0
B116: NAICS 621 | D116: =((D122*4)+(D128*8))/12 -> 276.15071 | E116: 302.6079638 | F116: 301.4569213 | G116: 301.4569213 | H116: 0.09163913185 | I116: -0.003803741392 | J116: 0
B117: NAICS 722 | D117: =((D123*4)+(D129*8))/12 -> 798.5610323 | E117: 879.2898227 | F117: 875.8369511 | G117: 875.8369511 | H117: 0.09676895766 | I117: -0.003926886782 | J117: =$G117/F117-1 -> 0
B119: Small Commercial Monthly Average Bills - Summer
D120: =D114 -> 2025-01-01 | E120: =$E$32 -> 2025-11-15 | F120: =$D$3&" Authorized" -> 2025 Authorized | G120: =$D$3&" w/Pending" -> 2025 w/Pending | H120: =$H$32 -> % Change over 1/1/2025 | I120: =$I$32 -> % Change over 11/15/2025 | J120: % Change over Authorized
B121: NAICS 531 | D121: ='Bill Impact (GS1)'!C37 -> 221.6737636 | E121: ='Bill Impact (GS1)'!E37 -> 244.0175887 | F121: ='Bill Impact (GS1)'!G37 -> 243.1004101 | G121: ='Bill Impact (GS1)'!I37 -> 243.1004101 | H121: =$G121/D121-1 -> 0.09665846861 | I121: =$G121/E121-1 -> -0.003758657743 | J121: =$G121/F121-1 -> 0
B122: NAICS 621 | D122: ='Bill Impact (GS1)'!C38 -> 369.469769 | E122: ='Bill Impact (GS1)'!E38 -> 408.1892239 | F122: ='Bill Impact (GS1)'!G38 -> 406.6167532 | G122: ='Bill Impact (GS1)'!I38 -> 406.6167532 | H122: =$G122/D122-1 -> 0.100541336 | I122: =$G122/E122-1 -> -0.003852308162 | J122: =$G122/F122-1 -> 0
B123: NAICS 722 | D123: ='Bill Impact (GS1)'!C39 -> 1048.787661 | E123: ='Bill Impact (GS1)'!E39 -> 1162.642574 | F123: ='Bill Impact (GS1)'!G39 -> 1158.058698 | G123: ='Bill Impact (GS1)'!I39 -> 1158.058698 | H123: =$G123/D123-1 -> 0.1041879502 | I123: =$G123/E123-1 -> -0.003942635435 | J123: =$G123/F123-1 -> 0
B125: Small Commercial Monthly Average Bills - Winter
D126: =D114 -> 2025-01-01 | E126: =$E$32 -> 2025-11-15 | F126: =$D$3&" Authorized" -> 2025 Authorized | G126: =$D$3&" w/Pending" -> 2025 w/Pending | H126: =$H$32 -> % Change over 1/1/2025 | I126: =$I$32 -> % Change over 11/15/2025 | J126: % Change over Authorized
B127: NAICS 531 | D127: ='Bill Impact (GS1)'!D37 -> 189.192013 | E127: ='Bill Impact (GS1)'!F37 -> 206.4479588 | F127: ='Bill Impact (GS1)'!H37 -> 205.6807396 | G127: ='Bill Impact (GS1)'!J37 -> 205.6807396 | H127: =$G127/D127-1 -> 0.08715339703 | I127: -0.003716283744 | J127: =$G127/F127-1 -> 0
B128: NAICS 621 | D128: ='Bill Impact (GS1)'!D38 -> 229.4911805 | E128: ='Bill Impact (GS1)'!F38 -> 249.8173337 | F128: ='Bill Impact (GS1)'!H38 -> 248.8770054 | G128: ='Bill Impact (GS1)'!J38 -> 248.8770054 | H128: 0.08447307149 | I128: -0.003764063537 | J128: 0
B129: NAICS 722 | D129: ='Bill Impact (GS1)'!D39 -> 673.4477179 | E129: ='Bill Impact (GS1)'!F39 -> 737.6134472 | F129: ='Bill Impact (GS1)'!H39 -> 734.7260777 | G129: ='Bill Impact (GS1)'!J39 -> 734.7260777 | H129: 0.09099200745 | I129: -0.003914475094 | J129: 0

Sheet Selected Data
A1: Summary of Selected Data
N2: 2025 Revenue
N3: Requirement
N4: $000
A5: 1 | B5: Current total system-level revenue requirement that is used for defining the reporting threshold: | N5: ='Authorized Rev Req'!J99 -> 19339861.88
B7: A | C7: One-percent reporting threshold | N7: =N5*0.01 -> 193398.6188
A9: 2 | B9: List of currently open proceedings that exceed the threshold for use of the affordability metrics (proceedings shaded gray filed prior to D.22-08-023):
N10: Annual Revenue
B11: A | C11: A.24-10-002 | D11: Woolsey WEMA FRC/CEMA | N11: =SUM('Incremental Rev Req'!D113:D114) -> 419967
B12: B | C12: A.25-03-012 | D12: 2026 Cost of Capital | N12: =SUM('Incremental Rev Req'!D116:D118) -> -65059.64101
B13: C | C13: A.25-03-009 | D13: NextGen | N13: 145266 | O13: Average annual revenue requirement from 2025-2032
B14: D | C14: A.25-05-008 | D14: 2026 ERRA (Amended October Update) | N14: =SUM('Incremental Rev Req'!M93:M104) -> 261527.8689 | O14: Incremental change from the current 2025 ERRA revenue requirement
A18: 3 | B18: List of currently open proceedings for which affordability metrics have been filed: | N18: Annual Revenue
B19: A | C19: =C11 -> A.24-10-002 | D19: =D11 -> Woolsey WEMA FRC/CEMA | N19: =N11 -> 419967
B20: B | C20: =C12 -> A.25-03-012 | D20: =D12 -> 2026 Cost of Capital | N20: =N12 -> -65059.64101
B21: C | C21: =C13 -> A.25-03-009 | D21: NextGen | N21: =N13 -> 145266
B22: D | C22: A.25-05-008 | D22: 2026 ERRA (Amended October Update) | N22: =N14 -> 261527.8689
A26: 4 | B26: List of currently open proceedings that do not exceed the threshold for use of the affordability metrics (proceedings shaded gray filed prior to D.22-08-023):
N27: Annual Revenue
B28: A | C28: ='Incremental Rev Req'!B105 -> A.23-04-003 | D28: ='Incremental Rev Req'!A105 -> 2022 ERRA Review | N28: ='Incremental Rev Req'!D105+'Incremental Rev Req'!D106 -> 50874
B29: B | C29: ='Incremental Rev Req'!B108 -> A.24-04-001 | D29: 2023 ERRA Review | N29: =SUM('Incremental Rev Req'!D107:D108) -> -63195
B30: C | C30: A.24-08-012 | D30: Section 851 - Sale of Hydroelectric San Bernardino | N30: ='Incremental Rev Req'!D111 -> 60300
B31: D | C31: A.24-09-008 | D31: Section 851 - Sale of Hydroelectric Fontana Union Water | N31: ='Incremental Rev Req'!D112 -> 9500
B32: E | C32: A.25-03-001 | D32: Section 851 - Sale of Hydroelectric TULE | N32: ='Incremental Rev Req'!D115 -> 31100
B33: F | C33: A.25-04-004 | D33: 2024 ERRA Review | N33: =SUM('Incremental Rev Req'!D109:D110) -> 3992
B34: G | C34: A.25-06-022 | D34: IQP 2027 Bridge Funding | N34: =SUM('Incremental Rev Req'!D121:D122) -> 72176.28
B35: H | C35: A.25-12-XXX | D35: 2024 WMCE (to be filed 12/4) | N35: ='Incremental Rev Req'!D123 -> 50000
A39: 5 | B39: Total system-level revenue requirement if all pending revenue were granted in full
B40: A | C40: YE 2025 | N40: ='Incremental Rev Req'!$T$83 -> 19403169.59
B41: B | C41: YE 2026 | N41: ='Incremental Rev Req'!$U$83 -> 19328689.04
B42: C | C42: YE 2027 | N42: ='Incremental Rev Req'!$V$83 -> 18547799.6
B43: D | C43: YE 2028 | N43: ='Incremental Rev Req'!$W$83 -> 19091839.3
B44: E | C44: YE 2029 | N44: ='Incremental Rev Req'!$X$83 -> 19199570.3
A46: 6 | B46: Bundled residential average rate (RAR) if all pending revenue were granted in full (from Cost and Rate Tracker (CRT) as submitted by utility):
N47: cents/kWh
B48: A | C48: YE 2025 | N48: 35.19707852 | R48: =Summary!G33 -> 35.19707852 | S48: =Summary!G33 -> 35.19707852
B49: B | C49: YE 2026 | N49: 33.23399933
B50: C | C50: YE 2027 | N50: 31.53948232
B51: D | C51: YE 2028 | N51: 31.90825334
B52: E | C52: YE 2029 | N52: 32.08190591
A54: 7 | B54: Bundled residential average monthly bill corresponding to RAR above for typical customer in climate zone 9 using 500 kWh (from CRT as submitted by utility):
M55: Non-CARE | N55: CARE
B56: A | C56: YE 2025 | M56: 181.7818648 | N56: 106.8432097 | Q56: =Summary!G81 -> 181.7818648 | R56: =Summary!G82 -> 106.8432097 | S56: =Summary!G81 -> 181.7818648 | T56: =Summary!G82 -> 106.8432097
B57: B | C57: YE 2026 | M57: 170.7250111 | N57: 99.54638075
B58: C | C58: YE 2027 | M58: 162.3507367 | N58: 94.01988565
B59: D | C59: YE 2028 | M59: 164.5209196 | N59: 95.45207006
B60: E | C60: YE 2029 | M60: 165.4403952 | N60: 96.05886621
A62: 8 | B62: Bundled small commercial average rate (TOU-GS-1) if all pending revenue were granted in full (from Cost and Rate Tracker (CRT) as submitted by utility):
N63: cents/kWh
B64: A | C64: YE 2025 | N64: 31.83393023 | R64: =Summary!G34 -> 31.83393023 | S64: =Summary!G34 -> 31.83393023
B65: B | C65: YE 2026 | N65: 29.95101399
B66: C | C66: YE 2027 | N66: 28.24790626
B67: D | C67: YE 2028 | N67: 28.47425324
B68: E | C68: YE 2029 | N68: 28.6077932
A70: 9 | B70: Bundled small commercial average monthly bill corresponding to TOU-GS-1 rate above for typical customer by NAICS (from CRT as submitted by utility):
L71: NAICS 531 | M71: NAICS 621 | N71: NAICS 722
B72: A | C72: YE 2025 | L72: 218.1539631 | M72: 301.4569213 | N72: 875.8369511 | P72: =Summary!G115 -> 218.1539631 | Q72: =Summary!G116 -> 301.4569213 | R72: =Summary!G117 -> 875.8369511 | S72: =Summary!G115 -> 218.1539631 | T72: =Summary!G116 -> 301.4569213 | U72: =Summary!G117 -> 875.8369511
B73: B | C73: YE 2026 | L73: 205.2596625 | M73: 283.2951686 | N73: 821.355728 | P73: =M73/M72-1 -> -0.0602465939 | Q73: -0.06220475517 | S73: -1.000276165 | T73: -1.000206347
B74: C | C74: YE 2027 | L74: 194.1545727 | M74: 267.6535373 | N74: 774.4343093 | P74: -0.05521319463 | Q74: -0.05712679306 | S74: -0.08354661972 | T74: -0.08163302129
B75: D | C75: YE 2028 | L75: 195.8250723 | M75: 270.0064529 | N75: 781.4925331 | P75: 0.008790900162 | Q75: 0.009114038125 | S75: -1.159217379 | T75: -1.159540517
B76: E | C76: YE 2029 | L76: 196.7229325 | M76: 271.2710981 | N76: 785.2861878 | P76: 0.004683759265 | Q76: 0.004854371021 | S76: -0.467203679 | T76: -0.4673742907

Sheet Authorized Rev Req
B2: Annual Period 2025
B3: Reporting Date: Quarter Ended December 31
C4: January 1, 2024 | D4: March 1, 2024 | E4: June 1, 2024 | F4: October 1, 2024 | G4: January 1, 2025 | H4: March 1, 2025 | I4: June 1, 2025 | J4: October 1, 2025 | K4: January 1, 20261
C5: 5178-E | D5: 5235-E | E5: 5307-E | F5: 5379-E / E-A | G5: 5449-E | H5: 5484-E | I5: 5555-E | J5: 5643-E | K5: 5687-E
B6: Filing Description | L6: Revenue Recovery Mechanism | M6: Authority for Revenue Requirement | N6: Balancing Account
A7: Safety Affordability Reliability Proceedings | B7: Safety Affordability Reliability Proceedings
A8: 2018 GRC (Attrition Years) | B8: General Rate Case (GRC-G) | C8: 754977 | D8: 766648.8347 | E8: 766648.8347 | F8: 766648.8347 | G8: 760627.5753 | H8: 760627.5753 | I8: 760627.5753 | J8: 891445.0485 | K8: 922658.065 | L8: Generation | M8: D.25-09-030; Advice 5677-E | N8: N
A9: 2018 GRC (Attrition Years) | B9: General Rate Case (GRC-N) | C9: 61347 | D9: 62607.60614 | E9: 62607.60614 | F9: 62607.60614 | G9: 61952.34378 | H9: 61952.34378 | I9: 61952.34378 | J9: 65975.9059 | K9: 65590.07344 | L9: New System Gen | M9: D.25-09-030; Advice 5677-E | N9: N
A10: 2018 GRC (Attrition Years) | B10: General Rate Case (GRC-D) | C10: 7565233 | D10: 7752988.246 | E10: 7752988.246 | F10: 7752988.246 | G10: 7655298.489 | H10: 7655298.489 | I10: 7655298.489 | J10: 8702553.289 | K10: 9198253.044 | L10: Distribution | M10: D.25-09-030; Advice 5677-E | N10: N
A11: 2018 GRC Memo Account/One-Time/FF&U | B11: 2025 GRCRRMA (24-month amortization) | C11: 0 | D11: 0 | E11: 0 | F11: 0 | G11: 0 | H11: 0 | I11: 0 | J11: 51458.93457 | K11: 51504.78069 | L11: Generation | M11: D.25-09-030; Advice 5642-E/E-A; Uncollectibles Factor Update only | N11: Y
A12: 2018 GRC Memo Account/One-Time/FF&U | B12: 2025 GRCRRMA (24-month amortization) | C12: 0 | D12: 0 | E12: 0 | F12: 0 | G12: 0 | H12: 0 | I12: 0 | J12: 1530.662547 | K12: 1532.026254 | L12: New System Gen | M12: D.25-09-030; Advice 5642-E/E-A; Uncollectibles Factor Update only | N12: Y
A13: Non-utility Affiliate Credits | B13: 2025 GRCRRMA (24-month amortization) | C13: 0 | D13: 0 | E13: 0 | F13: 0 | G13: 0 | H13: 0 | I13: 0 | J13: 398114.1493 | K13: 398468.8397 | L13: Distribution | M13: D.25-09-030; Advice 5642-E/E-A; Uncollectibles Factor Update only | N13: Y
B14: 2025 GRC One-Time Recovery of Accounts | C14: 0 | D14: 0 | E14: 0 | F14: 0 | G14: 0 | H14: 0 | I14: 0 | J14: 52205.497 | K14: 52252.00826 | L14: Distribution | M14: D.25-09-030; Advice 5642-E/E-A; Uncollectibles Factor Update only | N14: N
B15: 2025 GRC - FF&U Impact on Non-GRC Items | C15: 0 | D15: 0 | E15: 0 | F15: 0 | G15: 0 | H15: 0 | I15: 0 | J15: 1496.849164 | K15: 0 | L15: Generation | M15: Now Incorporated in individual Line Items | N15: N
B16: 2025 GRC - FF&U Impact on Non-GRC Items | C16: 0 | D16: 0 | E16: 0 | F16: 0 | G16: 0 | H16: 0 | I16: 0 | J16: 174.9551849 | K16: 0 | L16: New System Gen | M16: Now Incorporated in individual Line Items | N16: N
B17: 2025 GRC - FF&U Impact on Non-GRC Items | C17: 0 | D17: 0 | E17: 0 | F17: 0 | G17: 0 | H17: 0 | I17: 0 | J17: 1.538584803 | K17: 0 | L17: MCAM | M17: Now Incorporated in individual Line Items | N17: N
B18: 2025 GRC - FF&U Impact on Non-GRC Items | C18: 0 | D18: 0 | E18: 0 | F18: 0 | G18: 0 | H18: 0 | I18: 0 | J18: 122.3012492 | K18: 0 | L18: Distribution | M18: Now Incorporated in individual Line Items | N18: N
B19: 2025 GRC - FF&U Impact on Non-GRC Items | C19: 0 | D19: 0 | E19: 0 | F19: 0 | G19: 0 | H19: 0 | I19: 0 | J19: 416.7023248 | K19: 0 | L19: Public Purpose | M19: Now Incorporated in individual Line Items | N19: N
B20: 2025 GRC - FF&U Impact on Non-GRC Items | C20: 0 | D20: 0 | E20: 0 | F20: 0 | G20: 0 | H20: 0 | I20: 0 | J20: -0.2990957868 | K20: 0 | L20: Nuclear | M20: Now Incorporated in individual Line Items | N20: N
A21: Pole Loading & Deteriorated Poles Balancing Account | B21: Non-utility Affiliate Credits | C21: -4485.891476 | D21: -4485.891476 | E21: -4485.891476 | F21: -4485.891476 | G21: -4572.580314 | H21: -4572.580314 | I21: -4572.580314 | J21: -4572.580314 | K21: -4508.103154 | L21: Distribution | M21: D.15-10-037 | N21: N
A22: Tax Accounting Memorandum Account (TAMA) | B22: Pole Loading & Deteriorated Pole Programs Balancing Account | C22: -51916.65043 | D22: -51916.65043 | E22: -51916.65043 | F22: -51916.65043 | G22: -14072.56849 | H22: -14072.56849 | I22: -14072.56849 | J22: -14072.56849 | K22: 4694.932148 | L22: Distribution | M22: D.21-08-036 | N22: Y
B23: 2023/2024 TAMA Balance | C23: 19974.10359 | D23: 19974.10359 | E23: 19974.10359 | F23: 19974.10359 | G23: 14976.03009 | H23: 14976.03009 | I23: 14976.03009 | J23: 14976.03009 | K23: -5713.761947 | L23: Generation | M23: Advice 5515-E | N23: Y
B24: 2023/2024 TAMA Balance | C24: 129422.3922 | D24: 129422.3922 | E24: 129422.3922 | F24: 97197.38039 | G24: 97197.38039 | H24: 97197.38039 | I24: 97197.38039 | J24: -37050.25578 | K24: -37083.26483 | L24: Distribution | M24: Advice 5515-E | N24: Y
A25: Pension/PBOP/Medical Balancing Accounts | B25: Pension/PBOP/Medical Balancing Accounts | C25: -12071.66001 | D25: -12071.66001 | E25: -12071.66001 | F25: -12071.66001 | G25: -10009.34302 | H25: -10009.34302 | I25: -10009.34302 | J25: -10009.34302 | K25: -3022.530999 | L25: Generation | M25: D.21-08-036; D.25-09-030 | N25: Y
A26: 2019 ERRA Forecast | B26: Pension/PBOP/Medical Balancing Accounts | C26: -78219.42906 | D26: -78219.42906 | E26: -78219.42906 | F26: -78219.42906 | G26: -64990.5188 | H26: -64990.5188 | I26: -64990.5188 | J26: -64990.5188 | K26: -20485.73875 | L26: Distribution | M26: D.21-08-036; D.25-09-030 | N26: Y
A27: 2019 ERRA Forecast | B27: ERRA Forecast | C27: 4703703 | D27: 4703703 | E27: 4703703 | F27: 4703703 | G27: 4088354.669 | H27: 4088354.669 | I27: 4088354.669 | J27: 4088354.669 | K27: 4215455.435 | L27: Generation | M27: A.25-05-008 (Amended October Update) | N27: N
A28: 2020 ERRA Forecast | B28: ERRA Forecast | C28: 402997 | D28: 402997 | E28: 402997 | F28: 402997 | G28: 457466.7391 | H28: 457466.7391 | I28: 457466.7391 | J28: 457466.7391 | K28: 473468.5074 | L28: New System Gen | M28: A.25-05-008 (Amended October Update) | N28: N
A29: 2019 ERRA Forecast | B29: ERRA Forecast (BA) | C29: 222439.7825 | D29: 222439.7825 | E29: 222439.7825 | F29: 222439.7825 | G29: 78023.95761 | H29: 78023.95761 | I29: 78023.95761 | J29: 78023.95761 | K29: -23473.58106 | L29: New System Gen | M29: A.25-05-008 (Amended October Update) | N29: Y
A30: 2019 ERRA Forecast | B30: ERRA Forecast | C30: -955105 | D30: -955105 | E30: -955105 | F30: -955105 | G30: -641623.9439 | H30: -641623.9439 | I30: -641623.9439 | J30: -641623.9439 | K30: -443279 | L30: GHG Revenue | M30: A.25-05-008 (Amended October Update) | N30: N
A31: 2019 ERRA Forecast | B31: ERRA Forecast | C31: 4958 | D31: 4958 | E31: 4958 | F31: 4958 | G31: 5157.179022 | H31: 5157.179022 | I31: 5157.179022 | J31: 5157.179022 | K31: 5336.996734 | L31: Nuclear | M31: A.25-05-008 (Amended October Update) | N31: N
A32: 2019 ERRA Forecast | B32: ERRA Forecast | C32: -3582 | D32: -3582 | E32: -3582 | F32: -3582 | G32: -19169.38659 | H32: -19169.38659 | I32: -19169.38659 | J32: -19169.38659 | K32: -2686.156696 | L32: Distribution | M32: A.25-05-008 (Amended October Update) | N32: N
B33: ERRA Forecast | C33: 6584.546087 | D33: 6584.546087 | E33: 6584.546087 | F33: 6584.546087 | G33: 2344.499701 | H33: 2344.499701 | I33: 2344.499701 | J33: 2344.499701 | K33: 28843.04446 | L33: Public Purpose | M33: A.25-05-008 (Amended October Update) | N33: N
B34: Modified CAM (MCAM) Rate Component: | C34: 2362.884396 | D34: 2362.884396 | E34: 2362.884396 | F34: 2362.884396 | G34: 4709.193664 | H34: 4709.193664 | I34: 4709.193664 | J34: 4709.193664 | K34: 6367.139893 | L34: MCAM | M34: A.25-05-008 (Amended October Update) | N34: A portion is in the Balancing Account
A35: 2018 ERRA Balancing Account Trigger | B35: TMNBA/BMNBC BA | C35: 8772.952 | D35: 8772.952 | E35: 8772.952 | F35: 8772.952 | G35: 18400.88905 | H35: 18400.88905 | I35: 18400.88905 | J35: 18400.88905 | K35: 11080.47787 | L35: Public Purpose | M35: A.25-05-008 (Amended October Update) | N35: Y
B36: ERRA/PABA/ESMA Balancing Account | C36: 676260.1571 | D36: 676260.1571 | E36: 676260.1571 | F36: 676260.1571 | G36: 459053.5617 | H36: 459053.5617 | I36: 459053.5617 | J36: 459053.5617 | K36: 442848.9249 | L36: Generation | M36: A.25-05-008 (Amended October Update) | N36: Y
B37: 2023 ERRA Trigger | C37: 459077.8602 | D37: 459077.8602 | E37: 0 | F37: =E37 -> 0 | G37: 0 | H37: 0 | I37: 0 | J37: 0 | K37: 0 | L37: Generation | M37: D.23-04-012; Advice 5036-E | N37: Y
B38: 2024 ERRA Trigger | F38: -750729.8226 | G38: -750729.8226 | H38: -750729.8226 | I38: -750729.8226 | J38: 0 | K38: 0 | L38: Generation | M38: D.24-08-015 | N38: Y
B39: DAC-GT/CSGT Clean Energy Programs (BA) | C39: 2572.453913 | D39: 2572.453913 | E39: 2572.453913 | F39: 2572.453913 | G39: 2996.690392 | H39: 2996.690392 | I39: 2996.690392 | J39: 2996.690392 | K39: 3280.128496 | L39: Public Purpose | M39: A.25-05-008 (Amended October Update) | N39: N
B40: 2021 ERRA Review | C40: 0 | D40: 0 | E40: 0 | F40: 0 | G40: 0 | H40: 0 | I40: 0 | J40: 0 | K40: 2037.674034 | L40: Generation | M40: D.25-06-006; Advice 5604-E | N40: N
B41: 2021 ERRA Review | C41: 0 | D41: 0 | E41: 0 | F41: 0 | G41: 0 | H41: 0 | I41: 0 | J41: 0 | K41: 26947.02926 | L41: Distribution | M41: D.25-06-006; Advice 5604-E | N41: N
A42: BRRBA | B42: BRRBA Balancing Account | C42: 4756.555825 | D42: 4756.555825 | E42: 4756.555825 | F42: 4756.555825 | G42: -484.3566812 | H42: -484.3566812 | I42: -484.3566812 | J42: -484.3566812 | K42: 699.4044988 | L42: Generation | M42: D.15-10-037 | N42: Y
A43: NDAM Balancing Account | B43: BRRBA (Inc. FRC FF) | C43: 695357.185 | D43: 695357.185 | E43: 695357.185 | F43: 695357.185 | G43: 676672.1218 | H43: 676672.1218 | I43: 676672.1218 | J43: 676675.8195 | K43: 351336.3192 | L43: Distribution | M43: D.15-10-037; D.25-08-033 | N43: Y
A44: CARE Balancing Account | B44: NDAM Balancing Account | C44: 1927 | D44: 1927 | E44: 1927 | F44: 1927 | G44: -6072.630664 | H44: -6072.630664 | I44: -6072.630664 | J44: -6072.630664 | K44: -4226 | L44: Nuclear | M44: D.15-10-037 | N44: Y
A45: PPPAM Balancing Account | B45: CARE Balancing Account | C45: 55214.93072 | D45: 55214.93072 | E45: 55214.93072 | F45: 55214.93072 | G45: 107382.1747 | H45: 107382.1747 | I45: 107382.1747 | J45: 107382.1747 | K45: -91436.1795 | L45: Public Purpose | M45: D.15-10-037 | N45: Y
B46: PPPAM Balancing Account | C46: 57989.27786 | D46: 57989.27786 | E46: 57989.27786 | F46: 57989.27786 | G46: 191863.3206 | H46: 191863.3206 | I46: 191863.3206 | J46: 191863.3206 | K46: 216363 | L46: Public Purpose | M46: D.15-10-037 | N46: Y
B47: Intentionally Left Blank
B48: Intentionally Left Blank
B49: Emergency Reliability UOS | C49: 17006 | D49: 17591 | E49: 17591 | F49: 17591 | G49: 29550.51254 | H49: 29550.51254 | I49: 29550.51254 | J49: 29550.51254 | K49: 30251.68342 | L49: Generation | M49: Advice 4894-E; Advice 5142-E; Advice 5408-E; Advice 5674-E | N49: N
B50: Emergency Reliability UOS | C50: 62428 | D50: 64611 | E50: 64611 | F50: 64611 | G50: 79159.14371 | H50: 79159.14371 | I50: 79159.14371 | J50: 79159.14371 | K50: 81599.11518 | L50: Distribution | M50: Advice 4894-E; Advice 5142-E; Advice 5408-E; Advice 5674-E | N50: N
B51: 2021 GRC Track 2 O&M (36-Month Amortization) | C51: 135161.6901 | D51: 135161.6901 | E51: 135161.6901 | F51: 135161.6901 | G51: 135161.6901 | H51: 0 | I51: 0 | J51: 0 | K51: 0 | L51: Distribution | M51: D.21-01-012; Advice 4658-E/E-A | N51: N
B52: 2021 GRC Track 3 O&M (36-Month Amortization) | C52: 135415.5795 | D52: 135415.5795 | E52: 135415.5795 | F52: 135415.5795 | G52: 135415.5795 | H52: 135415.5795 | I52: 135415.5795 | J52: 0 | K52: 0 | L52: Distribution | M52: D.22-06-032 | N52: N
B53: VMBA Undercollection Threshold | C53: 29215.51344 | D53: 29215.51344 | E53: 29215.51344 | F53: 34738.53028 | G53: 34738.53028 | H53: 34738.53028 | I53: 34738.53028 | J53: 39014.12745 | K53: 39048.88616 | L53: Distribution | M53: Advice 5534-E; Uncollectibles Factor Update only | N53: Y
B54: WRMBA Undercollection | C54: 0 | D54: 0 | E54: 0 | F54: 129014.0578 | G54: 129014.0578 | H54: 129014.0578 | I54: 129014.0578 | J54: 0 | K54: 0 | L54: Distribution | M54: Advice 5267-E | N54: Y
B55: 2020 Vegetation Management Z-Factor | C55: 37644.69531 | D55: 37644.69531 | E55: 37644.69531 | F55: 0 | G55: 0 | H55: 0 | I55: 0 | J55: 0 | K55: 0 | L55: Distribution | M55: Resolution E-5287 | N55: N
B56: 2021 Wildfire Mitigation/Vegetation Management | C56: 0 | D56: 0 | E56: 378956.9667 | F56: 378956.9667 | G56: 378956.9667 | H56: 378956.9667 | I56: 0 | J56: 0 | K56: 0 | L56: Distribution | M56: D.24-03-008 | N56: N
B57: 2022 WM/VM (non-IRR portion) | C57: 0 | D57: 0 | E57: 0 | F57: 0 | G57: 0 | H57: 0 | I57: 0 | J57: 137017.1377 | K57: 137139.2098 | L57: Distribution | M57: D.25-06-051; Advice 5601-E; Uncollectibles Factor Update only | N57: N
B58: 2022 WM/VM (55% Interm Rate Recovery) | C58: 0 | D58: 0 | E58: 0 | F58: 149902.8146 | G58: 149902.8146 | H58: 149902.8146 | I58: 149902.8146 | J58: 149902.8146 | K58: 150085.3867 | L58: Distribution | M58: D.24-07-012; Uncollectibles Factor Update only | N58: N
B59: 2023 WMCE | C59: 0 | D59: 0 | E59: 0 | F59: 0 | G59: 0 | H59: 0 | I59: 0 | J59: 416027.0088 | K59: 416397.6582 | L59: Distribution | M59: D.25-06-017; Uncollectibles Factor Update only | N59: N
B60: Mobilehome Master Meter Balancing Account | C60: 18034.35236 | D60: 18034.35236 | E60: 18034.35236 | F60: 18034.35236 | G60: 23332.92938 | H60: 23332.92938 | I60: 23332.92938 | J60: 23332.92938 | K60: 17467.80652 | L60: Distribution | M60: D.15-10-037 | N60: Y
B61: WEMA 2 | C61: 214140.3257 | D61: 214140.3257 | E61: 0 | F61: 0 | G61: 0 | H61: 0 | I61: 0 | J61: 0 | K61: 0 | L61: Distribution | M61: D.23-05-033 | N61: N
B62: CEMA - 2020 Storms | C62: 0 | D62: 0 | E62: 0 | F62: 288149.1807 | G62: 288149.1807 | H62: 288149.1807 | I62: 288149.1807 | J62: 0 | K62: 0 | L62: Distribution | M62: D.24-05-037 | N62: N
B63: CEMA Reimbursement - 2020 Creek | C63: 137221.3298 | D63: 137221.3298 | E63: 137221.3298 | F63: 137221.3298 | G63: 0 | H63: 0 | I63: 0 | J63: -16761.22144 | K63: -16776.15445 | L63: Distribution | M63: Advice 5495-E; Uncollectibles Factor Update only | N63: N
B64: 2017 Thomas Fire - CEMA | C64: 0 | D64: 0 | E64: 0 | F64: 0 | G64: 0 | H64: 0 | I64: 34656.77936 | J64: 34656.77936 | K64: 34698.98913 | L64: Distribution | M64: D.25-01-042; Uncollectibles Factor Update only | N64: N
B65: Wildfire Self-Insurance Credit | C65: 0 | D65: 0 | E65: -24268.43314 | F65: -24268.43314 | G65: -24268.43314 | H65: -24268.43314 | I65: 0 | J65: 0 | K65: 0 | L65: Distribution | M65: D.23-05-013 | N65: N
B66: CSRP Track 2 | C66: 38155.501 | D66: 38155.501 | E66: 0 | F66: 0 | G66: 0 | H66: 0 | I66: 0 | J66: 0 | K66: 0 | L66: Distribution | M66: D.23-03-019 | N66: N
B67: Diablo Canyon Extended Operations NBC | C67: 0 | D67: 0 | E67: 0 | F67: 0 | G67: 282858.6909 | H67: 282858.6909 | I67: 282858.6909 | J67: 282858.6909 | K67: 121955 | L67: DCPP | M67: PD in A.25-03-015 | N67: N
A68: SJV DAC Pilots | B68: GSRP Recovery Bonds FRC #1 (AB 1054) | C68: 19256.772 | D68: 19256.772 | E68: 19256.772 | F68: 19256.772 | G68: 19256.772 | H68: 19256.772 | I68: 19256.772 | J68: 19256.772 | K68: 19256.772 | L68: Securitization | M68: D.20-11-007; Advice 4416-E | N68: N
A69: SJV DAC Pilots | B69: 2021 GRC Tracks 1 and 2 Recovery Bonds FRC #2 (AB 1054) | C69: 31732.126 | D69: 31732.126 | E69: 31732.126 | F69: 31732.126 | G69: 31732.126 | H69: 31732.126 | I69: 31732.126 | J69: 31732.126 | K69: 31732.126 | L69: Securitization | M69: D.21-10-025; Advice 4717-E-A | N69: N
A70: SJV DAC Pilots | B70: 2021 GRC Tracks 1 and 3 Recovery Bonds FRC #3 (AB 1054) | C70: 55255.382 | D70: 55255.382 | E70: 55255.382 | F70: 55255.382 | G70: 55255.382 | H70: 55255.382 | I70: 55255.382 | J70: 55255.382 | K70: 55255.382 | L70: Securitization | M70: D.23-02-023; Advice 5018-E | N70: N
B71: 2017 Thomas Fire - WEMA Recovery Bonds FRC #4 | K71: 128100 | L71: Securitization | M71: D.25-08-033; Advice 5691-E | N71: N
A73: Public Policy Proceedings | B73: Subtotal Safety Affordability Reliability | C73: =SUM(C8:C72) -> 15661213.72 | D73: 15864669.4 | E73: 15507984.25 | F73: 15259973.79 | G73: 14918967.61 | H73: 14783805.92 | I73: 14463774.16 | J73: 16755856.88 | K73: 17089315.4
A74: Demand Response | B74: Public Policy Proceedings
A75: Energy Efficiency | B75: Demand Response | C75: 10.11184714 | D75: 11.12303186 | E75: 11.12303186 | F75: 11.12303186 | G75: 11.04213708 | H75: 11.04213708 | I75: 11.04213708 | J75: 11.04213708 | K75: 12.14899528 | L75: Generation | M75: D.23-12-005; Uncollectibles Factor Update only | N75: N
B76: Demand Response (Inc. ELPBA 2023-2025) | C76: 40702.88087 | D76: 49287.83909 | E76: 49287.83909 | F76: 49287.83909 | G76: 52035.59468 | H76: 52035.59468 | I76: 52035.59468 | J76: 52035.59468 | K76: 57799.1954 | L76: Distribution | M76: D.23-12-005 | N76: N
B77: Energy Efficiency (Inc. IDSM) | C77: 288996.5913 | D77: 288996.5913 | E77: 288996.5913 | F77: 288996.5913 | G77: 482807.0296 | H77: 482807.0296 | I77: 482807.0296 | J77: 482807.0296 | K77: 243133.1611 | L77: Public Purpose | M77: D.23-08-005; Advice 5123-E; D.24-09-031; Advice 5670-E | N77: N
B78: New Home Energy Storage Pilot (NHESP) | C78: 5055.923571 | D78: 5055.923571 | E78: 0 | F78: 0 | G78: 0 | H78: 0 | I78: 0 | J78: 0 | K78: 0 | L78: Public Purpose | M78: D.22-04-044; Advice 4852-E | N78: N
B79: Energy Efficiency Market Transformation | C79: 6441 | D79: 6441 | E79: 6441 | F79: 6441 | G79: 6441 | H79: 6441 | I79: 6441 | J79: 6441 | K79: 8632.873561 | L79: Public Purpose | M79: D.19-12-021; D.25-11-023 | N79: N
B80: 2020 RUBA Uncollectibles (36-Month Amortization) | C80: 25700.14834 | D80: 25700.14834 | E80: 25700.14834 | F80: 25700.14834 | G80: 25700.14834 | H80: 0 | I80: 0 | J80: 0 | K80: 0 | L80: Public Purpose | M80: Advice 4658-E/E-A | N80: N
A81: CA Solar Initiatives/MASH/SASH | B81: Charge Ready Programs (Pilot, Bridge and Schools and Parks) | C81: 41775 | D81: 42322 | E81: 42322 | F81: 42322 | G81: 76686.14532 | H81: 76686.14532 | I81: 76686.14532 | J81: 76686.14532 | K81: 73455.54695 | L81: Distribution | M81: Advice 5676-E | N81: N
B82: Transportation Electrification | C82: 15804 | D82: 16033 | E82: 16033 | F82: 16033 | G82: 27307.65104 | H82: 27307.65104 | I82: 27307.65104 | J82: 27307.65104 | K82: 21431.88475 | L82: Distribution | M82: Advice 5676-E | N82: N
B83: Low Income Programs (ESAP) | C83: 92017.80899 | D83: 92017.80899 | E83: 92017.80899 | F83: 92017.80899 | G83: 92462.20343 | H83: 92462.20343 | I83: 92462.20343 | J83: 92462.20343 | K83: 75728.05588 | L83: Public Purpose | M83: D.21-06-015 | N83: N
A84: Statewide ME&O | B84: Low Income Programs (CARE/FERA Admin) | C84: 10571.12016 | D84: 10571.12016 | E84: 10571.12016 | F84: 10571.12016 | G84: 10971.64941 | H84: 10971.64941 | I84: 10971.64941 | J84: 10971.64941 | K84: 11089.1554 | L84: Public Purpose | M84: D.21-06-015; Advice 4638-E | N84: N
A85: Self-Generation Incentive Program (SGIP) | B85: EPIC - RD&D and Renewables | C85: 76885.42974 | D85: 76885.42974 | E85: 76885.42974 | F85: 76885.42974 | G85: 76885.42974 | H85: 76885.42974 | I85: 76885.42974 | J85: 76885.42974 | K85: 45469.53437 | L85: Public Purpose | M85: D.20-08-042; D.21-11-028 | N85: N
A86: Aliso Canyon Energy Storage | B86: Self-Generation Incentive Program (SGIP) | C86: 56626.34399 | D86: 56626.34399 | E86: 56626.34399 | F86: 56626.34399 | G86: 0 | H86: 0 | I86: 0 | J86: 0 | K86: 0 | L86: Public Purpose | M86: D.20-01-021; D.21-11-028; Advice 4169-E | N86: N
A87: Non-CPUC Jurisdictional Proceedings | B87: Subtotal Public Policy | C87: =SUM(C75:C86) -> 660586.3588 | D87: 669948.3282 | E87: 664892.4046 | F87: 664892.4046 | G87: 851307.8937 | H87: 825607.7453 | I87: 825607.7453 | J87: 825607.7453 | K87: 536751.5564
A88: DWR Bond/Power | B88: Non-CPUC Jurisdictional Proceedings
A89: Wildfire Fund Charge | B89: DWR Bond/Power | C89: 0 | D89: 0 | E89: 0 | F89: 0 | G89: 0 | H89: 0 | I89: 0 | J89: 0 | K89: 0 | L89: DWR | N89: N
A90: Wildfire Fund Charge | B90: DWR Bond Refund | C90: 0 | D90: 0 | E90: 0 | F90: 0 | G90: 0 | H90: 0 | I90: 0 | J90: 0 | K90: 0 | L90: DWR | N90: N
A91: FERC Base Transmission | B91: Wildfire Fund Charge (AB1054) | C91: 408912 | D91: 408912 | E91: 408912 | F91: 408912 | G91: 416803 | H91: 416803 | I91: 416803 | J91: 416803 | K91: 426374.1479 | L91: DWR | M91: PD in R.23-03-007 | N91: N
A92: TRBAA | B92: FERC Base Transmission | C92: 1124500.46 | D92: 1124500.46 | E92: 1124500.46 | F92: 1124500.46 | G92: 1344347 | H92: 1344347 | I92: 1344347 | J92: 1344347 | K92: 1496918 | L92: FERC | M92: ER26-XXX | N92: N
A93: RSBAA | B93: TRBAA (BA) | C93: -283956 | D93: -283956 | E93: -283956 | F93: -283956 | G93: -214482 | H93: -214482 | I93: -214482 | J93: =I93 -> -214482 | K93: -178588.593 | L93: TOTCA | M93: ER26-378 | N93: Y
A94: TACBAA | B94: RSBAA (BA) | C94: 4738 | D94: 4738 | E94: 4738 | F94: 4738 | G94: 8496 | H94: 8496 | I94: 8496 | J94: =I94 -> 8496 | K94: 9616.624 | L94: TOTCA | M94: ER26-318 | N94: Y
A95: Total Approved, Implemented Since Jan 1 or To Be Implemented | B95: TACBAA (BA) | C95: 98974 | D95: 98974 | E95: 270811 | F95: 270811 | G95: 270811 | H95: 270811 | I95: 203233.255 | J95: =I95 -> 203233.255 | K95: 213984.53 | L95: TOTCA | M95: ER25-1824-000 | N95: Y
B96: Subtotal Non-CPUC Jurisdictional | C96: =SUM(C90:C95) -> 1353168.46 | D96: =SUM(D90:D95) -> 1353168.46 | E96: 1525005.46 | F96: 1525005.46 | G96: 1825975 | H96: =SUM(H90:H95) -> 1825975 | I96: =SUM(I90:I95) -> 1758397.255 | J96: 1758397.255 | K96: =SUM(K90:K95) -> 1968304.709
B97: PUCRF | C97: 80194.53144 | D97: =C97 -> 80194.53144 | E97: =D97 -> 80194.53144 | F97: =E97 -> 80194.53144 | G97: 63307.71418 | H97: 63307.71418 | I97: 63307.71418 | J97: 63307.71418 | K97: 63307.71418 | L97: PUCRF | N97: N
B98: Total Authorized Revenue | C98: =C73+C87+C96+C97 -> 17755163.07 | D98: 17967980.72 | E98: 17778076.65 | F98: 17530066.19 | G98: 17659558.21 | H98: 17498696.38 | I98: 17111086.88 | J98: 19403169.59 | K98: 19657679.37
B99: w/o PUCRF | C99: =C98-C97 -> 17674968.54 | D99: 17887786.19 | E99: =E98-E97 -> 17697882.12 | F99: 17449871.66 | G99: 17596250.5 | H99: =H98-H97 -> 17435388.66 | I99: =I98-I97 -> 17047779.16 | J99: 19339861.88 | K99: =K98-K97 -> 19594371.66
C100: 0 | D100: 0 | E100: 0 | F100: 0 | G100: 0 | H100: 0 | I100: 0 | J100: 0 | K100: 0
B105: 1/ This advice letter is SCE's preliminary revenue requirement to be implemented on January 1, 2026. In accordance with OP 2 of Resolution E-5217, SCE will submit a separate Tier 1 advice letter (Final Tier 1 Advice Letter) on or before December 31, 2025 to update the preliminary consolidated electric revenue requirement and rate change estimates with actual rate and revenue requirement changes authorized by the CPUC and the FERC that were included in the revenue requirements used to calculate January 1, 2026 rates.

Sheet Incremental Rev Req
A2: Annual Period 2025
A3: Reporting Date: Quarter Ended December 31
A5: Current Revenue Requirement ($000): | B5: ='Authorized Rev Req'!J98 -> 19403169.59 | C5: Inc. PUCRF
A6: Current Revenue Requirement Effective: | B6: October 1, 2025
A7: Approved Application(s), Implemented Since Jan 1 or To Be Implemented
A8: Filing Description | B8: Proceeding | C8: Authority for Revenue Requirement | D8: Authorized Revenue Requirement ($000) | E8: Revenue Recovery Mechanism | F8: 2025 | G8: =F8+1 -> 2026 | H8: =G8+1 -> 2027 | I8: 2028 | J8: 2029 | K8: Existing or New Item (if existing, use delta from prior for rate impact) | S8: Total Authorized
A9: Safety Affordability Reliability Proceedings | T9: =F8 -> 2025 | U9: =G8 -> 2026 | V9: 2027 | W9: 2028 | X9: 2029
A10: General Rate Case (GRC-G) | C10: D.25-09-030; Advice 5642-E/E-A | D10: ='Authorized Rev Req'!J8 -> 891445.0485 | E10: Generation | F10: ='Authorized Rev Req'!J8 -> 891445.0485 | G10: ='Authorized Rev Req'!K8 -> 922658.065 | H10: 951366.0975 | I10: 978765.3871 | J10: =I10 -> 978765.3871 | K10: Existing | S10: Generation | T10: =SUMIF($E$10:$E$85,$S10,F$10:F$85)+'Authorized Rev Req'!J15 -> 5525852.948 | U10: =SUMIF($E$10:$E$85,$S10,G$10:G$85) -> 5545835.694 | V10: =SUMIF($E$10:$E$85,$S10,H$10:H$85) -> 5064270.837 | W10: =SUMIF($E$10:$E$85,$S10,I$10:I$85) -> 5091670.126 | X10: =SUMIF($E$10:$E$85,$S10,J$10:J$85) -> 5091670.126
A11: General Rate Case (GRC-N) | C11: D.25-09-030; Advice 5642-E/E-A | D11: ='Authorized Rev Req'!J9 -> 65975.9059 | E11: New System Gen | F11: ='Authorized Rev Req'!J9 -> 65975.9059 | G11: ='Authorized Rev Req'!K9 -> 65590.07344 | H11: 65692.06484 | I11: 65401.21723 | J11: =I11 -> 65401.21723 | K11: Existing | S11: New System Gen | T11: =SUMIF($E$10:$E$85,$S11,F$10:F$85)+'Authorized Rev Req'!J16 -> 603172.2203 | U11: 602612.7964 | V11: 523158.8039 | W11: 522867.9563 | X11: 522867.9563
A12: General Rate Case (GRC-D) | C12: D.25-09-030; Advice 5642-E/E-A | D12: ='Authorized Rev Req'!J10 -> 8702553.289 | E12: Distribution | F12: ='Authorized Rev Req'!J10 -> 8702553.289 | G12: ='Authorized Rev Req'!K10 -> 9198253.044 | H12: 9718528.587 | I12: 10139271.55 | J12: 10139271.55 | K12: Existing | S12: Distribution | T12: =SUMIF($E$10:$E$85,$S12,F$10:F$85)+'Authorized Rev Req'!J18 -> 10708193.86 | U12: 10179607.22 | V12: 9898223.483 | W12: 10318966.44 | X12: 10318966.44
A13: 2025 GRCRRMA (24-month amortization) | C13: D.25-09-030; Advice 5642-E/E-A | D13: ='Authorized Rev Req'!J11 -> 51458.93457 | E13: Generation | F13: ='Authorized Rev Req'!J11 -> 51458.93457 | G13: ='Authorized Rev Req'!K11 -> 51504.78069 | I13: 0 | K13: New | S13: GHG Revenue | T13: =SUMIF($E$10:$E$85,$S13,F$10:F$85) -> -641623.9439 | U13: -641623.9439 | V13: -641623.9439 | W13: -641623.9439 | X13: -641623.9439
A14: 2025 GRCRRMA (24-month amortization) | C14: D.25-09-030; Advice 5642-E/E-A | D14: ='Authorized Rev Req'!J12 -> 1530.662547 | E14: New System Gen | F14: ='Authorized Rev Req'!J12 -> 1530.662547 | G14: ='Authorized Rev Req'!K12 -> 1532.026254 | I14: 0 | K14: New | S14: MCAM | T14: =SUMIF($E$10:$E$85,$S14,F$10:F$85)+'Authorized Rev Req'!J17 -> 4710.732249 | U14: 4709.193664 | V14: 4709.193664 | W14: 4709.193664 | X14: 4709.193664
A15: 2025 GRCRRMA (24-month amortization) | C15: D.25-09-030; Advice 5642-E/E-A | D15: ='Authorized Rev Req'!J13 -> 398114.1493 | E15: Distribution | F15: ='Authorized Rev Req'!J13 -> 398114.1493 | G15: ='Authorized Rev Req'!K13 -> 398468.8397 | I15: 0 | K15: New | S15: Nuclear | T15: =SUMIF($E$10:$E$85,$S15,F$10:F$85)+'Authorized Rev Req'!J20 -> -915.7507376 | U15: 931.1790224 | V15: 5157.179022 | W15: 5157.179022 | X15: 5157.179022
A16: 2025 GRC One-Time Recovery of Accounts | C16: D.25-09-030; Advice 5642-E/E-A | D16: ='Authorized Rev Req'!J14 -> 52205.497 | E16: Distribution | F16: ='Authorized Rev Req'!J14 -> 52205.497 | G16: 0 | H16: 0 | I16: 0 | K16: New | S16: Public Purpose | T16: =SUMIF($E$10:$E$85,$S16,F$10:F$85)+'Authorized Rev Req'!J19 -> 992971.5889 | U16: 772395.5484 | V16: 778860.8093 | W16: 778860.8093 | X16: 778860.8093
A17: 2025 GRC - FF&U Impact on Non-GRC Items | C17: D.25-09-030; Advice 5642-E/E-A | D17: =SUM('Authorized Rev Req'!J15:J20) -> 2212.047412 | E17: All Revenue Recovery Mechanisms Combined | F17: =SUM('Authorized Rev Req'!J15:L20) -> 2212.047412 | G17: =SUM('Authorized Rev Req'!K15:M20) -> 0 | H17: 0 | I17: 0 | K17: New | S17: DCPP | T17: =SUMIF($E$10:$E$85,$S17,F$10:F$85) -> 282858.6909 | U17: 282858.6909 | V17: 282858.6909 | W17: 282858.6909 | X17: 282858.6909
A18: Non-utility Affiliate Credits | C18: D.15-10-037 | D18: ='Authorized Rev Req'!J21 -> -4572.580314 | E18: Distribution | F18: ='Authorized Rev Req'!J21 -> -4572.580314 | G18: ='Authorized Rev Req'!K21 -> -4508.103154 | H18: 0 | I18: 0 | J18: 0 | K18: Existing | S18: DWR | T18: 416803 | U18: 426374.1479 | V18: 426374.1479 | W18: 426374.1479 | X18: 426374.1479
A19: Pole Loading & Deteriorated Pole Programs Balancing Account | C19: D.21-08-036 | D19: ='Authorized Rev Req'!J22 -> -14072.56849 | E19: Distribution | F19: ='Authorized Rev Req'!J22 -> -14072.56849 | G19: ='Authorized Rev Req'!K22 -> 4694.932148 | H19: 0 | I19: 0 | J19: 0 | K19: Existing | S19: FERC | T19: 1344347 | U19: 1496918 | V19: 1496918 | W19: 1496918 | X19: 1496918
A20: 2023/2024 TAMA Balance | C20: Advice 5560-E | D20: ='Authorized Rev Req'!J23 -> 14976.03009 | E20: Generation | F20: ='Authorized Rev Req'!J23 -> 14976.03009 | G20: ='Authorized Rev Req'!K23 -> -5713.761947 | H20: =G20 -> -5713.761947 | I20: =H20 -> -5713.761947 | J20: -5713.761947 | K20: Existing | S20: TOTCA | T20: -2752.745 | U20: 45012.561 | V20: 45012.561 | W20: 45012.561 | X20: 45012.561
A21: 2023/2024 TAMA Balance | C21: Advice 5515-E | D21: ='Authorized Rev Req'!J24 -> -37050.25578 | E21: Distribution | F21: ='Authorized Rev Req'!J24 -> -37050.25578 | G21: ='Authorized Rev Req'!K24 -> -37083.26483 | H21: =G21 -> -37083.26483 | I21: =H21 -> -37083.26483 | J21: -37083.26483 | K21: Existing | S21: Securitization | T21: 106244.28 | U21: 228176.28 | V21: 228176.28 | W21: 228176.28 | X21: 228176.28
A22: Pension/PBOP/Medical Balancing Accounts | C22: D.21-08-036; D.25-09-030 | D22: ='Authorized Rev Req'!J25 -> -10009.34302 | E22: Generation | F22: ='Authorized Rev Req'!J25 -> -10009.34302 | G22: ='Authorized Rev Req'!K25 -> -3022.530999 | H22: 0 | I22: 0 | J22: 0 | K22: Existing | S22: PUCRF | T22: 63307.71418 | U22: 80445 | V22: 80445 | W22: 80445 | X22: 80445
A23: Pension/PBOP/Medical Balancing Accounts | C23: D.21-08-036; D.25-09-030 | D23: ='Authorized Rev Req'!J26 -> -64990.5188 | E23: Distribution | F23: ='Authorized Rev Req'!J26 -> -64990.5188 | G23: ='Authorized Rev Req'!K26 -> -20485.73875 | H23: 0 | I23: 0 | J23: 0 | K23: Existing | T23: =SUM(T10:T22) -> 19403169.59 | U23: =SUM(U10:U22) -> 19024252.37 | V23: =SUM(V10:V22) -> 18192541.04 | W23: =SUM(W10:W22) -> 18640392.44 | X23: =SUM(X10:X22) -> 18640392.44
A24: 2025 ERRA Forecast F&PP | C24: D.24-12-039 | D24: ='Authorized Rev Req'!J27 -> 4088354.669 | E24: Generation | F24: ='Authorized Rev Req'!J27 -> 4088354.669 | G24: =F24 -> 4088354.669 | H24: =G24 -> 4088354.669 | I24: 4088354.669 | J24: 4088354.669 | K24: Existing | S24: Check | T24: =T23=F85 -> TRUE | U24: =U23=G85 -> TRUE | V24: =V23=H85 -> TRUE | W24: =W23=I85 -> TRUE | X24: =X23=J85 -> TRUE
A25: 2025 ERRA Forecast F&PP | C25: D.24-12-039 | D25: ='Authorized Rev Req'!J28 -> 457466.7391 | E25: New System Gen | F25: ='Authorized Rev Req'!J28 -> 457466.7391 | G25: =F25 -> 457466.7391 | H25: 457466.7391 | I25: 457466.7391 | J25: 457466.7391 | K25: Existing
A26: 2025 ERRA Forecast (BA) | C26: D.24-12-039 | D26: ='Authorized Rev Req'!J29 -> 78023.95761 | E26: New System Gen | F26: ='Authorized Rev Req'!J29 -> 78023.95761 | G26: 78023.95761 | H26: 0 | I26: 0 | J26: 0 | K26: Existing
A27: 2025 ERRA Forecast | C27: D.24-12-039 | D27: ='Authorized Rev Req'!J30 -> -641623.9439 | E27: GHG Revenue | F27: ='Authorized Rev Req'!J30 -> -641623.9439 | G27: -641623.9439 | H27: -641623.9439 | I27: =H27 -> -641623.9439 | J27: -641623.9439 | K27: Existing
A28: 2025 ERRA Forecast | C28: D.24-12-039 | D28: ='Authorized Rev Req'!J31 -> 5157.179022 | E28: Nuclear | F28: ='Authorized Rev Req'!J31 -> 5157.179022 | G28: 5157.179022 | H28: 5157.179022 | I28: 5157.179022 | J28: 5157.179022 | K28: Existing
A29: 2025 ERRA Forecast | C29: D.24-12-039 | D29: ='Authorized Rev Req'!J32 -> -19169.38659 | E29: Distribution | F29: ='Authorized Rev Req'!J32 -> -19169.38659 | G29: -19169.38659 | H29: -19169.38659 | I29: -19169.38659 | J29: -19169.38659 | K29: Existing
A30: 2025 ERRA Forecast | C30: D.24-12-039 | D30: ='Authorized Rev Req'!J33 -> 2344.499701 | E30: Public Purpose | F30: ='Authorized Rev Req'!J33 -> 2344.499701 | G30: 2344.499701 | H30: 2344.499701 | I30: 2344.499701 | J30: 2344.499701 | K30: Existing
A31: 2025 ERRA Forecast | C31: D.24-12-039 | D31: ='Authorized Rev Req'!J34 -> 4709.193664 | E31: MCAM | F31: ='Authorized Rev Req'!J34 -> 4709.193664 | G31: 4709.193664 | H31: 4709.193664 | I31: 4709.193664 | J31: 4709.193664 | K31: Existing
A32: 2025 ERRA Forecast (BA) | C32: D.24-12-039 | D32: ='Authorized Rev Req'!J35 -> 18400.88905 | E32: Public Purpose | F32: ='Authorized Rev Req'!J35 -> 18400.88905 | G32: 18400.88905 | H32: 0 | I32: 0 | J32: 0 | K32: Existing
A33: 2025 ERRA/PABA (BA) | C33: D.24-12-039 | D33: ='Authorized Rev Req'!J36 -> 459053.5617 | E33: Generation | F33: ='Authorized Rev Req'!J36 -> 459053.5617 | G33: 459053.5617 | H33: 0 | I33: =H33 -> 0 | J33: =I33 -> 0 | K33: Existing
A34: DAC-GT/CSGT Clean Energy Programs (BA) | C34: D.24-12-039 | D34: ='Authorized Rev Req'!J39 -> 2996.690392 | E34: Public Purpose | F34: ='Authorized Rev Req'!J39 -> 2996.690392 | G34: 2996.690392 | H34: 2996.690392 | I34: =H34 -> 2996.690392 | J34: =I34 -> 2996.690392 | K34: Existing
A35: 2024 ERRA Trigger | C35: D.24-08-015 | D35: ='Authorized Rev Req'!J38 -> 0 | E35: Generation | F35: ='Authorized Rev Req'!J38 -> 0 | G35: ='Authorized Rev Req'!K38 -> 0 | H35: 0 | I35: 0 | J35: 0 | K35: Existing
A36: 2021 ERRA Review | C36: D.25-06-006; Advice 5604-E | D36: ='Authorized Rev Req'!J40 -> 0 | E36: Generation | F36: ='Authorized Rev Req'!J40 -> 0 | G36: ='Authorized Rev Req'!K40 -> 2037.674034 | H36: 0 | I36: 0 | J36: 0 | K36: New
A37: 2021 ERRA Review | C37: D.25-06-006; Advice 5604-E | D37: ='Authorized Rev Req'!J41 -> 0 | E37: Distribution | F37: ='Authorized Rev Req'!J41 -> 0 | G37: ='Authorized Rev Req'!K41 -> 26947.02926 | H37: 0 | K37: New
A38: 2023 WMCE | C38: D.25-06-017 | D38: ='Authorized Rev Req'!J59 -> 416027.0088 | E38: Distribution | F38: ='Authorized Rev Req'!J59 -> 416027.0088 | G38: 0 | H38: 0 | K38: New
A39: BRRBA Balancing Account | C39: D.15-10-037 | D39: ='Authorized Rev Req'!J42 -> -484.3566812 | E39: Generation | F39: ='Authorized Rev Req'!J42 -> -484.3566812 | G39: ='Authorized Rev Req'!K42 -> 699.4044988 | H39: 0 | I39: =H39 -> 0 | J39: 0 | K39: Existing
A40: BRRBA Balancing Account | C40: D.15-10-037 | D40: ='Authorized Rev Req'!J43 -> 676675.8195 | E40: Distribution | F40: ='Authorized Rev Req'!J43 -> 676675.8195 | G40: ='Authorized Rev Req'!K43 -> 351336.3192 | H40: 2198 | I40: 2198 | J40: 2198 | K40: Existing
A41: NDAM Balancing Account | C41: D.15-10-037 | D41: ='Authorized Rev Req'!J44 -> -6072.630664 | E41: Nuclear | F41: ='Authorized Rev Req'!J44 -> -6072.630664 | G41: ='Authorized Rev Req'!K44 -> -4226 | H41: 0 | I41: 0 | J41: 0 | K41: Existing
A42: CARE Balancing Account | C42: D.15-10-037 | D42: ='Authorized Rev Req'!J45 -> 107382.1747 | E42: Public Purpose | F42: ='Authorized Rev Req'!J45 -> 107382.1747 | G42: ='Authorized Rev Req'!K45 -> -91436.1795 | H42: 0 | I42: =H42 -> 0 | J42: 0 | K42: Existing
A43: PPPAM Balancing Account | C43: D.15-10-037 | D43: ='Authorized Rev Req'!J46 -> 191863.3206 | E43: Public Purpose | F43: ='Authorized Rev Req'!J46 -> 191863.3206 | G43: ='Authorized Rev Req'!K46 -> 216363 | H43: 150000 | I43: =H43 -> 150000 | J43: 150000 | K43: Existing
A44: Emergency Reliability UOS | C44: Advice 4894-E; Advice 5142-E; Advice 5408-E; Advice 5674-E | D44: ='Authorized Rev Req'!J49 -> 29550.51254 | E44: Generation | F44: ='Authorized Rev Req'!J49 -> 29550.51254 | G44: ='Authorized Rev Req'!K49 -> 30251.68342 | H44: =G44 -> 30251.68342 | I44: 30251.68342 | J44: 30251.68342 | K44: Existing
A45: Emergency Reliability UOS | C45: Advice 4894-E; Advice 5142-E; Advice 5408-E; Advice 5674-E | D45: ='Authorized Rev Req'!J50 -> 79159.14371 | E45: Distribution | F45: ='Authorized Rev Req'!J50 -> 79159.14371 | G45: ='Authorized Rev Req'!K50 -> 81599.11518 | H45: 81599.11518 | I45: 81599.11518 | J45: 81599.11518 | K45: Existing
A46: CEMA - 2020 Storms | C46: D.24-05-037 | D46: ='Authorized Rev Req'!J62 -> 0 | E46: Distribution | F46: ='Authorized Rev Req'!J62 -> 0 | G46: 0 | H46: 0 | I46: 0 | J46: 0 | K46: Existing
A47: CEMA Reimbursement - 2020 Creek | C47: Advice 5495-E | D47: ='Authorized Rev Req'!J63 -> -16761.22144 | E47: Distribution | F47: ='Authorized Rev Req'!J63 -> -16761.22144 | G47: 0 | H47: 0 | I47: 0 | J47: 0 | K47: New
A48: 2021 GRC Track 3 O&M (36-Month Amortization) | C48: D.22-06-032 | D48: ='Authorized Rev Req'!J52 -> 0 | E48: Distribution | F48: 0 | G48: 0 | H48: 0 | I48: 0 | J48: 0 | K48: Existing
A49: VMBA Undercollection Threshold | C49: Advice 5534-E | D49: ='Authorized Rev Req'!J53 -> 39014.12745 | E49: Distribution | F49: ='Authorized Rev Req'!J53 -> 39014.12745 | G49: 0 | H49: 0 | I49: 0 | J49: 0 | K49: Existing
A50: 2022 WM/VM (55% Interm Rate Recovery) | C50: D.24-07-012 | D50: ='Authorized Rev Req'!J58 -> 149902.8146 | E50: Distribution | F50: ='Authorized Rev Req'!J58 -> 149902.8146 | H50: 0 | I50: 0 | J50: 0 | K50: Existing
A51: 2022 WM/VM (Non-IRR Portion) | C51: D.25-06-051; Advice 5601-E | D51: ='Authorized Rev Req'!J57 -> 137017.1377 | E51: Distribution | F51: ='Authorized Rev Req'!J57 -> 137017.1377 | G51: 0 | H51: 0 | I51: 0 | J51: 0 | K51: Existing
A52: WRMBA Undercollection | C52: Advice 5267-E | D52: ='Authorized Rev Req'!J54 -> 0 | E52: Distribution | F52: 0 | G52: 0 | H52: 0 | I52: 0 | J52: 0 | K52: Existing
A53: Mobilehome Master Meter Balancing Account | C53: D.15-10-037 | D53: ='Authorized Rev Req'!J60 -> 23332.92938 | E53: Distribution | F53: ='Authorized Rev Req'!J60 -> 23332.92938 | G53: ='Authorized Rev Req'!K60 -> 17467.80652 | H53: 0 | I53: =H53 -> 0 | J53: 0 | K53: Existing
A54: 2017 Thomas Fire - CEMA | C54: D.25-01-042 | D54: ='Authorized Rev Req'!J64 -> 34656.77936 | E54: Distribution | F54: ='Authorized Rev Req'!J64 -> 34656.77936 | G54: 0 | H54: 0 | I54: 0 | J54: 0 | K54: Existing
A55: Diablo Canyon Extended Operations NBC | C55: D.24-12-033 | D55: ='Authorized Rev Req'!J67 -> 282858.6909 | E55: DCPP | F55: ='Authorized Rev Req'!J67 -> 282858.6909 | G55: =F55 -> 282858.6909 | H55: =G55 -> 282858.6909 | I55: =H55 -> 282858.6909 | J55: =I55 -> 282858.6909 | K55: Existing
A56: GSRP Recovery Bonds FRC #1 (AB 1054) | C56: D.20-11-007; Advice 4416-E | D56: ='Authorized Rev Req'!J68 -> 19256.772 | E56: Securitization | F56: ='Authorized Rev Req'!J68 -> 19256.772 | G56: ='Authorized Rev Req'!K68 -> 19256.772 | H56: =G56 -> 19256.772 | I56: 19256.772 | J56: 19256.772 | K56: Existing
A57: 2021 GRC Tracks 1 and 2 Recovery Bonds FRC #2 (AB 1054) | C57: D.21-10-025; Advice 4717-E-A | D57: ='Authorized Rev Req'!J69 -> 31732.126 | E57: Securitization | F57: ='Authorized Rev Req'!J69 -> 31732.126 | G57: ='Authorized Rev Req'!K69 -> 31732.126 | H57: 31732.126 | I57: 31732.126 | J57: 31732.126 | K57: Existing
A58: ='Authorized Rev Req'!$B$70 -> 2021 GRC Tracks 1 and 3 Recovery Bonds FRC #3 (AB 1054) | C58: D.23-02-023; Advice 5018-E | D58: ='Authorized Rev Req'!J70 -> 55255.382 | E58: Securitization | F58: ='Authorized Rev Req'!J70 -> 55255.382 | G58: ='Authorized Rev Req'!K70 -> 55255.382 | H58: 55255.382 | I58: 55255.382 | J58: 55255.382 | K58: Existing
A59: 2017 Thomas Fire - WEMA Recovery Bonds FRC #4 | C59: D.25-08-033; Advice 5691-E | D59: ='Authorized Rev Req'!J71 -> 0 | E59: Securitization | F59: ='Authorized Rev Req'!J71 -> 0 | G59: 121932 | H59: =G59 -> 121932 | I59: 121932 | J59: 121932 | K59: New
A60: Section 851 - Sale of GO 5 Property | C60: D.25-07-011 | D60: 0 | E60: Distribution | F60: 0 | G60: 29400 | H60: 0 | I60: 0 | J60: 0 | K60: New
A63: Public Policy Proceedings
A64: Demand Response | C64: D.23-12-005; Advice 5421-E | D64: ='Authorized Rev Req'!J75 -> 11.04213708 | E64: Generation | F64: ='Authorized Rev Req'!J75 -> 11.04213708 | G64: ='Authorized Rev Req'!K75 -> 12.14899528 | H64: =G64 -> 12.14899528 | I64: =H64 -> 12.14899528 | J64: =I64 -> 12.14899528 | K64: Existing
A65: Demand Response | C65: D.23-12-005; Advice 5421-E | D65: ='Authorized Rev Req'!J76 -> 52035.59468 | E65: Distribution | F65: ='Authorized Rev Req'!J76 -> 52035.59468 | G65: ='Authorized Rev Req'!K76 -> 57799.1954 | H65: 57263 | I65: 57263 | J65: =I65 -> 57263 | K65: Existing
A66: Energy Efficiency (Inc. IDSM) | C66: D.23-08-005; Advice 5123-E; D.24-09-031 | D66: ='Authorized Rev Req'!J77 -> 482807.0296 | E66: Public Purpose | F66: ='Authorized Rev Req'!J77 -> 482807.0296 | G66: =F66 -> 482807.0296 | H66: 482600 | I66: 482600 | J66: 482600 | K66: Existing
A67: Energy Efficiency Market Transformation | C67: D.19-12-021; D.25-11-023 | D67: ='Authorized Rev Req'!$J79 -> 6441 | E67: Public Purpose | F67: ='Authorized Rev Req'!J79 -> 6441 | G67: ='Authorized Rev Req'!K79 -> 8632.873561 | H67: =G67 -> 8632.873561 | I67: 8632.873561 | J67: 8632.873561 | K67: Existing
A68: Charge Ready Programs (Pilot, Bridge and Schools and Parks) | C68: Advice 5141-E; Advice 5407-E; Advice 5676-E | D68: ='Authorized Rev Req'!$J81 -> 76686.14532 | E68: Distribution | F68: ='Authorized Rev Req'!J81 -> 76686.14532 | G68: ='Authorized Rev Req'!K81 -> 73455.54695 | H68: =G68 -> 73455.54695 | I68: 73455.54695 | J68: 73455.54695 | K68: Existing | S68: Total w/Authorized and Pending
A69: Transportation Electrification | C69: Advice 5141-E; Advice 5407-E; Advice 5676-E | D69: ='Authorized Rev Req'!$J82 -> 27307.65104 | E69: Distribution | F69: ='Authorized Rev Req'!J82 -> 27307.65104 | G69: ='Authorized Rev Req'!K82 -> 21431.88475 | H69: 21431.88475 | I69: 21431.88475 | J69: 21431.88475 | K69: Existing | T69: =T9 -> 2025 | U69: =U9 -> 2026 | V69: =V9 -> 2027 | W69: =W9 -> 2028 | X69: =X9 -> 2029
A70: TE Funding Cycle 1 | C70: D.22-11-040; Advice 4954-E | D70: 0 | E70: Distribution | F70: 0 | G70: 0 | H70: 0 | I70: =H70 -> 0 | J70: =H70 -> 0 | K70: On hold | S70: Generation | T70: =T10+SUMIFS(L$93:L$142,$Q$93:$Q$142,"Y",$E$93:$E$142,$S70) -> 5525852.948 | U70: =U10+SUMIFS(M$93:M$142,$Q$93:$Q$142,"Y",$E$93:$E$142,$S70) -> 5753042.593 | V70: =V10+SUMIFS(N$93:N$142,$Q$93:$Q$142,"Y",$E$93:$E$142,$S70) -> 5186221.809 | W70: =W10+SUMIFS(O$93:O$142,$Q$93:$Q$142,"Y",$E$93:$E$142,$S70) -> 5213523.776 | X70: =X10+SUMIFS(P$93:P$142,$Q$93:$Q$142,"Y",$E$93:$E$142,$S70) -> 5213523.776
A71: Low Income Programs (ESAP) | C71: D.21-06-015 | D71: ='Authorized Rev Req'!$J83 -> 92462.20343 | E71: Public Purpose | F71: ='Authorized Rev Req'!J83 -> 92462.20343 | G71: ='Authorized Rev Req'!K83 -> 75728.05588 | H71: =G71 -> 75728.05588 | I71: =H71 -> 75728.05588 | J71: =I71 -> 75728.05588 | K71: Existing | S71: New System Gen | T71: 603172.2203 | U71: 516731.1387 | V71: 538806.3081 | W71: 538536.2719 | X71: 538536.2719
A72: Low Income Programs (CARE/FERA Admin) | C72: D.21-06-015; Advice 4638-E | D72: ='Authorized Rev Req'!$J84 -> 10971.64941 | E72: Public Purpose | F72: ='Authorized Rev Req'!J84 -> 10971.64941 | G72: ='Authorized Rev Req'!K84 -> 11089.1554 | H72: =G72 -> 11089.1554 | I72: =H72 -> 11089.1554 | J72: =I72 -> 11089.1554 | K72: Existing | S72: Distribution | T72: 10708193.86 | U72: 10165753.93 | V72: 9921889.244 | W72: 10439096.02 | X72: 10546827.02
A73: EPIC - RD&D and Renewables | C73: D.20-08-042; D.21-11-028 | D73: ='Authorized Rev Req'!$J85 -> 76885.42974 | E73: Public Purpose | F73: ='Authorized Rev Req'!J85 -> 76885.42974 | G73: ='Authorized Rev Req'!K85 -> 45469.53437 | H73: =G73 -> 45469.53437 | I73: 45469.53437 | J73: 45469.53437 | K73: Existing | S73: GHG Revenue | T73: -641623.9439 | U73: -443279 | V73: -443279 | W73: -443279 | X73: -443279
S74: MCAM | T74: 4710.732249 | U74: 6367.139893 | V74: 3685.299997 | W74: 3685.299997 | X74: 3685.299997
S75: Nuclear | T75: -915.7507376 | U75: 1110.996734 | V75: 5336.996734 | W75: 5336.996734 | X75: 5336.996734
S76: Public Purpose | T76: 992971.5889 | U76: 563081.2516 | V76: 569257.9519 | W76: 569058.9519 | X76: 569058.9519
A77: Non-CPUC Jurisdictional Proceedings | S77: DCPP | T77: 282858.6909 | U77: 121955 | V77: 121955 | W77: 121955 | X77: 121955
A78: Wildfire Fund Charge (AB1054) | C78: D.22-12-007 | D78: ='Authorized Rev Req'!$J91 -> 416803 | E78: DWR | F78: ='Authorized Rev Req'!J91 -> 416803 | G78: ='Authorized Rev Req'!K91 -> 426374.1479 | H78: =G78 -> 426374.1479 | I78: 426374.1479 | J78: 426374.1479 | K78: Existing | S78: DWR | T78: 416803 | U78: 426374.1479 | V78: 426374.1479 | W78: 426374.1479 | X78: 426374.1479
A79: FERC Base Transmission | C79: ER25-550; Advice 5449-E | D79: ='Authorized Rev Req'!$J92 -> 1344347 | E79: FERC | F79: ='Authorized Rev Req'!J92 -> 1344347 | G79: ='Authorized Rev Req'!K92 -> 1496918 | H79: 1496918 | I79: 1496918 | J79: 1496918 | K79: Existing | S79: FERC | T79: 1344347 | U79: 1496918 | V79: 1496918 | W79: 1496918 | X79: 1496918
A80: TRBAA (BA) | C80: ER25-267; Advice 5449-E | D80: ='Authorized Rev Req'!$J93 -> -214482 | E80: TOTCA | F80: ='Authorized Rev Req'!J93 -> -214482 | G80: ='Authorized Rev Req'!K93 -> -178588.593 | H80: -178588.593 | I80: -178588.593 | J80: -178588.593 | K80: Existing | S80: TOTCA | T80: -2752.745 | U80: 45012.561 | V80: 45012.561 | W80: 45012.561 | X80: 45012.561
A81: RSBAA (BA) | C81: ER25-305; Advice 5449-E | D81: ='Authorized Rev Req'!$J94 -> 8496 | E81: TOTCA | F81: ='Authorized Rev Req'!J94 -> 8496 | G81: ='Authorized Rev Req'!K94 -> 9616.624 | H81: 9616.624 | I81: 9616.624 | J81: 9616.624 | K81: Existing | S81: Securitization | T81: 106244.28 | U81: 595176.28 | V81: 595176.28 | W81: 595176.28 | X81: 595176.28
A82: TACBAA (BA) | C82: ER25-1824-000 | D82: ='Authorized Rev Req'!$J95 -> 203233.255 | E82: TOTCA | F82: ='Authorized Rev Req'!J95 -> 203233.255 | G82: ='Authorized Rev Req'!K95 -> 213984.53 | H82: 213984.53 | I82: 213984.53 | J82: 213984.53 | K82: Existing | S82: PUCRF | T82: 63307.71418 | U82: 80445 | V82: 80445 | W82: 80445 | X82: 80445
A83: Total Approved, Implemented Since Jan 1 or To Be Implemented | D83: =SUM(D10:D82) -> 19339861.88 | F83: =SUM(F10:F82) -> 19339861.88 | G83: =SUM(G10:G82) -> 18943807.37 | H83: =SUM(H10:H82) -> 18112096.04 | I83: =SUM(I10:I82) -> 18559947.44 | J83: =SUM(J10:J82) -> 18559947.44 | S83: Total | T83: =SUM(T70:T82) -> 19403169.59 | U83: 19328689.04 | V83: 18547799.6 | W83: 19091839.3 | X83: 19199570.3
A84: PUCRF | D84: ='Authorized Rev Req'!H97 -> 63307.71418 | E84: PUCRF | F84: =D84 -> 63307.71418 | G84: 80445 | H84: =G84 -> 80445 | I84: =H84 -> 80445 | J84: =I84 -> 80445 | S84: Increase over current | T84: =T83-T23 -> 0 | U84: =U83-U23 -> 304436.6685 | V84: =V83-V23 -> 355258.5571 | W84: =W83-W23 -> 451446.8593 | X84: =X83-X23 -> 559177.8593
D85: =SUM(D83:D84) -> 19403169.59 | E85: w/PUCRF | F85: =SUM(F83:F84) -> 19403169.59 | G85: =SUM(G83:G84) -> 19024252.37 | H85: =SUM(H83:H84) -> 18192541.04 | I85: =SUM(I83:I84) -> 18640392.44 | J85: =SUM(J83:J84) -> 18640392.44
D86: =-'Authorized Rev Req'!J98+D85 -> 0 | S86: Check | T86: =T84-L130 -> 0 | U86: =U84-M130 -> -6.111804396e-09 | V86: =V84-N130 -> -8.26548785e-09 | W86: =W84-O130 -> -2.793967724e-09 | X86: =X84-P130 -> -2.793967724e-09
A90: Pending Application(s), Not Yet Approved
A91: Filing Description | B91: Proceeding | C91: Basis for Revenue Requirement | D91: Proposed Revenue Requirement ($000) | E91: Proposed Revenue Recovery Mechanism | F91: =F8 -> 2025 | G91: =F91+1 -> 2026 | H91: =G91+1 -> 2027 | I91: 2028 | J91: 2029 | K91: Existing or New Item (if existing, use delta from prior for rate impact) | L91: =F91 -> 2025 | M91: =G91 -> 2026 | N91: 2027 | O91: 2028 | P91: 2029
A92: Safety Affordability Reliability Proceedings | Q92: Include in Impact
A93: 2026 ERRA Forecast F&PP | B93: A.25-05-008 (Amended October Update) | C93: Filed Application | D93: =G93 -> 4215455.435 | E93: Generation | F93: 0 | G93: ='Authorized Rev Req'!K27 -> 4215455.435 | H93: =G93 -> 4215455.435 | I93: =H93 -> 4215455.435 | J93: =H93 -> 4215455.435 | K93: Existing | L93: 0 | M93: =G93-G24 -> 127100.7665 | N93: 127100.7665 | O93: 127100.7665 | P93: 127100.7665 | Q93: =Q96 -> Y
A94: 2026 ERRA Forecast F&PP | B94: A.25-05-008 (Amended October Update) | C94: Filed Application | D94: =G94 -> 473468.5074 | E94: New System Gen | F94: 0 | G94: ='Authorized Rev Req'!K28 -> 473468.5074 | H94: =G94 -> 473468.5074 | I94: =H94 -> 473468.5074 | J94: =H94 -> 473468.5074 | K94: Existing | L94: 0 | M94: 16001.76837 | N94: 16001.76837 | O94: 16001.76837 | P94: 16001.76837 | Q94: =Q93 -> Y
A95: 2026 ERRA Forecast (BA) | B95: A.25-05-008 (Amended October Update) | C95: Filed Application | D95: -23473.58106 | E95: New System Gen | F95: 0 | G95: ='Authorized Rev Req'!K29 -> -23473.58106 | H95: 0 | I95: 0 | J95: 0 | K95: Existing | L95: 0 | M95: =G95-G26 -> -101497.5387 | N95: =H95-H26 -> 0 | O95: =I95-I26 -> 0 | P95: 0 | Q95: Y
A96: 2026 ERRA Forecast | B96: A.25-05-008 (Amended October Update) | C96: Filed Application | D96: -443279 | E96: GHG Revenue | F96: 0 | G96: ='Authorized Rev Req'!K30 -> -443279 | H96: =G96 -> -443279 | I96: -443279 | J96: -443279 | K96: Existing | L96: 0 | M96: 198344.9439 | N96: 198344.9439 | O96: 198344.9439 | P96: 198344.9439 | Q96: =VLOOKUP('Incremental Rev Req'!A96,Summary!$B$8:$D$24,3,FALSE) -> Y
A97: 2026 ERRA Forecast | B97: A.25-05-008 (Amended October Update) | C97: Filed Application | D97: 5336.996734 | E97: Nuclear | F97: 0 | G97: ='Authorized Rev Req'!K31 -> 5336.996734 | H97: =G97 -> 5336.996734 | I97: 5336.996734 | J97: 5336.996734 | K97: Existing | L97: 0 | M97: 179.8177114 | N97: =H97-H28 -> 179.8177114 | O97: 179.8177114 | P97: 179.8177114 | Q97: Y
A98: 2026 ERRA Forecast | B98: A.25-05-008 (Amended October Update) | C98: Filed Application | D98: -2686.156696 | E98: Distribution | F98: 0 | G98: ='Authorized Rev Req'!K32 -> -2686.156696 | H98: =G98 -> -2686.156696 | I98: -2686.156696 | J98: -2686.156696 | K98: Existing | L98: 0 | M98: 16483.22989 | N98: =H98-H29 -> 16483.22989 | O98: 16483.22989 | P98: 16483.22989 | Q98: Y
A99: 2026 ERRA Forecast | B99: A.25-05-008 (Amended October Update) | C99: Filed Application | D99: 28843.04446 | E99: Public Purpose | F99: 0 | G99: ='Authorized Rev Req'!K33 -> 28843.04446 | H99: =G99 -> 28843.04446 | I99: 28843.04446 | J99: 28843.04446 | K99: Existing | L99: 0 | M99: 26498.54476 | N99: =H99-H30 -> 26498.54476 | O99: 26498.54476 | P99: 26498.54476 | Q99: Y
A100: 2026 ERRA Forecast | B100: A.25-05-008 (Amended October Update) | C100: Filed Application | D100: 3685.299997 | E100: MCAM | F100: 0 | G100: 3685.299997 | H100: =G100 -> 3685.299997 | I100: 3685.299997 | J100: 3685.299997 | K100: Existing | L100: 0 | M100: -1023.893668 | N100: =H100-H31 -> -1023.893668 | O100: -1023.893668 | P100: -1023.893668 | Q100: Y
A101: 2026 ERRA Forecast | B101: A.25-05-008 (Amended October Update) | C101: Filed Application | D101: 2681.839896 | E101: MCAM | F101: 0 | G101: 2681.839896 | H101: 0 | I101: 0 | J101: 0 | K101: Existing | L101: 0 | M101: =G101 -> 2681.839896 | O101: =I101 -> 0 | P101: 0 | Q101: Y
A102: 2026 ERRA Forecast (BA) | B102: A.25-05-008 (Amended October Update) | C102: Filed Application | D102: 11080.47787 | E102: Public Purpose | F102: 0 | G102: ='Authorized Rev Req'!K35 -> 11080.47787 | H102: 0 | I102: 0 | J102: 0 | K102: Existing | L102: 0 | M102: =G102-G32 -> -7320.411174 | O102: =I102-I32 -> 0 | P102: =J102-J32 -> 0 | Q102: Y
A103: 2026 ERRA/PABA (BA) | B103: A.25-05-008 (Amended October Update) | C103: Filed Application | D103: 442848.9249 | E103: Generation | F103: 0 | G103: ='Authorized Rev Req'!K36 -> 442848.9249 | H103: 0 | I103: 0 | J103: 0 | K103: Existing | L103: 0 | M103: =G103-G33 -> -16204.63674 | O103: 0 | P103: 0 | Q103: Y
A104: DAC-GT/CSGT Clean Energy Programs | B104: A.25-05-008 (Amended October Update) | C104: Filed Application | D104: 3280.128496 | E104: Public Purpose | F104: 0 | G104: ='Authorized Rev Req'!K39 -> 3280.128496 | H104: =G104 -> 3280.128496 | I104: 3280.128496 | J104: 3280.128496 | K104: Existing | L104: 0 | M104: =G104-G34 -> 283.4381034 | N104: =H104-H34 -> 283.4381034 | O104: 283.4381034 | P104: 283.4381034 | Q104: Y
A105: 2022 ERRA Review | B105: A.23-04-003 | C105: Filed Application | D105: =G105 -> 50640 | E105: Distribution | F105: 0 | G105: 50640 | H105: 0 | I105: 0 | J105: 0 | K105: New | L105: =F105 -> 0 | M105: =G105 -> 50640 | N105: =H105 -> 0 | O105: =I105 -> 0 | P105: =J105 -> 0 | Q105: =VLOOKUP('Incremental Rev Req'!A105,Summary!$B$8:$D$24,3,FALSE) -> Y
A106: 2022 ERRA Review | B106: A.23-04-003 | C106: Filed Application | D106: =G106 -> 234 | E106: Public Purpose | F106: 0 | G106: 234 | H106: 0 | I106: 0 | J106: 0 | K106: New | L106: 0 | M106: 234 | N106: 0 | O106: 0 | P106: 0 | Q106: =Q105 -> Y
A107: 2023 ERRA Review | B107: A.24-04-001 | C107: Filed Application | D107: -73859 | E107: Distribution | F107: 0 | G107: -73859 | H107: 0 | I107: 0 | J107: 0 | K107: New | L107: 0 | M107: -73859 | N107: 0 | O107: 0 | P107: 0 | Q107: =VLOOKUP('Incremental Rev Req'!A107,Summary!$B$8:$D$24,3,FALSE) -> Y
A108: 2023 ERRA Review | B108: A.24-04-001 | C108: Filed Application | D108: 10664 | E108: Public Purpose | F108: 0 | G108: 10664 | I108: 0 | J108: 0 | K108: New | L108: 0 | M108: 10664 | N108: 0 | O108: 0 | P108: 0 | Q108: =Q107 -> Y
A109: 2024 ERRA Review | B109: A.25-04-004 | C109: Filed Application | D109: =H109 -> 3793 | E109: Distribution | F109: 0 | G109: 0 | H109: 3793 | K109: New | L109: 0 | M109: 0 | N109: 3793 | O109: 0 | P109: 0 | Q109: =VLOOKUP('Incremental Rev Req'!A109,Summary!$B$8:$D$24,3,FALSE) -> Y
A110: 2024 ERRA Review | B110: A.25-04-004 | C110: Filed Application | D110: =H110 -> 199 | E110: Public Purpose | F110: 0 | G110: 0 | H110: 199 | K110: New | L110: 0 | M110: 0 | N110: 199 | O110: 0 | P110: 0 | Q110: =Q109 -> Y
A111: Section 851 - Sale of Hydroelectric San Bernardino | B111: A.24-08-012 | C111: Filed Application | D111: =G111 -> 60300 | E111: Generation | F111: 0 | G111: 60300 | H111: 0 | I111: 0 | J111: 0 | K111: New | L111: 0 | M111: 60300 | N111: 0 | O111: 0 | P111: 0 | Q111: =VLOOKUP('Incremental Rev Req'!A111,Summary!$B$8:$D$24,3,FALSE) -> Y
A112: Section 851 - Sale of Hydroelectric Fontana Union Water | B112: A.24-09-008 | C112: Filed Application | D112: =G112 -> 9500 | E112: Generation | F112: 0 | G112: 9500 | H112: 0 | I112: 0 | J112: 0 | K112: New | L112: 0 | M112: 9500 | N112: 0 | O112: 0 | P112: 0 | Q112: =VLOOKUP('Incremental Rev Req'!A112,Summary!$B$8:$D$24,3,FALSE) -> Y
A113: Woolsey CEMA (As Filed, does not yet reflect settled value) | B113: A.24-10-002 | C113: Filed Application | D113: =G113 -> 52967 | E113: Distribution | F113: 0 | G113: 52967 | H113: 0 | I113: 0 | J113: 0 | K113: New | L113: =F113 -> 0 | M113: 52967 | N113: 0 | O113: =I113 -> 0 | P113: =J113 -> 0 | Q113: =VLOOKUP('Incremental Rev Req'!A113,Summary!$B$8:$D$24,3,FALSE) -> Y
A114: Woolsey WEMA FRC (As Filed, does not yet reflect settled value) | B114: A.24-10-002 | C114: Filed Application | D114: =I114 -> 367000 | E114: Securitization | F114: 0 | G114: 367000 | H114: 367000 | I114: 367000 | J114: =I114 -> 367000 | K114: New | L114: 0 | M114: 367000 | N114: 367000 | O114: =I114 -> 367000 | P114: =J114 -> 367000 | Q114: =VLOOKUP('Incremental Rev Req'!A114,Summary!$B$8:$D$24,3,FALSE) -> Y
A115: Section 851 - Sale of Hydroelectric TULE | B115: A.25-03-001 | C115: Filed Application | D115: =G115 -> 31100 | E115: Generation | F115: 0 | G115: 31100 | H115: 0 | I115: 0 | J115: 0 | K115: New | L115: 0 | M115: 31100 | N115: 0 | O115: =I115 -> 0 | P115: =J115 -> 0 | Q115: =VLOOKUP('Incremental Rev Req'!A115,Summary!$B$8:$D$24,3,FALSE) -> Y
A116: 2026 Cost of Capital (Prorposed Decision) | B116: A.25-03-012 | C116: Filed Application | D116: =G116 -> -4589.230381 | E116: Generation | F116: 0 | G116: -4589.230381 | H116: -5149.794697 | I116: -5247.116974 | J116: =I116 -> -5247.116974 | K116: New | L116: =F116 -> 0 | M116: -4589.230381 | N116: -5149.794697 | O116: -5247.116974 | P116: -5247.116974 | Q116: =VLOOKUP('Incremental Rev Req'!A116,Summary!$B$8:$D$24,3,FALSE) -> Y
A117: 2026 Cost of Capital (Prorposed Decision) | B117: A.25-03-012 | C117: Filed Application | D117: -385.8873501 | E117: New System Gen | F117: 0 | G117: -385.8873501 | H117: -354.2641979 | I117: -333.4527675 | J117: =I117 -> -333.4527675 | K117: New | L117: 0 | M117: -385.8873501 | N117: -354.2641979 | O117: -333.4527675 | P117: -333.4527675 | Q117: =VLOOKUP('Incremental Rev Req'!A117,Summary!$B$8:$D$24,3,FALSE) -> Y
A118: 2026 Cost of Capital (Prorposed Decision) | B118: A.25-03-012 | C118: Filed Application | D118: -60084.52328 | E118: Distribution | F118: 0 | G118: -60084.52328 | H118: -67305.46842 | I118: -70351.6554 | J118: -70351.6554 | K118: New | L118: 0 | M118: -60084.52328 | N118: -67305.46842 | O118: -70351.6554 | P118: -70351.6554 | Q118: =VLOOKUP('Incremental Rev Req'!A118,Summary!$B$8:$D$24,3,FALSE) -> Y
A119: NextGen | B119: A.25-03-009 | C119: Filed Application | D119: =H119 -> 20695 | E119: Distribution | F119: 0 | G119: 0 | H119: 20695 | I119: 173998 | J119: 281729 | K119: New | L119: 0 | M119: 0 | N119: 20695 | O119: 173998 | P119: 281729 | Q119: =VLOOKUP('Incremental Rev Req'!A119,Summary!$B$8:$D$24,3,FALSE) -> Y
A120: Diablo Canyon Extended Operations NBC | B120: PD in A.25-03-015 | C120: Filed Application | D120: =G120 -> 121955 | E120: DCPP | F120: 0 | G120: ='Authorized Rev Req'!K67 -> 121955 | H120: =G120 -> 121955 | I120: =G120 -> 121955 | J120: =G120 -> 121955 | K120: Existing | L120: 0 | M120: =G120-G55 -> -160903.6909 | N120: =H120-H55 -> -160903.6909 | O120: =I120-I55 -> -160903.6909 | P120: =J120-J55 -> -160903.6909 | Q120: =VLOOKUP('Incremental Rev Req'!A120,Summary!$B$8:$D$24,3,FALSE) -> Y
A121: IQP 2027 Bridge Funding | B121: A.25-06-022 | C121: Filed Application | D121: =H121 -> 60834.49 | E121: Public Purpose | F121: 0 | G121: 0 | H121: 60834.49 | I121: =H121 -> 60834.49 | J121: =I121 -> 60834.49 | K121: Existing | L121: 0 | M121: =G121 -> 0 | N121: =H121-H71 -> -14893.56588 | O121: =I121-I71 -> -14893.56588 | P121: =J121-J71 -> -14893.56588 | Q121: =VLOOKUP('Incremental Rev Req'!A121,Summary!$B$8:$D$24,3,FALSE) -> Y
A122: IQP 2027 Bridge Funding | B122: A.25-06-022 | C122: Filed Application | D122: =H122 -> 11341.79 | E122: Public Purpose | F122: 0 | G122: 0 | H122: =9606.7+1735.09 -> 11341.79 | I122: =H122 -> 11341.79 | J122: =I122 -> 11341.79 | K122: Existing | L122: 0 | M122: 0 | N122: =H122-H72 -> 252.6345982 | O122: =I122-I72 -> 252.6345982 | P122: =J122-J72 -> 252.6345982 | Q122: =VLOOKUP('Incremental Rev Req'!A122,Summary!$B$8:$D$25,3,FALSE) -> Y
A123: 2024 WMCE (to be filed 12/4) | B123: A.25-12-XXX | C123: Filed Application | D123: =H123 -> 50000 | E123: Distribution | F123: 0 | G123: 0 | H123: 50000 | I123: 0 | J123: 0 | K123: New | L123: 0 | M123: 0 | N123: =H123 -> 50000 | O123: 0 | P123: 0 | Q123: =VLOOKUP('Incremental Rev Req'!A123,Summary!$B$8:$D$25,3,FALSE) -> Y
A124: Energy Efficiency Program and Portfolio | B124: Advice 5670-E | C124: Filed Advice Letter | D124: =G124 -> 243133.1611 | E124: Public Purpose | F124: 0 | G124: 243133.1611 | H124: 260657.091 | I124: =H124 -> 260657.091 | J124: =I124 -> 260657.091 | K124: Existing | L124: 0 | M124: =G124-G66 -> -239673.8685 | N124: =H124-H66 -> -221942.909 | O124: -221942.909 | P124: -221942.909 | Q124: =VLOOKUP('Incremental Rev Req'!A124,Summary!$B$8:$D$25,3,FALSE) -> Y
A126: Public Policy Proceedings
A128: Non-CPUC Jurisdictional Proceedings
A130: Total Pending, Filed but not Approved | D130: =SUM(D93:D129) -> 5672679.717 | F130: =SUM(F93:F129) -> 0 | G130: =SUM(G93:G129) -> 5525816.437 | H130: =SUM(H93:H129) -> 5107770.099 | I130: =SUM(I93:I129) -> 5203958.402 | J130: =SUM(J93:J129) -> 5311689.402 | L130: =SUM(L93:L129) -> 0 | M130: =SUM(M93:M129) -> 304436.6685 | N130: =SUM(N93:N129) -> 355258.5571 | O130: =SUM(O93:O129) -> 451446.8593 | P130: =SUM(P93:P129) -> 559177.8593
L131: =L130+F85 -> 19403169.59 | M131: =M130+G85 -> 19328689.04 | N131: =N130+H85 -> 18547799.6 | O131: =O130+I85 -> 19091839.3 | P131: =P130+J85 -> 19199570.3
A134: Applications Projected to be Filed, Next 12 Months*
A135: Filing Description | B135: Estimated Filing Date | C135: Filing Basis | D135: Proposed Revenue Requirement ($000) | E135: Proposed Revenue Recovery Mechanism | F135: =F91 -> 2025 | G135: =F135+1 -> 2026 | H135: =G135+1 -> 2027 | I135: =H135+1 -> 2028 | J135: =I135+1 -> 2029 | K135: Existing or New Item (if existing, use delta from prior for rate impact)
A136: Safety Affordability Reliability Proceedings
A138: Public Policy Proceedings
A141: Non-CPUC Jurisdictional Proceedings | F141: =SUM(F136:F140) -> 0 | G141: =SUM(G136:G140) -> 0 | H141: =SUM(H136:H140) -> 0 | I141: =SUM(I136:I140) -> 0 | J141: =SUM(J136:J140) -> 0 | L141: =SUM(L136:L140) -> 0 | M141: 0 | N141: =SUM(N136:N140) -> 0 | O141: 0 | P141: 0
A143: * All amounts in this Projected section are estimates and subject to change. SCE provides this data in an effort to be as helpful and transparent as possible to further the Commission's efforts to understand the impact all pending rate increases.

Sheet SAR and AR (GS1) (hidden)
B1: CONFIDENTIAL This Excel Sheet Is Marked Confidential In Accordance With Applicable Law and Regulation. Basis for Confidentiality In Accompanying Confidentiality Declaration. Public Disclosure Restricted.
C2: Total Revenue ($000)
C3: Authorized | D3: w/ Pending
B4: Generation | C4: =INDEX('Incremental Rev Req'!$S$9:$X$22,MATCH(B4,'Incremental Rev Req'!$S$9:$S$22,0),MATCH(Summary!$D$3,'Incremental Rev Req'!$S$9:$X$9,0)) -> 5525852.948 | D4: =INDEX('Incremental Rev Req'!$S$69:$X$82,MATCH(B4,'Incremental Rev Req'!$S$69:$S$82,0),MATCH(Summary!$D$3,'Incremental Rev Req'!$S$69:$X$69,0)) -> 5525852.948 | G4: Allocation
B5: Distribution | C5: =INDEX('Incremental Rev Req'!$S$9:$X$22,MATCH(B5,'Incremental Rev Req'!$S$9:$S$22,0),MATCH(Summary!$D$3,'Incremental Rev Req'!$S$9:$X$9,0)) -> 10708193.86 | D5: =INDEX('Incremental Rev Req'!$S$69:$X$82,MATCH(B5,'Incremental Rev Req'!$S$69:$S$82,0),MATCH(Summary!$D$3,'Incremental Rev Req'!$S$69:$X$69,0)) -> 10708193.86 | G5: Generation | H5: Distribution | I5: NDC | J5: PPPC | K5: DCPP | L5: NSGC | M5: Transmission | N5: TOTCA | O5: GHG Rev | P5: DWRBC | Q5: PUCRF | R5: SECURITIZATION
B6: Nuclear | C6: =INDEX('Incremental Rev Req'!$S$9:$X$22,MATCH(B6,'Incremental Rev Req'!$S$9:$S$22,0),MATCH(Summary!$D$3,'Incremental Rev Req'!$S$9:$X$9,0)) -> -915.7507376 | D6: =INDEX('Incremental Rev Req'!$S$69:$X$82,MATCH(B6,'Incremental Rev Req'!$S$69:$S$82,0),MATCH(Summary!$D$3,'Incremental Rev Req'!$S$69:$X$69,0)) -> -915.7507376 | F6: GS-1 | G6: =VLOOKUP(Summary!$D$3,'SAR and AR (GS1)'!$F$37:$R$42,'SAR and AR (GS1)'!G$35,FALSE) -> 0.0856555441 | H6: =VLOOKUP(Summary!$D$3,'SAR and AR (GS1)'!$F$37:$R$42,'SAR and AR (GS1)'!H$35,FALSE) -> 0.06698181326 | I6: =VLOOKUP(Summary!$D$3,'SAR and AR (GS1)'!$F$37:$R$42,'SAR and AR (GS1)'!I$35,FALSE) -> 0.06977236109 | J6: =VLOOKUP(Summary!$D$3,'SAR and AR (GS1)'!$F$37:$R$42,'SAR and AR (GS1)'!J$35,FALSE) -> 0.0708334144 | K6: =VLOOKUP(Summary!$D$3,'SAR and AR (GS1)'!$F$37:$R$42,'SAR and AR (GS1)'!K$35,FALSE) -> 0.07045250454 | L6: =VLOOKUP(Summary!$D$3,'SAR and AR (GS1)'!$F$37:$R$42,'SAR and AR (GS1)'!L$35,FALSE) -> 0.07022849614 | M6: =VLOOKUP(Summary!$D$3,'SAR and AR (GS1)'!$F$37:$R$42,'SAR and AR (GS1)'!M$35,FALSE) -> 0.06906624045 | N6: =VLOOKUP(Summary!$D$3,'SAR and AR (GS1)'!$F$37:$R$42,'SAR and AR (GS1)'!N$35,FALSE) -> 0.07029066199 | O6: =VLOOKUP(Summary!$D$3,'SAR and AR (GS1)'!$F$37:$R$42,'SAR and AR (GS1)'!O$35,FALSE) -> 0.08033362562 | P6: =VLOOKUP(Summary!$D$3,'SAR and AR (GS1)'!$F$37:$R$42,'SAR and AR (GS1)'!P$35,FALSE) -> 0.07801292567 | Q6: =VLOOKUP(Summary!$D$3,'SAR and AR (GS1)'!$F$37:$R$42,'SAR and AR (GS1)'!Q$35,FALSE) -> 0.06977236027 | R6: =VLOOKUP(Summary!$D$3,'SAR and AR (GS1)'!$F$37:$R$42,'SAR and AR (GS1)'!R$35,FALSE) -> 0.08148651689
B7: Public Purpose | C7: =INDEX('Incremental Rev Req'!$S$9:$X$22,MATCH(B7,'Incremental Rev Req'!$S$9:$S$22,0),MATCH(Summary!$D$3,'Incremental Rev Req'!$S$9:$X$9,0)) -> 992971.5889 | D7: =INDEX('Incremental Rev Req'!$S$69:$X$82,MATCH(B7,'Incremental Rev Req'!$S$69:$S$82,0),MATCH(Summary!$D$3,'Incremental Rev Req'!$S$69:$X$69,0)) -> 992971.5889
B8: DCPP | C8: =INDEX('Incremental Rev Req'!$S$9:$X$22,MATCH(B8,'Incremental Rev Req'!$S$9:$S$22,0),MATCH(Summary!$D$3,'Incremental Rev Req'!$S$9:$X$9,0)) -> 282858.6909 | D8: =INDEX('Incremental Rev Req'!$S$69:$X$82,MATCH(B8,'Incremental Rev Req'!$S$69:$S$82,0),MATCH(Summary!$D$3,'Incremental Rev Req'!$S$69:$X$69,0)) -> 282858.6909 | G8: Revenue ($000) - System | X8: Authorized | Y8: w/Pending
B9: New System Gen | C9: =INDEX('Incremental Rev Req'!$S$9:$X$22,MATCH(B9,'Incremental Rev Req'!$S$9:$S$22,0),MATCH(Summary!$D$3,'Incremental Rev Req'!$S$9:$X$9,0)) -> 603172.2203 | D9: =INDEX('Incremental Rev Req'!$S$69:$X$82,MATCH(B9,'Incremental Rev Req'!$S$69:$S$82,0),MATCH(Summary!$D$3,'Incremental Rev Req'!$S$69:$X$69,0)) -> 603172.2203 | F9: Authorized | G9: Generation | H9: Distribution | I9: NDC | J9: PPPC | K9: DCPP | L9: NSGC | M9: Transmission | N9: TOTCA | O9: GHG Rev | P9: DWRBC | Q9: PUCRF | R9: SECURITIZATION | S9: Total | T9: CARE Adj. | W9: % of CARE Sales | X9: =VLOOKUP(Summary!$D$3,$F$58:$Q$63,$Q$35,FALSE) -> 0 | Y9: =X9 -> 0
B10: FERC | C10: =INDEX('Incremental Rev Req'!$S$9:$X$22,MATCH(B10,'Incremental Rev Req'!$S$9:$S$22,0),MATCH(Summary!$D$3,'Incremental Rev Req'!$S$9:$X$9,0)) -> 1344347 | D10: =INDEX('Incremental Rev Req'!$S$69:$X$82,MATCH(B10,'Incremental Rev Req'!$S$69:$S$82,0),MATCH(Summary!$D$3,'Incremental Rev Req'!$S$69:$X$69,0)) -> 1344347 | F10: GS-1 | G10: =G6*G11 -> 473319.9409 | H10: =H6*H11 -> 717254.2413 | I10: =I6*I11 -> -63.89409113 | J10: =J6*J11 -> 70335.56805 | K10: =K6*K11 -> 19928.1032 | L10: 42359.87794 | M10: 92848.99315 | N10: -193.4922683 | O10: -51543.9777 | P10: 32516.02146 | Q10: 4417.128642 | R10: =R6*R11 -> 8657.476316 | S10: =SUM(G10:R10) -> 1409835.987 | T10: =X14 -> 81764.98145 | W10: CARE Effective Discount | X10: ='SAR and RAR'!X10 -> 0.325 | Y10: =X10 -> 0.325
B11: TOTCA | C11: =INDEX('Incremental Rev Req'!$S$9:$X$22,MATCH(B11,'Incremental Rev Req'!$S$9:$S$22,0),MATCH(Summary!$D$3,'Incremental Rev Req'!$S$9:$X$9,0)) -> -2752.745 | D11: =INDEX('Incremental Rev Req'!$S$69:$X$82,MATCH(B11,'Incremental Rev Req'!$S$69:$S$82,0),MATCH(Summary!$D$3,'Incremental Rev Req'!$S$69:$X$69,0)) -> -2752.745 | F11: Total System | G11: =C4 -> 5525852.948 | H11: =C5 -> 10708193.86 | I11: =C6 -> -915.7507376 | J11: =C7 -> 992971.5889 | K11: =C8 -> 282858.6909 | L11: =C9 -> 603172.2203 | M11: =C10 -> 1344347 | N11: =C11 -> -2752.745 | O11: =C12 -> -641623.9439 | P11: =C14 -> 416803 | Q11: =C15 -> 63307.71418 | R11: =C16 -> 106244.28 | S11: =SUM(G11:R11) -> 19398458.86 | T11: 0 | W11: CARE Discounst | X11: ='SAR and RAR'!X11 -> 1041718.471 | Y11: ='SAR and RAR'!Y11 -> 1041718.471
B12: GHG Revenue | C12: =INDEX('Incremental Rev Req'!$S$9:$X$22,MATCH(B12,'Incremental Rev Req'!$S$9:$S$22,0),MATCH(Summary!$D$3,'Incremental Rev Req'!$S$9:$X$9,0)) -> -641623.9439 | D12: =INDEX('Incremental Rev Req'!$S$69:$X$82,MATCH(B12,'Incremental Rev Req'!$S$69:$S$82,0),MATCH(Summary!$D$3,'Incremental Rev Req'!$S$69:$X$69,0)) -> -641623.9439 | F12: w/Pending | W12: GS-1 Sales | X12: =VLOOKUP(Summary!$D$3,'SAR and AR (GS1)'!$F$58:$O$63,10,FALSE) -> 5521410.798 | Y12: =X12 -> 5521410.798
B13: MCAM | C13: =INDEX('Incremental Rev Req'!$S$9:$X$22,MATCH(B13,'Incremental Rev Req'!$S$9:$S$22,0),MATCH(Summary!$D$3,'Incremental Rev Req'!$S$9:$X$9,0)) -> 4710.732249 | D13: =INDEX('Incremental Rev Req'!$S$69:$X$82,MATCH(B13,'Incremental Rev Req'!$S$69:$S$82,0),MATCH(Summary!$D$3,'Incremental Rev Req'!$S$69:$X$69,0)) -> 4710.732249 | F13: GS-1 | G13: =G6*G14 -> 473319.9409 | H13: =H6*H14 -> 717254.2413 | I13: =I6*I14 -> -63.89409113 | J13: =J6*J14 -> 70335.56805 | K13: =K6*K14 -> 19928.1032 | L13: 42359.87794 | M13: 92848.99315 | N13: -193.4922683 | O13: -51543.9777 | P13: 32516.02146 | Q13: 4417.128642 | R13: =R6*R14 -> 8657.476316 | S13: =SUM(G13:R13) -> 1409835.987 | T13: =Y14 -> 81764.98145 | W13: Total Sales (excl. CARE&SL) | X13: =VLOOKUP(Summary!$D$3,'SAR and AR (GS1)'!$F$64:$O$69,2,FALSE) -> 70344975.44 | Y13: =X13 -> 70344975.44
B14: DWR | C14: =INDEX('Incremental Rev Req'!$S$9:$X$22,MATCH(B14,'Incremental Rev Req'!$S$9:$S$22,0),MATCH(Summary!$D$3,'Incremental Rev Req'!$S$9:$X$9,0)) -> 416803 | D14: =INDEX('Incremental Rev Req'!$S$69:$X$82,MATCH(B14,'Incremental Rev Req'!$S$69:$S$82,0),MATCH(Summary!$D$3,'Incremental Rev Req'!$S$69:$X$69,0)) -> 416803 | F14: Total System | G14: =D4 -> 5525852.948 | H14: =D5 -> 10708193.86 | I14: =D6 -> -915.7507376 | J14: =D7 -> 992971.5889 | K14: =D8 -> 282858.6909 | L14: =D9 -> 603172.2203 | M14: =D10 -> 1344347 | N14: =D11 -> -2752.745 | O14: =D12 -> -641623.9439 | P14: =D14 -> 416803 | Q14: =D15 -> 63307.71418 | R14: =D16 -> 106244.28 | S14: =SUM(G14:R14) -> 19398458.86 | T14: 0 | W14: GS-1 CARE Surcharge | X14: =X11*X12/X13 -> 81764.98145 | Y14: =Y11*Y12/Y13 -> 81764.98145
B15: PUCRF | C15: =INDEX('Incremental Rev Req'!$S$9:$X$22,MATCH(B15,'Incremental Rev Req'!$S$9:$S$22,0),MATCH(Summary!$D$3,'Incremental Rev Req'!$S$9:$X$9,0)) -> 63307.71418 | D15: =INDEX('Incremental Rev Req'!$S$69:$X$82,MATCH(B15,'Incremental Rev Req'!$S$69:$S$82,0),MATCH(Summary!$D$3,'Incremental Rev Req'!$S$69:$X$69,0)) -> 63307.71418 | W15: RES CARE Discount Specific Split | X15: ='SAR and RAR'!X15 -> 0.7684317363 | Y15: ='SAR and RAR'!Y15 -> 0.7684317363
B16: SECURITIZATION | C16: =INDEX('Incremental Rev Req'!$S$9:$X$22,MATCH(B16,'Incremental Rev Req'!$S$9:$S$22,0),MATCH(Summary!$D$3,'Incremental Rev Req'!$S$9:$X$9,0)) -> 106244.28 | D16: =INDEX('Incremental Rev Req'!$S$69:$X$82,MATCH(B16,'Incremental Rev Req'!$S$69:$S$82,0),MATCH(Summary!$D$3,'Incremental Rev Req'!$S$69:$X$69,0)) -> 106244.28 | S16: Authorized | T16: w/Pending | W16: CARE Surcharge Allocator | X16: ='SAR and RAR'!X16 -> 0.6109826201 | Y16: ='SAR and RAR'!Y16 -> 0.6109826201
B17: Total | C17: =SUM(C4:C16) -> 19403169.59 | D17: =SUM(D4:D16) -> 19403169.59 | G17: Revenue Split - Bundled | S17: Bundled Revenue | W17: System CARE Discount | X17: =SUM(-X11*X15)+SUM(X11*X16) -> -164017.6525 | Y17: =SUM(-Y11*Y15)+SUM(Y11*Y16) -> -164017.6525
G18: Generation | H18: Distribution | I18: NDC | J18: PPPC | K18: DCPP | L18: NSGC | M18: Transmission | N18: TOTCA | O18: GHG Rev | P18: DWRBC | Q18: PUCRF | R18: SECURITIZATION | S18: Total | T18: Total
F19: GS-1 | G19: =VLOOKUP(Summary!$D$3,'SAR and AR (GS1)'!$F$44:$R$49,'SAR and AR (GS1)'!G$35,FALSE) -> 1.023295942 | H19: =VLOOKUP(Summary!$D$3,'SAR and AR (GS1)'!$F$44:$R$49,'SAR and AR (GS1)'!H$35,FALSE) -> 0.7005231722 | I19: =VLOOKUP(Summary!$D$3,'SAR and AR (GS1)'!$F$44:$R$49,'SAR and AR (GS1)'!I$35,FALSE) -> 0.7021955024 | J19: =VLOOKUP(Summary!$D$3,'SAR and AR (GS1)'!$F$44:$R$49,'SAR and AR (GS1)'!J$35,FALSE) -> 0.7021955159 | K19: =VLOOKUP(Summary!$D$3,'SAR and AR (GS1)'!$F$44:$R$49,'SAR and AR (GS1)'!K$35,FALSE) -> 0.7021955158 | L19: =VLOOKUP(Summary!$D$3,'SAR and AR (GS1)'!$F$44:$R$49,'SAR and AR (GS1)'!L$35,FALSE) -> 0.7021955158 | M19: =VLOOKUP(Summary!$D$3,'SAR and AR (GS1)'!$F$44:$R$49,'SAR and AR (GS1)'!M$35,FALSE) -> 0.7021955158 | N19: =VLOOKUP(Summary!$D$3,'SAR and AR (GS1)'!$F$44:$R$49,'SAR and AR (GS1)'!N$35,FALSE) -> 0.7021955236 | O19: =VLOOKUP(Summary!$D$3,'SAR and AR (GS1)'!$F$44:$R$49,'SAR and AR (GS1)'!O$35,FALSE) -> 0.69314594 | P19: =VLOOKUP(Summary!$D$3,'SAR and AR (GS1)'!$F$44:$R$49,'SAR and AR (GS1)'!P$35,FALSE) -> 0.7021955159 | Q19: =VLOOKUP(Summary!$D$3,'SAR and AR (GS1)'!$F$44:$R$49,'SAR and AR (GS1)'!Q$35,FALSE) -> 0.7021955151 | R19: =VLOOKUP(Summary!$D$3,'SAR and AR (GS1)'!$F$44:$R$49,'SAR and AR (GS1)'!R$35,FALSE) -> 0.7021955155 | S19: =SUMPRODUCT(G10:R10,G19:R19)+T10*H19 -> 1198508.963 | T19: =SUMPRODUCT(G13:R13,G19:R19)+T13*H19 -> 1198508.963
F20: Total System | G20: =VLOOKUP(Summary!$D$3,'SAR and AR (GS1)'!$F$50:$R$55,'SAR and AR (GS1)'!G$35,FALSE) -> 1.030007998 | H20: =VLOOKUP(Summary!$D$3,'SAR and AR (GS1)'!$F$50:$R$55,'SAR and AR (GS1)'!H$35,FALSE) -> 0.6497195581 | I20: =VLOOKUP(Summary!$D$3,'SAR and AR (GS1)'!$F$50:$R$55,'SAR and AR (GS1)'!I$35,FALSE) -> 0.6283028798 | J20: =VLOOKUP(Summary!$D$3,'SAR and AR (GS1)'!$F$50:$R$55,'SAR and AR (GS1)'!J$35,FALSE) -> 0.6428912097 | K20: =VLOOKUP(Summary!$D$3,'SAR and AR (GS1)'!$F$50:$R$55,'SAR and AR (GS1)'!K$35,FALSE) -> 0.6409526177 | L20: =VLOOKUP(Summary!$D$3,'SAR and AR (GS1)'!$F$50:$R$55,'SAR and AR (GS1)'!L$35,FALSE) -> 0.6386664475 | M20: =VLOOKUP(Summary!$D$3,'SAR and AR (GS1)'!$F$50:$R$55,'SAR and AR (GS1)'!M$35,FALSE) -> 0.6641776383 | N20: =VLOOKUP(Summary!$D$3,'SAR and AR (GS1)'!$F$50:$R$55,'SAR and AR (GS1)'!N$35,FALSE) -> 0.6532230564 | O20: =VLOOKUP(Summary!$D$3,'SAR and AR (GS1)'!$F$50:$R$55,'SAR and AR (GS1)'!O$35,FALSE) -> 0.6916053708 | P20: =VLOOKUP(Summary!$D$3,'SAR and AR (GS1)'!$F$50:$R$55,'SAR and AR (GS1)'!P$35,FALSE) -> 0.6118326262 | Q20: =VLOOKUP(Summary!$D$3,'SAR and AR (GS1)'!$F$50:$R$55,'SAR and AR (GS1)'!Q$35,FALSE) -> 0.6283028839 | R20: =VLOOKUP(Summary!$D$3,'SAR and AR (GS1)'!$F$50:$R$55,'SAR and AR (GS1)'!R$35,FALSE) -> 0.6226235037 | S20: =SUMPRODUCT(G11:R11,G20:R20)+X17 -> 14497577.05 | T20: =SUMPRODUCT(G14:R14,G20:R20)+Y17 -> 14497577.05
R22: GS-1 GHG | S22: =O10*O19 -> -35727.49887 | T22: =O13*O19 -> -35727.49887
R23: GS-1 GHG System | S23: =O11*O20 -> -443750.5656 | T23: =O14*O20 -> -443750.5656
F26: Bundled | N26: System (Bundled and Unbundled)
F27: =Summary!N4&" Sales" -> 2025 Sales | G27: =MONTH(Summary!$N$3)&"/"&DAY(Summary!$N$3)&"/"&YEAR(Summary!$N$3)&" Avg Rates" -> 11/15/2025 Avg Rates | H27: Proposed Avg Rates (Authorized) | I27: Proposed Avg Rates (w/Pending) | J27: % Change (Authorized) | K27: % Change (w/Pending) | N27: =Summary!N4&" Sales" -> 2025 Sales | O27: =G27 -> 11/15/2025 Avg Rates | P27: Proposed Avg Rates (Authorized) | Q27: Proposed Avg Rates (w/Pending) | R27: % Change (Authorized) | S27: % Change (w/Pending) | W27: 1/1/25 Bundled w/Credit | X27: 1/1/25 Bundled w/out Credit | Z27: 1/1/25 System w/Credit | AA27: 1/1/25 System w/out Credit
E28: GS-1 | F28: =VLOOKUP(Summary!$D$3,'SAR and AR (GS1)'!$J$58:$K$63,2,FALSE) -> 3877109.903 | G28: =IF(Summary!$J$3="Y",W31,X31) -> 31.98340855 | H28: =IF(Summary!$J$3="Y",S19/$F$28*100,SUM(S19-S22)/$F$28*100) -> 31.83393023 | I28: =IF(Summary!$J$3="Y",T19/$F$28*100,SUM(T19-T22)/$F$28*100) -> 31.83393023 | J28: =H28/G28-1 -> -0.004673620915 | K28: =I28/G28-1 -> -0.004673620915 | M28: GS-1 | N28: =VLOOKUP(Summary!$D$3,'SAR and AR (GS1)'!$N$58:$O$63,2,FALSE) -> 5521410.798 | O28: =IF(Summary!$J$3="Y",Z31,AA31) -> 28.07280751 | P28: =IF(Summary!$J$3="Y",SUM(S10:T10)/N28*100,SUM(S10:T10,-O10)/N28*100) -> 27.94838136 | Q28: =IF(Summary!$J$3="Y",SUM(S13:T13)/N28*100,SUM(S13:T13,-O13)/N28*100) -> 27.94838136 | R28: =P28/O28-1 -> -0.004432266215 | S28: =Q28/O28-1 -> -0.004432266215 | V28: GS-1 Bundled | W28: 28.24977561 | X28: 29.17406766 | Y28: GS-1 System | Z28: 24.84314154 | AA28: 25.77950096
E29: Total Bundled | F29: =VLOOKUP(Summary!$D$3,'SAR and AR (GS1)'!$J$64:$K$69,2,FALSE) -> 49720524.25 | G29: ='SAR and RAR'!G29 -> 30.16320305 | H29: =IF(Summary!$J$3="Y",S20/$F$29*100,SUM(S20-S23)/$F$29*100) -> 30.05062364 | I29: =IF(Summary!$J$3="Y",T20/$F$29*100,SUM(T20-T23)/$F$29*100) -> 30.05062364 | J29: =H29/G29-1 -> -0.003732342697 | K29: =I29/G29-1 -> -0.003732342697 | M29: Total System | N29: =VLOOKUP(Summary!$D$3,'SAR and AR (GS1)'!$N$64:$O$69,2,FALSE) -> 79134642.73 | O29: ='SAR and RAR'!O29 -> 25.12602979 | P29: =IF(Summary!$J$3="Y",SUM(S11:T11)/N29*100,SUM(S11:T11,-O11)/N29*100) -> 25.3240327 | Q29: =IF(Summary!$J$3="Y",SUM(S14:T14)/N29*100,SUM(S14:T14,-O14)/N29*100) -> 25.3240327 | R29: =P29/O29-1 -> 0.007880390047 | S29: =Q29/O29-1 -> 0.007880390047
E30: =M29 -> Total System | F30: =N29 -> 79134642.73 | W30: 10/1/25 Bundled w/Credit | X30: 10/1/25 Bundled w/out Credit | Z30: 10/1/25 System w/Credit | AA30: 10/1/25 System w/out Credit
V31: GS-1 Bundled | W31: 31.0591165 | X31: 31.98340855 | Y31: GS-1 System | Z31: 27.13644808 | AA31: 28.07280751
G35: 2 | H35: =G35+1 -> 3 | I35: =H35+1 -> 4 | J35: 5 | K35: 6 | L35: 7 | M35: 8 | N35: 9 | O35: 10 | P35: 11 | Q35: 12 | R35: 13
F36: GS-1 Allocator | G36: Generation | H36: Distribution | I36: NDC | J36: PPPC | K36: DCPP | L36: NSGC | M36: Transmission | N36: TOTCA | O36: GHG Rev | P36: DWRBC | Q36: PUCRF | R36: SECURITIZATION
F37: 2025 | G37: 0.0856555441 | H37: 0.06698181326 | I37: 0.06977236109 | J37: 0.0708334144 | K37: 0.07045250454 | L37: 0.07022849614 | M37: 0.06906624045 | N37: 0.07029066199 | O37: 0.08033362562 | P37: 0.07801292567 | Q37: 0.06977236027 | R37: 0.08148651689
F38: 2026 | G38: 0.08272490881 | H38: 0.06948654567 | I38: 0.07266340837 | J38: 0.07366953588 | K38: 0.07329827631 | L38: 0.07313224543 | M38: 0.07260978008 | N38: 0.07302852646 | O38: 0.07524386204 | P38: 0.08102390139 | Q38: 0.07266341331 | R38: 0.08451924708
F39: 2027 | G39: 0.08454373262 | H39: 0.07158854933 | I39: 0.07480527243 | J39: 0.07587008521 | K39: 0.07548633321 | L39: 0.07530964587 | M39: 0.07481901335 | N39: 0.07302186918 | O39: 0.07758617137 | P39: 0.0833783615 | Q39: 0.07480527749 | R39: 0.08700114579
F40: 2028 | G40: 0.08492466725 | H40: 0.07203958065 | I40: 0.07441191969 | J40: 0.07542802529 | K40: 0.07500720334 | L40: 0.07313760193 | M40: 0.07418611893 | N40: 0.07302009517 | O40: 0.07640949578 | P40: 0.0830603609 | Q40: 0.07441192471 | R40: 0.08669184702
F41: 2029 | G41: =G40 -> 0.08492466725 | H41: =H40 -> 0.07203958065 | I41: 0.07441191969 | J41: 0.07542802529 | K41: 0.07500720334 | L41: 0.07313760193 | M41: 0.07418611893 | N41: 0.07302009517 | O41: 0.07640949578 | P41: 0.0830603609 | Q41: 0.07441192471 | R41: 0.08669184702
F43: Revenue Split - Bundled
E44: GS-1 | F44: 2025 | G44: 1.023295942 | H44: 0.7005231722 | I44: 0.7021955024 | J44: 0.7021955159 | K44: 0.7021955158 | L44: 0.7021955158 | M44: 0.7021955158 | N44: 0.7021955236 | O44: 0.69314594 | P44: 0.7021955159 | Q44: 0.7021955151 | R44: 0.7021955155 | U44: =G44 -> 1.023295942
E45: GS-1 | F45: 2026 | G45: 0.9300808346 | H45: 0.6594450604 | I45: 0.6571407436 | J45: 0.6571407077 | K45: 0.6571407077 | L45: 0.6571407076 | M45: 0.6571407077 | N45: 0.6571407061 | O45: 0.6804708509 | P45: 0.6571407076 | Q45: 0.657140707 | R45: 0.6571407074 | T45: =K59/K58-1 -> -0.009243811111 | U45: =G45 -> 0.9300808346
E46: GS-1 | F46: 2027 | G46: 0.9310873272 | H46: 0.6629355184 | I46: 0.6606426653 | J46: 0.6606426296 | K46: 0.6606426297 | L46: 0.6606426295 | M46: 0.6606426297 | N46: 0.660642628 | O46: 0.6838491238 | P46: 0.6606426296 | Q46: 0.660642629 | R46: 0.6606426293 | T46: =K60/K59-1 -> 0.04033549567 | U46: 0.9310873272
E47: GS-1 | F47: 2028 | G47: 0.9313541324 | H47: 0.6638657124 | I47: 0.6615759568 | J47: 0.6615759211 | K47: 0.6615759212 | L47: 0.6615759211 | M47: 0.6615759212 | N47: 0.6615759195 | O47: 0.6847490485 | P47: 0.6615759211 | Q47: 0.6615759205 | R47: 0.6615759208 | T47: =K61/K60-1 -> 0.02074164806 | U47: 0.9313541324
E48: GS-1 | F48: 2029 | G48: =G47 -> 0.9313541324 | H48: =H47 -> 0.6638657124 | I48: =I47 -> 0.6615759568 | J48: =J47 -> 0.6615759211 | K48: =K47 -> 0.6615759212 | L48: =L47 -> 0.6615759211 | M48: =M47 -> 0.6615759212 | N48: =N47 -> 0.6615759195 | O48: =O47 -> 0.6847490485 | P48: =P47 -> 0.6615759211 | Q48: =Q47 -> 0.6615759205 | R48: =R47 -> 0.6615759208 | T48: =K62/K61-1 -> 0 | U48: 0.9313541324
E49: GS-1 | T49: =K63/K62-1 -> -1 | U49: 0
E50: Total System | F50: 2025 | G50: 1.030007998 | H50: 0.6497195581 | I50: 0.6283028798 | J50: 0.6428912097 | K50: 0.6409526177 | L50: 0.6386664475 | M50: 0.6641776383 | N50: 0.6532230564 | O50: 0.6916053708 | P50: 0.6118326262 | Q50: 0.6283028839 | R50: 0.6226235037 | U50: 1.030007998
E51: Total System | F51: 2026 | G51: 0.9222853146 | H51: 0.6578191834 | I51: 0.6388478097 | J51: 0.651738387 | K51: 0.6511125617 | L51: 0.6485633538 | M51: 0.6696547304 | N51: 0.6630062939 | O51: 0.6806631535 | P51: 0.6251728172 | Q51: 0.6388478176 | R51: 0.6351943966 | T51: =K65/K64-1 -> 0.03362369559 | U51: 0.9222853146
E52: Total System | F52: 2027 | G52: 0.9218421472 | H52: 0.6538088527 | I52: 0.6390693307 | J52: 0.6520987993 | K52: 0.6516599001 | L52: 0.6571174724 | M52: 0.6708101819 | N52: 0.6664787121 | O52: 0.6839295571 | P52: 0.6249160206 | Q52: 0.6390693387 | R52: 0.6348056393 | T52: =K66/K65-1 -> 0.04033549567 | U52: 0.9218421472
E53: Total System | F53: 2028 | G53: 0.921818369 | H53: 0.6535802293 | I53: 0.6389258693 | J53: 0.6519892807 | K53: 0.6516358415 | L53: 0.6569066506 | M53: 0.6707475038 | N53: 0.6674040337 | O53: 0.6848081913 | P53: 0.6246106434 | Q53: 0.6389258772 | R53: 0.6344951789 | T53: 0.02074164806 | U53: 0.921818369
E54: Total System | F54: 2029 | G54: =G53 -> 0.921818369 | H54: =H53 -> 0.6535802293 | I54: =I53 -> 0.6389258693 | J54: =J53 -> 0.6519892807 | K54: =K53 -> 0.6516358415 | L54: =L53 -> 0.6569066506 | M54: =M53 -> 0.6707475038 | N54: =N53 -> 0.6674040337 | O54: =O53 -> 0.6848081913 | P54: =P53 -> 0.6246106434 | Q54: =Q53 -> 0.6389258772 | R54: =R53 -> 0.6344951789 | T54: 0 | U54: 0.921818369
E55: Total System | T55: -1 | U55: 0
F57: System Sales | J57: Bundled Sales | L57: % of Bdl | N57: System Sales
E58: GS-1 | F58: =$F$37 -> 2025 | I58: GS-1 | J58: =$F$37 -> 2025 | K58: 3877109.903 | L58: =K58/O58 -> 0.7021955159 | M58: GS-1 | N58: =$F$37 -> 2025 | O58: 5521410.798
E59: GS-1 | F59: =$F$38 -> 2026 | I59: GS-1 | J59: =$F$38 -> 2026 | K59: 3841270.632 | L59: 0.6571407077 | M59: GS-1 | N59: =$F$38 -> 2026 | O59: 5845430.951
E60: GS-1 | F60: =$F$39 -> 2027 | I60: GS-1 | J60: =$F$39 -> 2027 | K60: =($K$59/$O$59)*O60 -> 3996210.187 | L60: 0.6571407077 | M60: GS-1 | N60: =$F$39 -> 2027 | O60: =($O$59/$O$65)*O66 -> 6081209.306
E61: GS-1 | F61: =$F$40 -> 2028 | I61: GS-1 | J61: =$F$40 -> 2028 | K61: =($K$59/$O$59)*O61 -> 4079098.172 | L61: 0.6571407077 | M61: GS-1 | N61: =$F$40 -> 2028 | O61: =($O$59/$O$65)*O67 -> 6207343.609
E62: GS-1 | F62: =$F$41 -> 2029 | I62: GS-1 | J62: =$F$41 -> 2029 | K62: =K61 -> 4079098.172 | L62: 0.6571407077 | M62: GS-1 | N62: =$F$41 -> 2029 | O62: =O61 -> 6207343.609
E63: GS-1 | I63: GS-1 | M63: GS-1
E64: Non-Exempt Sales | F64: =$F$37 -> 2025 | G64: ='SAR and RAR'!G64 -> 70344975.44 | I64: Total System | J64: =$F$37 -> 2025 | K64: ='SAR and RAR'!K64 -> 49720524.25 | L64: 0.628302884 | M64: Total System | N64: =$F$37 -> 2025 | O64: ='SAR and RAR'!O64 -> 79134642.73
E65: Non-Exempt Sales | F65: =$F$38 -> 2026 | G65: ='SAR and RAR'!G65 -> 71720228.92 | I65: Total System | J65: =$F$38 -> 2026 | K65: ='SAR and RAR'!K65 -> 51392312.02 | L65: 0.6388478176 | M65: Total System | N65: =$F$38 -> 2026 | O65: ='SAR and RAR'!O65 -> 80445312.02
E66: Non-Exempt Sales | F66: =$F$39 -> 2027 | G66: ='SAR and RAR'!G66 -> 74613099.9 | I66: Total System | J66: =$F$39 -> 2027 | K66: ='SAR and RAR'!K66 -> 53465246.4 | L66: 0.6388478176 | M66: Total System | N66: =$F$39 -> 2027 | O66: ='SAR and RAR'!O66 -> 83690113.56
E67: Non-Exempt Sales | F67: =$F$40 -> 2028 | G67: ='SAR and RAR'!G67 -> 76160698.56 | I67: Total System | J67: =$F$40 -> 2028 | K67: ='SAR and RAR'!K67 -> 54574203.73 | L67: 0.6388478176 | M67: Total System | N67: =$F$40 -> 2028 | O67: ='SAR and RAR'!O67 -> 85425984.44
E68: Non-Exempt Sales | F68: =$F$41 -> 2029 | G68: ='SAR and RAR'!G68 -> 76160698.56 | I68: Total System | J68: =$F$41 -> 2029 | K68: ='SAR and RAR'!K68 -> 54574203.73 | L68: 0.6388478176 | M68: Total System | N68: =$F$41 -> 2029 | O68: ='SAR and RAR'!O68 -> 85425984.44
E69: Non-Exempt Sales | I69: Total System | M69: Total System
J71: =Summary!D3 -> 2025 | K71: =VLOOKUP(Summary!D3,'SAR and AR (GS1)'!J58:K63,2,FALSE) -> 3877109.903 | N71: =Summary!D3 -> 2025 | O71: =VLOOKUP(Summary!D3,'SAR and AR (GS1)'!N58:O63,2,FALSE) -> 5521410.798
J72: % of GS-1 Sales (Bdl) | N72: % of GS-1 Sales (Sys)
J73: =$F$37 -> 2025 | K73: =K58/K64 -> 0.07797805759 | N73: =$F$37 -> 2025 | O73: =O58/O64 -> 0.06977236021
J74: =$F$38 -> 2026 | K74: 0.07474407125 | N74: =$F$38 -> 2026 | O74: 0.07266341324
J75: =$F$39 -> 2027 | K75: 0.07474407125 | N75: =$F$39 -> 2027 | O75: 0.07266341324
J76: =$F$40 -> 2028 | K76: 0.07474407125 | N76: =$F$40 -> 2028 | O76: 0.07266341324
J77: =$F$41 -> 2029 | K77: 0.07474407125 | N77: =$F$41 -> 2029 | O77: 0.07266341324

Sheet Bill Impact (GS1) (hidden)
B1: CONFIDENTIAL This Excel Sheet Is Marked Confidential In Accordance With Applicable Law and Regulation. Basis for Confidentiality In Accompanying Confidentiality Declaration. Public Disclosure Restricted.
E3: Schedule TOU-GS-1-E
E4: =Summary!N4 -> 2025 | F4: =Summary!N3 -> 2025-11-15 | G4: Proposed | H4: Proposed | I4: Proposed | J4: Proposed
E5: Sales Forecast | F5: Rates | G5: Authorized Rates | H5: Authorized Revenue | I5: w/Pending Rates | J5: w/Pending Revenue
D7: On Peak | E7: =HLOOKUP(E$4,$F$42:$K$52,$A44,FALSE) -> 242.7589229 | F7: 0.69964 | G7: =F7/$F$12*$G$12 -> 0.6968473827 | H7: =E7*G7 -> 169.16592 | I7: =F7/$F$12*$I$12 -> 0.6968473827 | J7: =E7*I7 -> 169.16592 | N7: Bundled GS-1 Rev Req
D8: Mid Peak | E8: 86.27099511 | F8: 0.35093 | G8: =F8/$F$12*$G$12 -> 0.3495292608 | H8: 30.15423715 | I8: =F8/$F$12*$I$12 -> 0.3495292608 | J8: 30.15423715 | N8: Proposed (Authorized) | O8: ='SAR and AR (GS1)'!S19/1000-'SAR and AR (GS1)'!S22/1000 -> 1234.236461
D9: Off Peak | E9: 1077.846035 | F9: 0.26245 | G9: 0.2614024292 | H9: 281.751572 | I9: 0.2614024292 | J9: 281.751572 | N9: Proposed (w/Pending) | O9: ='SAR and AR (GS1)'!T19/1000-'SAR and AR (GS1)'!T22/1000 -> 1234.236461
D10: Mid Peak | E10: 566.1260181 | F10: 0.41643 | G10: 0.4147678171 | H10: 234.8108527 | I10: 0.4147678171 | J10: 234.8108527
D11: Off Peak | E11: 955.884942 | F11: 0.27867 | G11: =F11/$F$12*$G$12 -> 0.277557687 | H11: 265.3132136 | I11: 0.277557687 | J11: 265.3132136
D12: SuperOff Peak | E12: 948.2229897 | F12: 0.20347 | G12: =(O8-G14*E14*365/12/10^6)/SUM(E12,F11/F12*E11,F10/F12*E10,F9/F12*E9,F8/F12*E8,F7/F12*E7) -> 0.2026578483 | H12: 192.1648308 | I12: =(O9-I14*E14*365/12/10^6)/SUM(E12,F11/F12*E11,F10/F12*E10,F9/F12*E9,F8/F12*E8,F7/F12*E7) -> 0.2026578483 | J12: 192.1648308
D14: Customers | E14: =HLOOKUP(E$4,$F$42:$K$53,$A51,FALSE) -> 4276490 | F14: 0.468 | G14: =F14 -> 0.468 | H14: =G14*E14*365/12/10^6 -> 60.87583515 | I14: =G14 -> 0.468 | J14: =I14*E14*365/12/10^6 -> 60.87583515
N19: 2024 Recorded Data
B20: SCHEDULE TOU-GS-1-E ($/kWh) | E20: Proposed | F20: Proposed | N20: NAICS | O20: Summer | R20: Winter
B21: Rates | C21: Jan 2025 | D21: =Summary!N3 -> 2025-11-15 | E21: Authorized | F21: w/Pending | O21: On Peak kWh | P21: Mid Peak kWh | Q21: Off Peak kWh | R21: Mid Peak kWh | S21: Off Peak kWh | T21: Super Off Peak kWh | U21: Total kWh
B22: On Peak | C22: 0.61368 | D22: =F7 -> 0.69964 | E22: =G7 -> 0.6968473827 | F22: =I7 -> 0.6968473827 | N22: NAICS 531 | O22: 424.4000556 | P22: 171.0418541 | Q22: 2142.043749 | R22: 1242.293732 | S22: 2623.098488 | T22: 1422.305185 | U22: =SUM(O22:T22) -> 8025.183064
B23: Mid Peak | C23: 0.31883 | D23: =F8 -> 0.35093 | E23: 0.3495292608 | F23: =I8 -> 0.3495292608 | N23: NAICS 621 | O23: 797.5715959 | P23: 197.8653305 | Q23: 3613.515045 | R23: 1413.274642 | S23: 2031.583162 | T23: 3587.690722 | U23: =SUM(O23:T23) -> 11641.5005
B24: Off Peak | C24: 0.24032 | D24: 0.26245 | E24: 0.2614024292 | F24: 0.2614024292 | N24: NAICS 722 | O24: 2427.208974 | P24: 1047.857092 | Q24: 9631.294795 | R24: 5240.828945 | S24: 6947.090523 | T24: 8200.931162 | U24: 33495.21149
B25: Mid Peak | C25: 0.37421 | D25: 0.41643 | E25: 0.4147678171 | F25: 0.4147678171
B26: Off Peak | C26: 0.25403 | D26: 0.27867 | E26: 0.277557687 | F26: 0.277557687
B27: Super Off Peak | C27: 0.18873 | D27: 0.20347 | E27: 0.2026578483 | F27: 0.2026578483
K31: *
C32: Daily to Monthly Conversion Factor | D32: 30.417
C34: TOU-GS-1-E
C35: =C21 -> Jan 2025 | E35: =D21 -> 2025-11-15 | G35: =E21 -> Authorized | I35: =F21 -> w/Pending
C36: Summer | D36: Winter | E36: Summer | F36: Winter | G36: Summer | H36: Winter | I36: Summer | J36: Winter
B37: NAICS 531 | C37: =SUM(SUM($O$22*$C$22,$P$22*$C$23,$Q$22*$C$24)+SUM($F$14*365/12*4))/4 -> 221.6737636 | D37: =SUM(SUM($R$22*$C$25,$S$22*$C$26,$T$22*$C$27)+SUM($F$14*365/12*8))/8 -> 189.192013 | E37: =SUM(SUM($O$22*$D$22,$P$22*$D$23,$Q$22*$D$24)+SUM($F$14*365/12*4))/4 -> 244.0175887 | F37: =SUM(SUM($R$22*$D$25,$S$22*$D$26,$T$22*$D$27)+SUM($F$14*365/12*8))/8 -> 206.4479588 | G37: =SUM(SUM($O$22*$E$22,$P$22*$E$23,$Q$22*$E$24)+SUM($G$14*365/12*4))/4 -> 243.1004101 | H37: =SUM(SUM($R$22*$E$25,$S$22*$E$26,$T$22*$E$27)+SUM($G$14*365/12*8))/8 -> 205.6807396 | I37: =SUM(SUM($O$22*$F$22,$P$22*$F$23,$Q$22*$F$24)+SUM($I$14*365/12*4))/4 -> 243.1004101 | J37: =SUM(SUM($R$22*$F$25,$S$22*$F$26,$T$22*$F$27)+SUM($G$14*365/12*8))/8 -> 205.6807396
B38: NAICS 621 | C38: =SUM(SUM($O$23*$C$22,$P$23*$C$23,$Q$23*$C$24)+SUM($F$14*365/12*4))/4 -> 369.469769 | D38: =SUM(SUM($R$23*$C$25,$S$23*$C$26,$T$23*$C$27)+SUM($F$14*365/12*8))/8 -> 229.4911805 | E38: =SUM(SUM($O$23*$D$22,$P$23*$D$23,$Q$23*$D$24)+SUM($F$14*365/12*4))/4 -> 408.1892239 | F38: =SUM(SUM($R$23*$D$25,$S$23*$D$26,$T$23*$D$27)+SUM($F$14*365/12*8))/8 -> 249.8173337 | G38: =SUM(SUM($O$23*$E$22,$P$23*$E$23,$Q$23*$E$24)+SUM($F$14*365/12*4))/4 -> 406.6167532 | H38: =SUM(SUM($R$23*$E$25,$S$23*$E$26,$T$23*$E$27)+SUM($F$14*365/12*8))/8 -> 248.8770054 | I38: =SUM(SUM($O$23*$F$22,$P$23*$F$23,$Q$23*$F$24)+SUM($I$14*365/12*4))/4 -> 406.6167532 | J38: =SUM(SUM($R$23*$F$25,$S$23*$F$26,$T$23*$F$27)+SUM($G$14*365/12*8))/8 -> 248.8770054
B39: NAICS 722 | C39: =SUM(SUM($O$24*$C$22,$P$24*$C$23,$Q$24*$C$24)+SUM($F$14*365/12*4))/4 -> 1048.787661 | D39: =SUM(SUM($R$24*$C$25,$S$24*$C$26,$T$24*$C$27)+SUM($F$14*365/12*8))/8 -> 673.4477179 | E39: =SUM(SUM($O$24*$D$22,$P$24*$D$23,$Q$24*$D$24)+SUM($F$14*365/12*4))/4 -> 1162.642574 | F39: =SUM(SUM($R$24*$D$25,$S$24*$D$26,$T$24*$D$27)+SUM($F$14*365/12*8))/8 -> 737.6134472 | G39: =SUM(SUM($O$24*$E$22,$P$24*$E$23,$Q$24*$E$24)+SUM($F$14*365/12*4))/4 -> 1158.058698 | H39: =SUM(SUM($R$24*$E$25,$S$24*$E$26,$T$24*$E$27)+SUM($F$14*365/12*8))/8 -> 734.7260777 | I39: =SUM(SUM($O$24*$F$22,$P$24*$F$23,$Q$24*$F$24)+SUM($I$14*365/12*4))/4 -> 1158.058698 | J39: =SUM(SUM($R$24*$F$25,$S$24*$F$26,$T$24*$F$27)+SUM($G$14*365/12*8))/8 -> 734.7260777
F42: 2025 | G42: =F42+1 -> 2026 | H42: =G42+1 -> 2027 | I42: 2028 | J42: 2029
F43: Non-CARE | G43: Non-CARE | H43: Non-CARE | I43: Non-CARE | J43: Non-CARE
A44: 3 | D44: On Peak | F44: 242.7589229 | G44: 247.5349112 | H44: =G44/G$54*H$54 -> 257.5193545 | I44: =H44/H$54*I$54 -> 262.8607304 | J44: =I44 -> 262.8607304
A45: =A44+1 -> 4 | D45: Mid Peak | F45: 86.27099511 | G45: 87.88773548 | H45: =G45/G$54*H$54 -> 91.43273085 | I45: 93.32919638 | J45: 93.32919638
A46: =A45+1 -> 5 | D46: Off Peak | F46: 1077.846035 | G46: 1098.877125 | H46: 1143.200878 | I46: 1166.912748 | J46: 1166.912748
A47: 6 | D47: Mid Peak | F47: 566.1260181 | G47: 551.5461694 | H47: 573.7930576 | I47: 585.6944712 | J47: 585.6944712
A48: 7 | D48: Off Peak | F48: 955.884942 | G48: 931.6695149 | H48: 969.2488666 | I48: 989.3526855 | J48: 989.3526855
A49: 8 | D49: SuperOff Peak | F49: 948.2229897 | G49: 923.7551759 | H49: 961.0152988 | I49: 980.9483399 | J49: 980.9483399
A50: 9
A51: 10 | D51: Customers | F51: 4276490 | G51: 4154722 | H51: 4177916.847 | I51: 4201220.423 | J51: =I51 -> 4201220.423
A52: 11
D54: Total Sales | F54: =SUM(F44:F49) -> 3877.109903 | G54: ='SAR and AR (GS1)'!K59/1000 -> 3841.270632 | H54: ='SAR and AR (GS1)'!K60/1000 -> 3996.210187 | I54: ='SAR and AR (GS1)'!K61/1000 -> 4079.098172 | J54: =I54 -> 4079.098172
E55: Customers | F55: =F51/SUM(F$51:F$52) -> 1 | G55: =G51 -> 4154722 | H55: =H51 -> 4177916.847 | I55: 4201220.423 | J55: =I55 -> 4201220.423

Sheet SAR and RAR (hidden)
B1: CONFIDENTIAL This Excel Sheet Is Marked Confidential In Accordance With Applicable Law and Regulation. Basis for Confidentiality In Accompanying Confidentiality Declaration. Public Disclosure Restricted.
C2: Total Revenue ($000)
C3: Authorized | D3: w/ Pending
B4: Generation | C4: =INDEX('Incremental Rev Req'!$S$9:$X$22,MATCH(B4,'Incremental Rev Req'!$S$9:$S$22,0),MATCH(Summary!$D$3,'Incremental Rev Req'!$S$9:$X$9,0)) -> 5525852.948 | D4: =INDEX('Incremental Rev Req'!$S$69:$X$82,MATCH(B4,'Incremental Rev Req'!$S$69:$S$82,0),MATCH(Summary!$D$3,'Incremental Rev Req'!$S$69:$X$69,0)) -> 5525852.948 | G4: Allocation
B5: Distribution | C5: =INDEX('Incremental Rev Req'!$S$9:$X$22,MATCH(B5,'Incremental Rev Req'!$S$9:$S$22,0),MATCH(Summary!$D$3,'Incremental Rev Req'!$S$9:$X$9,0)) -> 10708193.86 | D5: =INDEX('Incremental Rev Req'!$S$69:$X$82,MATCH(B5,'Incremental Rev Req'!$S$69:$S$82,0),MATCH(Summary!$D$3,'Incremental Rev Req'!$S$69:$X$69,0)) -> 10708193.86 | G5: Generation | H5: Distribution | I5: NDC | J5: PPPC | K5: DCPP | L5: NSGC | M5: Transmission | N5: TOTCA | O5: GHG Rev | P5: DWRBC | Q5: PUCRF | R5: SECURITIZATION
B6: Nuclear | C6: =INDEX('Incremental Rev Req'!$S$9:$X$22,MATCH(B6,'Incremental Rev Req'!$S$9:$S$22,0),MATCH(Summary!$D$3,'Incremental Rev Req'!$S$9:$X$9,0)) -> -915.7507376 | D6: =INDEX('Incremental Rev Req'!$S$69:$X$82,MATCH(B6,'Incremental Rev Req'!$S$69:$S$82,0),MATCH(Summary!$D$3,'Incremental Rev Req'!$S$69:$X$69,0)) -> -915.7507376 | F6: Residential | G6: =VLOOKUP(Summary!$D$3,'SAR and RAR'!$F$37:$R$42,'SAR and RAR'!G$35,FALSE) -> 0.433536641 | H6: =VLOOKUP(Summary!$D$3,'SAR and RAR'!$F$37:$R$42,'SAR and RAR'!H$35,FALSE) -> 0.489526967 | I6: =VLOOKUP(Summary!$D$3,'SAR and RAR'!$F$37:$R$42,'SAR and RAR'!I$35,FALSE) -> 0.3376537252 | J6: =VLOOKUP(Summary!$D$3,'SAR and RAR'!$F$37:$R$42,'SAR and RAR'!J$35,FALSE) -> 0.4374993594 | K6: =VLOOKUP(Summary!$D$3,'SAR and RAR'!$F$37:$R$42,'SAR and RAR'!K$35,FALSE) -> 0.4505009853 | L6: =VLOOKUP(Summary!$D$3,'SAR and RAR'!$F$37:$R$42,'SAR and RAR'!L$35,FALSE) -> 0.4382303258 | M6: =VLOOKUP(Summary!$D$3,'SAR and RAR'!$F$37:$R$42,'SAR and RAR'!M$35,FALSE) -> 0.4638101825 | N6: =VLOOKUP(Summary!$D$3,'SAR and RAR'!$F$37:$R$42,'SAR and RAR'!N$35,FALSE) -> 0.5669366334 | O6: =VLOOKUP(Summary!$D$3,'SAR and RAR'!$F$37:$R$42,'SAR and RAR'!O$35,FALSE) -> 0.8264249736 | P6: =VLOOKUP(Summary!$D$3,'SAR and RAR'!$F$37:$R$42,'SAR and RAR'!P$35,FALSE) -> 0.2594263611 | Q6: =VLOOKUP(Summary!$D$3,'SAR and RAR'!$F$37:$R$42,'SAR and RAR'!Q$35,FALSE) -> 0.3376537254 | R6: =VLOOKUP(Summary!$D$3,'SAR and RAR'!$F$37:$R$42,'SAR and RAR'!R$35,FALSE) -> 0.3674900861
B7: Public Purpose | C7: =INDEX('Incremental Rev Req'!$S$9:$X$22,MATCH(B7,'Incremental Rev Req'!$S$9:$S$22,0),MATCH(Summary!$D$3,'Incremental Rev Req'!$S$9:$X$9,0)) -> 992971.5889 | D7: =INDEX('Incremental Rev Req'!$S$69:$X$82,MATCH(B7,'Incremental Rev Req'!$S$69:$S$82,0),MATCH(Summary!$D$3,'Incremental Rev Req'!$S$69:$X$69,0)) -> 992971.5889
B8: DCPP | C8: =INDEX('Incremental Rev Req'!$S$9:$X$22,MATCH(B8,'Incremental Rev Req'!$S$9:$S$22,0),MATCH(Summary!$D$3,'Incremental Rev Req'!$S$9:$X$9,0)) -> 282858.6909 | D8: =INDEX('Incremental Rev Req'!$S$69:$X$82,MATCH(B8,'Incremental Rev Req'!$S$69:$S$82,0),MATCH(Summary!$D$3,'Incremental Rev Req'!$S$69:$X$69,0)) -> 282858.6909 | G8: Revenue ($000) - System | X8: Authorized | Y8: w/Pending
B9: New System Gen | C9: =INDEX('Incremental Rev Req'!$S$9:$X$22,MATCH(B9,'Incremental Rev Req'!$S$9:$S$22,0),MATCH(Summary!$D$3,'Incremental Rev Req'!$S$9:$X$9,0)) -> 603172.2203 | D9: =INDEX('Incremental Rev Req'!$S$69:$X$82,MATCH(B9,'Incremental Rev Req'!$S$69:$S$82,0),MATCH(Summary!$D$3,'Incremental Rev Req'!$S$69:$X$69,0)) -> 603172.2203 | F9: Authorized | G9: Generation | H9: Distribution | I9: NDC | J9: PPPC | K9: DCPP | L9: NSGC | M9: Transmission | N9: TOTCA | O9: GHG Rev | P9: DWRBC | Q9: PUCRF | R9: SECURITIZATION | S9: Total | T9: CARE Adj. | W9: % of CARE Sales | X9: =VLOOKUP(Summary!$D$3,$F$58:$Q$63,$Q$35,FALSE) -> 0.3128375693 | Y9: =X9 -> 0.3128375693
B10: FERC | C10: =INDEX('Incremental Rev Req'!$S$9:$X$22,MATCH(B10,'Incremental Rev Req'!$S$9:$S$22,0),MATCH(Summary!$D$3,'Incremental Rev Req'!$S$9:$X$9,0)) -> 1344347 | D10: =INDEX('Incremental Rev Req'!$S$69:$X$82,MATCH(B10,'Incremental Rev Req'!$S$69:$S$82,0),MATCH(Summary!$D$3,'Incremental Rev Req'!$S$69:$X$69,0)) -> 1344347 | F10: Residential | G10: =G6*G11 -> 2395659.725 | H10: =H6*H11 -> 5241949.66 | I10: =I6*I11 -> -309.2066479 | J10: =J6*J11 -> 434424.4341 | K10: =K6*K11 -> 127428.119 | L10: 264328.3586 | M10: 623521.8274 | N10: -1560.631983 | O10: -530254.0509 | P10: 108129.6856 | Q10: 21376.08554 | R10: =R6*R11 -> 39043.7196 | S10: =SUM(G10:R10) -> 8723737.726 | T10: =-X11+X14 -> -769814.9185 | W10: CARE Line Item Discount % | X10: 0.325 | Y10: =X10 -> 0.325
B11: TOTCA | C11: =INDEX('Incremental Rev Req'!$S$9:$X$22,MATCH(B11,'Incremental Rev Req'!$S$9:$S$22,0),MATCH(Summary!$D$3,'Incremental Rev Req'!$S$9:$X$9,0)) -> -2752.745 | D11: =INDEX('Incremental Rev Req'!$S$69:$X$82,MATCH(B11,'Incremental Rev Req'!$S$69:$S$82,0),MATCH(Summary!$D$3,'Incremental Rev Req'!$S$69:$X$69,0)) -> -2752.745 | F11: Total System | G11: =C4 -> 5525852.948 | H11: =C5 -> 10708193.86 | I11: =C6 -> -915.7507376 | J11: =C7 -> 992971.5889 | K11: =C8 -> 282858.6909 | L11: =C9 -> 603172.2203 | M11: =C10 -> 1344347 | N11: =C11 -> -2752.745 | O11: =C12 -> -641623.9439 | P11: =C14 -> 416803 | Q11: =C15 -> 63307.71418 | R11: =C16 -> 106244.28 | S11: =SUM(G11:R11) -> 19398458.86 | T11: 0 | W11: CARE Discounst | X11: =SUM(G10*G19/K71*O71,H10:N10,Q10)*X9*X10 -> 1041718.471 | Y11: =SUM(G13*G19/K71*O71,H13:N13,Q13)*Y9*Y10 -> 1041718.471
B12: GHG Revenue | C12: =INDEX('Incremental Rev Req'!$S$9:$X$22,MATCH(B12,'Incremental Rev Req'!$S$9:$S$22,0),MATCH(Summary!$D$3,'Incremental Rev Req'!$S$9:$X$9,0)) -> -641623.9439 | D12: =INDEX('Incremental Rev Req'!$S$69:$X$82,MATCH(B12,'Incremental Rev Req'!$S$69:$S$82,0),MATCH(Summary!$D$3,'Incremental Rev Req'!$S$69:$X$69,0)) -> -641623.9439 | F12: w/Pending | W12: non-CARE Residential Sales | X12: =VLOOKUP(Summary!$D$3,'SAR and RAR'!$F$58:$G$63,2,FALSE) -> 18361053.62 | Y12: =X12 -> 18361053.62
B13: MCAM | C13: =INDEX('Incremental Rev Req'!$S$9:$X$22,MATCH(B13,'Incremental Rev Req'!$S$9:$S$22,0),MATCH(Summary!$D$3,'Incremental Rev Req'!$S$9:$X$9,0)) -> 4710.732249 | D13: =INDEX('Incremental Rev Req'!$S$69:$X$82,MATCH(B13,'Incremental Rev Req'!$S$69:$S$82,0),MATCH(Summary!$D$3,'Incremental Rev Req'!$S$69:$X$69,0)) -> 4710.732249 | F13: Residential | G13: =G6*G14 -> 2395659.725 | H13: =H6*H14 -> 5241949.66 | I13: =I6*I14 -> -309.2066479 | J13: =J6*J14 -> 434424.4341 | K13: =K6*K14 -> 127428.119 | L13: 264328.3586 | M13: 623521.8274 | N13: -1560.631983 | O13: -530254.0509 | P13: 108129.6856 | Q13: =Q6*Q14 -> 21376.08554 | R13: =R6*R14 -> 39043.7196 | S13: =SUM(G13:R13) -> 8723737.726 | T13: =-Y11+Y14 -> -769814.9185 | W13: Total Sales (excl. CARE&SL) | X13: =VLOOKUP(Summary!$D$3,'SAR and RAR'!$F$64:$G$69,2,FALSE) -> 70344975.44 | Y13: =X13 -> 70344975.44
B14: DWR | C14: =INDEX('Incremental Rev Req'!$S$9:$X$22,MATCH(B14,'Incremental Rev Req'!$S$9:$S$22,0),MATCH(Summary!$D$3,'Incremental Rev Req'!$S$9:$X$9,0)) -> 416803 | D14: =INDEX('Incremental Rev Req'!$S$69:$X$82,MATCH(B14,'Incremental Rev Req'!$S$69:$S$82,0),MATCH(Summary!$D$3,'Incremental Rev Req'!$S$69:$X$69,0)) -> 416803 | F14: Total System | G14: =D4 -> 5525852.948 | H14: =D5 -> 10708193.86 | I14: =D6 -> -915.7507376 | J14: =D7 -> 992971.5889 | K14: =D8 -> 282858.6909 | L14: =D9 -> 603172.2203 | M14: =D10 -> 1344347 | N14: =D11 -> -2752.745 | O14: =D12 -> -641623.9439 | P14: =D14 -> 416803 | Q14: =D15 -> 63307.71418 | R14: =D16 -> 106244.28 | S14: =SUM(G14:R14) -> 19398458.86 | T14: 0 | W14: Res CARE Surcharge | X14: =X11*X12/X13 -> 271903.5522 | Y14: =Y11*Y12/Y13 -> 271903.5522
B15: PUCRF | C15: =INDEX('Incremental Rev Req'!$S$9:$X$22,MATCH(B15,'Incremental Rev Req'!$S$9:$S$22,0),MATCH(Summary!$D$3,'Incremental Rev Req'!$S$9:$X$9,0)) -> 63307.71418 | D15: =INDEX('Incremental Rev Req'!$S$69:$X$82,MATCH(B15,'Incremental Rev Req'!$S$69:$S$82,0),MATCH(Summary!$D$3,'Incremental Rev Req'!$S$69:$X$69,0)) -> 63307.71418 | W15: RES CARE Discount Specific Split | X15: 0.7684317363 | Y15: =X15 -> 0.7684317363
B16: SECURITIZATION | C16: =INDEX('Incremental Rev Req'!$S$9:$X$22,MATCH(B16,'Incremental Rev Req'!$S$9:$S$22,0),MATCH(Summary!$D$3,'Incremental Rev Req'!$S$9:$X$9,0)) -> 106244.28 | D16: =INDEX('Incremental Rev Req'!$S$69:$X$82,MATCH(B16,'Incremental Rev Req'!$S$69:$S$82,0),MATCH(Summary!$D$3,'Incremental Rev Req'!$S$69:$X$69,0)) -> 106244.28 | S16: Authorized | T16: w/Pending | W16: CARE Surcharge Allocator | X16: 0.6109826201 | Y16: =X16 -> 0.6109826201
B17: Total | C17: =SUM(C4:C16) -> 19403169.59 | D17: =SUM(D4:D16) -> 19403169.59 | G17: Revenue Split - Bundled | S17: Bundled Revenue | W17: System CARE Discount | X17: =SUM(-X11*X15)+SUM(X11*X16) -> -164017.6525 | Y17: =SUM(-Y11*Y15)+SUM(Y11*Y16) -> -164017.6525
G18: Generation | H18: Distribution | I18: NDC | J18: PPPC | K18: DCPP | L18: NSGC | M18: Transmission | N18: TOTCA | O18: GHG Rev | P18: DWRBC | Q18: PUCRF | R18: SECURITIZATION | S18: Total | T18: Total
F19: Residential | G19: =VLOOKUP(Summary!$D$3,'SAR and RAR'!$F$44:$R$49,'SAR and RAR'!G$35,FALSE) -> 1.034579421 | H19: =VLOOKUP(Summary!$D$3,'SAR and RAR'!$F$44:$R$49,'SAR and RAR'!H$35,FALSE) -> 0.6826880396 | I19: =VLOOKUP(Summary!$D$3,'SAR and RAR'!$F$44:$R$49,'SAR and RAR'!I$35,FALSE) -> 0.7011923278 | J19: =VLOOKUP(Summary!$D$3,'SAR and RAR'!$F$44:$R$49,'SAR and RAR'!J$35,FALSE) -> 0.7011923321 | K19: =VLOOKUP(Summary!$D$3,'SAR and RAR'!$F$44:$R$49,'SAR and RAR'!K$35,FALSE) -> 0.7011923321 | L19: =VLOOKUP(Summary!$D$3,'SAR and RAR'!$F$44:$R$49,'SAR and RAR'!L$35,FALSE) -> 0.7011923321 | M19: =VLOOKUP(Summary!$D$3,'SAR and RAR'!$F$44:$R$49,'SAR and RAR'!M$35,FALSE) -> 0.7011923321 | N19: =VLOOKUP(Summary!$D$3,'SAR and RAR'!$F$44:$R$49,'SAR and RAR'!N$35,FALSE) -> 0.7011923304 | O19: =VLOOKUP(Summary!$D$3,'SAR and RAR'!$F$44:$R$49,'SAR and RAR'!O$35,FALSE) -> 0.7065757 | P19: =VLOOKUP(Summary!$D$3,'SAR and RAR'!$F$44:$R$49,'SAR and RAR'!P$35,FALSE) -> 0.6708887653 | Q19: =VLOOKUP(Summary!$D$3,'SAR and RAR'!$F$44:$R$49,'SAR and RAR'!Q$35,FALSE) -> 0.7011923321 | R19: =VLOOKUP(Summary!$D$3,'SAR and RAR'!$F$44:$R$49,'SAR and RAR'!R$35,FALSE) -> 0.6708887652 | S19: =SUMPRODUCT(G10:R10,G19:R19)+T10*X15 -> 6219836.806 | T19: =SUMPRODUCT(G13:R13,G19:R19)+T13*Y15 -> 6219836.806
F20: Total System | G20: =VLOOKUP(Summary!$D$3,'SAR and RAR'!$F$50:$R$55,'SAR and RAR'!G$35,FALSE) -> 1.030007998 | H20: =VLOOKUP(Summary!$D$3,'SAR and RAR'!$F$50:$R$55,'SAR and RAR'!H$35,FALSE) -> 0.6497195581 | I20: =VLOOKUP(Summary!$D$3,'SAR and RAR'!$F$50:$R$55,'SAR and RAR'!I$35,FALSE) -> 0.6283028798 | J20: =VLOOKUP(Summary!$D$3,'SAR and RAR'!$F$50:$R$55,'SAR and RAR'!J$35,FALSE) -> 0.6428912097 | K20: =VLOOKUP(Summary!$D$3,'SAR and RAR'!$F$50:$R$55,'SAR and RAR'!K$35,FALSE) -> 0.6409526177 | L20: =VLOOKUP(Summary!$D$3,'SAR and RAR'!$F$50:$R$55,'SAR and RAR'!L$35,FALSE) -> 0.6386664475 | M20: =VLOOKUP(Summary!$D$3,'SAR and RAR'!$F$50:$R$55,'SAR and RAR'!M$35,FALSE) -> 0.6641776383 | N20: =VLOOKUP(Summary!$D$3,'SAR and RAR'!$F$50:$R$55,'SAR and RAR'!N$35,FALSE) -> 0.6532230564 | O20: =VLOOKUP(Summary!$D$3,'SAR and RAR'!$F$50:$R$55,'SAR and RAR'!O$35,FALSE) -> 0.6916053708 | P20: =VLOOKUP(Summary!$D$3,'SAR and RAR'!$F$50:$R$55,'SAR and RAR'!P$35,FALSE) -> 0.6118326262 | Q20: =VLOOKUP(Summary!$D$3,'SAR and RAR'!$F$50:$R$55,'SAR and RAR'!Q$35,FALSE) -> 0.6283028839 | R20: =VLOOKUP(Summary!$D$3,'SAR and RAR'!$F$50:$R$55,'SAR and RAR'!R$35,FALSE) -> 0.6226235037 | S20: =SUMPRODUCT(G11:R11,G20:R20)+X17 -> 14497577.05 | T20: =SUMPRODUCT(G14:R14,G20:R20)+Y17 -> 14497577.05
Q22: Res GHG | S22: =O10*O19 -> -374664.6272 | T22: =O13*O19 -> -374664.6272
Q23: Res GHG System | S23: =O11*O20 -> -443750.5656 | T23: =O14*O20 -> -443750.5656
F26: Bundled | N26: System (Bundled and Unbundled)
F27: =Summary!D3&" Sales" -> 2025 Sales | G27: ='SAR and AR (GS1)'!$G$27 -> 11/15/2025 Avg Rates | H27: Proposed Avg Rates (Authorized) | I27: Proposed Avg Rates (w/Pending) | J27: % Change (Authorized) | K27: % Change (w/Pending) | N27: =Summary!N4&" Sales" -> 2025 Sales | O27: =G27 -> 11/15/2025 Avg Rates | P27: Proposed Avg Rates (Authorized) | Q27: Proposed Avg Rates (w/Pending) | R27: % Change (Authorized) | S27: % Change (w/Pending) | W27: 1/1/25 Bundled w/Credit | X27: 1/1/25 Bundled w/out Credit | Z27: 1/1/25 System w/Credit | AA27: 1/1/25 System w/out Credit
E28: Residential | F28: =VLOOKUP(Summary!$D$3,'SAR and RAR'!$J$58:$K$63,2,FALSE) -> 18735934.09 | G28: =IF(Summary!$J$3="Y",W32,X32) -> 35.26067261 | H28: =IF(Summary!$J$3="Y",S19/$F$28*100,SUM(S19-'SAR and RAR'!S22)/$F$28*100) -> 35.19707852 | I28: =IF(Summary!$J$3="Y",T19/$F$28*100,SUM(T19-'SAR and RAR'!T22)/$F$28*100) -> 35.19707852 | J28: =H28/G28-1 -> -0.00180354163 | K28: =I28/G28-1 -> -0.00180354163 | M28: Residential | N28: =VLOOKUP(Summary!$D$3,'SAR and RAR'!$N$58:$O$63,2,FALSE) -> 26720106.92 | O28: =IF(Summary!$J$3="Y",Z32,AA32) -> 31.47521736 | P28: =IF(Summary!$J$3="Y",SUM(S10:T10)/N28*100,SUM(S10,T10,-O10)/N28*100) -> 31.75203184 | Q28: =IF(Summary!$J$3="Y",SUM(S13:T13)/N28*100,SUM(S13,T13,-O13)/N28*100) -> 31.75203184 | R28: =P28/O28-1 -> 0.008794680523 | S28: =Q28/O28-1 -> 0.008794680523 | V28: Residential | W28: 29.63216556 | X28: 31.62973815 | Y28: Residential System | Z28: 26.37809199 | AA28: 28.36130718
E29: Total Bundled | F29: =VLOOKUP(Summary!$D$3,'SAR and RAR'!$J$64:$K$69,2,FALSE) -> 49720524.25 | G29: =IF(Summary!$J$3="Y",W33,X33) -> 30.16320305 | H29: =IF(Summary!$J$3="Y",S20/$F$29*100,SUM(S20-S23)/$F$29*100) -> 30.05062364 | I29: =IF(Summary!$J$3="Y",T20/$F$29*100,SUM(T20-T23)/$F$29*100) -> 30.05062364 | J29: =H29/G29-1 -> -0.003732342697 | K29: =I29/G29-1 -> -0.003732342697 | M29: Total System | N29: =VLOOKUP(Summary!$D$3,'SAR and RAR'!$N$64:$O$69,2,FALSE) -> 79134642.73 | O29: =IF(Summary!$J$3="Y",Z33,AA33) -> 25.12602979 | P29: =IF(Summary!$J$3="Y",SUM(S11:T11)/N29*100,SUM(S11,T11,-O11)/N29*100) -> 25.3240327 | Q29: =IF(Summary!$J$3="Y",SUM(S14:T14)/N29*100,SUM(S14,T14,-O14)/N29*100) -> 25.3240327 | R29: =P29/O29-1 -> 0.007880390047 | S29: =Q29/O29-1 -> 0.007880390047 | V29: Bundled | W29: 26.41450186 | X29: 27.30660685 | Y29: Total System | Z29: 22.10831567 | AA29: 22.91911704
E30: =M29 -> Total System | F30: =N29 -> 79134642.73
W31: 10/1/25 Bundled w/Credit | X31: 10/1/25 Bundled w/out Credit | Z31: 10/1/25 System w/Credit | AA31: 10/1/25 System w/out Credit
V32: Residential | W32: 33.25489832 | X32: 35.26067261 | Y32: Residential System | Z32: 29.48472497 | AA32: 31.47521736
V33: Bundled | W33: 29.26800745 | X33: 30.16320305 | Y33: Total System | Z33: 24.31277124 | AA33: 25.12602979
G35: 2 | H35: =G35+1 -> 3 | I35: =H35+1 -> 4 | J35: 5 | K35: 6 | L35: 7 | M35: 8 | N35: 9 | O35: 10 | P35: 11 | Q35: 12 | R35: 13
F36: Residential Allocator | G36: Generation | H36: Distribution | I36: NDC | J36: PPPC | K36: DCPP | L36: NSGC | M36: Transmission | N36: TOTCA | O36: GHG Rev | P36: DWRBC | Q36: PUCRF | R36: SECURITIZATION
F37: 2025 | G37: 0.433536641 | H37: 0.489526967 | I37: 0.3376537252 | J37: 0.4374993594 | K37: 0.4505009853 | L37: 0.4382303258 | M37: 0.4638101825 | N37: 0.5669366334 | O37: 0.8264249736 | P37: 0.2594263611 | Q37: 0.3376537254 | R37: 0.3674900861
F38: 2026 | G38: 0.4392157047 | H38: 0.4942341256 | I38: 0.3398582153 | J38: 0.4401404691 | K38: 0.4529882264 | L38: 0.4408421467 | M38: 0.4712630915 | N38: 0.5692765094 | O38: 0.7897450218 | P38: 0.2639037906 | Q38: 0.3398582131 | R38: 0.3733364824
F39: 2027 | G39: 0.4488724815 | H39: 0.5096184511 | I39: 0.3501930419 | J39: 0.4536983886 | K39: 0.4669332267 | L39: 0.4543788443 | M39: 0.4860417548 | N39: 0.5697403371 | O39: 0.8146317668 | P39: 0.2717407857 | Q39: 0.3501930398 | R39: 0.3845375695
F40: 2028 | G40: 0.4508949978 | H40: 0.512945465 | I40: 0.3484356387 | J40: 0.4511637106 | K40: 0.4640814177 | L40: 0.4413803253 | M40: 0.4820465862 | N40: 0.5698639368 | O40: 0.8023563348 | P40: 0.2707490522 | Q40: 0.3484356367 | R40: 0.3832337259
F41: 2029 | G41: =G40 -> 0.4508949978 | H41: =H40 -> 0.512945465 | I41: 0.3484356387 | J41: 0.4511637106 | K41: 0.4640814177 | L41: 0.4413803253 | M41: 0.4820465862 | N41: 0.5698639368 | O41: 0.8023563348 | P41: 0.2707490522 | Q41: 0.3484356367 | R41: 0.3832337259
F43: Revenue Split - Bundled
E44: Residential | F44: 2025 | G44: 1.034579421 | H44: 0.6826880396 | I44: 0.7011923278 | J44: 0.7011923321 | K44: 0.7011923321 | L44: 0.7011923321 | M44: 0.7011923321 | N44: 0.7011923304 | O44: 0.7065757 | P44: 0.6708887653 | Q44: 0.7011923321 | R44: 0.6708887652 | U44: =G44 -> 1.034579421
E45: Residential | F45: 2026 | G45: 0.9259427869 | H45: 0.7043173976 | I45: 0.7154315708 | J45: 0.7154315841 | K45: 0.7154315842 | L45: 0.7154315841 | M45: 0.7154315841 | N45: 0.7154315812 | O45: 0.7043649742 | P45: 0.6970027268 | Q45: 0.7154315842 | R45: 0.6970027267 | T45: =K59/K58-1 -> 0.04397781383 | U45: =G45 -> 0.9259427869
E46: Residential | F46: 2027 | G46: 0.927004172 | H46: 0.7075519041 | I46: 0.7185930745 | J46: 0.7185930877 | K46: 0.7185930877 | L46: 0.7185930877 | M46: 0.7185930877 | N46: 0.7185930848 | O46: 0.7075991763 | P46: 0.7002831991 | Q46: 0.7185930878 | R46: 0.700283199 | T46: =K60/K59-1 -> 0.04033549567 | U46: 0.927004172
E47: Residential | F47: 2028 | G47: 0.9272855511 | H47: 0.7084131273 | I47: 0.7194346759 | J47: 0.7194346891 | K47: 0.7194346892 | L47: 0.7194346891 | M47: 0.7194346892 | N47: 0.7194346863 | O47: 0.7084603176 | P47: 0.7011567869 | Q47: 0.7194346892 | R47: 0.7011567868 | T47: 0.02074164806 | U47: 0.9272855511
E48: Residential | F48: 2029 | G48: =G47 -> 0.9272855511 | H48: =H47 -> 0.7084131273 | I48: 0.7194346759 | J48: 0.7194346891 | K48: 0.7194346892 | L48: 0.7194346891 | M48: 0.7194346892 | N48: 0.7194346863 | O48: 0.7084603176 | P48: 0.7011567869 | Q48: 0.7194346892 | R48: 0.7011567868 | T48: 0 | U48: 0.9272855511
E49: Residential | T49: -1 | U49: 0
E50: Total System | F50: 2025 | G50: 1.030007998 | H50: 0.6497195581 | I50: 0.6283028798 | J50: 0.6428912097 | K50: 0.6409526177 | L50: 0.6386664475 | M50: 0.6641776383 | N50: 0.6532230564 | O50: 0.6916053708 | P50: 0.6118326262 | Q50: 0.6283028839 | R50: 0.6226235037 | U50: 1.030007998
E51: Total System | F51: 2026 | G51: 0.9222853146 | H51: 0.6578191834 | I51: 0.6388478097 | J51: 0.651738387 | K51: 0.6511125617 | L51: 0.6485633538 | M51: 0.6696547304 | N51: 0.6630062939 | O51: 0.6806631535 | P51: 0.6251728172 | Q51: 0.6388478176 | R51: 0.6351943966 | T51: =K65/K64-1 -> 0.03362369559 | U51: 0.9222853146
E52: Total System | F52: 2027 | G52: 0.9218421472 | H52: 0.6538088527 | I52: 0.6390693307 | J52: 0.6520987993 | K52: 0.6516599001 | L52: 0.6571174724 | M52: 0.6708101819 | N52: 0.6664787121 | O52: 0.6839295571 | P52: 0.6249160206 | Q52: 0.6390693387 | R52: 0.6348056393 | T52: =K66/K65-1 -> 0.04033549567 | U52: 0.9218421472
E53: Total System | F53: 2028 | G53: 0.921818369 | H53: 0.6535802293 | I53: 0.6389258693 | J53: 0.6519892807 | K53: 0.6516358415 | L53: 0.6569066506 | M53: 0.6707475038 | N53: 0.6674040337 | O53: 0.6848081913 | P53: 0.6246106434 | Q53: 0.6389258772 | R53: 0.6344951789 | T53: 0.02074164806 | U53: 0.921818369
E54: Total System | F54: 2029 | G54: =G53 -> 0.921818369 | H54: =H53 -> 0.6535802293 | I54: 0.6389258693 | J54: 0.6519892807 | K54: 0.6516358415 | L54: 0.6569066506 | M54: 0.6707475038 | N54: 0.6674040337 | O54: 0.6848081913 | P54: 0.6246106434 | Q54: 0.6389258772 | R54: 0.6344951789 | T54: 0 | U54: 0.921818369
E55: Total System | T55: -1 | U55: 0
F57: System Sales | J57: Bundled Sales | L57: % of Bdl | N57: System Sales | Q57: CARE%
E58: Non-CARE Residential | F58: =$F$37 -> 2025 | G58: 18361053.62 | I58: Residential | J58: =$F$37 -> 2025 | K58: 18735934.09 | L58: =K58/O58 -> 0.7011923321 | M58: Residential | N58: =$F$37 -> 2025 | O58: 26720106.92 | Q58: =1-G58/O58 -> 0.3128375693
E59: Non-CARE Residential | F59: =$F$38 -> 2026 | G59: 19039213.86 | I59: Residential | J59: =$F$38 -> 2026 | K59: 19559899.51 | L59: 0.7154315841 | M59: Residential | N59: =$F$38 -> 2026 | O59: 27340000 | Q59: =1-G59/O59 -> 0.3036132459
E60: Non-CARE Residential | F60: =$F$39 -> 2027 | G60: =($G$59/$O$59)*O60 -> 19807169.98 | I60: Residential | J60: =$F$39 -> 2027 | K60: =($K$59/$O$59)*O60 -> 20348857.75 | L60: 0.7154315841 | M60: Residential | N60: =$F$39 -> 2027 | O60: =($O$59/$O$65)*O66 -> 28442772.45 | Q60: =1-G60/O60 -> 0.3036132459
E61: Non-CARE Residential | F61: =$F$40 -> 2028 | G61: =($G$59/$O$59)*O61 -> 20218003.33 | I61: Residential | J61: =$F$40 -> 2028 | K61: =($K$59/$O$59)*O61 -> 20770926.6 | L61: 0.7154315841 | M61: Residential | N61: =$F$40 -> 2028 | O61: =($O$59/$O$65)*O67 -> 29032722.43 | Q61: =1-G61/O61 -> 0.3036132459
E62: Non-CARE Residential | F62: =$F$41 -> 2029 | G62: =G61 -> 20218003.33 | I62: Residential | J62: =$F$41 -> 2029 | K62: =K61 -> 20770926.6 | L62: =K62/O62 -> 0.7154315841 | M62: Residential | N62: =$F$41 -> 2029 | O62: =O61 -> 29032722.43 | Q62: =1-G62/O62 -> 0.3036132459
E63: Non-CARE Residential
E64: Non-Exempt Sales | F64: =$F$37 -> 2025 | G64: 70344975.44 | I64: Total System | J64: 2025 | K64: 49720524.25 | L64: 0.628302884 | M64: Total System | N64: 2025 | O64: 79134642.73
E65: Non-Exempt Sales | F65: =$F$38 -> 2026 | G65: 71720228.92 | I65: Total System | J65: =$F$38 -> 2026 | K65: 51392312.02 | L65: 0.6388478176 | M65: Total System | N65: =$F$38 -> 2026 | O65: 80445312.02 | P65: =O65/O64-1 -> 0.01656252239
E66: Non-Exempt Sales | F66: =$F$39 -> 2027 | G66: =($G$65/$O$65)*O66 -> 74613099.9 | I66: Total System | J66: =$F$39 -> 2027 | K66: =($K$65/$O$65)*O66 -> 53465246.4 | L66: 0.6388478176 | M66: Total System | N66: =$F$39 -> 2027 | O66: 83690113.56 | P66: =O66/O65-1 -> 0.04033549567
E67: Non-Exempt Sales | F67: =$F$40 -> 2028 | G67: =($G$65/$O$65)*O67 -> 76160698.56 | I67: Total System | J67: =$F$40 -> 2028 | K67: =($K$65/$O$65)*O67 -> 54574203.73 | L67: 0.6388478176 | M67: Total System | N67: =$F$40 -> 2028 | O67: 85425984.44 | P67: =O67/O66-1 -> 0.02074164806
E68: Non-Exempt Sales | F68: =$F$41 -> 2029 | G68: =G67 -> 76160698.56 | I68: Total System | J68: =$F$41 -> 2029 | K68: =K67 -> 54574203.73 | L68: =K68/O68 -> 0.6388478176 | M68: Total System | N68: =$F$41 -> 2029 | O68: =O67 -> 85425984.44 | P68: =O68/O67-1 -> 0
J71: =Summary!D3 -> 2025 | K71: =VLOOKUP(Summary!D3,'SAR and RAR'!J58:K63,2,FALSE) -> 18735934.09 | N71: =Summary!D3 -> 2025 | O71: =VLOOKUP(Summary!D3,'SAR and RAR'!N58:O63,2,FALSE) -> 26720106.92
J72: % of Resl Sales (Bdl) | N72: % of Resl Sales (Sys)
J73: =$F$37 -> 2025 | K73: =K58/K64 -> 0.3768249505 | N73: =$F$37 -> 2025 | O73: =O58/O64 -> 0.3376537254
J74: =$F$38 -> 2026 | K74: 0.3805997189 | N74: =$F$38 -> 2026 | O74: 0.3398582131
J75: =$F$39 -> 2027 | K75: 0.3805997189 | N75: =$F$39 -> 2027 | O75: 0.3398582131
J76: =$F$40 -> 2028 | K76: 0.3805997189 | N76: =$F$40 -> 2028 | O76: 0.3398582131
J77: =$F$41 -> 2029 | K77: 0.3805997189 | N77: =$F$41 -> 2029 | O77: 0.3398582131

Sheet Res Bill Impact (hidden)
A1: CONFIDENTIAL The Attachment(s) Are Marked Confidential In Accordance With D. 16-08-024 and D. 17-09-023. Basis for Confidentiality In Accompanying Confidentiality Declaration.
E3: Schedule D | O3: Schedule D-CARE
E4: =Summary!N4 -> 2025 | F4: =Summary!N3 -> 2025-11-15 | G4: Proposed | H4: Proposed | I4: Proposed | J4: Proposed | O4: =Summary!N4 -> 2025 | P4: =Summary!N3 -> 2025-11-15 | Q4: Proposed | R4: Proposed | S4: Proposed | T4: Proposed
E5: Sales Forecast | F5: Rates | G5: Authorized Rates | H5: Authorized Revenue | I5: w/Pending Rates | J5: w/Pending Revenue | O5: Sales Forecast | P5: Rates | Q5: Authorized Rates | R5: Authorized Revenue | S5: w/Pending Rates | T5: w/Pending Revenue
F6: w/ BSC | P6: w/ BSC
D7: Baseline - Summer | E7: =HLOOKUP(E$4,$F$95:$K$105,$A97,FALSE) -> 3085.670937 | F7: 0.31902 | G7: =(W8-SUM(R14:R15,H14:H15))/SUM(SUM(E7:E8),F9/F7*SUM(E9:E10),F11/F7*SUM(E11:E12),SUM(O7:O8)*(1+(P7/F7-1)),SUM(O9:O10)*(1+(P9/F9-1))*F9/F7,SUM(O11:O12)*(1+(P11/F11-1))*F11/F7) -> 0.3153397223 | H7: =E7*G7 -> 973.0346164 | I7: =(W9-SUM(T14:T15,J14:J15))/SUM(SUM(E7:E8),F9/F7*SUM(E9:E10),F11/F7*SUM(E11:E12),SUM(O7:O8)*(1+(P7/F7-1)),SUM(O9:O10)*(1+(P9/F9-1))*F9/F7,SUM(O11:O12)*(1+(P11/F11-1))*F11/F7) -> 0.3153397223 | J7: =E7*I7 -> 973.0346164 | N7: Baseline - Summer | O7: =HLOOKUP(O$4,$M$95:$R$105,$A97,FALSE) -> 1783.360129 | P7: 0.21025 | Q7: =G7*(1+(P7/F7-1)) -> 0.2078245145 | R7: =O7*Q7 -> 370.625953 | S7: =I7*(1+(P7/F7-1)) -> 0.2078245145 | T7: =O7*S7 -> 370.625953 | V7: Bundled Residential Rev Req
D8: - Winter | E8: 4290.291273 | F8: 0.31902 | G8: =G7 -> 0.3153397223 | H8: 1352.899259 | I8: =I7 -> 0.3153397223 | J8: 1352.899259 | N8: - Winter | O8: 2747.277654 | P8: 0.21025 | Q8: =G8*(1+(P8/F8-1)) -> 0.2078245145 | R8: 570.9516447 | S8: 0.2078245145 | T8: 570.9516447 | V8: Proposed (Authorized) | W8: ='SAR and RAR'!S19/1000-'SAR and RAR'!S22/1000+$W$6 -> 6594.501433
D9: 101% - 400% of Baseline - Summer | E9: 1911.92882 | F9: 0.42351 | G9: =F9/F$7*G$7 -> 0.4186243051 | H9: 800.3798737 | I9: =F9/F$7*I$7 -> 0.4186243051 | J9: 800.3798737 | N9: 101% - 400% of Baseline - Summer | O9: 745.4907551 | P9: 0.28078 | Q9: 0.2775408665 | R9: 206.9041501 | S9: 0.2775408665 | T9: 206.9041501 | V9: Proposed (w/Pending) | W9: ='SAR and RAR'!T19/1000-'SAR and RAR'!T22/1000+$W$6 -> 6594.501433
D10: - Winter | E10: 2615.804258 | F10: 0.42351 | G10: =G9 -> 0.4186243051 | H10: 1095.03924 | I10: =I9 -> 0.4186243051 | J10: 1095.03924 | N10: - Winter | O10: 1112.023766 | P10: 0.28078 | Q10: 0.2775408665 | R10: 308.6320396 | S10: 0.2775408665 | T10: 308.6320396
D11: 401% of Baseline - Summer | E11: 151.6325582 | F11: =F9 -> 0.42351 | G11: =F11/F$7*G$7 -> 0.4186243051 | H11: 63.47707431 | I11: =F11/F$7*I$7 -> 0.4186243051 | J11: 63.47707431 | N11: 401% of Baseline - Summer | O11: 8.477005966 | P11: =P9 -> 0.28078 | Q11: 0.2775408665 | R11: 2.352715581 | S11: 0.2775408665 | T11: 2.352715581
D12: - Winter | E12: 262.8967474 | F12: =F10 -> 0.42351 | G12: =G11 -> 0.4186243051 | H12: 110.0549682 | I12: =I11 -> 0.4186243051 | J12: 110.0549682 | N12: - Winter | O12: 21.08018443 | P12: =P10 -> 0.28078 | Q12: 0.2775408665 | R12: 5.850612654 | S12: 0.2775408665 | T12: 5.850612654
D14: Basic Charge - Single-Family Residence | E14: =HLOOKUP(E$4,$F$95:$K$106,$A104,FALSE) -> 18879671.95 | F14: 0.794 | G14: =F14 -> 0.794 | H14: =G14*E14*365/12/10^6 -> 455.9598107 | I14: =G14 -> 0.794 | J14: =I14*E14*365/12/10^6 -> 455.9598107 | N14: Basic Charge - Single-Family Residence | O14: =HLOOKUP(O$4,$M$95:$R$105,$A104,FALSE) -> 6433922.126 | P14: 0.197 | Q14: =P14 -> 0.197 | R14: =Q14*O14*365/12/10^6 -> 38.55259754 | S14: =Q14 -> 0.197 | T14: =S14*O14*365/12/10^6 -> 38.55259754
D15: Basic Charge - Multi-Family Residence | E15: =HLOOKUP(E$4,$F$95:$K$106,$A105,FALSE) -> 8588406.524 | F15: =F14 -> 0.794 | G15: =F15 -> 0.794 | H15: =G15*E15*365/12/10^6 -> 207.4171746 | I15: =G15 -> 0.794 | J15: =I15*E15*365/12/10^6 -> 207.4171746 | N15: Basic Charge - Multi-Family Residence | O15: =HLOOKUP(O$4,$M$95:$R$105,$A105,FALSE) -> 5402078.398 | P15: =P14 -> 0.197 | Q15: =P15 -> 0.197 | R15: =Q15*O15*365/12/10^6 -> 32.36970394 | S15: =Q15 -> 0.197 | T15: =S15*O15*365/12/10^6 -> 32.36970394
O19: 2024 Recorded Data - Average Monthly Usage - kWh (Bundled / Basic Service Only) | W19: 2024 Recorded Data - Average Monthly Usage - kWh (Bundled / All Electric Only)
B20: SCHEDULE D RATES ($/kWh) | E20: Proposed | F20: Proposed | H20: MONTHLY BASELINE QUANTITIES | I20: BASIC | K20: ALL-ELECTRIC | O20: Climate Zone | P20: Summer | Q20: Winter | R20: Summer | S20: Winter | T20: Sample Population Weight | W20: Climate Zone | X20: Summer | Y20: Winter | Z20: Summer | AA20: Winter | AB20: Sample Population Weight
B21: Rates | C21: Jan 2025 | D21: =Summary!N3 -> 2025-11-15 | E21: Authorized | F21: w/Pending | H21: Climate Zone | I21: Summer | J21: Winter | K21: Summer | L21: Winter | P21: Non-CARE | R21: CARE | T21: Non-CARE | U21: CARE | X21: Non-CARE | Z21: CARE | AB21: Non-CARE | AC21: CARE
B22: Tier 1 | C22: 0.33308 | D22: =F7 -> 0.31902 | E22: =G7 -> 0.3153397223 | F22: =I7 -> 0.3153397223 | H22: 5 warm | I22: =17*$O$32 -> 517.089 | J22: =18.4*$O$32 -> 559.6728 | K22: =16.8*$O$32 -> 511.0056 | L22: =27*$O$32 -> 821.259 | O22: 5 warm | P22: 395.5552996 | Q22: 410.4255495 | R22: 370.5382517 | S22: 352.8129705 | T22: 0.000391559287 | U22: 5.780756421e-05 | W22: 5 warm | X22: 395.0513658 | Y22: 472.3532524 | Z22: 354.0301735 | AA22: 430.0455986 | AB22: 0.0003215327132 | AC22: 0.0001643349365
B23: Tier 2 | C23: 0.42821 | D23: =F9 -> 0.42351 | E23: =G9 -> 0.4186243051 | F23: =I9 -> 0.4186243051 | H23: 6 cool | I23: =11.4*$O$32 -> 346.7538 | J23: =11*$O$32 -> 334.587 | K23: =8.7*$O$32 -> 264.6279 | L23: =12.6*$O$32 -> 383.2542 | O23: 6 cool | P23: 441.3631683 | Q23: 378.5967426 | R23: 403.4336933 | S23: 346.7408462 | T23: 0.175728545 | U23: 0.06241911603 | W23: 6 cool | X23: 333.6664732 | Y23: 330.2803509 | Z23: 364.4793275 | AA23: 373.6317841 | AB23: 0.2756588649 | AC23: 0.1336590817
B24: Tier 2 | C24: 0.42821 | D24: =F11 -> 0.42351 | E24: =G11 -> 0.4186243051 | F24: =I11 -> 0.4186243051 | H24: 8 cool | I24: =12.8*$O$32 -> 389.3376 | J24: =10.3*$O$32 -> 313.2951 | K24: =9.9*$O$32 -> 301.1283 | L24: =12.3*$O$32 -> 374.1291 | O24: 8 cool | P24: 568.4975767 | Q24: 397.6071315 | R24: 503.0842528 | S24: 372.8283632 | T24: 0.2213136597 | U24: 0.1553419784 | W24: 8 cool | X24: 395.5847708 | Y24: 347.0862508 | Z24: 414.4144944 | AA24: 370.2534605 | AB24: 0.2319803089 | AC24: 0.1999079724
B25: cust $ / Day | C25: 0.031 | H25: 9 warm | I25: =16.9*$O$32 -> 514.0473 | J25: =12*$O$32 -> 365.004 | K25: =12.5*$O$32 -> 380.2125 | L25: =13.9*$O$32 -> 422.7963 | O25: 9 warm | P25: 736.1896342 | Q25: 454.0542708 | R25: 685.496621 | S25: 424.2446352 | T25: 0.1275808923 | U25: 0.0946365769 | W25: 9 warm | X25: 530.8275233 | Y25: 380.1763947 | Z25: 510.0101939 | AA25: 375.6663006 | AB25: 0.08053285732 | AC25: 0.08292340896
B26: SCHEDULE D-CARE RATES ($/kWh) | E26: Proposed | F26: Proposed | H26: 10 hot (Sec 745) | I26: =19.3*$O$32 -> 587.0481 | J26: =12.1*$O$32 -> 368.0457 | K26: =15.9*$O$32 -> 483.6303 | L26: =16.4*$O$32 -> 498.8388 | O26: 10 hot (Sec 745) | P26: 857.9526651 | Q26: 482.0306437 | R26: 918.4083871 | S26: 499.6563415 | T26: 0.3013940598 | U26: 0.4075638401 | W26: 10 hot (Sec 745) | X26: 627.4953074 | Y26: 427.1016506 | Z26: 660.3259927 | AA26: 426.1138274 | AB26: 0.2614116395 | AC26: 0.3672447605
B27: Rates | C27: =C21 -> Jan 2025 | D27: =D21 -> 2025-11-15 | E27: Authorized | F27: w/Pending | H27: 13 hot | I27: =22.2*$O$32 -> 675.2574 | J27: =12.2*$O$32 -> 371.0874 | K27: =24.2*$O$32 -> 736.0914 | L27: =23*$O$32 -> 699.591 | O27: 13 hot | P27: 995.7412826 | Q27: 488.3574385 | R27: 1027.53491 | S27: 485.942318 | T27: 0.04959424669 | U27: 0.1129503862 | W27: 13 hot | X27: 965.9846505 | Y27: 574.7150255 | Z27: 962.9031858 | AA27: 549.7168372 | AB27: 0.03106116883 | AC27: 0.06378386669
B28: Tier 1 | C28: 0.20878 | D28: =P7 -> 0.21025 | E28: =Q7 -> 0.2078245145 | F28: =S7 -> 0.2078245145 | H28: 14 hot | I28: =19.2*$O$32 -> 584.0064 | J28: =11.9*$O$32 -> 361.9623 | K28: =18.5*$O$32 -> 562.7145 | L28: =21.1*$O$32 -> 641.7987 | O28: 14 hot | P28: 835.9220396 | Q28: 473.45593 | R28: 933.1504328 | S28: 527.5764602 | T28: 0.06232862483 | U28: 0.1067631121 | W28: 14 hot | X28: 756.0211147 | Y28: 556.7004427 | Z28: 880.8399974 | AA28: 657.7029793 | AB28: 0.04437151442 | AC28: 0.07098173691
B29: Tier 2 | C29: 0.27299 | D29: =P9 -> 0.28078 | E29: =Q9 -> 0.2775408665 | F29: =S9 -> 0.2775408665 | H29: 15 hot | I29: =45*$O$32 -> 1368.765 | J29: =9.7*$O$32 -> 295.0449 | K29: =24*$O$32 -> 730.008 | L29: =17.4*$O$32 -> 529.2558 | O29: 15 hot | P29: 1219.397003 | Q29: 540.766029 | R29: 1360.59217 | S29: 535.5743293 | T29: 0.03219052405 | U29: 0.03515632284 | W29: 15 hot | X29: 924.9686507 | Y29: 451.6365116 | Z29: 1114.196822 | AA29: 520.3020094 | AB29: 0.03508032774 | AC29: 0.05084522936
B30: Tier 2 | C30: 0.27299 | D30: =P11 -> 0.28078 | E30: =Q12 -> 0.2775408665 | F30: =S12 -> 0.2775408665 | H30: 16 cool | I30: =14.7*$O$32 -> 447.1299 | J30: =12.4*$O$32 -> 377.1708 | K30: =13.5*$O$32 -> 410.6295 | L30: =23.2*$O$32 -> 705.6744 | O30: 16 cool | P30: 565.1396542 | Q30: 416.659723 | R30: 776.7883471 | S30: 493.603768 | T30: 0.02947788832 | U30: 0.02511085999 | W30: 16 cool | X30: 449.8471198 | Y30: 538.6630052 | Z30: 698.918731 | AA30: 570.1108274 | AB30: 0.03958178573 | AC30: 0.03048960855
B31: cust $ / Day | C31: 0.021
N32: Daily to Monthly Conversion Factor | O32: 30.417
C34: NON-CARE | M34: Essential Use (Basic) - Non-CARE | W34: Essential Use (Basic) - CARE
C35: =C27 -> Jan 2025 | E35: =D27 -> 2025-11-15 | G35: =E21 -> Authorized | I35: =F21 -> w/Pending | M35: =C35 -> Jan 2025 | O35: =E35 -> 2025-11-15 | Q35: =G35 -> Authorized | S35: =I35 -> w/Pending | W35: =M35 -> Jan 2025 | Y35: =O35 -> 2025-11-15 | AA35: =Q35 -> Authorized | AC35: =S35 -> w/Pending
C36: Summer | D36: Winter | E36: Summer | F36: Winter | G36: Summer | H36: Winter | I36: Summer | J36: Winter | M36: Summer | N36: Winter | O36: Summer | P36: Winter | Q36: Summer | R36: Winter | S36: Summer | T36: Winter | W36: Summer | X36: Winter | Y36: Summer | Z36: Winter | AA36: Summer | AB36: Winter | AC36: Summer | AD36: Winter
B37: 5 warm | C37: =C$22*MIN(I22,P22)+IF(P22-I22>0,C$23*(P22-I22))+ROUND($C$25*365/12,2)+(Summary!N19/12)*2 -> 123.3582259 | D37: =C$22*MIN(J22,Q22)+IF(Q22-J22>0,C$23*(Q22-J22))+ROUND($C$25*365/12,2)+(Summary!N19/12)*2 -> 128.3112087 | E37: =D$22*MIN(I22,P22)+IF(P22-I22>0,D$23*(P22-I22))+ROUND($F$14*365/12,2)+(Summary!N19/12)*2 -> 141.0067183 | F37: =D$22*MIN(J22,Q22)+IF(Q22-J22>0,D$23*(Q22-J22))+ROUND($F$14*365/12,2)+(Summary!N19/12)*2 -> 145.7506255 | G37: =E$22*MIN(I22,P22)+IF(P22-I22>0,E$23*(P22-I22))+ROUND($F$14*365/12,2)+(Summary!N19/12)*2 -> 139.550965 | H37: =E$22*MIN(J22,Q22)+IF(Q22-J22>0,E$23*(Q22-J22))+ROUND($F$14*365/12,2)+(Summary!N19/12)*2 -> 144.2401455 | I37: =F$22*MIN(I22,P22)+IF(P22-I22>0,F$23*(P22-I22))+ROUND($F$14*365/12,2)+(Summary!N19/12)*2 -> 139.550965 | J37: =F$22*MIN(J22,Q22)+IF(Q22-J22>0,F$23*(Q22-J22))+ROUND($F$14*365/12,2)+(Summary!N19/12)*2 -> 144.2401455 | L37: 5 warm | M37: =C$22*I22+ROUND($C$25*365/12,2)+(Summary!N19/12)*2 -> 163.8386708 | N37: =C$22*J22+ROUND($C$25*365/12,2)+(Summary!N19/12)*2 -> 178.0224829 | O37: =D$22*I22+ROUND($F$14*365/12,2)+(Summary!N19/12)*2 -> 179.7783994 | P37: =D$22*J22+ROUND($F$14*365/12,2)+(Summary!N19/12)*2 -> 193.3634833 | Q37: =E$22*I22+ROUND($F$14*365/12,2)+(Summary!N19/12)*2 -> 177.8753683 | R37: =E$22*J22+ROUND($F$14*365/12,2)+(Summary!N19/12)*2 -> 191.303732 | S37: =F$22*I22+ROUND($F$14*365/12,2)+(Summary!N19/12)*2 -> 177.8753683 | T37: =F$22*J22+ROUND($F$14*365/12,2)+(Summary!N19/12)*2 -> 191.303732 | V37: 5 warm | W37: =C$28*I22+ROUND($C$31*365/12,2)+(Summary!N19/12)*2 -> 99.26450809 | X37: =C$28*J22+ROUND($C$31*365/12,2)+(Summary!N19/12)*2 -> 108.1551539 | Y37: =D$28*I22+ROUND($P$14*365/12,2)+(Summary!N19/12)*2 -> 105.3746289 | Z37: =D$28*J22+ROUND($P$14*365/12,2)+(Summary!N19/12)*2 -> 114.3278729 | AA37: =E$28*I22+ROUND($P$14*365/12,2)+(Summary!N19/12)*2 -> 104.120437 | AB37: =E$28*J22+ROUND($P$14*365/12,2)+(Summary!N19/12)*2 -> 112.9703946 | AC37: =F$28*I22+ROUND($P$14*365/12,2)+(Summary!N19/12)*2 -> 104.120437 | AD37: =F$28*J22+ROUND($P$14*365/12,2)+(Summary!N19/12)*2 -> 112.9703946
B38: 6 cool | C38: =C$22*MIN(I23,P23)+IF(P23-I23>0,C$23*(P23-I23))+ROUND($C$25*365/12,2)+(Summary!N19/12)*2 -> 147.6161 | D38: =C$22*MIN(J23,Q23)+IF(Q23-J23>0,C$23*(Q23-J23))+ROUND($C$25*365/12,2)+(Summary!N19/12)*2 -> 121.8963165 | E38: =D$22*MIN(I23,P23)+IF(P23-I23>0,D$23*(P23-I23))+ROUND($F$14*365/12,2)+(Summary!N19/12)*2 -> 165.5060775 | F38: =D$22*MIN(J23,Q23)+IF(Q23-J23>0,D$23*(Q23-J23))+ROUND($F$14*365/12,2)+(Summary!N19/12)*2 -> 140.1951775 | G38: =E$22*MIN(I23,P23)+IF(P23-I23>0,E$23*(P23-I23))+ROUND($F$14*365/12,2)+(Summary!N19/12)*2 -> 163.7676947 | H38: =E$22*MIN(J23,Q23)+IF(Q23-J23>0,E$23*(Q23-J23))+ROUND($F$14*365/12,2)+(Summary!N19/12)*2 -> 138.7487862 | I38: =F$22*MIN(I23,P23)+IF(P23-I23>0,F$23*(P23-I23))+ROUND($F$14*365/12,2)+(Summary!N19/12)*2 -> 163.7676947 | J38: =F$22*MIN(J23,Q23)+IF(Q23-J23>0,F$23*(Q23-J23))+ROUND($F$14*365/12,2)+(Summary!N19/12)*2 -> 138.7487862 | L38: 6 cool | M38: =C$22*I23+ROUND($C$25*365/12,2)+(Summary!N19/12)*2 -> 107.1034224 | N38: =C$22*J23+ROUND($C$25*365/12,2)+(Summary!N19/12)*2 -> 103.0509046 | O38: =D$22*I23+ROUND($F$14*365/12,2)+(Summary!N19/12)*2 -> 125.4380639 | P38: =D$22*J23+ROUND($F$14*365/12,2)+(Summary!N19/12)*2 -> 121.5566114 | Q38: =E$22*I23+ROUND($F$14*365/12,2)+(Summary!N19/12)*2 -> 124.1619137 | R38: =E$22*J23+ROUND($F$14*365/12,2)+(Summary!N19/12)*2 -> 120.3252383 | S38: =F$22*I23+ROUND($F$14*365/12,2)+(Summary!N19/12)*2 -> 124.1619137 | T38: =F$22*J23+ROUND($F$14*365/12,2)+(Summary!N19/12)*2 -> 120.3252383 | V38: 6 cool | W38: =C$28*I23+ROUND($C$31*365/12,2)+(Summary!N19/12)*2 -> 63.70192503 | X38: =C$28*J23+ROUND($C$31*365/12,2)+(Summary!N19/12)*2 -> 61.16174053 | Y38: =D$28*I23+ROUND($P$14*365/12,2)+(Summary!N19/12)*2 -> 69.56165312 | Z38: =D$28*J23+ROUND($P$14*365/12,2)+(Summary!N19/12)*2 -> 67.00358342 | AA38: =E$28*I23+ROUND($P$14*365/12,2)+(Summary!N19/12)*2 -> 68.7206068 | AB38: =E$28*J23+ROUND($P$14*365/12,2)+(Summary!N19/12)*2 -> 66.1920475 | AC38: =F$28*I23+ROUND($P$14*365/12,2)+(Summary!N19/12)*2 -> 68.7206068 | AD38: =F$28*J23+ROUND($P$14*365/12,2)+(Summary!N19/12)*2 -> 66.1920475
B39: 8 cool | C39: =C$22*MIN(I24,P24)+IF(P24-I24>0,C$23*(P24-I24))+ROUND($C$25*365/12,2)+(Summary!N19/12)*2 -> 198.0053281 | D39: =C$22*MIN(J24,Q24)+IF(Q24-J24>0,C$23*(Q24-J24))+ROUND($C$25*365/12,2)+(Summary!N19/12)*2 -> 132.0622536 | E39: =D$22*MIN(I24,P24)+IF(P24-I24>0,D$23*(P24-I24))+ROUND($F$14*365/12,2)+(Summary!N19/12)*2 -> 214.8991895 | F39: =D$22*MIN(J24,Q24)+IF(Q24-J24>0,D$23*(Q24-J24))+ROUND($F$14*365/12,2)+(Summary!N19/12)*2 -> 150.4710579 | G39: =E$22*MIN(I24,P24)+IF(P24-I24>0,E$23*(P24-I24))+ROUND($F$14*365/12,2)+(Summary!N19/12)*2 -> 212.5909981 | H39: =E$22*MIN(J24,Q24)+IF(Q24-J24>0,E$23*(Q24-J24))+ROUND($F$14*365/12,2)+(Summary!N19/12)*2 -> 148.9061221 | I39: =F$22*MIN(I24,P24)+IF(P24-I24>0,F$23*(P24-I24))+ROUND($F$14*365/12,2)+(Summary!N19/12)*2 -> 212.5909981 | J39: =F$22*MIN(J24,Q24)+IF(Q24-J24>0,F$23*(Q24-J24))+ROUND($F$14*365/12,2)+(Summary!N19/12)*2 -> 148.9061221 | L39: 8 cool | M39: =C$22*I24+ROUND($C$25*365/12,2)+(Summary!N19/12)*2 -> 121.2872345 | N39: =C$22*J24+ROUND($C$25*365/12,2)+(Summary!N19/12)*2 -> 95.95899857 | O39: =D$22*I24+ROUND($F$14*365/12,2)+(Summary!N19/12)*2 -> 139.0231478 | P39: =D$22*J24+ROUND($F$14*365/12,2)+(Summary!N19/12)*2 -> 114.7640695 | Q39: =E$22*I24+ROUND($F$14*365/12,2)+(Summary!N19/12)*2 -> 137.5902773 | R39: =E$22*J24+ROUND($F$14*365/12,2)+(Summary!N19/12)*2 -> 113.6110565 | S39: =F$22*I24+ROUND($F$14*365/12,2)+(Summary!N19/12)*2 -> 137.5902773 | T39: =F$22*J24+ROUND($F$14*365/12,2)+(Summary!N19/12)*2 -> 113.6110565 | V39: 8 cool | W39: =C$28*I24+ROUND($C$31*365/12,2)+(Summary!N19/12)*2 -> 72.59257079 | X39: =C$28*J24+ROUND($C$31*365/12,2)+(Summary!N19/12)*2 -> 56.71641764 | Y39: =D$28*I24+ROUND($P$14*365/12,2)+(Summary!N19/12)*2 -> 78.51489707 | Z39: =D$28*J24+ROUND($P$14*365/12,2)+(Summary!N19/12)*2 -> 62.52696144 | AA39: =E$28*I24+ROUND($P$14*365/12,2)+(Summary!N19/12)*2 -> 77.57056436 | AB39: =E$28*J24+ROUND($P$14*365/12,2)+(Summary!N19/12)*2 -> 61.76706872 | AC39: =F$28*I24+ROUND($P$14*365/12,2)+(Summary!N19/12)*2 -> 77.57056436 | AD39: =F$28*J24+ROUND($P$14*365/12,2)+(Summary!N19/12)*2 -> 61.76706872
B40: 9 warm | C40: =C$22*MIN(I25,P25)+IF(P25-I25>0,C$23*(P25-I25))+ROUND($C$25*365/12,2)+(Summary!N19/12)*2 -> 257.9491103 | D40: =C$22*MIN(J25,Q25)+IF(Q25-J25>0,C$23*(Q25-J25))+ROUND($C$25*365/12,2)+(Summary!N19/12)*2 -> 151.3144154 | E40: =D$22*MIN(I25,P25)+IF(P25-I25>0,D$23*(P25-I25))+ROUND($F$14*365/12,2)+(Summary!N19/12)*2 -> 272.8875363 | F40: =D$22*MIN(J25,Q25)+IF(Q25-J25>0,D$23*(Q25-J25))+ROUND($F$14*365/12,2)+(Summary!N19/12)*2 -> 168.9739229 | G40: =E$22*MIN(I25,P25)+IF(P25-I25>0,E$23*(P25-I25))+ROUND($F$14*365/12,2)+(Summary!N19/12)*2 -> 269.9103798 | H40: =E$22*MIN(J25,Q25)+IF(Q25-J25>0,E$23*(Q25-J25))+ROUND($F$14*365/12,2)+(Summary!N19/12)*2 -> 167.1955344 | I40: =F$22*MIN(I25,P25)+IF(P25-I25>0,F$23*(P25-I25))+ROUND($F$14*365/12,2)+(Summary!N19/12)*2 -> 269.9103798 | J40: =F$22*MIN(J25,Q25)+IF(Q25-J25>0,F$23*(Q25-J25))+ROUND($F$14*365/12,2)+(Summary!N19/12)*2 -> 167.1955344 | L40: 9 warm | M40: =C$22*I25+ROUND($C$25*365/12,2)+(Summary!N19/12)*2 -> 162.8255414 | N40: =C$22*J25+ROUND($C$25*365/12,2)+(Summary!N19/12)*2 -> 113.182199 | O40: =D$22*I25+ROUND($F$14*365/12,2)+(Summary!N19/12)*2 -> 178.8080363 | P40: =D$22*J25+ROUND($F$14*365/12,2)+(Summary!N19/12)*2 -> 131.2602427 | Q40: =E$22*I25+ROUND($F$14*365/12,2)+(Summary!N19/12)*2 -> 176.9161995 | R40: =E$22*J25+ROUND($F$14*365/12,2)+(Summary!N19/12)*2 -> 129.9169267 | S40: =F$22*I25+ROUND($F$14*365/12,2)+(Summary!N19/12)*2 -> 176.9161995 | T40: =F$22*J25+ROUND($F$14*365/12,2)+(Summary!N19/12)*2 -> 129.9169267 | V40: 9 warm | W40: =C$28*I25+ROUND($C$31*365/12,2)+(Summary!N19/12)*2 -> 98.62946196 | X40: =C$28*J25+ROUND($C$31*365/12,2)+(Summary!N19/12)*2 -> 67.51220179 | Y40: =D$28*I25+ROUND($P$14*365/12,2)+(Summary!N19/12)*2 -> 104.7351115 | Z40: =D$28*J25+ROUND($P$14*365/12,2)+(Summary!N19/12)*2 -> 73.39875767 | AA40: =E$28*I25+ROUND($P$14*365/12,2)+(Summary!N19/12)*2 -> 103.4882972 | AB40: =E$28*J25+ROUND($P$14*365/12,2)+(Summary!N19/12)*2 -> 72.51344576 | AC40: =F$28*I25+ROUND($P$14*365/12,2)+(Summary!N19/12)*2 -> 103.4882972 | AD40: =F$28*J25+ROUND($P$14*365/12,2)+(Summary!N19/12)*2 -> 72.51344576
B41: 10 hot (Sec 745) | C41: =C$22*MIN(I26,P26)+IF(P26-I26>0,C$23*(P26-I26))+ROUND($C$25*365/12,2)+(Summary!N19/12)*2 -> 303.1446916 | D41: =C$22*MIN(J26,Q26)+IF(Q26-J26>0,C$23*(Q26-J26))+ROUND($C$25*365/12,2)+(Summary!N19/12)*2 -> 163.0048212 | E41: =D$22*MIN(I26,P26)+IF(P26-I26>0,D$23*(P26-I26))+ROUND($F$14*365/12,2)+(Summary!N19/12)*2 -> 316.8275439 | F41: =D$22*MIN(J26,Q26)+IF(Q26-J26>0,D$23*(Q26-J26))+ROUND($F$14*365/12,2)+(Summary!N19/12)*2 -> 180.5043694 | G41: =E$22*MIN(I26,P26)+IF(P26-I26>0,E$23*(P26-I26))+ROUND($F$14*365/12,2)+(Summary!N19/12)*2 -> 313.3434868 | H41: =E$22*MIN(J26,Q26)+IF(Q26-J26>0,E$23*(Q26-J26))+ROUND($F$14*365/12,2)+(Summary!N19/12)*2 -> 178.5929633 | I41: =F$22*MIN(I26,P26)+IF(P26-I26>0,F$23*(P26-I26))+ROUND($F$14*365/12,2)+(Summary!N19/12)*2 -> 313.3434868 | J41: =F$22*MIN(J26,Q26)+IF(Q26-J26>0,F$23*(Q26-J26))+ROUND($F$14*365/12,2)+(Summary!N19/12)*2 -> 178.5929633 | L41: 10 hot (Sec 745) | M41: =C$22*I26+ROUND($C$25*365/12,2)+(Summary!N19/12)*2 -> 187.1406478 | N41: =C$22*J26+ROUND($C$25*365/12,2)+(Summary!N19/12)*2 -> 114.1953284 | O41: =D$22*I26+ROUND($F$14*365/12,2)+(Summary!N19/12)*2 -> 202.0967515 | P41: =D$22*J26+ROUND($F$14*365/12,2)+(Summary!N19/12)*2 -> 132.2306059 | Q41: =E$22*I26+ROUND($F$14*365/12,2)+(Summary!N19/12)*2 -> 199.9362515 | R41: =E$22*J26+ROUND($F$14*365/12,2)+(Summary!N19/12)*2 -> 130.8760955 | S41: =F$22*I26+ROUND($F$14*365/12,2)+(Summary!N19/12)*2 -> 199.9362515 | T41: =F$22*J26+ROUND($F$14*365/12,2)+(Summary!N19/12)*2 -> 130.8760955 | V41: 10 hot (Sec 745) | W41: =C$28*I26+ROUND($C$31*365/12,2)+(Summary!N19/12)*2 -> 113.870569 | X41: =C$28*J26+ROUND($C$31*365/12,2)+(Summary!N19/12)*2 -> 68.14724791 | Y41: =D$28*I26+ROUND($P$14*365/12,2)+(Summary!N19/12)*2 -> 120.0835297 | Z41: =D$28*J26+ROUND($P$14*365/12,2)+(Summary!N19/12)*2 -> 74.03827509 | AA41: =E$28*I26+ROUND($P$14*365/12,2)+(Summary!N19/12)*2 -> 118.659653 | AB41: =E$28*J26+ROUND($P$14*365/12,2)+(Summary!N19/12)*2 -> 73.14558558 | AC41: =F$28*I26+ROUND($P$14*365/12,2)+(Summary!N19/12)*2 -> 118.659653 | AD41: =F$28*J26+ROUND($P$14*365/12,2)+(Summary!N19/12)*2 -> 73.14558558
B42: 13 hot | C42: =C$22*MIN(I27,P27)+IF(P27-I27>0,C$23*(P27-I27))+ROUND($C$25*365/12,2)+(Summary!N19/12)*2 -> 353.7558048 | D42: =C$22*MIN(J27,Q27)+IF(Q27-J27>0,C$23*(Q27-J27))+ROUND($C$25*365/12,2)+(Summary!N19/12)*2 -> 165.4246611 | E42: =D$22*MIN(I27,P27)+IF(P27-I27>0,D$23*(P27-I27))+ROUND($F$14*365/12,2)+(Summary!N19/12)*2 -> 365.9654116 | F42: =D$22*MIN(J27,Q27)+IF(Q27-J27>0,D$23*(Q27-J27))+ROUND($F$14*365/12,2)+(Summary!N19/12)*2 -> 182.866003 | G42: =E$22*MIN(I27,P27)+IF(P27-I27>0,E$23*(P27-I27))+ROUND($F$14*365/12,2)+(Summary!N19/12)*2 -> 361.9144903 | H42: =E$22*MIN(J27,Q27)+IF(Q27-J27>0,E$23*(Q27-J27))+ROUND($F$14*365/12,2)+(Summary!N19/12)*2 -> 180.9273527 | I42: =F$22*MIN(I27,P27)+IF(P27-I27>0,F$23*(P27-I27))+ROUND($F$14*365/12,2)+(Summary!N19/12)*2 -> 361.9144903 | J42: =F$22*MIN(J27,Q27)+IF(Q27-J27>0,F$23*(Q27-J27))+ROUND($F$14*365/12,2)+(Summary!N19/12)*2 -> 180.9273527 | L42: 13 hot | M42: =C$22*I27+ROUND($C$25*365/12,2)+(Summary!N19/12)*2 -> 216.5214015 | N42: =C$22*J27+ROUND($C$25*365/12,2)+(Summary!N19/12)*2 -> 115.2084579 | O42: =D$22*I27+ROUND($F$14*365/12,2)+(Summary!N19/12)*2 -> 230.2372824 | P42: =D$22*J27+ROUND($F$14*365/12,2)+(Summary!N19/12)*2 -> 133.200969 | Q42: =E$22*I27+ROUND($F$14*365/12,2)+(Summary!N19/12)*2 -> 227.7521477 | R42: =E$22*J27+ROUND($F$14*365/12,2)+(Summary!N19/12)*2 -> 131.8352643 | S42: =F$22*I27+ROUND($F$14*365/12,2)+(Summary!N19/12)*2 -> 227.7521477 | T42: =F$22*J27+ROUND($F$14*365/12,2)+(Summary!N19/12)*2 -> 131.8352643 | V42: 13 hot | W42: =C$28*I27+ROUND($C$31*365/12,2)+(Summary!N19/12)*2 -> 132.2869066 | X42: =C$28*J27+ROUND($C$31*365/12,2)+(Summary!N19/12)*2 -> 68.78229404 | Y42: =D$28*I27+ROUND($P$14*365/12,2)+(Summary!N19/12)*2 -> 138.629535 | Z42: =D$28*J27+ROUND($P$14*365/12,2)+(Summary!N19/12)*2 -> 74.67779252 | AA42: =E$28*I27+ROUND($P$14*365/12,2)+(Summary!N19/12)*2 -> 136.991708 | AB42: =E$28*J27+ROUND($P$14*365/12,2)+(Summary!N19/12)*2 -> 73.77772541 | AC42: =F$28*I27+ROUND($P$14*365/12,2)+(Summary!N19/12)*2 -> 136.991708 | AD42: =F$28*J27+ROUND($P$14*365/12,2)+(Summary!N19/12)*2 -> 73.77772541
B43: 14 hot | C43: =C$22*MIN(I28,P28)+IF(P28-I28>0,C$23*(P28-I28))+ROUND($C$25*365/12,2)+(Summary!N19/12)*2 -> 294.0003144 | D43: =C$22*MIN(J28,Q28)+IF(Q28-J28>0,C$23*(Q28-J28))+ROUND($C$25*365/12,2)+(Summary!N19/12)*2 -> 159.9117568 | E43: =D$22*MIN(I28,P28)+IF(P28-I28>0,D$23*(P28-I28))+ROUND($F$14*365/12,2)+(Summary!N19/12)*2 -> 307.8151809 | F43: =D$22*MIN(J28,Q28)+IF(Q28-J28>0,D$23*(Q28-J28))+ROUND($F$14*365/12,2)+(Summary!N19/12)*2 -> 177.5085468 | G43: =E$22*MIN(I28,P28)+IF(P28-I28>0,E$23*(P28-I28))+ROUND($F$14*365/12,2)+(Summary!N19/12)*2 -> 304.4350922 | H43: =E$22*MIN(J28,Q28)+IF(Q28-J28>0,E$23*(Q28-J28))+ROUND($F$14*365/12,2)+(Summary!N19/12)*2 -> 175.6317012 | I43: =F$22*MIN(I28,P28)+IF(P28-I28>0,F$23*(P28-I28))+ROUND($F$14*365/12,2)+(Summary!N19/12)*2 -> 304.4350922 | J43: =F$22*MIN(J28,Q28)+IF(Q28-J28>0,F$23*(Q28-J28))+ROUND($F$14*365/12,2)+(Summary!N19/12)*2 -> 175.6317012 | L43: 14 hot | M43: =C$22*I28+ROUND($C$25*365/12,2)+(Summary!N19/12)*2 -> 186.1275184 | N43: =C$22*J28+ROUND($C$25*365/12,2)+(Summary!N19/12)*2 -> 112.1690696 | O43: =D$22*I28+ROUND($F$14*365/12,2)+(Summary!N19/12)*2 -> 201.1263884 | P43: =D$22*J28+ROUND($F$14*365/12,2)+(Summary!N19/12)*2 -> 130.2898796 | Q43: =E$22*I28+ROUND($F$14*365/12,2)+(Summary!N19/12)*2 -> 198.9770827 | R43: =E$22*J28+ROUND($F$14*365/12,2)+(Summary!N19/12)*2 -> 128.9577578 | S43: =F$22*I28+ROUND($F$14*365/12,2)+(Summary!N19/12)*2 -> 198.9770827 | T43: =F$22*J28+ROUND($F$14*365/12,2)+(Summary!N19/12)*2 -> 128.9577578 | V43: 14 hot | W43: =C$28*I28+ROUND($C$31*365/12,2)+(Summary!N19/12)*2 -> 113.2355229 | X43: =C$28*J28+ROUND($C$31*365/12,2)+(Summary!N19/12)*2 -> 66.87715566 | Y43: =D$28*I28+ROUND($P$14*365/12,2)+(Summary!N19/12)*2 -> 119.4440123 | Z43: =D$28*J28+ROUND($P$14*365/12,2)+(Summary!N19/12)*2 -> 72.75924024 | AA43: =E$28*I28+ROUND($P$14*365/12,2)+(Summary!N19/12)*2 -> 118.0275132 | AB43: =E$28*J28+ROUND($P$14*365/12,2)+(Summary!N19/12)*2 -> 71.88130593 | AC43: =F$28*I28+ROUND($P$14*365/12,2)+(Summary!N19/12)*2 -> 118.0275132 | AD43: =F$28*J28+ROUND($P$14*365/12,2)+(Summary!N19/12)*2 -> 71.88130593
B44: 15 hot | C44: =C$22*MIN(I29,P29)+IF(P29-I29>0,C$23*(P29-I29))+ROUND($C$25*365/12,2)+(Summary!N19/12)*2 -> 397.7634205 | D44: =C$22*MIN(J29,Q29)+IF(Q29-J29>0,C$23*(Q29-J29))+ROUND($C$25*365/12,2)+(Summary!N19/12)*2 -> 195.1004666 | E44: =D$22*MIN(I29,P29)+IF(P29-I29>0,D$23*(P29-I29))+ROUND($F$14*365/12,2)+(Summary!N19/12)*2 -> 403.8286987 | F44: =D$22*MIN(J29,Q29)+IF(Q29-J29>0,D$23*(Q29-J29))+ROUND($F$14*365/12,2)+(Summary!N19/12)*2 -> 213.007246 | G44: =E$22*MIN(I29,P29)+IF(P29-I29>0,E$23*(P29-I29))+ROUND($F$14*365/12,2)+(Summary!N19/12)*2 -> 399.3409791 | H44: =E$22*MIN(J29,Q29)+IF(Q29-J29>0,E$23*(Q29-J29))+ROUND($F$14*365/12,2)+(Summary!N19/12)*2 -> 210.7208804 | I44: =F$22*MIN(I29,P29)+IF(P29-I29>0,F$23*(P29-I29))+ROUND($F$14*365/12,2)+(Summary!N19/12)*2 -> 399.3409791 | J44: =F$22*MIN(J29,Q29)+IF(Q29-J29>0,F$23*(Q29-J29))+ROUND($F$14*365/12,2)+(Summary!N19/12)*2 -> 210.7208804 | L44: 15 hot | M44: =C$22*I29+ROUND($C$25*365/12,2)+(Summary!N19/12)*2 -> 447.5149129 | N44: =C$22*J29+ROUND($C$25*365/12,2)+(Summary!N19/12)*2 -> 89.88022196 | O44: =D$22*I29+ROUND($F$14*365/12,2)+(Summary!N19/12)*2 -> 451.480077 | P44: =D$22*J29+ROUND($F$14*365/12,2)+(Summary!N19/12)*2 -> 108.9418907 | Q44: =E$22*I29+ROUND($F$14*365/12,2)+(Summary!N19/12)*2 -> 446.4426417 | R44: =E$22*J29+ROUND($F$14*365/12,2)+(Summary!N19/12)*2 -> 107.8560435 | S44: =F$22*I29+ROUND($F$14*365/12,2)+(Summary!N19/12)*2 -> 446.4426417 | T44: =F$22*J29+ROUND($F$14*365/12,2)+(Summary!N19/12)*2 -> 107.8560435 | V44: 15 hot | W44: =C$28*I29+ROUND($C$31*365/12,2)+(Summary!N19/12)*2 -> 277.0774234 | X44: =C$28*J29+ROUND($C$31*365/12,2)+(Summary!N19/12)*2 -> 52.90614089 | Y44: =D$28*I29+ROUND($P$14*365/12,2)+(Summary!N19/12)*2 -> 284.4395079 | Z44: =D$28*J29+ROUND($P$14*365/12,2)+(Summary!N19/12)*2 -> 58.68985689 | AA44: =E$28*I29+ROUND($P$14*365/12,2)+(Summary!N19/12)*2 -> 281.1195883 | AB44: =E$28*J29+ROUND($P$14*365/12,2)+(Summary!N19/12)*2 -> 57.97422977 | AC44: =F$28*I29+ROUND($P$14*365/12,2)+(Summary!N19/12)*2 -> 281.1195883 | AD44: =F$28*J29+ROUND($P$14*365/12,2)+(Summary!N19/12)*2 -> 57.97422977
B45: 16 cool | C45: =C$22*MIN(I30,P30)+IF(P30-I30>0,C$23*(P30-I30))+ROUND($C$25*365/12,2)+(Summary!N19/12)*2 -> 191.0696506 | D45: =C$22*MIN(J30,Q30)+IF(Q30-J30>0,C$23*(Q30-J30))+ROUND($C$25*365/12,2)+(Summary!N19/12)*2 -> 134.1442685 | E45: =D$22*MIN(I30,P30)+IF(P30-I30>0,D$23*(P30-I30))+ROUND($F$14*365/12,2)+(Summary!N19/12)*2 -> 207.4383584 | F45: =D$22*MIN(J30,Q30)+IF(Q30-J30>0,D$23*(Q30-J30))+ROUND($F$14*365/12,2)+(Summary!N19/12)*2 -> 151.8656491 | G45: =E$22*MIN(I30,P30)+IF(P30-I30>0,E$23*(P30-I30))+ROUND($F$14*365/12,2)+(Summary!N19/12)*2 -> 205.2162365 | H45: =E$22*MIN(J30,Q30)+IF(Q30-J30>0,E$23*(Q30-J30))+ROUND($F$14*365/12,2)+(Summary!N19/12)*2 -> 150.284625 | I45: =F$22*MIN(I30,P30)+IF(P30-I30>0,F$23*(P30-I30))+ROUND($F$14*365/12,2)+(Summary!N19/12)*2 -> 205.2162365 | J45: =F$22*MIN(J30,Q30)+IF(Q30-J30>0,F$23*(Q30-J30))+ROUND($F$14*365/12,2)+(Summary!N19/12)*2 -> 150.284625 | L45: 16 cool | M45: =C$22*I30+ROUND($C$25*365/12,2)+(Summary!N19/12)*2 -> 140.5366938 | N45: =C$22*J30+ROUND($C$25*365/12,2)+(Summary!N19/12)*2 -> 117.2347167 | O45: =D$22*I30+ROUND($F$14*365/12,2)+(Summary!N19/12)*2 -> 157.4600474 | P45: =D$22*J30+ROUND($F$14*365/12,2)+(Summary!N19/12)*2 -> 135.1416953 | Q45: =E$22*I30+ROUND($F$14*365/12,2)+(Summary!N19/12)*2 -> 155.8144852 | R45: =E$22*J30+ROUND($F$14*365/12,2)+(Summary!N19/12)*2 -> 133.753602 | S45: =F$22*I30+ROUND($F$14*365/12,2)+(Summary!N19/12)*2 -> 155.8144852 | T45: =F$22*J30+ROUND($F$14*365/12,2)+(Summary!N19/12)*2 -> 133.753602 | V45: 16 cool | W45: =C$28*I30+ROUND($C$31*365/12,2)+(Summary!N19/12)*2 -> 84.65844719 | X45: =C$28*J30+ROUND($C$31*365/12,2)+(Summary!N19/12)*2 -> 70.05238629 | Y45: =D$28*I30+ROUND($P$14*365/12,2)+(Summary!N19/12)*2 -> 90.66572814 | Z45: =D$28*J30+ROUND($P$14*365/12,2)+(Summary!N19/12)*2 -> 75.95682737 | AA45: =E$28*I30+ROUND($P$14*365/12,2)+(Summary!N19/12)*2 -> 89.58122105 | AB45: =E$28*J30+ROUND($P$14*365/12,2)+(Summary!N19/12)*2 -> 75.04200506 | AC45: =F$28*I30+ROUND($P$14*365/12,2)+(Summary!N19/12)*2 -> 89.58122105 | AD45: =F$28*J30+ROUND($P$14*365/12,2)+(Summary!N19/12)*2 -> 75.04200506
B46: ALL | C46: =SUMPRODUCT(C37:C45,$T$22:$T$30) -> 248.390766 | D46: 147.5374648 | E46: 263.4544339 | F46: 165.4219124 | G46: 260.5860995 | H46: 163.6845006 | I46: 260.5860995 | J46: 163.6845006 | L46: ALL | M46: =SUMPRODUCT(M37:M45,$T$22:$T$30) -> 163.7920629 | N46: 107.3275525 | O46: 179.733759 | P46: 125.6527331 | Q46: 177.8312429 | R46: 124.3741063 | S46: 177.8312429 | T46: 124.3741063 | V46: ALL | W46: =SUMPRODUCT(W37:W45,$U$22:$U$30) -> 109.9002144 | X46: =SUMPRODUCT(X37:X45,$U$22:$U$30) -> 65.32589318 | Y46: 116.0852203 | Z46: 71.19705547 | AA46: 114.7074689 | AB46: 70.33714284 | AC46: 114.7074689 | AD46: 70.33714284
C49: CARE | M49: Essential Use (All-Electric) - Non-CARE | W49: Essential Use (All-Electric) - CARE
C50: =C27 -> Jan 2025 | E50: =D27 -> 2025-11-15 | G50: =E27 -> Authorized | I50: =F27 -> w/Pending | M50: =C50 -> Jan 2025 | O50: =E50 -> 2025-11-15 | Q50: =G50 -> Authorized | S50: =I50 -> w/Pending | W50: =M50 -> Jan 2025 | Y50: =O50 -> 2025-11-15 | AA50: =Q50 -> Authorized | AC50: =S50 -> w/Pending
C51: Summer | D51: Winter | E51: Summer | F51: Winter | G51: Summer | H51: Winter | I51: Summer | J51: Winter | M51: Summer | N51: Winter | O51: Summer | P51: Winter | Q51: Summer | R51: Winter | S51: Summer | T51: Winter | W51: Summer | X51: Winter | Y51: Summer | Z51: Winter | AA51: Summer | AB51: Winter | AC51: Summer | AD51: Winter
B52: 5 warm | C52: =C$28*MIN(I22,R22)+IF(R22-I22>0,C$29*(R22-I22))+ROUND($C$31*365/12,2)+(Summary!N19/12)*2 -> 68.66764285 | D52: =C$28*MIN(J22,S22)+IF(S22-J22>0,C$29*(S22-J22))+ROUND($C$31*365/12,2)+(Summary!N19/12)*2 -> 64.96695865 | E52: =D$28*MIN(I22,R22)+IF(R22-I22>0,D$29*(R22-I22))+ROUND($P$14*365/12,2)+(Summary!N19/12)*2 -> 74.56233408 | F52: =D$28*MIN(J22,S22)+IF(S22-J22>0,D$29*(S22-J22))+ROUND($P$14*365/12,2)+(Summary!N19/12)*2 -> 70.83559371 | G52: =E$28*MIN(I22,R22)+IF(R22-I22>0,E$29*(R22-I22))+ROUND($P$14*365/12,2)+(Summary!N19/12)*2 -> 73.66359893 | H52: =E$28*MIN(J22,S22)+IF(S22-J22>0,E$29*(S22-J22))+ROUND($P$14*365/12,2)+(Summary!N19/12)*2 -> 69.97985097 | I52: =F$28*MIN(I22,R22)+IF(R22-I22>0,F$29*(R22-I22))+ROUND($P$14*365/12,2)+(Summary!N19/12)*2 -> 73.66359893 | J52: =F$28*MIN(J22,S22)+IF(S22-J22>0,F$29*(S22-J22))+ROUND($P$14*365/12,2)+(Summary!N19/12)*2 -> 69.97985097 | L52: 5 warm | M52: =C$22*K22+ROUND($C$25*365/12,2)+(Summary!N19/12)*2 -> 161.8124119 | N52: =C$22*L22+ROUND($C$25*365/12,2)+(Summary!N19/12)*2 -> 265.1516144 | O52: =D$22*K22+ROUND($F$14*365/12,2)+(Summary!N19/12)*2 -> 177.8376732 | P52: =D$22*L22+ROUND($F$14*365/12,2)+(Summary!N19/12)*2 -> 276.8147128 | Q52: =E$22*K22+ROUND($F$14*365/12,2)+(Summary!N19/12)*2 -> 175.9570307 | R52: =E$22*L22+ROUND($F$14*365/12,2)+(Summary!N19/12)*2 -> 273.7922517 | S52: =F$22*K22+ROUND($F$14*365/12,2)+(Summary!N19/12)*2 -> 175.9570307 | T52: =F$22*L22+ROUND($F$14*365/12,2)+(Summary!N19/12)*2 -> 273.7922517 | V52: 5 warm | W52: =C$28*K22+ROUND($C$31*365/12,2)+(Summary!N19/12)*2 -> 97.99441583 | X52: =C$28*L22+ROUND($C$31*365/12,2)+(Summary!N19/12)*2 -> 162.7691207 | Y52: =D$28*K22+ROUND($P$14*365/12,2)+(Summary!N19/12)*2 -> 104.0955941 | Z52: =D$28*L22+ROUND($P$14*365/12,2)+(Summary!N19/12)*2 -> 169.3263714 | AA52: =E$28*K22+ROUND($P$14*365/12,2)+(Summary!N19/12)*2 -> 102.8561574 | AB52: =E$28*L22+ROUND($P$14*365/12,2)+(Summary!N19/12)*2 -> 167.3344196 | AC52: =F$28*K22+ROUND($P$14*365/12,2)+(Summary!N19/12)*2 -> 102.8561574 | AD52: =F$28*L22+ROUND($P$14*365/12,2)+(Summary!N19/12)*2 -> 167.3344196
B53: 6 cool | C53: =C$28*MIN(I23,R23)+IF(R23-I23>0,C$29*(R23-I23))+ROUND($C$31*365/12,2)+(Summary!N19/12)*2 -> 79.17496909 | D53: =C$28*MIN(J23,S23)+IF(S23-J23>0,C$29*(S23-J23))+ROUND($C$31*365/12,2)+(Summary!N19/12)*2 -> 64.47961901 | E53: =D$28*MIN(I23,R23)+IF(R23-I23>0,D$29*(R23-I23))+ROUND($P$14*365/12,2)+(Summary!N19/12)*2 -> 85.47623355 | F53: =D$28*MIN(J23,S23)+IF(S23-J23>0,D$29*(S23-J23))+ROUND($P$14*365/12,2)+(Summary!N19/12)*2 -> 70.41614036 | G53: =E$28*MIN(I23,R23)+IF(R23-I23>0,E$29*(R23-I23))+ROUND($P$14*365/12,2)+(Summary!N19/12)*2 -> 84.45159349 | H53: =E$28*MIN(J23,S23)+IF(S23-J23>0,E$29*(S23-J23))+ROUND($P$14*365/12,2)+(Summary!N19/12)*2 -> 69.56523652 | I53: =F$28*MIN(I23,R23)+IF(R23-I23>0,F$29*(R23-I23))+ROUND($P$14*365/12,2)+(Summary!N19/12)*2 -> 84.45159349 | J53: =F$28*MIN(J23,S23)+IF(S23-J23>0,F$29*(S23-J23))+ROUND($P$14*365/12,2)+(Summary!N19/12)*2 -> 69.56523652 | L53: 6 cool | M53: =C$22*K23+ROUND($C$25*365/12,2)+(Summary!N19/12)*2 -> 79.7489276 | N53: =C$22*L23+ROUND($C$25*365/12,2)+(Summary!N19/12)*2 -> 119.2609756 | O53: =D$22*K23+ROUND($F$14*365/12,2)+(Summary!N19/12)*2 -> 99.23825932 | P53: =D$22*L23+ROUND($F$14*365/12,2)+(Summary!N19/12)*2 -> 137.0824216 | Q53: =E$22*K23+ROUND($F$14*365/12,2)+(Summary!N19/12)*2 -> 98.26435517 | R53: =E$22*L23+ROUND($F$14*365/12,2)+(Summary!N19/12)*2 -> 135.6719397 | S53: =F$22*K23+ROUND($F$14*365/12,2)+(Summary!N19/12)*2 -> 98.26435517 | T53: =F$22*L23+ROUND($F$14*365/12,2)+(Summary!N19/12)*2 -> 135.6719397 | V53: 6 cool | W53: =C$28*K23+ROUND($C$31*365/12,2)+(Summary!N19/12)*2 -> 46.55567963 | X53: =C$28*L23+ROUND($C$31*365/12,2)+(Summary!N19/12)*2 -> 71.32247854 | Y53: =D$28*K23+ROUND($P$14*365/12,2)+(Summary!N19/12)*2 -> 52.29468264 | Z53: =D$28*L23+ROUND($P$14*365/12,2)+(Summary!N19/12)*2 -> 77.23586222 | AA53: =E$28*K23+ROUND($P$14*365/12,2)+(Summary!N19/12)*2 -> 51.65283151 | AB53: =E$28*L23+ROUND($P$14*365/12,2)+(Summary!N19/12)*2 -> 76.30628471 | AC53: =F$28*K23+ROUND($P$14*365/12,2)+(Summary!N19/12)*2 -> 51.65283151 | AD53: =F$28*L23+ROUND($P$14*365/12,2)+(Summary!N19/12)*2 -> 76.30628471
B54: 8 cool | C54: =C$28*MIN(I24,R24)+IF(R24-I24>0,C$29*(R24-I24))+ROUND($C$31*365/12,2)+(Summary!N19/12)*2 -> 103.6442695 | D54: =C$28*MIN(J24,S24)+IF(S24-J24>0,C$29*(S24-J24))+ROUND($C$31*365/12,2)+(Summary!N19/12)*2 -> 72.96840317 | E54: =D$28*MIN(I24,R24)+IF(R24-I24>0,D$29*(R24-I24))+ROUND($P$14*365/12,2)+(Summary!N19/12)*2 -> 110.4526822 | F54: =D$28*MIN(J24,S24)+IF(S24-J24>0,D$29*(S24-J24))+ROUND($P$14*365/12,2)+(Summary!N19/12)*2 -> 79.24271109 | G54: =E$28*MIN(I24,R24)+IF(R24-I24>0,E$29*(R24-I24))+ROUND($P$14*365/12,2)+(Summary!N19/12)*2 -> 109.1399089 | H54: =E$28*MIN(J24,S24)+IF(S24-J24>0,E$29*(S24-J24))+ROUND($P$14*365/12,2)+(Summary!N19/12)*2 -> 78.28998218 | I54: =F$28*MIN(I24,R24)+IF(R24-I24>0,F$29*(R24-I24))+ROUND($P$14*365/12,2)+(Summary!N19/12)*2 -> 109.1399089 | J54: =F$28*MIN(J24,S24)+IF(S24-J24>0,F$29*(S24-J24))+ROUND($P$14*365/12,2)+(Summary!N19/12)*2 -> 78.28998218 | L54: 8 cool | M54: =C$22*K24+ROUND($C$25*365/12,2)+(Summary!N19/12)*2 -> 91.90648083 | N54: =C$22*L24+ROUND($C$25*365/12,2)+(Summary!N19/12)*2 -> 116.2215873 | O54: =D$22*K24+ROUND($F$14*365/12,2)+(Summary!N19/12)*2 -> 110.8826169 | P54: =D$22*L24+ROUND($F$14*365/12,2)+(Summary!N19/12)*2 -> 134.1713321 | Q54: =E$22*K24+ROUND($F$14*365/12,2)+(Summary!N19/12)*2 -> 109.7743812 | R54: =E$22*L24+ROUND($F$14*365/12,2)+(Summary!N19/12)*2 -> 132.7944332 | S54: =F$22*K24+ROUND($F$14*365/12,2)+(Summary!N19/12)*2 -> 109.7743812 | T54: =F$22*L24+ROUND($F$14*365/12,2)+(Summary!N19/12)*2 -> 132.7944332 | V54: 8 cool | W54: =C$28*K24+ROUND($C$31*365/12,2)+(Summary!N19/12)*2 -> 54.17623314 | X54: =C$28*L24+ROUND($C$31*365/12,2)+(Summary!N19/12)*2 -> 69.41734016 | Y54: =D$28*K24+ROUND($P$14*365/12,2)+(Summary!N19/12)*2 -> 59.96889174 | Z54: =D$28*L24+ROUND($P$14*365/12,2)+(Summary!N19/12)*2 -> 75.31730994 | AA54: =E$28*K24+ROUND($P$14*365/12,2)+(Summary!N19/12)*2 -> 59.23850942 | AB54: =E$28*L24+ROUND($P$14*365/12,2)+(Summary!N19/12)*2 -> 74.40986524 | AC54: =F$28*K24+ROUND($P$14*365/12,2)+(Summary!N19/12)*2 -> 59.23850942 | AD54: =F$28*L24+ROUND($P$14*365/12,2)+(Summary!N19/12)*2 -> 74.40986524
B55: 9 warm | C55: =C$28*MIN(I25,R25)+IF(R25-I25>0,C$29*(R25-I25))+ROUND($C$31*365/12,2)+(Summary!N19/12)*2 -> 145.4334121 | D55: =C$28*MIN(J25,S25)+IF(S25-J25>0,C$29*(S25-J25))+ROUND($C$31*365/12,2)+(Summary!N19/12)*2 -> 83.68430279 | E55: =D$28*MIN(I25,R25)+IF(R25-I25>0,D$29*(R25-I25))+ROUND($P$14*365/12,2)+(Summary!N19/12)*2 -> 152.8746518 | F55: =D$28*MIN(J25,S25)+IF(S25-J25>0,D$29*(S25-J25))+ROUND($P$14*365/12,2)+(Summary!N19/12)*2 -> 90.03234322 | G55: =E$28*MIN(I25,R25)+IF(R25-I25>0,E$29*(R25-I25))+ROUND($P$14*365/12,2)+(Summary!N19/12)*2 -> 151.0724903 | H55: =E$28*MIN(J25,S25)+IF(S25-J25>0,E$29*(S25-J25))+ROUND($P$14*365/12,2)+(Summary!N19/12)*2 -> 88.95514299 | I55: =F$28*MIN(I25,R25)+IF(R25-I25>0,F$29*(R25-I25))+ROUND($P$14*365/12,2)+(Summary!N19/12)*2 -> 151.0724903 | J55: =F$28*MIN(J25,S25)+IF(S25-J25>0,F$29*(S25-J25))+ROUND($P$14*365/12,2)+(Summary!N19/12)*2 -> 88.95514299 | L55: 9 warm | M55: =C$22*K25+ROUND($C$25*365/12,2)+(Summary!N19/12)*2 -> 118.2478462 | N55: =C$22*L25+ROUND($C$25*365/12,2)+(Summary!N19/12)*2 -> 132.4316583 | O55: =D$22*K25+ROUND($F$14*365/12,2)+(Summary!N19/12)*2 -> 136.1120584 | P55: =D$22*L25+ROUND($F$14*365/12,2)+(Summary!N19/12)*2 -> 149.6971423 | Q55: =E$22*K25+ROUND($F$14*365/12,2)+(Summary!N19/12)*2 -> 134.7127708 | R55: =E$22*L25+ROUND($F$14*365/12,2)+(Summary!N19/12)*2 -> 148.1411345 | S55: =F$22*K25+ROUND($F$14*365/12,2)+(Summary!N19/12)*2 -> 134.7127708 | T55: =F$22*L25+ROUND($F$14*365/12,2)+(Summary!N19/12)*2 -> 148.1411345 | V55: 9 warm | W55: =C$28*K25+ROUND($C$31*365/12,2)+(Summary!N19/12)*2 -> 70.68743242 | X55: =C$28*L25+ROUND($C$31*365/12,2)+(Summary!N19/12)*2 -> 79.57807818 | Y55: =D$28*K25+ROUND($P$14*365/12,2)+(Summary!N19/12)*2 -> 76.59634479 | Z55: =D$28*L25+ROUND($P$14*365/12,2)+(Summary!N19/12)*2 -> 85.54958874 | AA55: =E$28*K25+ROUND($P$14*365/12,2)+(Summary!N19/12)*2 -> 75.67414489 | AB55: =E$28*L25+ROUND($P$14*365/12,2)+(Summary!N19/12)*2 -> 84.52410245 | AC55: =F$28*K25+ROUND($P$14*365/12,2)+(Summary!N19/12)*2 -> 75.67414489 | AD55: =F$28*L25+ROUND($P$14*365/12,2)+(Summary!N19/12)*2 -> 84.52410245
B56: 10 hot (Sec 745) | C56: =C$28*MIN(I26,R26)+IF(R26-I26>0,C$29*(R26-I26))+ROUND($C$31*365/12,2)+(Summary!N19/12)*2 -> 204.3286138 | D56: =C$28*MIN(J26,S26)+IF(S26-J26>0,C$29*(S26-J26))+ROUND($C$31*365/12,2)+(Summary!N19/12)*2 -> 104.0756369 | E56: =D$28*MIN(I26,R26)+IF(R26-I26>0,D$29*(R26-I26))+ROUND($P$14*365/12,2)+(Summary!N19/12)*2 -> 213.1228711 | F56: =D$28*MIN(J26,S26)+IF(S26-J26>0,D$29*(S26-J26))+ROUND($P$14*365/12,2)+(Summary!N19/12)*2 -> 110.991911 | G56: =E$28*MIN(I26,R26)+IF(R26-I26>0,E$29*(R26-I26))+ROUND($P$14*365/12,2)+(Summary!N19/12)*2 -> 210.6256743 | H56: =E$28*MIN(J26,S26)+IF(S26-J26>0,E$29*(S26-J26))+ROUND($P$14*365/12,2)+(Summary!N19/12)*2 -> 109.6729171 | I56: =F$28*MIN(I26,R26)+IF(R26-I26>0,F$29*(R26-I26))+ROUND($P$14*365/12,2)+(Summary!N19/12)*2 -> 210.6256743 | J56: =F$28*MIN(J26,S26)+IF(S26-J26>0,F$29*(S26-J26))+ROUND($P$14*365/12,2)+(Summary!N19/12)*2 -> 109.6729171 | L56: 10 hot (Sec 745) | M56: =C$22*K26+ROUND($C$25*365/12,2)+(Summary!N19/12)*2 -> 152.694247 | N56: =C$22*L26+ROUND($C$25*365/12,2)+(Summary!N19/12)*2 -> 157.7598942 | O56: =D$22*K26+ROUND($F$14*365/12,2)+(Summary!N19/12)*2 -> 169.104405 | P56: =D$22*L26+ROUND($F$14*365/12,2)+(Summary!N19/12)*2 -> 173.9562206 | Q56: =E$22*K26+ROUND($F$14*365/12,2)+(Summary!N19/12)*2 -> 167.3245112 | R56: =E$22*L26+ROUND($F$14*365/12,2)+(Summary!N19/12)*2 -> 172.1203553 | S56: =F$22*K26+ROUND($F$14*365/12,2)+(Summary!N19/12)*2 -> 167.3245112 | T56: =F$22*L26+ROUND($F$14*365/12,2)+(Summary!N19/12)*2 -> 172.1203553 | V56: 10 hot (Sec 745) | W56: =C$28*K26+ROUND($C$31*365/12,2)+(Summary!N19/12)*2 -> 92.2790007 | X56: =C$28*L26+ROUND($C$31*365/12,2)+(Summary!N19/12)*2 -> 95.45423133 | Y56: =D$28*K26+ROUND($P$14*365/12,2)+(Summary!N19/12)*2 -> 98.33993724 | Z56: =D$28*L26+ROUND($P$14*365/12,2)+(Summary!N19/12)*2 -> 101.5375244 | AA56: =E$28*K26+ROUND($P$14*365/12,2)+(Summary!N19/12)*2 -> 97.16689896 | AB56: =E$28*L26+ROUND($P$14*365/12,2)+(Summary!N19/12)*2 -> 100.3275981 | AC56: =F$28*K26+ROUND($P$14*365/12,2)+(Summary!N19/12)*2 -> 97.16689896 | AD56: =F$28*L26+ROUND($P$14*365/12,2)+(Summary!N19/12)*2 -> 100.3275981
B57: 13 hot | C57: =C$28*MIN(I27,R27)+IF(R27-I27>0,C$29*(R27-I27))+ROUND($C$31*365/12,2)+(Summary!N19/12)*2 -> 228.4551441 | D57: =C$28*MIN(J27,S27)+IF(S27-J27>0,C$29*(S27-J27))+ROUND($C$31*365/12,2)+(Summary!N19/12)*2 -> 100.1365381 | E57: =D$28*MIN(I27,R27)+IF(R27-I27>0,D$29*(R27-I27))+ROUND($P$14*365/12,2)+(Summary!N19/12)*2 -> 237.5420143 | F57: =D$28*MIN(J27,S27)+IF(S27-J27>0,D$29*(S27-J27))+ROUND($P$14*365/12,2)+(Summary!N19/12)*2 -> 106.9267564 | G57: =E$28*MIN(I27,R27)+IF(R27-I27>0,E$29*(R27-I27))+ROUND($P$14*365/12,2)+(Summary!N19/12)*2 -> 234.7631133 | H57: =E$28*MIN(J27,S27)+IF(S27-J27>0,E$29*(S27-J27))+ROUND($P$14*365/12,2)+(Summary!N19/12)*2 -> 105.6546589 | I57: =F$28*MIN(I27,R27)+IF(R27-I27>0,F$29*(R27-I27))+ROUND($P$14*365/12,2)+(Summary!N19/12)*2 -> 234.7631133 | J57: =F$28*MIN(J27,S27)+IF(S27-J27>0,F$29*(S27-J27))+ROUND($P$14*365/12,2)+(Summary!N19/12)*2 -> 105.6546589 | L57: 13 hot | M57: =C$22*K27+ROUND($C$25*365/12,2)+(Summary!N19/12)*2 -> 236.7839902 | N57: =C$22*L27+ROUND($C$25*365/12,2)+(Summary!N19/12)*2 -> 224.6264369 | O57: =D$22*K27+ROUND($F$14*365/12,2)+(Summary!N19/12)*2 -> 249.6445451 | P57: =D$22*L27+ROUND($F$14*365/12,2)+(Summary!N19/12)*2 -> 238.0001875 | Q57: =E$22*K27+ROUND($F$14*365/12,2)+(Summary!N19/12)*2 -> 246.9355243 | R57: =E$22*L27+ROUND($F$14*365/12,2)+(Summary!N19/12)*2 -> 235.4254983 | S57: =F$22*K27+ROUND($F$14*365/12,2)+(Summary!N19/12)*2 -> 246.9355243 | T57: =F$22*L27+ROUND($F$14*365/12,2)+(Summary!N19/12)*2 -> 235.4254983 | V57: 13 hot | W57: =C$28*K27+ROUND($C$31*365/12,2)+(Summary!N19/12)*2 -> 144.9878292 | X57: =C$28*L27+ROUND($C$31*365/12,2)+(Summary!N19/12)*2 -> 137.3672756 | Y57: =D$28*K27+ROUND($P$14*365/12,2)+(Summary!N19/12)*2 -> 151.4198835 | Z57: =D$28*L27+ROUND($P$14*365/12,2)+(Summary!N19/12)*2 -> 143.7456744 | AA57: =E$28*K27+ROUND($P$14*365/12,2)+(Summary!N19/12)*2 -> 149.6345045 | AB57: =E$28*L27+ROUND($P$14*365/12,2)+(Summary!N19/12)*2 -> 142.0488266 | AC57: =F$28*K27+ROUND($P$14*365/12,2)+(Summary!N19/12)*2 -> 149.6345045 | AD57: =F$28*L27+ROUND($P$14*365/12,2)+(Summary!N19/12)*2 -> 142.0488266
B58: 14 hot | C58: =C$28*MIN(I28,R28)+IF(R28-I28>0,C$29*(R28-I28))+ROUND($C$31*365/12,2)+(Summary!N19/12)*2 -> 208.5483524 | D58: =C$28*MIN(J28,S28)+IF(S28-J28>0,C$29*(S28-J28))+ROUND($C$31*365/12,2)+(Summary!N19/12)*2 -> 112.0881652 | E58: =D$28*MIN(I28,R28)+IF(R28-I28>0,D$29*(R28-I28))+ROUND($P$14*365/12,2)+(Summary!N19/12)*2 -> 217.4766738 | F58: =D$28*MIN(J28,S28)+IF(S28-J28>0,D$29*(S28-J28))+ROUND($P$14*365/12,2)+(Summary!N19/12)*2 -> 119.2603841 | G58: =E$28*MIN(I28,R28)+IF(R28-I28>0,E$29*(R28-I28))+ROUND($P$14*365/12,2)+(Summary!N19/12)*2 -> 214.9292506 | H58: =E$28*MIN(J28,S28)+IF(S28-J28>0,E$29*(S28-J28))+ROUND($P$14*365/12,2)+(Summary!N19/12)*2 -> 117.8460035 | I58: =F$28*MIN(I28,R28)+IF(R28-I28>0,F$29*(R28-I28))+ROUND($P$14*365/12,2)+(Summary!N19/12)*2 -> 214.9292506 | J58: =F$28*MIN(J28,S28)+IF(S28-J28>0,F$29*(S28-J28))+ROUND($P$14*365/12,2)+(Summary!N19/12)*2 -> 117.8460035 | L58: 14 hot | M58: =C$22*K28+ROUND($C$25*365/12,2)+(Summary!N19/12)*2 -> 179.0356123 | N58: =C$22*L28+ROUND($C$25*365/12,2)+(Summary!N19/12)*2 -> 205.3769777 | O58: =D$22*K28+ROUND($F$14*365/12,2)+(Summary!N19/12)*2 -> 194.3338465 | P58: =D$22*L28+ROUND($F$14*365/12,2)+(Summary!N19/12)*2 -> 219.5632879 | Q58: =E$22*K28+ROUND($F$14*365/12,2)+(Summary!N19/12)*2 -> 192.2629008 | R58: =E$22*L28+ROUND($F$14*365/12,2)+(Summary!N19/12)*2 -> 217.2012905 | S58: =F$22*K28+ROUND($F$14*365/12,2)+(Summary!N19/12)*2 -> 192.2629008 | T58: =F$22*L28+ROUND($F$14*365/12,2)+(Summary!N19/12)*2 -> 217.2012905 | V58: 14 hot | W58: =C$28*K28+ROUND($C$31*365/12,2)+(Summary!N19/12)*2 -> 108.7902 | X58: =C$28*L28+ROUND($C$31*365/12,2)+(Summary!N19/12)*2 -> 125.3013993 | Y58: =D$28*K28+ROUND($P$14*365/12,2)+(Summary!N19/12)*2 -> 114.9673903 | Z58: =D$28*L28+ROUND($P$14*365/12,2)+(Summary!N19/12)*2 -> 131.5948433 | AA58: =E$28*K28+ROUND($P$14*365/12,2)+(Summary!N19/12)*2 -> 113.6025344 | AB58: =E$28*L28+ROUND($P$14*365/12,2)+(Summary!N19/12)*2 -> 130.0381699 | AC58: =F$28*K28+ROUND($P$14*365/12,2)+(Summary!N19/12)*2 -> 113.6025344 | AD58: =F$28*L28+ROUND($P$14*365/12,2)+(Summary!N19/12)*2 -> 130.0381699
B59: 15 hot | C59: =C$28*MIN(I29,R29)+IF(R29-I29>0,C$29*(R29-I29))+ROUND($C$31*365/12,2)+(Summary!N19/12)*2 -> 275.3710999 | D59: =C$28*MIN(J29,S29)+IF(S29-J29>0,C$29*(S29-J29))+ROUND($C$31*365/12,2)+(Summary!N19/12)*2 -> 118.5682698 | E59: =D$28*MIN(I29,R29)+IF(R29-I29>0,D$29*(R29-I29))+ROUND($P$14*365/12,2)+(Summary!N19/12)*2 -> 282.7211704 | F59: =D$28*MIN(J29,S29)+IF(S29-J29>0,D$29*(S29-J29))+ROUND($P$14*365/12,2)+(Summary!N19/12)*2 -> 126.2257101 | G59: =E$28*MIN(I29,R29)+IF(R29-I29>0,E$29*(R29-I29))+ROUND($P$14*365/12,2)+(Summary!N19/12)*2 -> 279.4210738 | H59: =E$28*MIN(J29,S29)+IF(S29-J29>0,E$29*(S29-J29))+ROUND($P$14*365/12,2)+(Summary!N19/12)*2 -> 124.730976 | I59: =F$28*MIN(I29,R29)+IF(R29-I29>0,F$29*(R29-I29))+ROUND($P$14*365/12,2)+(Summary!N19/12)*2 -> 279.4210738 | J59: =F$28*MIN(J29,S29)+IF(S29-J29>0,F$29*(S29-J29))+ROUND($P$14*365/12,2)+(Summary!N19/12)*2 -> 124.730976 | L59: 15 hot | M59: =C$22*K29+ROUND($C$25*365/12,2)+(Summary!N19/12)*2 -> 234.7577313 | N59: =C$22*L29+ROUND($C$25*365/12,2)+(Summary!N19/12)*2 -> 167.8911885 | O59: =D$22*K29+ROUND($F$14*365/12,2)+(Summary!N19/12)*2 -> 247.7038188 | P59: =D$22*L29+ROUND($F$14*365/12,2)+(Summary!N19/12)*2 -> 183.659852 | Q59: =E$22*K29+ROUND($F$14*365/12,2)+(Summary!N19/12)*2 -> 245.0171867 | R59: =E$22*L29+ROUND($F$14*365/12,2)+(Summary!N19/12)*2 -> 181.7120437 | S59: =F$22*K29+ROUND($F$14*365/12,2)+(Summary!N19/12)*2 -> 245.0171867 | T59: =F$22*L29+ROUND($F$14*365/12,2)+(Summary!N19/12)*2 -> 181.7120437 | V59: 15 hot | W59: =C$28*K29+ROUND($C$31*365/12,2)+(Summary!N19/12)*2 -> 143.7177369 | X59: =C$28*L29+ROUND($C$31*365/12,2)+(Summary!N19/12)*2 -> 101.8046926 | Y59: =D$28*K29+ROUND($P$14*365/12,2)+(Summary!N19/12)*2 -> 150.1408487 | Z59: =D$28*L29+ROUND($P$14*365/12,2)+(Summary!N19/12)*2 -> 107.9326986 | AA59: =E$28*K29+ROUND($P$14*365/12,2)+(Summary!N19/12)*2 -> 148.3702249 | AB59: =E$28*L29+ROUND($P$14*365/12,2)+(Summary!N19/12)*2 -> 106.6489963 | AC59: =F$28*K29+ROUND($P$14*365/12,2)+(Summary!N19/12)*2 -> 148.3702249 | AD59: =F$28*L29+ROUND($P$14*365/12,2)+(Summary!N19/12)*2 -> 106.6489963
B60: 16 cool | C60: =C$28*MIN(I30,R30)+IF(R30-I30>0,C$29*(R30-I30))+ROUND($C$31*365/12,2)+(Summary!N19/12)*2 -> 174.6519067 | D60: =C$28*MIN(J30,S30)+IF(S30-J30>0,C$29*(S30-J30))+ROUND($C$31*365/12,2)+(Summary!N19/12)*2 -> 101.8374222 | E60: =D$28*MIN(I30,R30)+IF(R30-I30>0,D$29*(R30-I30))+ROUND($P$14*365/12,2)+(Summary!N19/12)*2 -> 183.2272269 | F60: =D$28*MIN(J30,S30)+IF(S30-J30>0,D$29*(S30-J30))+ROUND($P$14*365/12,2)+(Summary!N19/12)*2 -> 108.6488761 | G60: =E$28*MIN(I30,R30)+IF(R30-I30>0,E$29*(R30-I30))+ROUND($P$14*365/12,2)+(Summary!N19/12)*2 -> 181.0749121 | H60: =E$28*MIN(J30,S30)+IF(S30-J30>0,E$29*(S30-J30))+ROUND($P$14*365/12,2)+(Summary!N19/12)*2 -> 107.3569119 | I60: =F$28*MIN(I30,R30)+IF(R30-I30>0,F$29*(R30-I30))+ROUND($P$14*365/12,2)+(Summary!N19/12)*2 -> 181.0749121 | J60: =F$28*MIN(J30,S30)+IF(S30-J30>0,F$29*(S30-J30))+ROUND($P$14*365/12,2)+(Summary!N19/12)*2 -> 107.3569119 | L60: 16 cool | M60: =C$22*K30+ROUND($C$25*365/12,2)+(Summary!N19/12)*2 -> 128.3791405 | N60: =C$22*L30+ROUND($C$25*365/12,2)+(Summary!N19/12)*2 -> 226.6526958 | O60: =D$22*K30+ROUND($F$14*365/12,2)+(Summary!N19/12)*2 -> 145.8156898 | P60: =D$22*L30+ROUND($F$14*365/12,2)+(Summary!N19/12)*2 -> 239.9409138 | Q60: =E$22*K30+ROUND($F$14*365/12,2)+(Summary!N19/12)*2 -> 144.3044592 | R60: =E$22*L30+ROUND($F$14*365/12,2)+(Summary!N19/12)*2 -> 237.343836 | S60: =F$22*K30+ROUND($F$14*365/12,2)+(Summary!N19/12)*2 -> 144.3044592 | T60: =F$22*L30+ROUND($F$14*365/12,2)+(Summary!N19/12)*2 -> 237.343836 | V60: 16 cool | W60: =C$28*K30+ROUND($C$31*365/12,2)+(Summary!N19/12)*2 -> 77.03789368 | X60: =C$28*L30+ROUND($C$31*365/12,2)+(Summary!N19/12)*2 -> 138.6373679 | Y60: =D$28*K30+ROUND($P$14*365/12,2)+(Summary!N19/12)*2 -> 82.99151904 | Z60: =D$28*L30+ROUND($P$14*365/12,2)+(Summary!N19/12)*2 -> 145.0247093 | AA60: =E$28*K30+ROUND($P$14*365/12,2)+(Summary!N19/12)*2 -> 81.99554315 | AB60: =E$28*L30+ROUND($P$14*365/12,2)+(Summary!N19/12)*2 -> 143.3131062 | AC60: =F$28*K30+ROUND($P$14*365/12,2)+(Summary!N19/12)*2 -> 81.99554315 | AD60: =F$28*L30+ROUND($P$14*365/12,2)+(Summary!N19/12)*2 -> 143.3131062
B61: ALL | C61: =SUMPRODUCT(C52:C60,$U$22:$U$30) -> 180.2226444 | D61: 95.70362633 | E61: 188.4156876 | F61: 102.4416965 | G61: 186.2035177 | H61: 101.2213395 | I61: 186.2035177 | J61: 101.2213395 | L61: ALL | M61: =SUMPRODUCT(M52:M60,$T$22:$T$30) -> 129.768474 | N61: =SUMPRODUCT(N52:N60,$T$22:$T$30) -> 147.2532409 | O61: 147.1463766 | P61: 163.8930751 | Q61: 145.6197949 | R61: 162.1733002 | S61: 145.6197949 | T61: 162.1733002 | V61: ALL | W61: =SUMPRODUCT(W52:W60,$U$22:$U$30) -> 90.60495947 | X61: =SUMPRODUCT(X52:X60,$U$22:$U$30) -> 97.63304863 | Y61: 96.65410924 | Z61: 103.7316825 | AA61: 95.50051901 | AB61: 102.496444 | AC61: 95.50051901 | AD61: 102.496444
C64: All-Electric - Non-CARE | L64: =Summary!J4 -> 500 | M64: =L64&" kWh Monthly - Non-CARE" -> 500 kWh Monthly - Non-CARE | W64: =L64&" kWh Monthly - CARE" -> 500 kWh Monthly - CARE
C65: =C35 -> Jan 2025 | E65: 2025-11-15 | G65: Authorized | I65: w/Pending | M65: =M50 -> Jan 2025 | O65: =O50 -> 2025-11-15 | Q65: =Q50 -> Authorized | S65: =S50 -> w/Pending | W65: =M65 -> Jan 2025 | Y65: =O65 -> 2025-11-15 | AA65: =Q65 -> Authorized | AC65: =S65 -> w/Pending
C66: Summer | D66: Winter | E66: Summer | F66: Winter | G66: Summer | H66: Winter | I66: Summer | J66: Winter | M66: Summer | N66: Winter | O66: Summer | P66: Winter | Q66: Summer | R66: Winter | S66: Summer | T66: Winter | W66: Summer | X66: Winter | Y66: Summer | Z66: Winter | AA66: Summer | AB66: Winter | AC66: Summer | AD66: Winter
B67: =B37 -> 5 warm | C67: =C$22*MIN(K22,X22)+IF(X22-K22>0,C$23*(X22-K22))+ROUND($C$25*365/12,2)+(Summary!N19/12)*2 -> 123.1903756 | D67: =C$22*MIN(L22,Y22)+IF(Y22-L22>0,C$23*(Y22-L22))+ROUND($C$25*365/12,2)+(Summary!N19/12)*2 -> 148.938088 | E67: =D$22*MIN(K22,X22)+IF(X22-K22>0,D$23*(X22-K22))+ROUND($F$14*365/12,2)+(Summary!N19/12)*2 -> 140.8459534 | F67: =D$22*MIN(L22,Y22)+IF(Y22-L22>0,D$23*(Y22-L22))+ROUND($F$14*365/12,2)+(Summary!N19/12)*2 -> 165.5068012 | G67: =E$22*MIN(K22,X22)+IF(X22-K22>0,E$23*(X22-K22))+ROUND($F$14*365/12,2)+(Summary!N19/12)*2 -> 139.3920547 | H67: =E$22*MIN(L22,Y22)+IF(Y22-L22>0,E$23*(Y22-L22))+ROUND($F$14*365/12,2)+(Summary!N19/12)*2 -> 163.7684101 | I67: =F$22*MIN(K22,X22)+IF(X22-K22>0,F$23*(X22-K22))+ROUND($F$14*365/12,2)+(Summary!N19/12)*2 -> 139.3920547 | J67: =F$22*MIN(L22,Y22)+IF(Y22-L22>0,F$23*(Y22-L22))+ROUND($F$14*365/12,2)+(Summary!N19/12)*2 -> 163.7684101 | L67: 5 warm | M67: =C$22*MIN(I22,$L$64)+IF($L$64-I22>0,C$23*($L$64-I22))+ROUND($C$25*365/12,2)+(Summary!N19/12)*2 -> 158.1466667 | N67: =C$22*MIN(J22,$L$64)+IF($L$64-J22>0,C$23*($L$64-J22))+ROUND($C$25*365/12,2)+(Summary!N19/12)*2 -> 158.1466667 | O67: =D$22*MIN(I22,$L$64)+IF($L$64-I22>0,D$23*($L$64-I22))+ROUND($F$14*365/12,2)+(Summary!N19/12)*2 -> 174.3266667 | P67: =D$22*MIN(J22,$L$64)+IF($L$64-J22>0,D$23*($L$64-J22))+ROUND($F$14*365/12,2)+(Summary!N19/12)*2 -> 174.3266667 | Q67: =E$22*MIN(I22,$L$64)+IF($L$64-I22>0,E$23*($L$64-I22))+ROUND($F$14*365/12,2)+(Summary!N19/12)*2 -> 172.4865278 | R67: =E$22*MIN(J22,$L$64)+IF($L$64-J22>0,E$23*($L$64-J22))+ROUND($F$14*365/12,2)+(Summary!N19/12)*2 -> 172.4865278 | S67: =F$22*MIN(I22,$L$64)+IF($L$64-I22>0,F$23*($L$64-I22))+ROUND($F$14*365/12,2)+(Summary!N19/12)*2 -> 172.4865278 | T67: =F$22*MIN(J22,$L$64)+IF($L$64-J22>0,F$23*($L$64-J22))+ROUND($F$14*365/12,2)+(Summary!N19/12)*2 -> 172.4865278 | V67: 5 warm | W67: =C$28*MIN(I22,$L$64)+IF($L$64-I22>0,C$29*($L$64-I22))+ROUND($C$31*365/12,2)+(Summary!N19/12)*2 -> 95.69666667 | X67: =C$28*MIN(J22,$L$64)+IF($L$64-J22>0,C$29*($L$64-J22))+ROUND($C$31*365/12,2)+(Summary!N19/12)*2 -> 95.69666667 | Y67: =D$28*MIN(I22,$L$64)+IF($L$64-I22>0,D$29*($L$64-I22))+ROUND($P$14*365/12,2)+(Summary!N19/12)*2 -> 101.7816667 | Z67: =D$28*MIN(J22,$L$64)+IF($L$64-J22>0,D$29*($L$64-J22))+ROUND($P$14*365/12,2)+(Summary!N19/12)*2 -> 101.7816667 | AA67: =E$28*MIN(I22,$L$64)+IF($L$64-I22>0,E$29*($L$64-I22))+ROUND($P$14*365/12,2)+(Summary!N19/12)*2 -> 100.5689239 | AB67: =E$28*MIN(J22,$L$64)+IF($L$64-J22>0,E$29*($L$64-J22))+ROUND($P$14*365/12,2)+(Summary!N19/12)*2 -> 100.5689239 | AC67: =F$28*MIN(I22,$L$64)+IF($L$64-I22>0,F$29*($L$64-I22))+ROUND($P$14*365/12,2)+(Summary!N19/12)*2 -> 100.5689239 | AD67: =F$28*MIN(J22,$L$64)+IF($L$64-J22>0,F$29*($L$64-J22))+ROUND($P$14*365/12,2)+(Summary!N19/12)*2 -> 100.5689239
B68: 6 cool | C68: =C$22*MIN(K23,X23)+IF(X23-K23>0,C$23*(X23-K23))+ROUND($C$25*365/12,2)+(Summary!N19/12)*2 -> 109.311935 | D68: =C$22*MIN(L23,Y23)+IF(Y23-L23>0,C$23*(Y23-L23))+ROUND($C$25*365/12,2)+(Summary!N19/12)*2 -> 101.616446 | E68: =D$22*MIN(K23,X23)+IF(X23-K23>0,D$23*(X23-K23))+ROUND($F$14*365/12,2)+(Summary!N19/12)*2 -> 128.4767855 | F68: =D$22*MIN(L23,Y23)+IF(Y23-L23>0,D$23*(Y23-L23))+ROUND($F$14*365/12,2)+(Summary!N19/12)*2 -> 120.1827042 | G68: =E$22*MIN(K23,X23)+IF(X23-K23>0,E$23*(X23-K23))+ROUND($F$14*365/12,2)+(Summary!N19/12)*2 -> 127.1655799 | H68: =E$22*MIN(L23,Y23)+IF(Y23-L23>0,E$23*(Y23-L23))+ROUND($F$14*365/12,2)+(Summary!N19/12)*2 -> 118.9671808 | I68: =F$22*MIN(K23,X23)+IF(X23-K23>0,F$23*(X23-K23))+ROUND($F$14*365/12,2)+(Summary!N19/12)*2 -> 127.1655799 | J68: =F$22*MIN(L23,Y23)+IF(Y23-L23>0,F$23*(Y23-L23))+ROUND($F$14*365/12,2)+(Summary!N19/12)*2 -> 118.9671808 | L68: 6 cool | M68: =C$22*MIN(I23,$L$64)+IF($L$64-I23>0,C$23*($L$64-I23))+ROUND($C$25*365/12,2)+(Summary!N19/12)*2 -> 172.7249777 | N68: =C$22*MIN(J23,$L$64)+IF($L$64-J23>0,C$23*($L$64-J23))+ROUND($C$25*365/12,2)+(Summary!N19/12)*2 -> 173.8824054 | O68: =D$22*MIN(I23,$L$64)+IF($L$64-I23>0,D$23*($L$64-I23))+ROUND($F$14*365/12,2)+(Summary!N19/12)*2 -> 190.3393621 | P68: =D$22*MIN(J23,$L$64)+IF($L$64-J23>0,D$23*($L$64-J23))+ROUND($F$14*365/12,2)+(Summary!N19/12)*2 -> 191.610671 | Q68: =E$22*MIN(I23,$L$64)+IF($L$64-I23>0,E$23*($L$64-I23))+ROUND($F$14*365/12,2)+(Summary!N19/12)*2 -> 188.3144976 | R68: =E$22*MIN(J23,$L$64)+IF($L$64-J23>0,E$23*($L$64-J23))+ROUND($F$14*365/12,2)+(Summary!N19/12)*2 -> 189.5711405 | S68: =F$22*MIN(I23,$L$64)+IF($L$64-I23>0,F$23*($L$64-I23))+ROUND($F$14*365/12,2)+(Summary!N19/12)*2 -> 188.3144976 | T68: =F$22*MIN(J23,$L$64)+IF($L$64-J23>0,F$23*($L$64-J23))+ROUND($F$14*365/12,2)+(Summary!N19/12)*2 -> 189.5711405 | V68: 6 cool | W68: =C$28*MIN(I23,$L$64)+IF($L$64-I23>0,C$29*($L$64-I23))+ROUND($C$31*365/12,2)+(Summary!N19/12)*2 -> 105.5366052 | X68: =C$28*MIN(J23,$L$64)+IF($L$64-J23>0,C$29*($L$64-J23))+ROUND($C$31*365/12,2)+(Summary!N19/12)*2 -> 106.3178354 | Y68: =D$28*MIN(I23,$L$64)+IF($L$64-I23>0,D$29*($L$64-I23))+ROUND($P$14*365/12,2)+(Summary!N19/12)*2 -> 112.5901212 | Z68: =D$28*MIN(J23,$L$64)+IF($L$64-J23>0,D$29*($L$64-J23))+ROUND($P$14*365/12,2)+(Summary!N19/12)*2 -> 113.4482456 | AA68: =E$28*MIN(I23,$L$64)+IF($L$64-I23>0,E$29*($L$64-I23))+ROUND($P$14*365/12,2)+(Summary!N19/12)*2 -> 111.2526899 | AB68: =E$28*MIN(J23,$L$64)+IF($L$64-J23>0,E$29*($L$64-J23))+ROUND($P$14*365/12,2)+(Summary!N19/12)*2 -> 112.1009149 | AC68: =F$28*MIN(I23,$L$64)+IF($L$64-I23>0,F$29*($L$64-I23))+ROUND($P$14*365/12,2)+(Summary!N19/12)*2 -> 111.2526899 | AD68: =F$28*MIN(J23,$L$64)+IF($L$64-J23>0,F$29*($L$64-J23))+ROUND($P$14*365/12,2)+(Summary!N19/12)*2 -> 112.1009149
B69: 8 cool | C69: =C$22*MIN(K24,X24)+IF(X24-K24>0,C$23*(X24-K24))+ROUND($C$25*365/12,2)+(Summary!N19/12)*2 -> 132.3536862 | D69: =C$22*MIN(L24,Y24)+IF(Y24-L24>0,C$23*(Y24-L24))+ROUND($C$25*365/12,2)+(Summary!N19/12)*2 -> 107.2141551 | E69: =D$22*MIN(K24,X24)+IF(X24-K24>0,D$23*(X24-K24))+ROUND($F$14*365/12,2)+(Summary!N19/12)*2 -> 150.8858769 | F69: =D$22*MIN(L24,Y24)+IF(Y24-L24>0,D$23*(Y24-L24))+ROUND($F$14*365/12,2)+(Summary!N19/12)*2 -> 125.5441224 | G69: =E$22*MIN(K24,X24)+IF(X24-K24>0,E$23*(X24-K24))+ROUND($F$14*365/12,2)+(Summary!N19/12)*2 -> 149.3161556 | H69: =E$22*MIN(L24,Y24)+IF(Y24-L24>0,E$23*(Y24-L24))+ROUND($F$14*365/12,2)+(Summary!N19/12)*2 -> 124.2667486 | I69: =F$22*MIN(K24,X24)+IF(X24-K24>0,F$23*(X24-K24))+ROUND($F$14*365/12,2)+(Summary!N19/12)*2 -> 149.3161556 | J69: =F$22*MIN(L24,Y24)+IF(Y24-L24>0,F$23*(Y24-L24))+ROUND($F$14*365/12,2)+(Summary!N19/12)*2 -> 124.2667486 | L69: 8 cool | M69: =C$22*MIN(I24,$L$64)+IF($L$64-I24>0,C$23*($L$64-I24))+ROUND($C$25*365/12,2)+(Summary!N19/12)*2 -> 168.6739808 | N69: =C$22*MIN(J24,$L$64)+IF($L$64-J24>0,C$23*($L$64-J24))+ROUND($C$25*365/12,2)+(Summary!N19/12)*2 -> 175.9079038 | O69: =D$22*MIN(I24,$L$64)+IF($L$64-I24>0,D$23*($L$64-I24))+ROUND($F$14*365/12,2)+(Summary!N19/12)*2 -> 185.8897808 | P69: =D$22*MIN(J24,$L$64)+IF($L$64-J24>0,D$23*($L$64-J24))+ROUND($F$14*365/12,2)+(Summary!N19/12)*2 -> 193.8354617 | Q69: =E$22*MIN(I24,$L$64)+IF($L$64-I24>0,E$23*($L$64-I24))+ROUND($F$14*365/12,2)+(Summary!N19/12)*2 -> 183.9162476 | R69: =E$22*MIN(J24,$L$64)+IF($L$64-J24>0,E$23*($L$64-J24))+ROUND($F$14*365/12,2)+(Summary!N19/12)*2 -> 191.7702655 | S69: =F$22*MIN(I24,$L$64)+IF($L$64-I24>0,F$23*($L$64-I24))+ROUND($F$14*365/12,2)+(Summary!N19/12)*2 -> 183.9162476 | T69: =F$22*MIN(J24,$L$64)+IF($L$64-J24>0,F$23*($L$64-J24))+ROUND($F$14*365/12,2)+(Summary!N19/12)*2 -> 191.7702655 | V69: 8 cool | W69: =C$28*MIN(I24,$L$64)+IF($L$64-I24>0,C$29*($L$64-I24))+ROUND($C$31*365/12,2)+(Summary!N19/12)*2 -> 102.8022994 | X69: =C$28*MIN(J24,$L$64)+IF($L$64-J24>0,C$29*($L$64-J24))+ROUND($C$31*365/12,2)+(Summary!N19/12)*2 -> 107.6849883 | Y69: =D$28*MIN(I24,$L$64)+IF($L$64-I24>0,D$29*($L$64-I24))+ROUND($P$14*365/12,2)+(Summary!N19/12)*2 -> 109.5866857 | Z69: =D$28*MIN(J24,$L$64)+IF($L$64-J24>0,D$29*($L$64-J24))+ROUND($P$14*365/12,2)+(Summary!N19/12)*2 -> 114.9499633 | AA69: =E$28*MIN(I24,$L$64)+IF($L$64-I24>0,E$29*($L$64-I24))+ROUND($P$14*365/12,2)+(Summary!N19/12)*2 -> 108.2839028 | AB69: =E$28*MIN(J24,$L$64)+IF($L$64-J24>0,E$29*($L$64-J24))+ROUND($P$14*365/12,2)+(Summary!N19/12)*2 -> 113.5853084 | AC69: =F$28*MIN(I24,$L$64)+IF($L$64-I24>0,F$29*($L$64-I24))+ROUND($P$14*365/12,2)+(Summary!N19/12)*2 -> 108.2839028 | AD69: =F$28*MIN(J24,$L$64)+IF($L$64-J24>0,F$29*($L$64-J24))+ROUND($P$14*365/12,2)+(Summary!N19/12)*2 -> 113.5853084
B70: 9 warm | C70: =C$22*MIN(K25,X25)+IF(X25-K25>0,C$23*(X25-K25))+ROUND($C$25*365/12,2)+(Summary!N19/12)*2 -> 182.7427053 | D70: =C$22*MIN(L25,Y25)+IF(Y25-L25>0,C$23*(Y25-L25))+ROUND($C$25*365/12,2)+(Summary!N19/12)*2 -> 118.2358202 | E70: =D$22*MIN(K25,X25)+IF(X25-K25>0,D$23*(X25-K25))+ROUND($F$14*365/12,2)+(Summary!N19/12)*2 -> 199.8990269 | F70: =D$22*MIN(L25,Y25)+IF(Y25-L25>0,D$23*(Y25-L25))+ROUND($F$14*365/12,2)+(Summary!N19/12)*2 -> 136.1005401 | G70: =E$22*MIN(K25,X25)+IF(X25-K25>0,E$23*(X25-K25))+ROUND($F$14*365/12,2)+(Summary!N19/12)*2 -> 197.7638803 | H70: =E$22*MIN(L25,Y25)+IF(Y25-L25>0,E$23*(Y25-L25))+ROUND($F$14*365/12,2)+(Summary!N19/12)*2 -> 134.7013854 | I70: =F$22*MIN(K25,X25)+IF(X25-K25>0,F$23*(X25-K25))+ROUND($F$14*365/12,2)+(Summary!N19/12)*2 -> 197.7638803 | J70: =F$22*MIN(L25,Y25)+IF(Y25-L25>0,F$23*(Y25-L25))+ROUND($F$14*365/12,2)+(Summary!N19/12)*2 -> 134.7013854 | L70: 9 warm | M70: =C$22*MIN(I25,$L$64)+IF($L$64-I25>0,C$23*($L$64-I25))+ROUND($C$25*365/12,2)+(Summary!N19/12)*2 -> 158.1466667 | N70: =C$22*MIN(J25,$L$64)+IF($L$64-J25>0,C$23*($L$64-J25))+ROUND($C$25*365/12,2)+(Summary!N19/12)*2 -> 170.9888361 | O70: =D$22*MIN(I25,$L$64)+IF($L$64-I25>0,D$23*($L$64-I25))+ROUND($F$14*365/12,2)+(Summary!N19/12)*2 -> 174.3266667 | P70: =D$22*MIN(J25,$L$64)+IF($L$64-J25>0,D$23*($L$64-J25))+ROUND($F$14*365/12,2)+(Summary!N19/12)*2 -> 188.4323987 | Q70: =E$22*MIN(I25,$L$64)+IF($L$64-I25>0,E$23*($L$64-I25))+ROUND($F$14*365/12,2)+(Summary!N19/12)*2 -> 172.4865278 | R70: =E$22*MIN(J25,$L$64)+IF($L$64-J25>0,E$23*($L$64-J25))+ROUND($F$14*365/12,2)+(Summary!N19/12)*2 -> 186.4295334 | S70: =F$22*MIN(I25,$L$64)+IF($L$64-I25>0,F$23*($L$64-I25))+ROUND($F$14*365/12,2)+(Summary!N19/12)*2 -> 172.4865278 | T70: =F$22*MIN(J25,$L$64)+IF($L$64-J25>0,F$23*($L$64-J25))+ROUND($F$14*365/12,2)+(Summary!N19/12)*2 -> 186.4295334 | V70: 9 warm | W70: =C$28*MIN(I25,$L$64)+IF($L$64-I25>0,C$29*($L$64-I25))+ROUND($C$31*365/12,2)+(Summary!N19/12)*2 -> 95.69666667 | X70: =C$28*MIN(J25,$L$64)+IF($L$64-J25>0,C$29*($L$64-J25))+ROUND($C$31*365/12,2)+(Summary!N19/12)*2 -> 104.3647598 | Y70: =D$28*MIN(I25,$L$64)+IF($L$64-I25>0,D$29*($L$64-I25))+ROUND($P$14*365/12,2)+(Summary!N19/12)*2 -> 101.7816667 | Z70: =D$28*MIN(J25,$L$64)+IF($L$64-J25>0,D$29*($L$64-J25))+ROUND($P$14*365/12,2)+(Summary!N19/12)*2 -> 111.3029345 | AA70: =E$28*MIN(I25,$L$64)+IF($L$64-I25>0,E$29*($L$64-I25))+ROUND($P$14*365/12,2)+(Summary!N19/12)*2 -> 100.5689239 | AB70: =E$28*MIN(J25,$L$64)+IF($L$64-J25>0,E$29*($L$64-J25))+ROUND($P$14*365/12,2)+(Summary!N19/12)*2 -> 109.9803526 | AC70: =F$28*MIN(I25,$L$64)+IF($L$64-I25>0,F$29*($L$64-I25))+ROUND($P$14*365/12,2)+(Summary!N19/12)*2 -> 100.5689239 | AD70: =F$28*MIN(J25,$L$64)+IF($L$64-J25>0,F$29*($L$64-J25))+ROUND($P$14*365/12,2)+(Summary!N19/12)*2 -> 109.9803526
B71: 10 hot (Sec 745) | C71: =C$22*MIN(K26,X26)+IF(X26-K26>0,C$23*(X26-K26))+ROUND($C$25*365/12,2)+(Summary!N19/12)*2 -> 214.2986818 | D71: =C$22*MIN(L26,Y26)+IF(Y26-L26>0,C$23*(Y26-L26))+ROUND($C$25*365/12,2)+(Summary!N19/12)*2 -> 133.8656844 | E71: =D$22*MIN(K26,X26)+IF(X26-K26>0,D$23*(X26-K26))+ROUND($F$14*365/12,2)+(Summary!N19/12)*2 -> 230.0326742 | F71: =D$22*MIN(L26,Y26)+IF(Y26-L26>0,D$23*(Y26-L26))+ROUND($F$14*365/12,2)+(Summary!N19/12)*2 -> 151.0706352 | G71: =E$22*MIN(K26,X26)+IF(X26-K26>0,E$23*(X26-K26))+ROUND($F$14*365/12,2)+(Summary!N19/12)*2 -> 227.5498999 | H71: =E$22*MIN(L26,Y26)+IF(Y26-L26>0,E$23*(Y26-L26))+ROUND($F$14*365/12,2)+(Summary!N19/12)*2 -> 149.4987826 | I71: =F$22*MIN(K26,X26)+IF(X26-K26>0,F$23*(X26-K26))+ROUND($F$14*365/12,2)+(Summary!N19/12)*2 -> 227.5498999 | J71: =F$22*MIN(L26,Y26)+IF(Y26-L26>0,F$23*(Y26-L26))+ROUND($F$14*365/12,2)+(Summary!N19/12)*2 -> 149.4987826 | L71: 10 hot (Sec 745) | M71: =C$22*MIN(I26,$L$64)+IF($L$64-I26>0,C$23*($L$64-I26))+ROUND($C$25*365/12,2)+(Summary!N19/12)*2 -> 158.1466667 | N71: =C$22*MIN(J26,$L$64)+IF($L$64-J26>0,C$23*($L$64-J26))+ROUND($C$25*365/12,2)+(Summary!N19/12)*2 -> 170.6994792 | O71: =D$22*MIN(I26,$L$64)+IF($L$64-I26>0,D$23*($L$64-I26))+ROUND($F$14*365/12,2)+(Summary!N19/12)*2 -> 174.3266667 | P71: =D$22*MIN(J26,$L$64)+IF($L$64-J26>0,D$23*($L$64-J26))+ROUND($F$14*365/12,2)+(Summary!N19/12)*2 -> 188.1145715 | Q71: =E$22*MIN(I26,$L$64)+IF($L$64-I26>0,E$23*($L$64-I26))+ROUND($F$14*365/12,2)+(Summary!N19/12)*2 -> 172.4865278 | R71: =E$22*MIN(J26,$L$64)+IF($L$64-J26>0,E$23*($L$64-J26))+ROUND($F$14*365/12,2)+(Summary!N19/12)*2 -> 186.1153726 | S71: =F$22*MIN(I26,$L$64)+IF($L$64-I26>0,F$23*($L$64-I26))+ROUND($F$14*365/12,2)+(Summary!N19/12)*2 -> 172.4865278 | T71: =F$22*MIN(J26,$L$64)+IF($L$64-J26>0,F$23*($L$64-J26))+ROUND($F$14*365/12,2)+(Summary!N19/12)*2 -> 186.1153726 | V71: 10 hot (Sec 745) | W71: =C$28*MIN(I26,$L$64)+IF($L$64-I26>0,C$29*($L$64-I26))+ROUND($C$31*365/12,2)+(Summary!N19/12)*2 -> 95.69666667 | X71: =C$28*MIN(J26,$L$64)+IF($L$64-J26>0,C$29*($L$64-J26))+ROUND($C$31*365/12,2)+(Summary!N19/12)*2 -> 104.1694523 | Y71: =D$28*MIN(I26,$L$64)+IF($L$64-I26>0,D$29*($L$64-I26))+ROUND($P$14*365/12,2)+(Summary!N19/12)*2 -> 101.7816667 | Z71: =D$28*MIN(J26,$L$64)+IF($L$64-J26>0,D$29*($L$64-J26))+ROUND($P$14*365/12,2)+(Summary!N19/12)*2 -> 111.0884034 | AA71: =E$28*MIN(I26,$L$64)+IF($L$64-I26>0,E$29*($L$64-I26))+ROUND($P$14*365/12,2)+(Summary!N19/12)*2 -> 100.5689239 | AB71: =E$28*MIN(J26,$L$64)+IF($L$64-J26>0,E$29*($L$64-J26))+ROUND($P$14*365/12,2)+(Summary!N19/12)*2 -> 109.7682963 | AC71: =F$28*MIN(I26,$L$64)+IF($L$64-I26>0,F$29*($L$64-I26))+ROUND($P$14*365/12,2)+(Summary!N19/12)*2 -> 100.5689239 | AD71: =F$28*MIN(J26,$L$64)+IF($L$64-J26>0,F$29*($L$64-J26))+ROUND($P$14*365/12,2)+(Summary!N19/12)*2 -> 109.7682963
B72: 13 hot | C72: =C$22*MIN(K27,X27)+IF(X27-K27>0,C$23*(X27-K27))+ROUND($C$25*365/12,2)+(Summary!N19/12)*2 -> 335.226579 | D72: =C$22*MIN(L27,Y27)+IF(Y27-L27>0,C$23*(Y27-L27))+ROUND($C$25*365/12,2)+(Summary!N19/12)*2 -> 183.0327474 | E72: =D$22*MIN(K27,X27)+IF(X27-K27>0,D$23*(X27-K27))+ROUND($F$14*365/12,2)+(Summary!N19/12)*2 -> 347.0066356 | F72: =D$22*MIN(L27,Y27)+IF(Y27-L27>0,D$23*(Y27-L27))+ROUND($F$14*365/12,2)+(Summary!N19/12)*2 -> 198.1622541 | G72: =E$22*MIN(K27,X27)+IF(X27-K27>0,E$23*(X27-K27))+ROUND($F$14*365/12,2)+(Summary!N19/12)*2 -> 343.1744266 | H72: =E$22*MIN(L27,Y27)+IF(Y27-L27>0,E$23*(Y27-L27))+ROUND($F$14*365/12,2)+(Summary!N19/12)*2 -> 196.0471432 | I72: =F$22*MIN(K27,X27)+IF(X27-K27>0,F$23*(X27-K27))+ROUND($F$14*365/12,2)+(Summary!N19/12)*2 -> 343.1744266 | J72: =F$22*MIN(L27,Y27)+IF(Y27-L27>0,F$23*(Y27-L27))+ROUND($F$14*365/12,2)+(Summary!N19/12)*2 -> 196.0471432 | L72: 13 hot | M72: =C$22*MIN(I27,$L$64)+IF($L$64-I27>0,C$23*($L$64-I27))+ROUND($C$25*365/12,2)+(Summary!N19/12)*2 -> 158.1466667 | N72: =C$22*MIN(J27,$L$64)+IF($L$64-J27>0,C$23*($L$64-J27))+ROUND($C$25*365/12,2)+(Summary!N19/12)*2 -> 170.4101223 | O72: =D$22*MIN(I27,$L$64)+IF($L$64-I27>0,D$23*($L$64-I27))+ROUND($F$14*365/12,2)+(Summary!N19/12)*2 -> 174.3266667 | P72: =D$22*MIN(J27,$L$64)+IF($L$64-J27>0,D$23*($L$64-J27))+ROUND($F$14*365/12,2)+(Summary!N19/12)*2 -> 187.7967442 | Q72: =E$22*MIN(I27,$L$64)+IF($L$64-I27>0,E$23*($L$64-I27))+ROUND($F$14*365/12,2)+(Summary!N19/12)*2 -> 172.4865278 | R72: =E$22*MIN(J27,$L$64)+IF($L$64-J27>0,E$23*($L$64-J27))+ROUND($F$14*365/12,2)+(Summary!N19/12)*2 -> 185.8012119 | S72: =F$22*MIN(I27,$L$64)+IF($L$64-I27>0,F$23*($L$64-I27))+ROUND($F$14*365/12,2)+(Summary!N19/12)*2 -> 172.4865278 | T72: =F$22*MIN(J27,$L$64)+IF($L$64-J27>0,F$23*($L$64-J27))+ROUND($F$14*365/12,2)+(Summary!N19/12)*2 -> 185.8012119 | V72: 13 hot | W72: =C$28*MIN(I27,$L$64)+IF($L$64-I27>0,C$29*($L$64-I27))+ROUND($C$31*365/12,2)+(Summary!N19/12)*2 -> 95.69666667 | X72: =C$28*MIN(J27,$L$64)+IF($L$64-J27>0,C$29*($L$64-J27))+ROUND($C$31*365/12,2)+(Summary!N19/12)*2 -> 103.9741447 | Y72: =D$28*MIN(I27,$L$64)+IF($L$64-I27>0,D$29*($L$64-I27))+ROUND($P$14*365/12,2)+(Summary!N19/12)*2 -> 101.7816667 | Z72: =D$28*MIN(J27,$L$64)+IF($L$64-J27>0,D$29*($L$64-J27))+ROUND($P$14*365/12,2)+(Summary!N19/12)*2 -> 110.8738723 | AA72: =E$28*MIN(I27,$L$64)+IF($L$64-I27>0,E$29*($L$64-I27))+ROUND($P$14*365/12,2)+(Summary!N19/12)*2 -> 100.5689239 | AB72: =E$28*MIN(J27,$L$64)+IF($L$64-J27>0,E$29*($L$64-J27))+ROUND($P$14*365/12,2)+(Summary!N19/12)*2 -> 109.5562401 | AC72: =F$28*MIN(I27,$L$64)+IF($L$64-I27>0,F$29*($L$64-I27))+ROUND($P$14*365/12,2)+(Summary!N19/12)*2 -> 100.5689239 | AD72: =F$28*MIN(J27,$L$64)+IF($L$64-J27>0,F$29*($L$64-J27))+ROUND($P$14*365/12,2)+(Summary!N19/12)*2 -> 109.5562401
B73: 14 hot | C73: =C$22*MIN(K28,X28)+IF(X28-K28>0,C$23*(X28-K28))+ROUND($C$25*365/12,2)+(Summary!N19/12)*2 -> 261.8114378 | D73: =C$22*MIN(L28,Y28)+IF(Y28-L28>0,C$23*(Y28-L28))+ROUND($C$25*365/12,2)+(Summary!N19/12)*2 -> 177.0324501 | E73: =D$22*MIN(K28,X28)+IF(X28-K28>0,D$23*(X28-K28))+ROUND($F$14*365/12,2)+(Summary!N19/12)*2 -> 276.2011309 | F73: =D$22*MIN(L28,Y28)+IF(Y28-L28>0,D$23*(Y28-L28))+ROUND($F$14*365/12,2)+(Summary!N19/12)*2 -> 192.4152419 | G73: =E$22*MIN(K28,X28)+IF(X28-K28>0,E$23*(X28-K28))+ROUND($F$14*365/12,2)+(Summary!N19/12)*2 -> 273.1857481 | H73: =E$22*MIN(L28,Y28)+IF(Y28-L28>0,E$23*(Y28-L28))+ROUND($F$14*365/12,2)+(Summary!N19/12)*2 -> 190.3664297 | I73: =F$22*MIN(K28,X28)+IF(X28-K28>0,F$23*(X28-K28))+ROUND($F$14*365/12,2)+(Summary!N19/12)*2 -> 273.1857481 | J73: =F$22*MIN(L28,Y28)+IF(Y28-L28>0,F$23*(Y28-L28))+ROUND($F$14*365/12,2)+(Summary!N19/12)*2 -> 190.3664297 | L73: 14 hot | M73: =C$22*MIN(I28,$L$64)+IF($L$64-I28>0,C$23*($L$64-I28))+ROUND($C$25*365/12,2)+(Summary!N19/12)*2 -> 158.1466667 | N73: =C$22*MIN(J28,$L$64)+IF($L$64-J28>0,C$23*($L$64-J28))+ROUND($C$25*365/12,2)+(Summary!N19/12)*2 -> 171.2781931 | O73: =D$22*MIN(I28,$L$64)+IF($L$64-I28>0,D$23*($L$64-I28))+ROUND($F$14*365/12,2)+(Summary!N19/12)*2 -> 174.3266667 | P73: =D$22*MIN(J28,$L$64)+IF($L$64-J28>0,D$23*($L$64-J28))+ROUND($F$14*365/12,2)+(Summary!N19/12)*2 -> 188.7502259 | Q73: =E$22*MIN(I28,$L$64)+IF($L$64-I28>0,E$23*($L$64-I28))+ROUND($F$14*365/12,2)+(Summary!N19/12)*2 -> 172.4865278 | R73: =E$22*MIN(J28,$L$64)+IF($L$64-J28>0,E$23*($L$64-J28))+ROUND($F$14*365/12,2)+(Summary!N19/12)*2 -> 186.7436941 | S73: =F$22*MIN(I28,$L$64)+IF($L$64-I28>0,F$23*($L$64-I28))+ROUND($F$14*365/12,2)+(Summary!N19/12)*2 -> 172.4865278 | T73: =F$22*MIN(J28,$L$64)+IF($L$64-J28>0,F$23*($L$64-J28))+ROUND($F$14*365/12,2)+(Summary!N19/12)*2 -> 186.7436941 | V73: 14 hot | W73: =C$28*MIN(I28,$L$64)+IF($L$64-I28>0,C$29*($L$64-I28))+ROUND($C$31*365/12,2)+(Summary!N19/12)*2 -> 95.69666667 | X73: =C$28*MIN(J28,$L$64)+IF($L$64-J28>0,C$29*($L$64-J28))+ROUND($C$31*365/12,2)+(Summary!N19/12)*2 -> 104.5600674 | Y73: =D$28*MIN(I28,$L$64)+IF($L$64-I28>0,D$29*($L$64-I28))+ROUND($P$14*365/12,2)+(Summary!N19/12)*2 -> 101.7816667 | Z73: =D$28*MIN(J28,$L$64)+IF($L$64-J28>0,D$29*($L$64-J28))+ROUND($P$14*365/12,2)+(Summary!N19/12)*2 -> 111.5174656 | AA73: =E$28*MIN(I28,$L$64)+IF($L$64-I28>0,E$29*($L$64-I28))+ROUND($P$14*365/12,2)+(Summary!N19/12)*2 -> 100.5689239 | AB73: =E$28*MIN(J28,$L$64)+IF($L$64-J28>0,E$29*($L$64-J28))+ROUND($P$14*365/12,2)+(Summary!N19/12)*2 -> 110.1924088 | AC73: =F$28*MIN(I28,$L$64)+IF($L$64-I28>0,F$29*($L$64-I28))+ROUND($P$14*365/12,2)+(Summary!N19/12)*2 -> 100.5689239 | AD73: =F$28*MIN(J28,$L$64)+IF($L$64-J28>0,F$29*($L$64-J28))+ROUND($P$14*365/12,2)+(Summary!N19/12)*2 -> 110.1924088
B74: 15 hot | C74: =C$22*MIN(K29,X29)+IF(X29-K29>0,C$23*(X29-K29))+ROUND($C$25*365/12,2)+(Summary!N19/12)*2 -> 318.2418316 | D74: =C$22*MIN(L29,Y29)+IF(Y29-L29>0,C$23*(Y29-L29))+ROUND($C$25*365/12,2)+(Summary!N19/12)*2 -> 142.037756 | E74: =D$22*MIN(K29,X29)+IF(X29-K29>0,D$23*(X29-K29))+ROUND($F$14*365/12,2)+(Summary!N19/12)*2 -> 330.271604 | F74: =D$22*MIN(L29,Y29)+IF(Y29-L29>0,D$23*(Y29-L29))+ROUND($F$14*365/12,2)+(Summary!N19/12)*2 -> 158.8977466 | G74: =E$22*MIN(K29,X29)+IF(X29-K29>0,E$23*(X29-K29))+ROUND($F$14*365/12,2)+(Summary!N19/12)*2 -> 326.6324536 | H74: =E$22*MIN(L29,Y29)+IF(Y29-L29>0,E$23*(Y29-L29))+ROUND($F$14*365/12,2)+(Summary!N19/12)*2 -> 157.2355988 | I74: =F$22*MIN(K29,X29)+IF(X29-K29>0,F$23*(X29-K29))+ROUND($F$14*365/12,2)+(Summary!N19/12)*2 -> 326.6324536 | J74: =F$22*MIN(L29,Y29)+IF(Y29-L29>0,F$23*(Y29-L29))+ROUND($F$14*365/12,2)+(Summary!N19/12)*2 -> 157.2355988 | L74: 15 hot | M74: =C$22*MIN(I29,$L$64)+IF($L$64-I29>0,C$23*($L$64-I29))+ROUND($C$25*365/12,2)+(Summary!N19/12)*2 -> 158.1466667 | N74: =C$22*MIN(J29,$L$64)+IF($L$64-J29>0,C$23*($L$64-J29))+ROUND($C$25*365/12,2)+(Summary!N19/12)*2 -> 177.6440453 | O74: =D$22*MIN(I29,$L$64)+IF($L$64-I29>0,D$23*($L$64-I29))+ROUND($F$14*365/12,2)+(Summary!N19/12)*2 -> 174.3266667 | P74: =D$22*MIN(J29,$L$64)+IF($L$64-J29>0,D$23*($L$64-J29))+ROUND($F$14*365/12,2)+(Summary!N19/12)*2 -> 195.7424251 | Q74: =E$22*MIN(I29,$L$64)+IF($L$64-I29>0,E$23*($L$64-I29))+ROUND($F$14*365/12,2)+(Summary!N19/12)*2 -> 172.4865278 | R74: =E$22*MIN(J29,$L$64)+IF($L$64-J29>0,E$23*($L$64-J29))+ROUND($F$14*365/12,2)+(Summary!N19/12)*2 -> 193.6552298 | S74: =F$22*MIN(I29,$L$64)+IF($L$64-I29>0,F$23*($L$64-I29))+ROUND($F$14*365/12,2)+(Summary!N19/12)*2 -> 172.4865278 | T74: =F$22*MIN(J29,$L$64)+IF($L$64-J29>0,F$23*($L$64-J29))+ROUND($F$14*365/12,2)+(Summary!N19/12)*2 -> 193.6552298 | V74: 15 hot | W74: =C$28*MIN(I29,$L$64)+IF($L$64-I29>0,C$29*($L$64-I29))+ROUND($C$31*365/12,2)+(Summary!N19/12)*2 -> 95.69666667 | X74: =C$28*MIN(J29,$L$64)+IF($L$64-J29>0,C$29*($L$64-J29))+ROUND($C$31*365/12,2)+(Summary!N19/12)*2 -> 108.8568336 | Y74: =D$28*MIN(I29,$L$64)+IF($L$64-I29>0,D$29*($L$64-I29))+ROUND($P$14*365/12,2)+(Summary!N19/12)*2 -> 101.7816667 | Z74: =D$28*MIN(J29,$L$64)+IF($L$64-J29>0,D$29*($L$64-J29))+ROUND($P$14*365/12,2)+(Summary!N19/12)*2 -> 116.2371499 | AA74: =E$28*MIN(I29,$L$64)+IF($L$64-I29>0,E$29*($L$64-I29))+ROUND($P$14*365/12,2)+(Summary!N19/12)*2 -> 100.5689239 | AB74: =E$28*MIN(J29,$L$64)+IF($L$64-J29>0,E$29*($L$64-J29))+ROUND($P$14*365/12,2)+(Summary!N19/12)*2 -> 114.8576458 | AC74: =F$28*MIN(I29,$L$64)+IF($L$64-I29>0,F$29*($L$64-I29))+ROUND($P$14*365/12,2)+(Summary!N19/12)*2 -> 100.5689239 | AD74: =F$28*MIN(J29,$L$64)+IF($L$64-J29>0,F$29*($L$64-J29))+ROUND($P$14*365/12,2)+(Summary!N19/12)*2 -> 114.8576458
B75: 16 cool | C75: =C$22*MIN(K30,X30)+IF(X30-K30>0,C$23*(X30-K30))+ROUND($C$25*365/12,2)+(Summary!N19/12)*2 -> 145.1725175 | D75: =C$22*MIN(L30,Y30)+IF(Y30-L30>0,C$23*(Y30-L30))+ROUND($C$25*365/12,2)+(Summary!N19/12)*2 -> 171.0245404 | E75: =D$22*MIN(K30,X30)+IF(X30-K30>0,D$23*(X30-K30))+ROUND($F$14*365/12,2)+(Summary!N19/12)*2 -> 162.4247439 | F75: =D$22*MIN(L30,Y30)+IF(Y30-L30>0,D$23*(Y30-L30))+ROUND($F$14*365/12,2)+(Summary!N19/12)*2 -> 186.6609386 | G75: =E$22*MIN(K30,X30)+IF(X30-K30>0,E$23*(X30-K30))+ROUND($F$14*365/12,2)+(Summary!N19/12)*2 -> 160.721908 | H75: =E$22*MIN(L30,Y30)+IF(Y30-L30>0,E$23*(Y30-L30))+ROUND($F$14*365/12,2)+(Summary!N19/12)*2 -> 184.6785092 | I75: =F$22*MIN(K30,X30)+IF(X30-K30>0,F$23*(X30-K30))+ROUND($F$14*365/12,2)+(Summary!N19/12)*2 -> 160.721908 | J75: =F$22*MIN(L30,Y30)+IF(Y30-L30>0,F$23*(Y30-L30))+ROUND($F$14*365/12,2)+(Summary!N19/12)*2 -> 184.6785092 | L75: 16 cool | M75: =C$22*MIN(I30,$L$64)+IF($L$64-I30>0,C$23*($L$64-I30))+ROUND($C$25*365/12,2)+(Summary!N19/12)*2 -> 163.1761993 | N75: =C$22*MIN(J30,$L$64)+IF($L$64-J30>0,C$23*($L$64-J30))+ROUND($C$25*365/12,2)+(Summary!N19/12)*2 -> 169.8314085 | O75: =D$22*MIN(I30,$L$64)+IF($L$64-I30>0,D$23*($L$64-I30))+ROUND($F$14*365/12,2)+(Summary!N19/12)*2 -> 179.8510634 | P75: =D$22*MIN(J30,$L$64)+IF($L$64-J30>0,D$23*($L$64-J30))+ROUND($F$14*365/12,2)+(Summary!N19/12)*2 -> 187.1610898 | Q75: =E$22*MIN(I30,$L$64)+IF($L$64-I30>0,E$23*($L$64-I30))+ROUND($F$14*365/12,2)+(Summary!N19/12)*2 -> 177.947194 | R75: =E$22*MIN(J30,$L$64)+IF($L$64-J30>0,E$23*($L$64-J30))+ROUND($F$14*365/12,2)+(Summary!N19/12)*2 -> 185.1728905 | S75: =F$22*MIN(I30,$L$64)+IF($L$64-I30>0,F$23*($L$64-I30))+ROUND($F$14*365/12,2)+(Summary!N19/12)*2 -> 177.947194 | T75: =F$22*MIN(J30,$L$64)+IF($L$64-J30>0,F$23*($L$64-J30))+ROUND($F$14*365/12,2)+(Summary!N19/12)*2 -> 185.1728905 | V75: 16 cool | W75: =C$28*MIN(I30,$L$64)+IF($L$64-I30>0,C$29*($L$64-I30))+ROUND($C$31*365/12,2)+(Summary!N19/12)*2 -> 99.09145579 | X75: =C$28*MIN(J30,$L$64)+IF($L$64-J30>0,C$29*($L$64-J30))+ROUND($C$31*365/12,2)+(Summary!N19/12)*2 -> 103.5835296 | Y75: =D$28*MIN(I30,$L$64)+IF($L$64-I30>0,D$29*($L$64-I30))+ROUND($P$14*365/12,2)+(Summary!N19/12)*2 -> 105.5105948 | Z75: =D$28*MIN(J30,$L$64)+IF($L$64-J30>0,D$29*($L$64-J30))+ROUND($P$14*365/12,2)+(Summary!N19/12)*2 -> 110.4448101 | AA75: =E$28*MIN(I30,$L$64)+IF($L$64-I30>0,E$29*($L$64-I30))+ROUND($P$14*365/12,2)+(Summary!N19/12)*2 -> 104.2548344 | AB75: =E$28*MIN(J30,$L$64)+IF($L$64-J30>0,E$29*($L$64-J30))+ROUND($P$14*365/12,2)+(Summary!N19/12)*2 -> 109.1321277 | AC75: =F$28*MIN(I30,$L$64)+IF($L$64-I30>0,F$29*($L$64-I30))+ROUND($P$14*365/12,2)+(Summary!N19/12)*2 -> 104.2548344 | AD75: =F$28*MIN(J30,$L$64)+IF($L$64-J30>0,F$29*($L$64-J30))+ROUND($P$14*365/12,2)+(Summary!N19/12)*2 -> 109.1321277
B76: ALL | C76: =SUMPRODUCT(C67:C75,$AB$22:$AB$30) -> 170.5525392 | D76: =SUMPRODUCT(D67:D75,$AB$22:$AB$30) -> 122.7394486 | E76: =SUMPRODUCT(E67:E75,$AB$22:$AB$30) -> 187.7442538 | F76: 140.414061 | G76: =SUMPRODUCT(G67:G75,$AB$22:$AB$30) -> 185.749327 | H76: 138.9651447 | I76: =SUMPRODUCT(I67:I75,$AB$22:$AB$30) -> 185.749327 | J76: 138.9651447 | L76: ALL | M76: =SUMPRODUCT(M67:M75,$T$22:$T$30) -> 163.1865905 | N76: 172.6631873 | O76: 179.862477 | P76: 190.2714921 | Q76: 177.958476 | R76: 188.2474106 | S76: 177.958476 | T76: 188.2474106 | V76: ALL | W76: =SUMPRODUCT(W67:W75,$U$22:$U$30) -> 97.49991605 | X76: =SUMPRODUCT(X67:X75,$U$22:$U$30) -> 105.0373775 | Y76: 103.7624045 | Z76: 112.041756 | AA76: 102.5268116 | AB76: 110.7106508 | AC76: 102.5268116 | AD76: 110.7106508
C79: All-Electric - CARE
C80: =C50 -> Jan 2025 | E80: 2025-11-15 | G80: Authorized | I80: w/Pending
C81: Summer | D81: Winter | E81: Summer | F81: Winter | G81: Summer | H81: Winter | I81: Summer | J81: Winter
B82: =B52 -> 5 warm | C82: =C$28*MIN(K22,Z22)+IF(Z22-K22>0,C$29*(Z22-K22))+ROUND($C$31*365/12,2)+(Summary!N19/12)*2 -> 65.22108628 | D82: =C$28*MIN(L22,AA22)+IF(AA22-L22>0,C$29*(AA22-L22))+ROUND($C$31*365/12,2)+(Summary!N19/12)*2 -> 81.09158675 | E82: =D$28*MIN(K22,Z22)+IF(Z22-K22>0,D$29*(Z22-K22))+ROUND($P$14*365/12,2)+(Summary!N19/12)*2 -> 71.09151064 | F82: =D$28*MIN(L22,AA22)+IF(AA22-L22>0,D$29*(AA22-L22))+ROUND($P$14*365/12,2)+(Summary!N19/12)*2 -> 87.07375378 | G82: =E$28*MIN(K22,Z22)+IF(Z22-K22>0,E$29*(Z22-K22))+ROUND($P$14*365/12,2)+(Summary!N19/12)*2 -> 70.23281559 | H82: =E$28*MIN(L22,AA22)+IF(AA22-L22>0,E$29*(AA22-L22))+ROUND($P$14*365/12,2)+(Summary!N19/12)*2 -> 86.03068442 | I82: =F$28*MIN(K22,Z22)+IF(Z22-K22>0,F$29*(Z22-K22))+ROUND($P$14*365/12,2)+(Summary!N19/12)*2 -> 70.23281559 | J82: =F$28*MIN(L22,AA22)+IF(AA22-L22>0,F$29*(AA22-L22))+ROUND($P$14*365/12,2)+(Summary!N19/12)*2 -> 86.03068442
B83: 6 cool | C83: =C$28*MIN(K23,Z23)+IF(Z23-K23>0,C$29*(Z23-K23))+ROUND($C$31*365/12,2)+(Summary!N19/12)*2 -> 73.81412083 | D83: =C$28*MIN(L23,AA23)+IF(AA23-L23>0,C$29*(AA23-L23))+ROUND($C$31*365/12,2)+(Summary!N19/12)*2 -> 69.31351055 | E83: =D$28*MIN(K23,Z23)+IF(Z23-K23>0,D$29*(Z23-K23))+ROUND($P$14*365/12,2)+(Summary!N19/12)*2 -> 80.33096646 | F83: =D$28*MIN(L23,AA23)+IF(AA23-L23>0,D$29*(AA23-L23))+ROUND($P$14*365/12,2)+(Summary!N19/12)*2 -> 75.21274928 | G83: =E$28*MIN(K23,Z23)+IF(Z23-K23>0,E$29*(Z23-K23))+ROUND($P$14*365/12,2)+(Summary!N19/12)*2 -> 79.36568323 | H83: =E$28*MIN(L23,AA23)+IF(AA23-L23>0,E$29*(AA23-L23))+ROUND($P$14*365/12,2)+(Summary!N19/12)*2 -> 74.3065108 | I83: =F$28*MIN(K23,Z23)+IF(Z23-K23>0,F$29*(Z23-K23))+ROUND($P$14*365/12,2)+(Summary!N19/12)*2 -> 79.36568323 | J83: =F$28*MIN(L23,AA23)+IF(AA23-L23>0,F$29*(AA23-L23))+ROUND($P$14*365/12,2)+(Summary!N19/12)*2 -> 74.3065108
B84: 8 cool | C84: =C$28*MIN(K24,Z24)+IF(Z24-K24>0,C$29*(Z24-K24))+ROUND($C$31*365/12,2)+(Summary!N19/12)*2 -> 85.10223134 | D84: =C$28*MIN(L24,AA24)+IF(AA24-L24>0,C$29*(AA24-L24))+ROUND($C$31*365/12,2)+(Summary!N19/12)*2 -> 68.60818415 | E84: =D$28*MIN(K24,Z24)+IF(Z24-K24>0,D$29*(Z24-K24))+ROUND($P$14*365/12,2)+(Summary!N19/12)*2 -> 91.77738939 | F84: =D$28*MIN(L24,AA24)+IF(AA24-L24>0,D$29*(AA24-L24))+ROUND($P$14*365/12,2)+(Summary!N19/12)*2 -> 74.50245674 | G84: =E$28*MIN(K24,Z24)+IF(Z24-K24>0,E$29*(Z24-K24))+ROUND($P$14*365/12,2)+(Summary!N19/12)*2 -> 90.68005796 | H84: =E$28*MIN(L24,AA24)+IF(AA24-L24>0,E$29*(AA24-L24))+ROUND($P$14*365/12,2)+(Summary!N19/12)*2 -> 73.60441234 | I84: =F$28*MIN(K24,Z24)+IF(Z24-K24>0,F$29*(Z24-K24))+ROUND($P$14*365/12,2)+(Summary!N19/12)*2 -> 90.68005796 | J84: =F$28*MIN(L24,AA24)+IF(AA24-L24>0,F$29*(AA24-L24))+ROUND($P$14*365/12,2)+(Summary!N19/12)*2 -> 73.60441234
B85: 9 warm | C85: =C$28*MIN(K25,Z25)+IF(Z25-K25>0,C$29*(Z25-K25))+ROUND($C$31*365/12,2)+(Summary!N19/12)*2 -> 106.1209049 | D85: =C$28*MIN(L25,AA25)+IF(AA25-L25>0,C$29*(AA25-L25))+ROUND($C$31*365/12,2)+(Summary!N19/12)*2 -> 69.73827691 | E85: =D$28*MIN(K25,Z25)+IF(Z25-K25>0,D$29*(Z25-K25))+ROUND($P$14*365/12,2)+(Summary!N19/12)*2 -> 113.0409413 | F85: =D$28*MIN(L25,AA25)+IF(AA25-L25>0,D$29*(AA25-L25))+ROUND($P$14*365/12,2)+(Summary!N19/12)*2 -> 75.64050637 | G85: =E$28*MIN(K25,Z25)+IF(Z25-K25>0,E$29*(Z25-K25))+ROUND($P$14*365/12,2)+(Summary!N19/12)*2 -> 111.6983093 | H85: =E$28*MIN(L25,AA25)+IF(AA25-L25>0,E$29*(AA25-L25))+ROUND($P$14*365/12,2)+(Summary!N19/12)*2 -> 74.72933321 | I85: =F$28*MIN(K25,Z25)+IF(Z25-K25>0,F$29*(Z25-K25))+ROUND($P$14*365/12,2)+(Summary!N19/12)*2 -> 111.6983093 | J85: =F$28*MIN(L25,AA25)+IF(AA25-L25>0,F$29*(AA25-L25))+ROUND($P$14*365/12,2)+(Summary!N19/12)*2 -> 74.72933321
B86: 10 hot (Sec 745) | C86: =C$28*MIN(K26,Z26)+IF(Z26-K26>0,C$29*(Z26-K26))+ROUND($C$31*365/12,2)+(Summary!N19/12)*2 -> 140.5151579 | D86: =C$28*MIN(L26,AA26)+IF(AA26-L26>0,C$29*(AA26-L26))+ROUND($C$31*365/12,2)+(Summary!N19/12)*2 -> 80.27071156 | E86: =D$28*MIN(K26,Z26)+IF(Z26-K26>0,D$29*(Z26-K26))+ROUND($P$14*365/12,2)+(Summary!N19/12)*2 -> 147.9525538 | F86: =D$28*MIN(L26,AA26)+IF(AA26-L26>0,D$29*(AA26-L26))+ROUND($P$14*365/12,2)+(Summary!N19/12)*2 -> 86.24709888 | G86: =E$28*MIN(K26,Z26)+IF(Z26-K26>0,E$29*(Z26-K26))+ROUND($P$14*365/12,2)+(Summary!N19/12)*2 -> 146.2071746 | H86: =E$28*MIN(L26,AA26)+IF(AA26-L26>0,E$29*(AA26-L26))+ROUND($P$14*365/12,2)+(Summary!N19/12)*2 -> 85.21356597 | I86: =F$28*MIN(K26,Z26)+IF(Z26-K26>0,F$29*(Z26-K26))+ROUND($P$14*365/12,2)+(Summary!N19/12)*2 -> 146.2071746 | J86: =F$28*MIN(L26,AA26)+IF(AA26-L26>0,F$29*(AA26-L26))+ROUND($P$14*365/12,2)+(Summary!N19/12)*2 -> 85.21356597
B87: 13 hot | C87: =C$28*MIN(K27,Z27)+IF(Z27-K27>0,C$29*(Z27-K27))+ROUND($C$31*365/12,2)+(Summary!N19/12)*2 -> 206.9051786 | D87: =C$28*MIN(L27,AA27)+IF(AA27-L27>0,C$29*(AA27-L27))+ROUND($C$31*365/12,2)+(Summary!N19/12)*2 -> 106.0765479 | E87: =D$28*MIN(K27,Z27)+IF(Z27-K27>0,D$29*(Z27-K27))+ROUND($P$14*365/12,2)+(Summary!N19/12)*2 -> 215.1040967 | F87: =D$28*MIN(L27,AA27)+IF(AA27-L27>0,D$29*(AA27-L27))+ROUND($P$14*365/12,2)+(Summary!N19/12)*2 -> 112.2346317 | G87: =E$28*MIN(K27,Z27)+IF(Z27-K27>0,E$29*(Z27-K27))+ROUND($P$14*365/12,2)+(Summary!N19/12)*2 -> 212.5840441 | H87: =E$28*MIN(L27,AA27)+IF(AA27-L27>0,E$29*(AA27-L27))+ROUND($P$14*365/12,2)+(Summary!N19/12)*2 -> 110.9013015 | I87: =F$28*MIN(K27,Z27)+IF(Z27-K27>0,F$29*(Z27-K27))+ROUND($P$14*365/12,2)+(Summary!N19/12)*2 -> 212.5840441 | J87: =F$28*MIN(L27,AA27)+IF(AA27-L27>0,F$29*(AA27-L27))+ROUND($P$14*365/12,2)+(Summary!N19/12)*2 -> 110.9013015
B88: 14 hot | C88: =C$28*MIN(K28,Z28)+IF(Z28-K28>0,C$29*(Z28-K28))+ROUND($C$31*365/12,2)+(Summary!N19/12)*2 -> 195.6352795 | D88: =C$28*MIN(L28,AA28)+IF(AA28-L28>0,C$29*(AA28-L28))+ROUND($C$31*365/12,2)+(Summary!N19/12)*2 -> 129.6431085 | E88: =D$28*MIN(K28,Z28)+IF(Z28-K28>0,D$29*(Z28-K28))+ROUND($P$14*365/12,2)+(Summary!N19/12)*2 -> 204.2906675 | F88: =D$28*MIN(L28,AA28)+IF(AA28-L28>0,D$29*(AA28-L28))+ROUND($P$14*365/12,2)+(Summary!N19/12)*2 -> 136.0604469 | G88: =E$28*MIN(K28,Z28)+IF(Z28-K28>0,E$29*(Z28-K28))+ROUND($P$14*365/12,2)+(Summary!N19/12)*2 -> 201.8953606 | H88: =E$28*MIN(L28,AA28)+IF(AA28-L28>0,E$29*(AA28-L28))+ROUND($P$14*365/12,2)+(Summary!N19/12)*2 -> 134.4522574 | I88: =F$28*MIN(K28,Z28)+IF(Z28-K28>0,F$29*(Z28-K28))+ROUND($P$14*365/12,2)+(Summary!N19/12)*2 -> 201.8953606 | J88: =F$28*MIN(L28,AA28)+IF(AA28-L28>0,F$29*(AA28-L28))+ROUND($P$14*365/12,2)+(Summary!N19/12)*2 -> 134.4522574
B89: 15 hot | C89: =C$28*MIN(K29,Z29)+IF(Z29-K29>0,C$29*(Z29-K29))+ROUND($C$31*365/12,2)+(Summary!N19/12)*2 -> 248.5974433 | D89: =C$28*MIN(L29,AA29)+IF(AA29-L29>0,C$29*(AA29-L29))+ROUND($C$31*365/12,2)+(Summary!N19/12)*2 -> 99.9353202 | E89: =D$28*MIN(K29,Z29)+IF(Z29-K29>0,D$29*(Z29-K29))+ROUND($P$14*365/12,2)+(Summary!N19/12)*2 -> 258.013386 | F89: =D$28*MIN(L29,AA29)+IF(AA29-L29>0,D$29*(AA29-L29))+ROUND($P$14*365/12,2)+(Summary!N19/12)*2 -> 106.0501642 | G89: =E$28*MIN(K29,Z29)+IF(Z29-K29>0,E$29*(Z29-K29))+ROUND($P$14*365/12,2)+(Summary!N19/12)*2 -> 254.9983233 | H89: =E$28*MIN(L29,AA29)+IF(AA29-L29>0,E$29*(AA29-L29))+ROUND($P$14*365/12,2)+(Summary!N19/12)*2 -> 104.7881792 | I89: =F$28*MIN(K29,Z29)+IF(Z29-K29>0,F$29*(Z29-K29))+ROUND($P$14*365/12,2)+(Summary!N19/12)*2 -> 254.9983233 | J89: =F$28*MIN(L29,AA29)+IF(AA29-L29>0,F$29*(AA29-L29))+ROUND($P$14*365/12,2)+(Summary!N19/12)*2 -> 104.7881792
B90: 16 cool | C90: =C$28*MIN(K30,Z30)+IF(Z30-K30>0,C$29*(Z30-K30))+ROUND($C$31*365/12,2)+(Summary!N19/12)*2 -> 155.7379709 | D90: =C$28*MIN(L30,AA30)+IF(AA30-L30>0,C$29*(AA30-L30))+ROUND($C$31*365/12,2)+(Summary!N19/12)*2 -> 110.3344052 | E90: =D$28*MIN(K30,Z30)+IF(Z30-K30>0,D$29*(Z30-K30))+ROUND($P$14*365/12,2)+(Summary!N19/12)*2 -> 163.9373693 | F90: =D$28*MIN(L30,AA30)+IF(AA30-L30>0,D$29*(AA30-L30))+ROUND($P$14*365/12,2)+(Summary!N19/12)*2 -> 116.5224681 | G90: =E$28*MIN(K30,Z30)+IF(Z30-K30>0,E$29*(Z30-K30))+ROUND($P$14*365/12,2)+(Summary!N19/12)*2 -> 162.0075861 | H90: =E$28*MIN(L30,AA30)+IF(AA30-L30>0,E$29*(AA30-L30))+ROUND($P$14*365/12,2)+(Summary!N19/12)*2 -> 115.1396726 | I90: =F$28*MIN(K30,Z30)+IF(Z30-K30>0,F$29*(Z30-K30))+ROUND($P$14*365/12,2)+(Summary!N19/12)*2 -> 162.0075861 | J90: =F$28*MIN(L30,AA30)+IF(AA30-L30>0,F$29*(AA30-L30))+ROUND($P$14*365/12,2)+(Summary!N19/12)*2 -> 115.1396726
B91: ALL | C91: =SUMPRODUCT(C82:C90,$AC$22:$AC$30) -> 131.764751 | D91: =SUMPRODUCT(D82:D90,$AC$22:$AC$30) -> 82.66851574 | E91: 139.1424317 | F91: 88.66841013 | G91: 137.4986878 | H91: 87.6069445 | I91: 137.4986878 | J91: =SUMPRODUCT(J82:J90,$AC$22:$AC$30) -> 87.6069445
F95: 2025 | G95: 2026 | H95: 2027 | I95: 2028 | J95: 2029 | M95: =F95 -> 2025 | N95: =G95 -> 2026 | O95: 2027 | P95: 2028 | Q95: 2029
F96: Non-CARE | G96: Non-CARE | H96: Non-CARE | I96: Non-CARE | J96: Non-CARE | M96: CARE | N96: CARE | O96: CARE | P96: CARE | Q96: CARE
A97: 3 | D97: Baseline - Summer | F97: 3085.670937 | G97: 3384.815998 | H97: =H$107*(G97/SUM(G$97:G$102)) -> 3521.344229 | I97: =I$107*(H97/SUM(H$97:H$102)) -> 3594.382712 | J97: =I97 -> 3594.382712 | M97: 1783.360129 | N97: 1757.813252 | O97: =O$107*(N97/SUM(N$97:N$102)) -> 1828.715521 | P97: =P$107*(O97/SUM(O$97:O$102)) -> 1866.646095 | Q97: =P97 -> 1866.646095
A98: =A97+1 -> 4 | D98: - Winter | F98: 4290.291273 | G98: 4580.554584 | H98: =H$107*(G98/SUM(G$97:G$102)) -> 4765.313523 | I98: 4864.153979 | J98: =I98 -> 4864.153979 | M98: 2747.277654 | N98: 2693.885245 | O98: =O$107*(N98/SUM(N$97:N$102)) -> 2802.544442 | P98: 2860.673832 | Q98: =P98 -> 2860.673832
A99: =A98+1 -> 5 | D99: 101% - 400% of Baseline - Summer | F99: 1911.92882 | G99: 2083.14479 | H99: =H$107*(G99/SUM(G$97:G$102)) -> 2167.169468 | I99: 2212.120134 | J99: 2212.120134 | M99: 745.4907551 | N99: 727.6748049 | O99: =O$107*(N99/SUM(N$97:N$102)) -> 757.0259288 | P99: 772.7278942 | Q99: 772.7278942
A100: 6 | D100: - Winter | F100: 2615.804258 | G100: 2778.860838 | H100: =H$107*(G100/SUM(G$97:G$102)) -> 2890.947567 | I100: 2950.910584 | J100: 2950.910584 | M100: 1112.023766 | N100: 1081.659231 | O100: =O$107*(N100/SUM(N$97:N$102)) -> 1125.288492 | P100: 1148.62883 | Q100: 1148.62883
A101: 7 | D101: 401% of Baseline - Summer | F101: 151.6325582 | G101: 165.1338263 | H101: =H$107*(G101/SUM(G$97:G$102)) -> 171.794581 | I101: 175.3578838 | J101: 175.3578838 | M101: 8.477005966 | N101: 8.254607085 | O101: =O$107*(N101/SUM(N$97:N$102)) -> 8.587560754 | P101: 8.765680917 | Q101: 8.765680917
A102: 8 | D102: - Winter | F102: 262.8967474 | G102: 277.8739375 | H102: =H$107*(G102/SUM(G$97:G$102)) -> 289.0821205 | I102: 295.0781601 | J102: 295.0781601 | M102: 21.08018443 | N102: 20.22839612 | O102: =O$107*(N102/SUM(N$97:N$102)) -> 21.0443185 | P102: 21.48081235 | Q102: 21.48081235
A103: 9
A104: 10 | D104: Basic Charge - Single-Family Residence | F104: 18879671.95 | G104: 19072895.18 | H104: =$F107/SUM($F$107:$F$108)*H$108 -> 19268095.95 | I104: =$F107/SUM($F$107:$F$108)*I$108 -> 19465294.49 | J104: 19465294.49 | M104: 6433922.126 | N104: 6438624.758 | O104: =$M107/SUM($M$107:$M$108)*O$108 -> 6443330.826 | P104: 6448040.334 | Q104: 6448040.334
A105: 11 | D105: Basic Charge - Multi-Family Residence | F105: 8588406.524 | G105: 8676304.22 | H105: =$F108/SUM($F$107:$F$108)*H$108 -> 8765101.5 | I105: 8854807.573 | J105: 8854807.573 | M105: 5402078.398 | N105: 5406026.843 | O105: 5409978.173 | P105: 5413932.391 | Q105: 5413932.391
F107: =1-F108 -> 0.6873313679 | G107: =SUM(G97:G102) -> 13270.38397 | H107: =G107/'SAR and RAR'!$K$59*'SAR and RAR'!$K$60 -> 13805.65149 | I107: =H107/'SAR and RAR'!$K$60*'SAR and RAR'!$K$61 -> 14092.00345 | J107: =I107 -> 14092.00345 | M107: =1-M108 -> 0.5435892059 | N107: =SUM(N97:N102) -> 6289.515537 | O107: =N107/'SAR and RAR'!$K$59*'SAR and RAR'!$K$60 -> 6543.206264 | P107: =O107/'SAR and RAR'!$K$60*'SAR and RAR'!$K$61 -> 6678.923145 | Q107: =P107 -> 6678.923145
E108: Customers | F108: 0.3126686321 | G108: =SUM(G104:G105) -> 27749199.4 | H108: =(SUM(G104:G105)/SUM(F104:F105))*SUM(G104:G105) -> 28033197.45 | I108: =(SUM(G104:G105)/SUM(F104:F105))*H108 -> 28320102.06 | J108: =I108 -> 28320102.06 | M108: 0.4564107941 | N108: =SUM(N104:N105) -> 11844651.6 | O108: =(SUM(N104:N105)/SUM(M104:M105))*SUM(N104:N105) -> 11853309 | P108: =(SUM(O104:O105)/SUM(N104:N105))*SUM(O104:O105) -> 11861972.72 | Q108: =P108 -> 11861972.72

Sheet Simple Bill Insert Calc (2)
B2: Inputs: | K2: Assumptions:
K3: Current Effective Rates | M3: =Summary!N3 -> 2025-11-15
C4: Baseline Region - (Residential bill) | D4: 9 warm | K4: Sales Forecast | M4: 2025
C5: Typical residential average usage kWh/month | D5: 500 | K5: Residential bill calculated using | M5: Schedule D, Basic, Single Family
C6: Include CA Climate Credit in Rates | D6: N | K6: Non-CARE bill impact calculated with average summer usage of | O6: =IF($D$4="All",SUMPRODUCT('Res Bill Impact (2)'!P$22:P$30,'Res Bill Impact (2)'!$T$22:$T$30),VLOOKUP(D$4,'Res Bill Impact (2)'!$O$22:$S$30,2,FALSE)) -> 736.1896342 | P6: kWh per month
D7: Revenue Change | K7: Non-CARE bill impact calculated with average winter usage of | O7: =IF($D$4="All",SUMPRODUCT('Res Bill Impact (2)'!Q$22:Q$30,'Res Bill Impact (2)'!$T$22:$T$30),VLOOKUP(D$4,'Res Bill Impact (2)'!$O$22:$S$30,3,FALSE)) -> 454.0542708 | P7: kWh per month
C8: Generation | K8: CARE bill impact calculated with average summer usage of | O8: =IF($D$4="All",SUMPRODUCT('Res Bill Impact (2)'!R$22:R$30,'Res Bill Impact (2)'!$U$22:$U$30),VLOOKUP(D$4,'Res Bill Impact (2)'!$O$22:$S$30,4,FALSE)) -> 685.496621 | P8: kWh per month
C9: Distribution | K9: CARE bill impact calculated with average winter usage of | O9: =IF($D$4="All",SUMPRODUCT('Res Bill Impact (2)'!S$22:S$30,'Res Bill Impact (2)'!$U$22:$U$30),VLOOKUP(D$4,'Res Bill Impact (2)'!$O$22:$S$30,5,FALSE)) -> 424.2446352 | P9: kWh per month
C10: Nuclear | K10: Essential Use (Basic) bill impact calculated with average summer usage of | O10: =IF($D$4="All",SUMPRODUCT('Res Bill Impact (2)'!I$22:I$30,'Res Bill Impact (2)'!$T$22:$T$30),VLOOKUP($D$4,'Res Bill Impact (2)'!$H$22:$L$30,2,FALSE)) -> 514.0473 | P10: kWh per month
C11: Public Purpose | K11: Essential Use (Basic) bill impact calculated with average winter usage of | O11: =IF($D$4="All",SUMPRODUCT('Res Bill Impact (2)'!J$22:J$30,'Res Bill Impact (2)'!$T$22:$T$30),VLOOKUP($D$4,'Res Bill Impact (2)'!$H$22:$L$30,3,FALSE)) -> 365.004 | P11: kWh per month
C12: DCPP | K12: Essential Use (All-Electric) bill impact calculated with average summer usage of | O12: =IF($D$4="All",SUMPRODUCT('Res Bill Impact (2)'!K$22:K$30,'Res Bill Impact (2)'!$T$22:$T$30),VLOOKUP($D$4,'Res Bill Impact (2)'!$H$22:$L$30,4,FALSE)) -> 380.2125 | P12: kWh per month
C13: New System Gen | K13: Essential Use (All-Electric) bill impact calculated with average winter usage of | O13: =IF($D$4="All",SUMPRODUCT('Res Bill Impact (2)'!L$22:L$30,'Res Bill Impact (2)'!$T$22:$T$30),VLOOKUP($D$4,'Res Bill Impact (2)'!$H$22:$L$30,5,FALSE)) -> 422.7963 | P13: kWh per month
C14: FERC | K14: Average monthly usage is for all customers (Non-CARE and CARE) based on seasonal usage in | Q14: 2024
C15: TOTCA | K15: Summer season | M15: 4 | N15: months
C16: GHG Revenue | K16: Winter Season | M16: 8 | N16: months
C17: DWR | K17: Residential Bi-Annual Climate Credit | M17: =Summary!N19 -> -56
C18: PUCRF
C19: SECURITIZATION
C20: Total | D20: =SUM(D8:D19) -> 0
B21: Outputs:
D22: (A) | E22: (B) | F22: (C) | G22: (C)/(A) | H22: (C)/(B) | L22: (A) | M22: (B) | N22: (C) | O22: (C)/(A) | P22: (C)/(B)
B23: Bundled Average Rates - ¢/kWh | J23: Total System (Bundled and Unbundled) Average Rates - ¢/kWh
B24: Customer Group | D24: =Summary!D32 -> 2025-01-01 | E24: =M3 -> 2025-11-15 | F24: Proposed | G24: % Change over 1/1/2025 | H24: % Change over Current | J24: Customer Group | L24: =$D$24 -> 2025-01-01 | M24: =$E$24 -> 2025-11-15 | N24: Proposed | O24: =$G$24 -> % Change over 1/1/2025 | P24: % Change over Current
B25: Residential | D25: =IF(D6="Y",'SAR and RAR'!W28,'SAR and RAR'!X28) -> 31.62973815 | E25: ='SAR and RAR (2)'!F24 -> 35.26067261 | F25: ='SAR and RAR (2)'!G24 -> 35.26067261 | G25: =$F25/D25-1 -> 0.1147949582 | H25: 0 | J25: Total Residential (RAR) | L25: =IF(D6="Y",'SAR and RAR'!Z28,'SAR and RAR'!AA28) -> 28.36130718 | M25: ='SAR and RAR (2)'!N24 -> 31.47521736 | N25: ='SAR and RAR (2)'!O24 -> 31.47521736 | O25: =$N25/L25-1 -> 0.109794311 | P25: 0
C26: Small Commercial | D26: =IF(D6="Y",'SAR and AR (GS1)'!W28,'SAR and AR (GS1)'!X28) -> 29.17406766 | E26: ='SAR and AR (GS1) (2)'!G24 -> 31.98340855 | F26: ='SAR and AR (GS1) (2)'!H24 -> 31.98340855 | G26: 0.09629582421 | H26: 0 | K26: Small Commercial (AR) | L26: =IF(D6="Y",'SAR and AR (GS1)'!Z28,'SAR and AR (GS1)'!AA28) -> 25.77950096 | M26: ='SAR and AR (GS1) (2)'!O24 -> 28.07280751 | N26: ='SAR and AR (GS1) (2)'!P24 -> 28.07280751 | O26: 0.08895853153 | P26: 0
B27: System | D27: =IF(D6="Y",'SAR and RAR'!W29,'SAR and RAR'!X29) -> 27.30660685 | E27: ='SAR and RAR (2)'!F25 -> 30.16320305 | F27: ='SAR and RAR (2)'!G25 -> 30.16320305 | G27: 0.1046119063 | H27: 0 | J27: Total System (SAR) | L27: =IF(D6="Y",'SAR and RAR'!Z29,'SAR and RAR'!AA29) -> 22.91911704 | M27: ='SAR and RAR (2)'!N25 -> 25.12602979 | N27: ='SAR and RAR (2)'!O25 -> 25.12602979 | O27: 0.09629135097 | P27: 0
B30: Bundled Residential Monthly Average Bills
D31: =$D$24 -> 2025-01-01 | E31: =$E$24 -> 2025-11-15 | F31: Proposed | G31: =$G$24 -> % Change over 1/1/2025 | H31: % Change over Current
B32: Non-CARE | D32: =((D39*4)+(D45*8))/12 -> 186.8593137 | E32: =((E39*4)+(E45*8))/12 -> 203.611794 | F32: 203.611794 | G32: =$F32/D32-1 -> 0.08965290511 | H32: 0
B33: CARE | D33: 104.2673392 | E33: 110.9797794 | F33: 110.9797794 | G33: 0.06437720814 | H33: 0
B34: Total | D34: 157.9521226 | E34: 171.1905889 | F34: 171.1905889 | G34: 0.08381315843 | H34: 0
B36: Seasonality:
B37: Bundled Residential Monthly Average Bills - Summer
D38: =$D$24 -> 2025-01-01 | E38: =$E$24 -> 2025-11-15 | F38: Proposed | G38: =$G$24 -> % Change over 1/1/2025 | H38: % Change over Current
B39: Non-CARE | D39: =VLOOKUP($D$4,'Res Bill Impact (2)'!$B$37:$H$46,2,FALSE) -> 257.9491103 | E39: =VLOOKUP($D$4,'Res Bill Impact (2)'!$B$37:$H$46,4,FALSE) -> 272.8875363 | F39: =VLOOKUP($D$4,'Res Bill Impact (2)'!$B$37:$H$46,6,FALSE) -> 272.8875363 | G39: =$F39/D39-1 -> 0.05791229897 | H39: 0
B40: CARE | D40: =VLOOKUP($D$4,'Res Bill Impact (2)'!$B$52:$H$61,2,FALSE) -> 145.4334121 | E40: =VLOOKUP($D$4,'Res Bill Impact (2)'!$B$52:$H$61,4,FALSE) -> 152.8746518 | F40: =VLOOKUP($D$4,'Res Bill Impact (2)'!$B$52:$H$61,6,FALSE) -> 152.8746518 | G40: 0.05116595722 | H40: 0
B41: Total | D41: =D39*0.65+D40*0.35 -> 218.5686159 | E41: =E39*0.65+E40*0.35 -> 230.8830267 | F41: =F39*0.65+F40*0.35 -> 230.8830267 | G41: 0.05634116661 | H41: 0
B43: Bundled Residential Monthly Average Bills - Winter
D44: =$D$24 -> 2025-01-01 | E44: =$E$24 -> 2025-11-15 | F44: Proposed | G44: =$G$24 -> % Change over 1/1/2025 | H44: % Change over Current
B45: Non-CARE | D45: =VLOOKUP($D$4,'Res Bill Impact (2)'!$B$37:$H$46,3,FALSE) -> 151.3144154 | E45: =VLOOKUP($D$4,'Res Bill Impact (2)'!$B$37:$H$46,5,FALSE) -> 168.9739229 | F45: =VLOOKUP($D$4,'Res Bill Impact (2)'!$B$37:$H$46,7,FALSE) -> 168.9739229 | G45: =$F45/D45-1 -> 0.1167073701 | H45: 0
B46: CARE | D46: =VLOOKUP($D$4,'Res Bill Impact (2)'!$B$52:$H$61,3,FALSE) -> 83.68430279 | E46: =VLOOKUP($D$4,'Res Bill Impact (2)'!$B$52:$H$61,5,FALSE) -> 90.03234322 | F46: =VLOOKUP($D$4,'Res Bill Impact (2)'!$B$52:$H$61,7,FALSE) -> 90.03234322 | G46: 0.07585700324 | H46: 0
B47: Total | D47: =D45*0.65+D46*0.35 -> 127.643876 | E47: =E45*0.65+E46*0.35 -> 141.34437 | F47: =F45*0.65+F46*0.35 -> 141.34437 | G47: 0.1073337354 | H47: 0
B50: Bundled Residential Monthly Average Bills
D51: =$D$24 -> 2025-01-01 | E51: =$E$24 -> 2025-11-15 | F51: =$F$24 -> Proposed | G51: =$G$24 -> % Change over 1/1/2025 | H51: % Change over Current
B52: Essential Use (Basic) - Non-CARE | D52: =((D59*4)+(D66*8))/12 -> 129.7299798 | E52: 147.1095073 | F52: 147.1095073 | G52: =$F52/D52-1 -> 0.1339669329 | H52: 0
B53: Essential Use (Basic) - CARE | D53: 77.88462184 | E53: 83.84420894 | F53: 83.84420894 | G53: 0.07651814897 | H53: 0
B54: Essential Use (All-Electric) - Non-CARE | D54: 127.7037209 | E54: 145.168781 | F54: 145.168781 | G54: 0.1367623431 | H54: 0
B55: Essential Use (All-Electric) - CARE | D55: =((D62*4)+(D69*8))/12 -> 76.61452959 | E55: =((E62*4)+(E69*8))/12 -> 82.56517409 | F55: =((F62*4)+(F69*8))/12 -> 82.56517409 | G55: 0.0776699215 | H55: 0
B57: Bundled Residential Monthly Average Bills - Summer
D58: =$D$24 -> 2025-01-01 | E58: =$E$24 -> 2025-11-15 | F58: =$F$24 -> Proposed | G58: =$G$24 -> % Change over 1/1/2025 | H58: % Change over Current
B59: Essential Use (Basic) - Non-CARE | D59: =VLOOKUP($D$4,'Res Bill Impact (2)'!$J$37:$P$46,2,FALSE) -> 162.8255414 | E59: =VLOOKUP($D$4,'Res Bill Impact (2)'!$J$37:$P$46,4,FALSE) -> 178.8080363 | F59: =VLOOKUP($D$4,'Res Bill Impact (2)'!$J$37:$P$46,6,FALSE) -> 178.8080363 | G59: =$F59/D59-1 -> 0.0981571738 | H59: 0
B60: Essential Use (Basic) - CARE | D60: =VLOOKUP($D$4,'Res Bill Impact (2)'!$R$37:$X$46,2,FALSE) -> 98.62946196 | E60: =VLOOKUP($D$4,'Res Bill Impact (2)'!$R$37:$X$46,4,FALSE) -> 104.7351115 | F60: =VLOOKUP($D$4,'Res Bill Impact (2)'!$R$37:$X$46,6,FALSE) -> 104.7351115 | G60: 0.06190492587 | H60: 0
B61: Essential Use (All-Electric) - Non-CARE | D61: =VLOOKUP($D$4,'Res Bill Impact (2)'!$J$52:$P$61,2,FALSE) -> 118.2478462 | E61: =VLOOKUP($D$4,'Res Bill Impact (2)'!$J$52:$P$61,4,FALSE) -> 136.1120584 | F61: =VLOOKUP($D$4,'Res Bill Impact (2)'!$J$52:$P$61,6,FALSE) -> 136.1120584 | G61: 0.1510743141 | H61: 0
B62: Essential Use (All-Electric) - CARE | D62: =VLOOKUP($D$4,'Res Bill Impact (2)'!$R$52:$X$61,2,FALSE) -> 70.68743242 | E62: =VLOOKUP($D$4,'Res Bill Impact (2)'!$R$52:$X$61,4,FALSE) -> 76.59634479 | F62: =VLOOKUP($D$4,'Res Bill Impact (2)'!$R$52:$X$61,6,FALSE) -> 76.59634479 | G62: 0.08359212059 | H62: 0
B64: Bundled Residential Monthly Average Bills - Winter
D65: =$D$24 -> 2025-01-01 | E65: =$E$24 -> 2025-11-15 | F65: =$F$24 -> Proposed | G65: =$G$24 -> % Change over 1/1/2025 | H65: % Change over Current
B66: Essential Use (Basic) - Non-CARE | D66: =VLOOKUP($D$4,'Res Bill Impact (2)'!$J$37:$P$46,3,FALSE) -> 113.182199 | E66: =VLOOKUP($D$4,'Res Bill Impact (2)'!$J$37:$P$46,5,FALSE) -> 131.2602427 | F66: =VLOOKUP($D$4,'Res Bill Impact (2)'!$J$37:$P$46,7,FALSE) -> 131.2602427 | G66: =$F66/D66-1 -> 0.1597251504 | H66: 0
B67: Essential Use (Basic) - CARE | D67: =VLOOKUP($D$4,'Res Bill Impact (2)'!$R$37:$X$46,3,FALSE) -> 67.51220179 | E67: =VLOOKUP($D$4,'Res Bill Impact (2)'!$R$37:$X$46,5,FALSE) -> 73.39875767 | F67: =VLOOKUP($D$4,'Res Bill Impact (2)'!$R$37:$X$46,7,FALSE) -> 73.39875767 | G67: 0.08719247372 | H67: 0
B68: Essential Use (All-Electric) - Non-CARE | D68: =VLOOKUP($D$4,'Res Bill Impact (2)'!$J$52:$P$61,3,FALSE) -> 132.4316583 | E68: =VLOOKUP($D$4,'Res Bill Impact (2)'!$J$52:$P$61,5,FALSE) -> 149.6971423 | F68: =VLOOKUP($D$4,'Res Bill Impact (2)'!$J$52:$P$61,7,FALSE) -> 149.6971423 | G68: 0.1303727843 | H68: 0
B69: Essential Use (All-Electric) - CARE | D69: =VLOOKUP($D$4,'Res Bill Impact (2)'!$R$52:$X$61,3,FALSE) -> 79.57807818 | E69: =VLOOKUP($D$4,'Res Bill Impact (2)'!$R$52:$X$61,5,FALSE) -> 85.54958874 | F69: =VLOOKUP($D$4,'Res Bill Impact (2)'!$R$52:$X$61,7,FALSE) -> 85.54958874 | G69: 0.0750396428 | H69: 0
B72: Bundled Residential Monthly Average Bills
D73: =$D$24 -> 2025-01-01 | E73: =$E$24 -> 2025-11-15 | F73: =$F$24 -> Proposed | G73: =$G$24 -> % Change over 1/1/2025 | H73: % Change over Current
B74: =D5&"kWh Monthly Usage - Non-CARE" -> 500kWh Monthly Usage - Non-CARE | D74: =((D79*4)+(D84*8))/12 -> 166.708113 | E74: 183.730488 | F74: 183.730488 | G74: =$F74/D74-1 -> 0.102108858 | H74: 0
B75: =D5&"kWh Monthly Usage - CARE" -> 500kWh Monthly Usage - CARE | D75: 101.4753954 | E75: 108.1291786 | F75: 108.1291786 | G75: 0.06557040865 | H75: 0
B77: Bundled Residential Monthly Average Bills - Summer
D78: =$D$24 -> 2025-01-01 | E78: =$E$24 -> 2025-11-15 | F78: =$F$24 -> Proposed | G78: =$G$24 -> % Change over 1/1/2025 | H78: % Change over Current
B79: =D5&"kWh Monthly Usage - Non-CARE" -> 500kWh Monthly Usage - Non-CARE | D79: =VLOOKUP($D$4,'Res Bill Impact (2)'!$J$67:$P$76,2,FALSE) -> 158.1466667 | E79: =VLOOKUP($D$4,'Res Bill Impact (2)'!$J$67:$P$76,4,FALSE) -> 174.3266667 | F79: =VLOOKUP($D$4,'Res Bill Impact (2)'!$J$67:$P$76,6,FALSE) -> 174.3266667 | G79: =$F79/D79-1 -> 0.1023100919 | H79: 0
B80: =D5&"kWh Monthly Usage - CARE" -> 500kWh Monthly Usage - CARE | D80: =VLOOKUP($D$4,'Res Bill Impact (2)'!$R$67:$X$76,2,FALSE) -> 95.69666667 | E80: =VLOOKUP($D$4,'Res Bill Impact (2)'!$R$67:$X$76,4,FALSE) -> 101.7816667 | F80: =VLOOKUP($D$4,'Res Bill Impact (2)'!$R$67:$X$76,6,FALSE) -> 101.7816667 | G80: 0.06358633181 | H80: 0
B82: Bundled Residential Monthly Average Bills - Winter
D83: =$D$24 -> 2025-01-01 | E83: =$E$24 -> 2025-11-15 | F83: =$F$24 -> Proposed | G83: =$G$24 -> % Change over 1/1/2025 | H83: % Change over Current
B84: =D5&"kWh Monthly Usage - Non-CARE" -> 500kWh Monthly Usage - Non-CARE | D84: =VLOOKUP($D$4,'Res Bill Impact (2)'!$J$67:$P$76,3,FALSE) -> 170.9888361 | E84: =VLOOKUP($D$4,'Res Bill Impact (2)'!$J$67:$P$76,5,FALSE) -> 188.4323987 | F84: =VLOOKUP($D$4,'Res Bill Impact (2)'!$J$67:$P$76,7,FALSE) -> 188.4323987 | G84: =$F84/D84-1 -> 0.1020157979 | H84: 0
B85: =D5&"kWh Monthly Usage - CARE" -> 500kWh Monthly Usage - CARE | D85: =VLOOKUP($D$4,'Res Bill Impact (2)'!$R$67:$X$76,3,FALSE) -> 104.3647598 | E85: =VLOOKUP($D$4,'Res Bill Impact (2)'!$R$67:$X$76,5,FALSE) -> 111.3029345 | F85: =VLOOKUP($D$4,'Res Bill Impact (2)'!$R$67:$X$76,7,FALSE) -> 111.3029345 | G85: 0.06648005257 | H85: 0
B88: Bundled Residential Monthly Average Bills
D89: =$D$24 -> 2025-01-01 | E89: =$E$24 -> 2025-11-15 | F89: Proposed | G89: =$G$24 -> % Change over 1/1/2025 | H89: % Change over Current
B90: All-Electric - Non-CARE | D90: =((D96*4)+(D102*8))/12 -> 139.7381152 | E90: 157.3667024 | F90: 157.3667024 | G90: =$F90/D90-1 -> 0.1261544648 | H90: 0
B91: All-Electric - CARE | D91: 81.86581957 | E91: 88.10731801 | F91: 88.10731801 | G91: 0.07624059073 | H91: 0
B92: All-Electric - Total | D92: 119.4828118 | E92: 133.1259179 | F92: 133.1259179 | G92: 0.1141846756 | H92: 0
B94: Bundled Residential Monthly Average Bills - Summer
D95: =$D$24 -> 2025-01-01 | E95: =$E$24 -> 2025-11-15 | F95: Proposed | G95: =$G$24 -> % Change over 1/1/2025 | H95: % Change over Current
B96: All-Electric - Non-CARE | D96: =VLOOKUP($D$4,'Res Bill Impact (2)'!$B$67:$H$76,2,FALSE) -> 182.7427053 | E96: =VLOOKUP($D$4,'Res Bill Impact (2)'!$B$67:$H$76,4,FALSE) -> 199.8990269 | F96: =VLOOKUP($D$4,'Res Bill Impact (2)'!$B$67:$H$76,6,FALSE) -> 199.8990269 | G96: =$F96/D96-1 -> 0.09388238843 | H96: 0
B97: All-Electric - CARE | D97: =VLOOKUP($D$4,'Res Bill Impact (2)'!$B$82:$H$91,2,FALSE) -> 106.1209049 | E97: =VLOOKUP($D$4,'Res Bill Impact (2)'!$B$82:$H$91,4,FALSE) -> 113.0409413 | F97: =VLOOKUP($D$4,'Res Bill Impact (2)'!$B$82:$H$91,6,FALSE) -> 113.0409413 | G97: 0.06520898421 | H97: 0
B98: All-Electric - Total | D98: =D96*0.65+D97*0.35 -> 155.9250751 | E98: =E96*0.65+E97*0.35 -> 169.498697 | F98: =F96*0.65+F97*0.35 -> 169.498697 | G98: 0.08705220631 | H98: 0
B100: Bundled Residential Monthly Average Bills - Winter
D101: =$D$24 -> 2025-01-01 | E101: =$E$24 -> 2025-11-15 | F101: Proposed | G101: =$G$24 -> % Change over 1/1/2025 | H101: % Change over Current
B102: All-Electric - Non-CARE | D102: =VLOOKUP($D$4,'Res Bill Impact (2)'!$B$67:$H$76,3,FALSE) -> 118.2358202 | E102: =VLOOKUP($D$4,'Res Bill Impact (2)'!$B$67:$H$76,5,FALSE) -> 136.1005401 | F102: =VLOOKUP($D$4,'Res Bill Impact (2)'!$B$67:$H$76,7,FALSE) -> 136.1005401 | G102: =$F102/D102-1 -> 0.1510939735 | H102: 0
B103: All-Electric - CARE | D103: =VLOOKUP($D$4,'Res Bill Impact (2)'!$B$82:$H$91,3,FALSE) -> 69.73827691 | E103: =VLOOKUP($D$4,'Res Bill Impact (2)'!$B$82:$H$91,5,FALSE) -> 75.64050637 | F103: =VLOOKUP($D$4,'Res Bill Impact (2)'!$B$82:$H$91,7,FALSE) -> 75.64050637 | G103: 0.08463400192 | H103: 0
B104: All-Electric - Total | D104: =D102*0.65+D103*0.35 -> 101.2616801 | E104: =E102*0.65+E103*0.35 -> 114.9395283 | F104: =F102*0.65+F103*0.35 -> 114.9395283 | G104: 0.1350742772 | H104: 0
B106: Small Commercial Monthly Average Bills
D107: =$D$24 -> 2025-01-01 | E107: =$E$24 -> 2025-11-15 | F107: Proposed | G107: =$G$24 -> % Change over 1/1/2025 | H107: % Change over Current
B108: NAICS 531 | D108: =((D114*4)+(D120*8))/12 -> 200.0192632 | E108: 218.9711688 | F108: 218.9711688 | G108: =$F108/D108-1 -> 0.09475040195 | H108: =$F108/E108-1 -> 0
B109: NAICS 621 | D109: 276.15071 | E109: 302.6079638 | F109: 302.6079638 | G109: 0.09580729944 | H109: 0
B110: NAICS 722 | D110: 798.5610323 | E110: 879.2898227 | F110: 879.2898227 | G110: 0.1010928245 | H110: 0
B112: Small Commercial Monthly Average Bills - Summer
D113: =$D$24 -> 2025-01-01 | E113: =$E$24 -> 2025-11-15 | F113: Proposed | G113: =$G$24 -> % Change over 1/1/2025 | H113: % Change over Current
B114: NAICS 531 | D114: ='Bill Impact (GS1) (2)'!C37 -> 221.6737636 | E114: ='Bill Impact (GS1) (2)'!E37 -> 244.0175887 | F114: ='Bill Impact (GS1) (2)'!G37 -> 244.0175887 | G114: =$F114/D114-1 -> 0.100795984 | H114: =$F114/E114-1 -> 0
B115: NAICS 621 | D115: ='Bill Impact (GS1) (2)'!C38 -> 369.469769 | E115: ='Bill Impact (GS1) (2)'!E38 -> 408.1892239 | F115: ='Bill Impact (GS1) (2)'!G38 -> 408.1892239 | G115: 0.1047973559 | H115: 0
B116: NAICS 722 | D116: ='Bill Impact (GS1) (2)'!C39 -> 1048.787661 | E116: ='Bill Impact (GS1) (2)'!E39 -> 1162.642574 | F116: ='Bill Impact (GS1) (2)'!G39 -> 1162.642574 | G116: 0.1085585926 | H116: 0
B118: Small Commercial Monthly Average Bills - Winter
D119: =$D$24 -> 2025-01-01 | E119: =$E$24 -> 2025-11-15 | F119: Proposed | G119: =$G$24 -> % Change over 1/1/2025 | H119: % Change over Current
B120: NAICS 531 | D120: ='Bill Impact (GS1) (2)'!D37 -> 189.192013 | E120: ='Bill Impact (GS1) (2)'!F37 -> 206.4479588 | F120: ='Bill Impact (GS1) (2)'!H37 -> 206.4479588 | G120: =$F120/D120-1 -> 0.09120863796 | H120: =$F120/E120-1 -> 0
B121: NAICS 621 | D121: ='Bill Impact (GS1) (2)'!D38 -> 229.4911805 | E121: ='Bill Impact (GS1) (2)'!F38 -> 249.8173337 | F121: ='Bill Impact (GS1) (2)'!H38 -> 249.8173337 | G121: 0.08857052009 | H121: 0
B122: NAICS 722 | D122: ='Bill Impact (GS1) (2)'!D39 -> 673.4477179 | E122: ='Bill Impact (GS1) (2)'!F39 -> 737.6134472 | F122: ='Bill Impact (GS1) (2)'!H39 -> 737.6134472 | G122: 0.09527945159 | H122: 0

Sheet SAR and RAR (2) (hidden)
B1: CONFIDENTIAL This Excel Sheet Is Marked Confidential In Accordance With Applicable Law and Regulation. Basis for Confidentiality In Accompanying Confidentiality Declaration. Public Disclosure Restricted.
C2: Revenue Change ($000)
B4: Generation | C4: ='Simple Bill Insert Calc (2)'!D8 -> 0 | F4: Allocation
B5: Distribution | C5: ='Simple Bill Insert Calc (2)'!D9 -> 0 | F5: Generation | G5: Distribution | H5: NDC | I5: PPPC | J5: DCPP | K5: NSGC | L5: Transmission | M5: TOTCA | N5: GHG Rev | O5: DWRBC | P5: PUCRF | Q5: SECURITIZATION
B6: Nuclear | C6: ='Simple Bill Insert Calc (2)'!D10 -> 0 | E6: Residential | F6: ='SAR and RAR'!G37 -> 0.433536641 | G6: 0.4929724354 | H6: ='SAR and RAR'!I37 -> 0.3376537252 | I6: 0.449072768 | J6: ='SAR and RAR'!K37 -> 0.4505009853 | K6: ='SAR and RAR'!L37 -> 0.4382303258 | L6: ='SAR and RAR'!M37 -> 0.4638101825 | M6: ='SAR and RAR'!N37 -> 0.5669366334 | N6: ='SAR and RAR'!O37 -> 0.8264249736 | O6: ='SAR and RAR'!P37 -> 0.2594263611 | P6: ='SAR and RAR'!Q37 -> 0.3376537254 | Q6: ='SAR and RAR'!R37 -> 0.3674900861
B7: Public Purpose | C7: ='Simple Bill Insert Calc (2)'!D11 -> 0
B8: DCPP | C8: ='Simple Bill Insert Calc (2)'!D12 -> 0 | F8: Revenue Change ($000) - System
B9: New System Gen | C9: ='Simple Bill Insert Calc (2)'!D13 -> 0 | F9: Generation | G9: Distribution | H9: NDC | I9: PPPC | J9: DCPP | K9: NSGC | L9: Transmission | M9: TOTCA | N9: GHG Rev | O9: DWRBC | P9: PUCRF | Q9: SECURITIZATION | R9: Total | S9: CARE Adj. | V9: % of CARE Sales (Bundled) | W9: ='SAR and RAR'!Q58 -> 0.3128375693
B10: FERC | C10: ='Simple Bill Insert Calc (2)'!D14 -> 0 | E10: Residential | F10: =F6*F11 -> 0 | G10: 0 | H10: 0 | I10: 0 | J10: 0 | K10: 0 | L10: 0 | M10: 0 | N10: 0 | O10: 0 | P10: 0 | Q10: =Q6*Q11 -> 0 | R10: =SUM(F10:Q10) -> 0 | S10: =(-W11+W14) -> 0 | V10: CARE Effective Discount | W10: ='SAR and RAR'!X10 -> 0.325
B11: TOTCA | C11: ='Simple Bill Insert Calc (2)'!D15 -> 0 | E11: Total System | F11: =C4 -> 0 | G11: =C5 -> 0 | H11: =C6 -> 0 | I11: =C7 -> 0 | J11: =C8 -> 0 | K11: =C9 -> 0 | L11: =C10 -> 0 | M11: =C11 -> 0 | N11: =C12 -> 0 | O11: =C13 -> 0 | P11: =C14 -> 0 | Q11: =C15 -> 0 | R11: =SUM(F11:Q11) -> 0 | S11: 0 | V11: CARE Discounst | W11: =SUM(F10*F16/'SAR and RAR'!K58*'SAR and RAR'!O58,G10:M10,P10)*W9*W10 -> 0
B12: GHG Revenue | C12: ='Simple Bill Insert Calc (2)'!D16 -> 0 | V12: non-CARE Sales | W12: ='SAR and RAR'!G58 -> 18361053.62
B13: DWR | C13: ='Simple Bill Insert Calc (2)'!D17 -> 0 | V13: Total Sales (excl. CARE&SL) | W13: ='SAR and RAR'!G64 -> 70344975.44
B14: PUCRF | C14: ='Simple Bill Insert Calc (2)'!D18 -> 0 | F14: Revenue Split - Bundled | R14: Bundled Revenue Change | V14: Res CARE Surcharge | W14: =W11*W12/W13 -> 0
B15: SECURITIZATION | C15: ='Simple Bill Insert Calc (2)'!D19 -> 0 | F15: Generation | G15: Distribution | H15: NDC | I15: PPPC | J15: DCPP | K15: NSGC | L15: Transmission | M15: TOTCA | N15: GHG Rev | O15: DWRBC | P15: PUCRF | Q15: SECURITIZATION | R15: Total
B16: Total | C16: =SUM(C4:C15) -> 0 | E16: Residential | F16: ='SAR and RAR'!G44 -> 1.034579421 | G16: ='SAR and RAR'!H44 -> 0.6826880396 | H16: ='SAR and RAR'!I44 -> 0.7011923278 | I16: ='SAR and RAR'!J44 -> 0.7011923321 | J16: ='SAR and RAR'!K44 -> 0.7011923321 | K16: ='SAR and RAR'!L44 -> 0.7011923321 | L16: ='SAR and RAR'!M44 -> 0.7011923321 | M16: ='SAR and RAR'!N44 -> 0.7011923304 | N16: ='SAR and RAR'!O44 -> 0.7065757 | O16: ='SAR and RAR'!P44 -> 0.6708887653 | P16: ='SAR and RAR'!Q44 -> 0.7011923321 | Q16: ='SAR and RAR'!R44 -> 0.6708887652 | R16: =SUMPRODUCT(F10:Q10,F16:Q16)+S10*'SAR and RAR'!X15 -> 0
E17: Total System | F17: ='SAR and RAR'!G50 -> 1.030007998 | G17: ='SAR and RAR'!H50 -> 0.6497195581 | H17: ='SAR and RAR'!I50 -> 0.6283028798 | I17: ='SAR and RAR'!J50 -> 0.6428912097 | J17: ='SAR and RAR'!K50 -> 0.6409526177 | K17: ='SAR and RAR'!L50 -> 0.6386664475 | L17: ='SAR and RAR'!M50 -> 0.6641776383 | M17: ='SAR and RAR'!N50 -> 0.6532230564 | N17: ='SAR and RAR'!O50 -> 0.6916053708 | O17: ='SAR and RAR'!P50 -> 0.6118326262 | P17: ='SAR and RAR'!Q50 -> 0.6283028839 | Q17: ='SAR and RAR'!R50 -> 0.6226235037 | R17: =SUMPRODUCT(F11:Q11,F17:Q17) -> 0
R19: =N10*N16 -> 0
E22: Bundled | M22: System (Bundled and Unbundled)
E23: ='Simple Bill Insert Calc (2)'!M4&" Sales" -> 2025 Sales | F23: ='SAR and RAR'!G27 -> 11/15/2025 Avg Rates | G23: Proposed Avg Rates | H23: % Change | M23: ='Simple Bill Insert Calc (2)'!M4&" Sales" -> 2025 Sales | N23: ='SAR and RAR'!O27 -> 11/15/2025 Avg Rates | O23: Proposed Avg Rates | P23: % Change
D24: Residential | E24: ='SAR and RAR'!K58 -> 18735934.09 | F24: =IF('Simple Bill Insert Calc (2)'!$D$6="Y",'SAR and RAR'!W32,'SAR and RAR'!X32) -> 35.26067261 | G24: =R16/E24*100+F24 -> 35.26067261 | H24: =G24/F24-1 -> 0 | L24: Residential | M24: ='SAR and RAR'!O58 -> 26720106.92 | N24: =IF('Simple Bill Insert Calc (2)'!$D$6="Y",'SAR and RAR'!Z32,'SAR and RAR'!AA32) -> 31.47521736 | O24: =SUM(R10:S10)/M24*100+N24 -> 31.47521736 | P24: =O24/N24-1 -> 0
D25: Total System | E25: ='SAR and RAR'!K64 -> 49720524.25 | F25: =IF('Simple Bill Insert Calc (2)'!$D$6="Y",'SAR and RAR'!W33,'SAR and RAR'!X33) -> 30.16320305 | G25: =R17/E25*100+F25 -> 30.16320305 | H25: =G25/F25-1 -> 0 | L25: Total System | M25: ='SAR and RAR'!O64 -> 79134642.73 | N25: =IF('Simple Bill Insert Calc (2)'!$D$6="Y",'SAR and RAR'!Z33,'SAR and RAR'!AA33) -> 25.12602979 | O25: =SUM(R11:S11)/M25*100+N25 -> 25.12602979 | P25: =O25/N25-1 -> 0

Sheet Res Bill Impact (2) (hidden)
B1: CONFIDENTIAL This Excel Sheet Is Marked Confidential In Accordance With Applicable Law and Regulation. Basis for Confidentiality In Accompanying Confidentiality Declaration. Public Disclosure Restricted.
E3: Schedule D | O3: Schedule D-CARE
E4: ='Simple Bill Insert Calc (2)'!M4 -> 2025 | F4: ='Simple Bill Insert Calc (2)'!M3 -> 2025-11-15 | G4: Proposed | H4: Proposed | O4: ='Simple Bill Insert Calc (2)'!M4 -> 2025 | P4: ='Simple Bill Insert Calc (2)'!M3 -> 2025-11-15 | Q4: Proposed | R4: Proposed
E5: Sales Forecast | F5: Rates | G5: Rates | H5: Revenue | O5: Sales Forecast | P5: Rates | Q5: Rates | R5: Revenue
D7: Baseline - Summer | E7: ='Res Bill Impact'!F97 -> 3085.670937 | F7: ='Res Bill Impact'!F7 -> 0.31902 | G7: =(V10-SUM(R14:R15,H14:H15))/SUM(SUM(E7:E8),F9/F7*SUM(E9:E10),F11/F7*SUM(E11:E12),SUM(O7:O8)*(1+(P7/F7-1)),SUM(O9:O10)*(1+(P9/F9-1))*F9/F7,SUM(O11:O12)*(1+(P11/F11-1))*F11/F7) -> 0.31902 | H7: =E7*G7 -> 984.3907423 | N7: Baseline - Summer | O7: ='Res Bill Impact'!M97 -> 1783.360129 | P7: ='Res Bill Impact'!P7 -> 0.21025 | Q7: =G7*(1+(P7/F7-1)) -> 0.21025 | R7: =O7*Q7 -> 374.9514671 | U7: Bundled Residential Rev Req
D8: - Winter | E8: ='Res Bill Impact'!F98 -> 4290.291273 | F8: ='Res Bill Impact'!F8 -> 0.31902 | G8: =G7 -> 0.31902 | H8: 1368.688722 | N8: - Winter | O8: ='Res Bill Impact'!M98 -> 2747.277654 | P8: ='Res Bill Impact'!P8 -> 0.21025 | Q8: 0.21025 | R8: 577.6151268 | U8: Current | V8: =SUMPRODUCT(E7:E12,F7:F12)+SUMPRODUCT(O7:O12,P7:P12)+(E14*F14*365/12/10^6)+(E15*F15*365/12/10^6)+(O14*P14*365/12/10^6)+(O15*P15*365/12/10^6) -> 6662.894882
D9: 101% - 400% of Baseline - Summer | E9: ='Res Bill Impact'!F99 -> 1911.92882 | F9: ='Res Bill Impact'!F9 -> 0.42351 | G9: =F9/F$7*G$7 -> 0.42351 | H9: 809.7209747 | N9: 101% - 400% of Baseline - Summer | O9: ='Res Bill Impact'!M99 -> 745.4907551 | P9: ='Res Bill Impact'!P9 -> 0.28078 | Q9: 0.28078 | R9: 209.3188942 | U9: Change | V9: ='SAR and RAR (2)'!R16/1000-'SAR and RAR (2)'!R19/1000 -> 0
D10: - Winter | E10: ='Res Bill Impact'!F100 -> 2615.804258 | F10: ='Res Bill Impact'!F10 -> 0.42351 | G10: =G9 -> 0.42351 | H10: 1107.819261 | N10: - Winter | O10: ='Res Bill Impact'!M100 -> 1112.023766 | P10: ='Res Bill Impact'!P10 -> 0.28078 | Q10: 0.28078 | R10: 312.2340331 | U10: Proposed Change | V10: =SUM(V8:V9) -> 6662.894882
D11: 401% of Baseline - Summer | E11: ='Res Bill Impact'!F101 -> 151.6325582 | F11: ='Res Bill Impact'!F11 -> 0.42351 | G11: =F11/F$7*G$7 -> 0.42351 | H11: 64.21790473 | N11: 401% of Baseline - Summer | O11: ='Res Bill Impact'!M101 -> 8.477005966 | P11: ='Res Bill Impact'!P11 -> 0.28078 | Q11: 0.28078 | R11: 2.380173735 | V11: =V10-SUM(H7:H15,R7:R15) -> 0
D12: - Winter | E12: ='Res Bill Impact'!F102 -> 262.8967474 | F12: ='Res Bill Impact'!F12 -> 0.42351 | G12: =G11 -> 0.42351 | H12: 111.3394015 | N12: - Winter | O12: ='Res Bill Impact'!M102 -> 21.08018443 | P12: ='Res Bill Impact'!P12 -> 0.28078 | Q12: 0.28078 | R12: 5.918894185
D14: Basic Charge - Single-Family Residence | E14: ='Res Bill Impact'!F104 -> 18879671.95 | F14: ='Res Bill Impact'!F14 -> 0.794 | G14: =F14 -> 0.794 | H14: =G14*E14*365/12/10^6 -> 455.9598107 | N14: Basic Charge - Single-Family Residence | O14: ='Res Bill Impact'!M104 -> 6433922.126 | P14: ='Res Bill Impact'!P14 -> 0.197 | Q14: =P14 -> 0.197 | R14: =Q14*O14*365/12/10^6 -> 38.55259754
D15: Basic Charge - Multi-Family Residence | E15: ='Res Bill Impact'!F105 -> 8588406.524 | F15: ='Res Bill Impact'!F15 -> 0.794 | G15: =F15 -> 0.794 | H15: =G15*E15*365/12/10^6 -> 207.4171746 | N15: Basic Charge - Multi-Family Residence | O15: ='Res Bill Impact'!M105 -> 5402078.398 | P15: ='Res Bill Impact'!P15 -> 0.197 | Q15: =P15 -> 0.197 | R15: =Q15*O15*365/12/10^6 -> 32.36970394
O19: ='Res Bill Impact'!O19 -> 2024 Recorded Data - Average Monthly Usage - kWh (Bundled / Basic Service Only) | W19: ='Res Bill Impact'!W19 -> 2024 Recorded Data - Average Monthly Usage - kWh (Bundled / All Electric Only)
B20: SCHEDULE D RATES ($/kWh) | H20: MONTHLY BASELINE QUANTITIES | I20: BASIC | K20: ALL-ELECTRIC | O20: Climate Zone | P20: Summer | Q20: Winter | R20: Summer | S20: Winter | T20: Sample Population Weight | W20: Climate Zone | X20: Summer | Y20: Winter | Z20: Summer | AA20: Winter | AB20: Sample Population Weight
B21: Rates | C21: ='Res Bill Impact'!C21 -> Jan 2025 | D21: ='Simple Bill Insert Calc (2)'!M3 -> 2025-11-15 | E21: Proposed | H21: Climate Zone | I21: Summer | J21: Winter | K21: Summer | L21: Winter | P21: Non-CARE | R21: CARE | T21: Non-CARE | U21: CARE | X21: Non-CARE | Z21: CARE | AB21: Non-CARE | AC21: CARE
B22: Tier 1 | C22: ='Res Bill Impact'!C22 -> 0.33308 | D22: =F7 -> 0.31902 | E22: =G7 -> 0.31902 | H22: 5 warm | I22: 517.089 | J22: 559.6728 | K22: 511.0056 | L22: 821.259 | O22: 5 warm | P22: ='Res Bill Impact'!P22 -> 395.5552996 | Q22: ='Res Bill Impact'!Q22 -> 410.4255495 | R22: ='Res Bill Impact'!R22 -> 370.5382517 | S22: ='Res Bill Impact'!S22 -> 352.8129705 | T22: ='Res Bill Impact'!T22 -> 0.000391559287 | U22: ='Res Bill Impact'!U22 -> 5.780756421e-05 | W22: 5 warm | X22: ='Res Bill Impact'!X22 -> 395.0513658 | Y22: ='Res Bill Impact'!Y22 -> 472.3532524 | Z22: ='Res Bill Impact'!Z22 -> 354.0301735 | AA22: ='Res Bill Impact'!AA22 -> 430.0455986 | AB22: ='Res Bill Impact'!AB22 -> 0.0003215327132 | AC22: ='Res Bill Impact'!AC22 -> 0.0001643349365
B23: Tier 2 | C23: ='Res Bill Impact'!C23 -> 0.42821 | D23: =F9 -> 0.42351 | E23: =G9 -> 0.42351 | H23: 6 cool | I23: 346.7538 | J23: 334.587 | K23: 264.6279 | L23: 383.2542 | O23: 6 cool | P23: ='Res Bill Impact'!P23 -> 441.3631683 | Q23: ='Res Bill Impact'!Q23 -> 378.5967426 | R23: ='Res Bill Impact'!R23 -> 403.4336933 | S23: ='Res Bill Impact'!S23 -> 346.7408462 | T23: ='Res Bill Impact'!T23 -> 0.175728545 | U23: ='Res Bill Impact'!U23 -> 0.06241911603 | W23: 6 cool | X23: ='Res Bill Impact'!X23 -> 333.6664732 | Y23: ='Res Bill Impact'!Y23 -> 330.2803509 | Z23: ='Res Bill Impact'!Z23 -> 364.4793275 | AA23: ='Res Bill Impact'!AA23 -> 373.6317841 | AB23: ='Res Bill Impact'!AB23 -> 0.2756588649 | AC23: ='Res Bill Impact'!AC23 -> 0.1336590817
B24: HUC | C24: ='Res Bill Impact'!C24 -> 0.42821 | D24: =F11 -> 0.42351 | E24: =G11 -> 0.42351 | H24: 8 cool | I24: 389.3376 | J24: 313.2951 | K24: 301.1283 | L24: 374.1291 | O24: 8 cool | P24: ='Res Bill Impact'!P24 -> 568.4975767 | Q24: ='Res Bill Impact'!Q24 -> 397.6071315 | R24: ='Res Bill Impact'!R24 -> 503.0842528 | S24: ='Res Bill Impact'!S24 -> 372.8283632 | T24: ='Res Bill Impact'!T24 -> 0.2213136597 | U24: ='Res Bill Impact'!U24 -> 0.1553419784 | W24: 8 cool | X24: ='Res Bill Impact'!X24 -> 395.5847708 | Y24: ='Res Bill Impact'!Y24 -> 347.0862508 | Z24: ='Res Bill Impact'!Z24 -> 414.4144944 | AA24: ='Res Bill Impact'!AA24 -> 370.2534605 | AB24: ='Res Bill Impact'!AB24 -> 0.2319803089 | AC24: ='Res Bill Impact'!AC24 -> 0.1999079724
B25: cust $ / Day | C25: ='Res Bill Impact'!C25 -> 0.031 | H25: 9 warm | I25: 514.0473 | J25: 365.004 | K25: 380.2125 | L25: 422.7963 | O25: 9 warm | P25: ='Res Bill Impact'!P25 -> 736.1896342 | Q25: ='Res Bill Impact'!Q25 -> 454.0542708 | R25: ='Res Bill Impact'!R25 -> 685.496621 | S25: ='Res Bill Impact'!S25 -> 424.2446352 | T25: ='Res Bill Impact'!T25 -> 0.1275808923 | U25: ='Res Bill Impact'!U25 -> 0.0946365769 | W25: 9 warm | X25: ='Res Bill Impact'!X25 -> 530.8275233 | Y25: ='Res Bill Impact'!Y25 -> 380.1763947 | Z25: ='Res Bill Impact'!Z25 -> 510.0101939 | AA25: ='Res Bill Impact'!AA25 -> 375.6663006 | AB25: ='Res Bill Impact'!AB25 -> 0.08053285732 | AC25: ='Res Bill Impact'!AC25 -> 0.08292340896
B26: SCHEDULE D-CARE RATES ($/kWh) | H26: 10 hot (Sec 745) | I26: 587.0481 | J26: 368.0457 | K26: 483.6303 | L26: 498.8388 | O26: 10 hot (Sec 745) | P26: ='Res Bill Impact'!P26 -> 857.9526651 | Q26: ='Res Bill Impact'!Q26 -> 482.0306437 | R26: ='Res Bill Impact'!R26 -> 918.4083871 | S26: ='Res Bill Impact'!S26 -> 499.6563415 | T26: ='Res Bill Impact'!T26 -> 0.3013940598 | U26: ='Res Bill Impact'!U26 -> 0.4075638401 | W26: 10 hot (Sec 745) | X26: ='Res Bill Impact'!X26 -> 627.4953074 | Y26: ='Res Bill Impact'!Y26 -> 427.1016506 | Z26: ='Res Bill Impact'!Z26 -> 660.3259927 | AA26: ='Res Bill Impact'!AA26 -> 426.1138274 | AB26: ='Res Bill Impact'!AB26 -> 0.2614116395 | AC26: ='Res Bill Impact'!AC26 -> 0.3672447605
B27: Rates | C27: =C21 -> Jan 2025 | D27: =D21 -> 2025-11-15 | E27: Proposed | H27: 13 hot | I27: 675.2574 | J27: 371.0874 | K27: 736.0914 | L27: 699.591 | O27: 13 hot | P27: ='Res Bill Impact'!P27 -> 995.7412826 | Q27: ='Res Bill Impact'!Q27 -> 488.3574385 | R27: ='Res Bill Impact'!R27 -> 1027.53491 | S27: ='Res Bill Impact'!S27 -> 485.942318 | T27: ='Res Bill Impact'!T27 -> 0.04959424669 | U27: ='Res Bill Impact'!U27 -> 0.1129503862 | W27: 13 hot | X27: ='Res Bill Impact'!X27 -> 965.9846505 | Y27: ='Res Bill Impact'!Y27 -> 574.7150255 | Z27: ='Res Bill Impact'!Z27 -> 962.9031858 | AA27: ='Res Bill Impact'!AA27 -> 549.7168372 | AB27: ='Res Bill Impact'!AB27 -> 0.03106116883 | AC27: ='Res Bill Impact'!AC27 -> 0.06378386669
B28: Tier 1 | C28: ='Res Bill Impact'!C28 -> 0.20878 | D28: =P7 -> 0.21025 | E28: =Q7 -> 0.21025 | H28: 14 hot | I28: 584.0064 | J28: 361.9623 | K28: 562.7145 | L28: 641.7987 | O28: 14 hot | P28: ='Res Bill Impact'!P28 -> 835.9220396 | Q28: ='Res Bill Impact'!Q28 -> 473.45593 | R28: ='Res Bill Impact'!R28 -> 933.1504328 | S28: ='Res Bill Impact'!S28 -> 527.5764602 | T28: ='Res Bill Impact'!T28 -> 0.06232862483 | U28: ='Res Bill Impact'!U28 -> 0.1067631121 | W28: 14 hot | X28: ='Res Bill Impact'!X28 -> 756.0211147 | Y28: ='Res Bill Impact'!Y28 -> 556.7004427 | Z28: ='Res Bill Impact'!Z28 -> 880.8399974 | AA28: ='Res Bill Impact'!AA28 -> 657.7029793 | AB28: ='Res Bill Impact'!AB28 -> 0.04437151442 | AC28: ='Res Bill Impact'!AC28 -> 0.07098173691
B29: Tier 2 | C29: ='Res Bill Impact'!C29 -> 0.27299 | D29: =P9 -> 0.28078 | E29: =Q9 -> 0.28078 | H29: 15 hot | I29: 1368.765 | J29: 295.0449 | K29: 730.008 | L29: 529.2558 | O29: 15 hot | P29: ='Res Bill Impact'!P29 -> 1219.397003 | Q29: ='Res Bill Impact'!Q29 -> 540.766029 | R29: ='Res Bill Impact'!R29 -> 1360.59217 | S29: ='Res Bill Impact'!S29 -> 535.5743293 | T29: ='Res Bill Impact'!T29 -> 0.03219052405 | U29: ='Res Bill Impact'!U29 -> 0.03515632284 | W29: 15 hot | X29: ='Res Bill Impact'!X29 -> 924.9686507 | Y29: ='Res Bill Impact'!Y29 -> 451.6365116 | Z29: ='Res Bill Impact'!Z29 -> 1114.196822 | AA29: ='Res Bill Impact'!AA29 -> 520.3020094 | AB29: ='Res Bill Impact'!AB29 -> 0.03508032774 | AC29: ='Res Bill Impact'!AC29 -> 0.05084522936
B30: HUC | C30: ='Res Bill Impact'!C30 -> 0.27299 | D30: =P11 -> 0.28078 | E30: =Q12 -> 0.28078 | H30: 16 cool | I30: 447.1299 | J30: 377.1708 | K30: 410.6295 | L30: 705.6744 | O30: 16 cool | P30: ='Res Bill Impact'!P30 -> 565.1396542 | Q30: ='Res Bill Impact'!Q30 -> 416.659723 | R30: ='Res Bill Impact'!R30 -> 776.7883471 | S30: ='Res Bill Impact'!S30 -> 493.603768 | T30: ='Res Bill Impact'!T30 -> 0.02947788832 | U30: ='Res Bill Impact'!U30 -> 0.02511085999 | W30: 16 cool | X30: ='Res Bill Impact'!X30 -> 449.8471198 | Y30: ='Res Bill Impact'!Y30 -> 538.6630052 | Z30: ='Res Bill Impact'!Z30 -> 698.918731 | AA30: ='Res Bill Impact'!AA30 -> 570.1108274 | AB30: ='Res Bill Impact'!AB30 -> 0.03958178573 | AC30: ='Res Bill Impact'!AC30 -> 0.03048960855
B31: cust $ / Day | C31: ='Res Bill Impact'!C31 -> 0.021
N32: Daily to Monthly Conversion Factor | O32: 30.417
C34: NON-CARE | K34: Essential Use (Basic) - Non-CARE | S34: Essential Use (Basic) - CARE
C35: =C27 -> Jan 2025 | E35: =D27 -> 2025-11-15 | G35: =E21 -> Proposed | K35: =C35 -> Jan 2025 | M35: =E35 -> 2025-11-15 | O35: =G35 -> Proposed | S35: =K35 -> Jan 2025 | U35: =M35 -> 2025-11-15 | W35: =O35 -> Proposed
C36: Summer | D36: Winter | E36: Summer | F36: Winter | G36: Summer | H36: Winter | K36: Summer | L36: Winter | M36: Summer | N36: Winter | O36: Summer | P36: Winter | S36: Summer | T36: Winter | U36: Summer | V36: Winter | W36: Summer | X36: Winter
B37: 5 warm | C37: =C$22*MIN(I22,P22)+IF(P22-I22>0,C$23*(P22-I22))+ROUND($C$25*365/12,2)+('Simple Bill Insert Calc (2)'!M17*2)/12 -> 123.3582259 | D37: =C$22*MIN(J22,Q22)+IF(Q22-J22>0,C$23*(Q22-J22))+ROUND($C$25*365/12,2)+('Simple Bill Insert Calc (2)'!M17*2)/12 -> 128.3112087 | E37: =D$22*MIN(I22,P22)+IF(P22-I22>0,D$23*(P22-I22))+ROUND($F$14*365/12,2)+('Simple Bill Insert Calc (2)'!M17*2)/12 -> 141.0067183 | F37: =D$22*MIN(J22,Q22)+IF(Q22-J22>0,D$23*(Q22-J22))+ROUND($F$14*365/12,2)+('Simple Bill Insert Calc (2)'!M17*2)/12 -> 145.7506255 | G37: =E$22*MIN(I22,P22)+IF(P22-I22>0,E$23*(P22-I22))+ROUND($F$14*365/12,2)+('Simple Bill Insert Calc (2)'!M17*2)/12 -> 141.0067183 | H37: =E$22*MIN(J22,Q22)+IF(Q22-J22>0,E$23*(Q22-J22))+ROUND($F$14*365/12,2)+('Simple Bill Insert Calc (2)'!M17*2)/12 -> 145.7506255 | J37: 5 warm | K37: =C$22*I22+ROUND($C$25*365/12,2)+('Simple Bill Insert Calc (2)'!M17*2)/12 -> 163.8386708 | L37: =C$22*J22+ROUND($C$25*365/12,2)+('Simple Bill Insert Calc (2)'!M17*2)/12 -> 178.0224829 | M37: =D$22*I22+ROUND($F$14*365/12,2)+('Simple Bill Insert Calc (2)'!M17*2)/12 -> 179.7783994 | N37: =D$22*J22+ROUND($F$14*365/12,2)+('Simple Bill Insert Calc (2)'!M17*2)/12 -> 193.3634833 | O37: =E$22*I22+ROUND($F$14*365/12,2)+('Simple Bill Insert Calc (2)'!M17*2)/12 -> 179.7783994 | P37: =E$22*J22+ROUND($F$14*365/12,2)+('Simple Bill Insert Calc (2)'!M17*2)/12 -> 193.3634833 | R37: 5 warm | S37: =C$28*I22+ROUND($C$31*365/12,2)+('Simple Bill Insert Calc (2)'!M17*2)/12 -> 99.26450809 | T37: =C$28*J22+ROUND($C$31*365/12,2)+('Simple Bill Insert Calc (2)'!M17*2)/12 -> 108.1551539 | U37: =D$28*I22+ROUND($P$14*365/12,2)+('Simple Bill Insert Calc (2)'!M17*2)/12 -> 105.3746289 | V37: =D$28*J22+ROUND($P$14*365/12,2)+('Simple Bill Insert Calc (2)'!M17*2)/12 -> 114.3278729 | W37: =E$28*I22+ROUND($P$14*365/12,2)+('Simple Bill Insert Calc (2)'!M17*2)/12 -> 105.3746289 | X37: =E$28*J22+ROUND($P$14*365/12,2)+('Simple Bill Insert Calc (2)'!M17*2)/12 -> 114.3278729
B38: 6 cool | C38: =C$22*MIN(I23,P23)+IF(P23-I23>0,C$23*(P23-I23))+ROUND($C$25*365/12,2)+('Simple Bill Insert Calc (2)'!M17*2)/12 -> 147.6161 | D38: =C$22*MIN(J23,Q23)+IF(Q23-J23>0,C$23*(Q23-J23))+ROUND($C$25*365/12,2)+('Simple Bill Insert Calc (2)'!M17*2)/12 -> 121.8963165 | E38: =D$22*MIN(I23,P23)+IF(P23-I23>0,D$23*(P23-I23))+ROUND($F$14*365/12,2)+('Simple Bill Insert Calc (2)'!M17*2)/12 -> 165.5060775 | F38: =D$22*MIN(J23,Q23)+IF(Q23-J23>0,D$23*(Q23-J23))+ROUND($F$14*365/12,2)+('Simple Bill Insert Calc (2)'!M17*2)/12 -> 140.1951775 | G38: =E$22*MIN(I23,P23)+IF(P23-I23>0,E$23*(P23-I23))+ROUND($F$14*365/12,2)+('Simple Bill Insert Calc (2)'!M17*2)/12 -> 165.5060775 | H38: =E$22*MIN(J23,Q23)+IF(Q23-J23>0,E$23*(Q23-J23))+ROUND($F$14*365/12,2)+('Simple Bill Insert Calc (2)'!M17*2)/12 -> 140.1951775 | J38: 6 cool | K38: =C$22*I23+ROUND($C$25*365/12,2)+('Simple Bill Insert Calc (2)'!M17*2)/12 -> 107.1034224 | L38: =C$22*J23+ROUND($C$25*365/12,2)+('Simple Bill Insert Calc (2)'!M17*2)/12 -> 103.0509046 | M38: =D$22*I23+ROUND($F$14*365/12,2)+('Simple Bill Insert Calc (2)'!M17*2)/12 -> 125.4380639 | N38: =D$22*J23+ROUND($F$14*365/12,2)+('Simple Bill Insert Calc (2)'!M17*2)/12 -> 121.5566114 | O38: =E$22*I23+ROUND($F$14*365/12,2)+('Simple Bill Insert Calc (2)'!M17*2)/12 -> 125.4380639 | P38: =E$22*J23+ROUND($F$14*365/12,2)+('Simple Bill Insert Calc (2)'!M17*2)/12 -> 121.5566114 | R38: 6 cool | S38: =C$28*I23+ROUND($C$31*365/12,2)+('Simple Bill Insert Calc (2)'!M17*2)/12 -> 63.70192503 | T38: =C$28*J23+ROUND($C$31*365/12,2)+('Simple Bill Insert Calc (2)'!M17*2)/12 -> 61.16174053 | U38: =D$28*I23+ROUND($P$14*365/12,2)+('Simple Bill Insert Calc (2)'!M17*2)/12 -> 69.56165312 | V38: =D$28*J23+ROUND($P$14*365/12,2)+('Simple Bill Insert Calc (2)'!M17*2)/12 -> 67.00358342 | W38: =E$28*I23+ROUND($P$14*365/12,2)+('Simple Bill Insert Calc (2)'!M17*2)/12 -> 69.56165312 | X38: =E$28*J23+ROUND($P$14*365/12,2)+('Simple Bill Insert Calc (2)'!M17*2)/12 -> 67.00358342
B39: 8 cool | C39: =C$22*MIN(I24,P24)+IF(P24-I24>0,C$23*(P24-I24))+ROUND($C$25*365/12,2)+('Simple Bill Insert Calc (2)'!M17*2)/12 -> 198.0053281 | D39: =C$22*MIN(J24,Q24)+IF(Q24-J24>0,C$23*(Q24-J24))+ROUND($C$25*365/12,2)+('Simple Bill Insert Calc (2)'!M17*2)/12 -> 132.0622536 | E39: =D$22*MIN(I24,P24)+IF(P24-I24>0,D$23*(P24-I24))+ROUND($F$14*365/12,2)+('Simple Bill Insert Calc (2)'!M17*2)/12 -> 214.8991895 | F39: =D$22*MIN(J24,Q24)+IF(Q24-J24>0,D$23*(Q24-J24))+ROUND($F$14*365/12,2)+('Simple Bill Insert Calc (2)'!M17*2)/12 -> 150.4710579 | G39: =E$22*MIN(I24,P24)+IF(P24-I24>0,E$23*(P24-I24))+ROUND($F$14*365/12,2)+('Simple Bill Insert Calc (2)'!M17*2)/12 -> 214.8991895 | H39: =E$22*MIN(J24,Q24)+IF(Q24-J24>0,E$23*(Q24-J24))+ROUND($F$14*365/12,2)+('Simple Bill Insert Calc (2)'!M17*2)/12 -> 150.4710579 | J39: 8 cool | K39: =C$22*I24+ROUND($C$25*365/12,2)+('Simple Bill Insert Calc (2)'!M17*2)/12 -> 121.2872345 | L39: =C$22*J24+ROUND($C$25*365/12,2)+('Simple Bill Insert Calc (2)'!M17*2)/12 -> 95.95899857 | M39: =D$22*I24+ROUND($F$14*365/12,2)+('Simple Bill Insert Calc (2)'!M17*2)/12 -> 139.0231478 | N39: =D$22*J24+ROUND($F$14*365/12,2)+('Simple Bill Insert Calc (2)'!M17*2)/12 -> 114.7640695 | O39: =E$22*I24+ROUND($F$14*365/12,2)+('Simple Bill Insert Calc (2)'!M17*2)/12 -> 139.0231478 | P39: =E$22*J24+ROUND($F$14*365/12,2)+('Simple Bill Insert Calc (2)'!M17*2)/12 -> 114.7640695 | R39: 8 cool | S39: =C$28*I24+ROUND($C$31*365/12,2)+('Simple Bill Insert Calc (2)'!M17*2)/12 -> 72.59257079 | T39: =C$28*J24+ROUND($C$31*365/12,2)+('Simple Bill Insert Calc (2)'!M17*2)/12 -> 56.71641764 | U39: =D$28*I24+ROUND($P$14*365/12,2)+('Simple Bill Insert Calc (2)'!M17*2)/12 -> 78.51489707 | V39: =D$28*J24+ROUND($P$14*365/12,2)+('Simple Bill Insert Calc (2)'!M17*2)/12 -> 62.52696144 | W39: =E$28*I24+ROUND($P$14*365/12,2)+('Simple Bill Insert Calc (2)'!M17*2)/12 -> 78.51489707 | X39: =E$28*J24+ROUND($P$14*365/12,2)+('Simple Bill Insert Calc (2)'!M17*2)/12 -> 62.52696144
B40: 9 warm | C40: =C$22*MIN(I25,P25)+IF(P25-I25>0,C$23*(P25-I25))+ROUND($C$25*365/12,2)+('Simple Bill Insert Calc (2)'!M17*2)/12 -> 257.9491103 | D40: =C$22*MIN(J25,Q25)+IF(Q25-J25>0,C$23*(Q25-J25))+ROUND($C$25*365/12,2)+('Simple Bill Insert Calc (2)'!M17*2)/12 -> 151.3144154 | E40: =D$22*MIN(I25,P25)+IF(P25-I25>0,D$23*(P25-I25))+ROUND($F$14*365/12,2)+('Simple Bill Insert Calc (2)'!M17*2)/12 -> 272.8875363 | F40: =D$22*MIN(J25,Q25)+IF(Q25-J25>0,D$23*(Q25-J25))+ROUND($F$14*365/12,2)+('Simple Bill Insert Calc (2)'!M17*2)/12 -> 168.9739229 | G40: =E$22*MIN(I25,P25)+IF(P25-I25>0,E$23*(P25-I25))+ROUND($F$14*365/12,2)+('Simple Bill Insert Calc (2)'!M17*2)/12 -> 272.8875363 | H40: =E$22*MIN(J25,Q25)+IF(Q25-J25>0,E$23*(Q25-J25))+ROUND($F$14*365/12,2)+('Simple Bill Insert Calc (2)'!M17*2)/12 -> 168.9739229 | J40: 9 warm | K40: =C$22*I25+ROUND($C$25*365/12,2)+('Simple Bill Insert Calc (2)'!M17*2)/12 -> 162.8255414 | L40: =C$22*J25+ROUND($C$25*365/12,2)+('Simple Bill Insert Calc (2)'!M17*2)/12 -> 113.182199 | M40: =D$22*I25+ROUND($F$14*365/12,2)+('Simple Bill Insert Calc (2)'!M17*2)/12 -> 178.8080363 | N40: =D$22*J25+ROUND($F$14*365/12,2)+('Simple Bill Insert Calc (2)'!M17*2)/12 -> 131.2602427 | O40: =E$22*I25+ROUND($F$14*365/12,2)+('Simple Bill Insert Calc (2)'!M17*2)/12 -> 178.8080363 | P40: =E$22*J25+ROUND($F$14*365/12,2)+('Simple Bill Insert Calc (2)'!M17*2)/12 -> 131.2602427 | R40: 9 warm | S40: =C$28*I25+ROUND($C$31*365/12,2)+('Simple Bill Insert Calc (2)'!M17*2)/12 -> 98.62946196 | T40: =C$28*J25+ROUND($C$31*365/12,2)+('Simple Bill Insert Calc (2)'!M17*2)/12 -> 67.51220179 | U40: =D$28*I25+ROUND($P$14*365/12,2)+('Simple Bill Insert Calc (2)'!M17*2)/12 -> 104.7351115 | V40: =D$28*J25+ROUND($P$14*365/12,2)+('Simple Bill Insert Calc (2)'!M17*2)/12 -> 73.39875767 | W40: =E$28*I25+ROUND($P$14*365/12,2)+('Simple Bill Insert Calc (2)'!M17*2)/12 -> 104.7351115 | X40: =E$28*J25+ROUND($P$14*365/12,2)+('Simple Bill Insert Calc (2)'!M17*2)/12 -> 73.39875767
B41: 10 hot (Sec 745) | C41: =C$22*MIN(I26,P26)+IF(P26-I26>0,C$23*(P26-I26))+ROUND($C$25*365/12,2)+('Simple Bill Insert Calc (2)'!M17*2)/12 -> 303.1446916 | D41: =C$22*MIN(J26,Q26)+IF(Q26-J26>0,C$23*(Q26-J26))+ROUND($C$25*365/12,2)+('Simple Bill Insert Calc (2)'!M17*2)/12 -> 163.0048212 | E41: =D$22*MIN(I26,P26)+IF(P26-I26>0,D$23*(P26-I26))+ROUND($F$14*365/12,2)+('Simple Bill Insert Calc (2)'!M17*2)/12 -> 316.8275439 | F41: =D$22*MIN(J26,Q26)+IF(Q26-J26>0,D$23*(Q26-J26))+ROUND($F$14*365/12,2)+('Simple Bill Insert Calc (2)'!M17*2)/12 -> 180.5043694 | G41: =E$22*MIN(I26,P26)+IF(P26-I26>0,E$23*(P26-I26))+ROUND($F$14*365/12,2)+('Simple Bill Insert Calc (2)'!M17*2)/12 -> 316.8275439 | H41: =E$22*MIN(J26,Q26)+IF(Q26-J26>0,E$23*(Q26-J26))+ROUND($F$14*365/12,2)+('Simple Bill Insert Calc (2)'!M17*2)/12 -> 180.5043694 | J41: 10 hot (Sec 745) | K41: =C$22*I26+ROUND($C$25*365/12,2)+('Simple Bill Insert Calc (2)'!M17*2)/12 -> 187.1406478 | L41: =C$22*J26+ROUND($C$25*365/12,2)+('Simple Bill Insert Calc (2)'!M17*2)/12 -> 114.1953284 | M41: =D$22*I26+ROUND($F$14*365/12,2)+('Simple Bill Insert Calc (2)'!M17*2)/12 -> 202.0967515 | N41: =D$22*J26+ROUND($F$14*365/12,2)+('Simple Bill Insert Calc (2)'!M17*2)/12 -> 132.2306059 | O41: =E$22*I26+ROUND($F$14*365/12,2)+('Simple Bill Insert Calc (2)'!M17*2)/12 -> 202.0967515 | P41: =E$22*J26+ROUND($F$14*365/12,2)+('Simple Bill Insert Calc (2)'!M17*2)/12 -> 132.2306059 | R41: 10 hot (Sec 745) | S41: =C$28*I26+ROUND($C$31*365/12,2)+('Simple Bill Insert Calc (2)'!M17*2)/12 -> 113.870569 | T41: =C$28*J26+ROUND($C$31*365/12,2)+('Simple Bill Insert Calc (2)'!M17*2)/12 -> 68.14724791 | U41: =D$28*I26+ROUND($P$14*365/12,2)+('Simple Bill Insert Calc (2)'!M17*2)/12 -> 120.0835297 | V41: =D$28*J26+ROUND($P$14*365/12,2)+('Simple Bill Insert Calc (2)'!M17*2)/12 -> 74.03827509 | W41: =E$28*I26+ROUND($P$14*365/12,2)+('Simple Bill Insert Calc (2)'!M17*2)/12 -> 120.0835297 | X41: =E$28*J26+ROUND($P$14*365/12,2)+('Simple Bill Insert Calc (2)'!M17*2)/12 -> 74.03827509
B42: 13 hot | C42: =C$22*MIN(I27,P27)+IF(P27-I27>0,C$23*(P27-I27))+ROUND($C$25*365/12,2)+('Simple Bill Insert Calc (2)'!M17*2)/12 -> 353.7558048 | D42: =C$22*MIN(J27,Q27)+IF(Q27-J27>0,C$23*(Q27-J27))+ROUND($C$25*365/12,2)+('Simple Bill Insert Calc (2)'!M17*2)/12 -> 165.4246611 | E42: =D$22*MIN(I27,P27)+IF(P27-I27>0,D$23*(P27-I27))+ROUND($F$14*365/12,2)+('Simple Bill Insert Calc (2)'!M17*2)/12 -> 365.9654116 | F42: =D$22*MIN(J27,Q27)+IF(Q27-J27>0,D$23*(Q27-J27))+ROUND($F$14*365/12,2)+('Simple Bill Insert Calc (2)'!M17*2)/12 -> 182.866003 | G42: =E$22*MIN(I27,P27)+IF(P27-I27>0,E$23*(P27-I27))+ROUND($F$14*365/12,2)+('Simple Bill Insert Calc (2)'!M17*2)/12 -> 365.9654116 | H42: =E$22*MIN(J27,Q27)+IF(Q27-J27>0,E$23*(Q27-J27))+ROUND($F$14*365/12,2)+('Simple Bill Insert Calc (2)'!M17*2)/12 -> 182.866003 | J42: 13 hot | K42: =C$22*I27+ROUND($C$25*365/12,2)+('Simple Bill Insert Calc (2)'!M17*2)/12 -> 216.5214015 | L42: =C$22*J27+ROUND($C$25*365/12,2)+('Simple Bill Insert Calc (2)'!M17*2)/12 -> 115.2084579 | M42: =D$22*I27+ROUND($F$14*365/12,2)+('Simple Bill Insert Calc (2)'!M17*2)/12 -> 230.2372824 | N42: =D$22*J27+ROUND($F$14*365/12,2)+('Simple Bill Insert Calc (2)'!M17*2)/12 -> 133.200969 | O42: =E$22*I27+ROUND($F$14*365/12,2)+('Simple Bill Insert Calc (2)'!M17*2)/12 -> 230.2372824 | P42: =E$22*J27+ROUND($F$14*365/12,2)+('Simple Bill Insert Calc (2)'!M17*2)/12 -> 133.200969 | R42: 13 hot | S42: =C$28*I27+ROUND($C$31*365/12,2)+('Simple Bill Insert Calc (2)'!M17*2)/12 -> 132.2869066 | T42: =C$28*J27+ROUND($C$31*365/12,2)+('Simple Bill Insert Calc (2)'!M17*2)/12 -> 68.78229404 | U42: =D$28*I27+ROUND($P$14*365/12,2)+('Simple Bill Insert Calc (2)'!M17*2)/12 -> 138.629535 | V42: =D$28*J27+ROUND($P$14*365/12,2)+('Simple Bill Insert Calc (2)'!M17*2)/12 -> 74.67779252 | W42: =E$28*I27+ROUND($P$14*365/12,2)+('Simple Bill Insert Calc (2)'!M17*2)/12 -> 138.629535 | X42: =E$28*J27+ROUND($P$14*365/12,2)+('Simple Bill Insert Calc (2)'!M17*2)/12 -> 74.67779252
B43: 14 hot | C43: =C$22*MIN(I28,P28)+IF(P28-I28>0,C$23*(P28-I28))+ROUND($C$25*365/12,2)+('Simple Bill Insert Calc (2)'!M17*2)/12 -> 294.0003144 | D43: =C$22*MIN(J28,Q28)+IF(Q28-J28>0,C$23*(Q28-J28))+ROUND($C$25*365/12,2)+('Simple Bill Insert Calc (2)'!M17*2)/12 -> 159.9117568 | E43: =D$22*MIN(I28,P28)+IF(P28-I28>0,D$23*(P28-I28))+ROUND($F$14*365/12,2)+('Simple Bill Insert Calc (2)'!M17*2)/12 -> 307.8151809 | F43: =D$22*MIN(J28,Q28)+IF(Q28-J28>0,D$23*(Q28-J28))+ROUND($F$14*365/12,2)+('Simple Bill Insert Calc (2)'!M17*2)/12 -> 177.5085468 | G43: =E$22*MIN(I28,P28)+IF(P28-I28>0,E$23*(P28-I28))+ROUND($F$14*365/12,2)+('Simple Bill Insert Calc (2)'!M17*2)/12 -> 307.8151809 | H43: =E$22*MIN(J28,Q28)+IF(Q28-J28>0,E$23*(Q28-J28))+ROUND($F$14*365/12,2)+('Simple Bill Insert Calc (2)'!M17*2)/12 -> 177.5085468 | J43: 14 hot | K43: =C$22*I28+ROUND($C$25*365/12,2)+('Simple Bill Insert Calc (2)'!M17*2)/12 -> 186.1275184 | L43: =C$22*J28+ROUND($C$25*365/12,2)+('Simple Bill Insert Calc (2)'!M17*2)/12 -> 112.1690696 | M43: =D$22*I28+ROUND($F$14*365/12,2)+('Simple Bill Insert Calc (2)'!M17*2)/12 -> 201.1263884 | N43: =D$22*J28+ROUND($F$14*365/12,2)+('Simple Bill Insert Calc (2)'!M17*2)/12 -> 130.2898796 | O43: =E$22*I28+ROUND($F$14*365/12,2)+('Simple Bill Insert Calc (2)'!M17*2)/12 -> 201.1263884 | P43: =E$22*J28+ROUND($F$14*365/12,2)+('Simple Bill Insert Calc (2)'!M17*2)/12 -> 130.2898796 | R43: 14 hot | S43: =C$28*I28+ROUND($C$31*365/12,2)+('Simple Bill Insert Calc (2)'!M17*2)/12 -> 113.2355229 | T43: =C$28*J28+ROUND($C$31*365/12,2)+('Simple Bill Insert Calc (2)'!M17*2)/12 -> 66.87715566 | U43: =D$28*I28+ROUND($P$14*365/12,2)+('Simple Bill Insert Calc (2)'!M17*2)/12 -> 119.4440123 | V43: =D$28*J28+ROUND($P$14*365/12,2)+('Simple Bill Insert Calc (2)'!M17*2)/12 -> 72.75924024 | W43: =E$28*I28+ROUND($P$14*365/12,2)+('Simple Bill Insert Calc (2)'!M17*2)/12 -> 119.4440123 | X43: =E$28*J28+ROUND($P$14*365/12,2)+('Simple Bill Insert Calc (2)'!M17*2)/12 -> 72.75924024
B44: 15 hot | C44: =C$22*MIN(I29,P29)+IF(P29-I29>0,C$23*(P29-I29))+ROUND($C$25*365/12,2)+('Simple Bill Insert Calc (2)'!M17*2)/12 -> 397.7634205 | D44: =C$22*MIN(J29,Q29)+IF(Q29-J29>0,C$23*(Q29-J29))+ROUND($C$25*365/12,2)+('Simple Bill Insert Calc (2)'!M17*2)/12 -> 195.1004666 | E44: =D$22*MIN(I29,P29)+IF(P29-I29>0,D$23*(P29-I29))+ROUND($F$14*365/12,2)+('Simple Bill Insert Calc (2)'!M17*2)/12 -> 403.8286987 | F44: =D$22*MIN(J29,Q29)+IF(Q29-J29>0,D$23*(Q29-J29))+ROUND($F$14*365/12,2)+('Simple Bill Insert Calc (2)'!M17*2)/12 -> 213.007246 | G44: =E$22*MIN(I29,P29)+IF(P29-I29>0,E$23*(P29-I29))+ROUND($F$14*365/12,2)+('Simple Bill Insert Calc (2)'!M17*2)/12 -> 403.8286987 | H44: =E$22*MIN(J29,Q29)+IF(Q29-J29>0,E$23*(Q29-J29))+ROUND($F$14*365/12,2)+('Simple Bill Insert Calc (2)'!M17*2)/12 -> 213.007246 | J44: 15 hot | K44: =C$22*I29+ROUND($C$25*365/12,2)+('Simple Bill Insert Calc (2)'!M17*2)/12 -> 447.5149129 | L44: =C$22*J29+ROUND($C$25*365/12,2)+('Simple Bill Insert Calc (2)'!M17*2)/12 -> 89.88022196 | M44: =D$22*I29+ROUND($F$14*365/12,2)+('Simple Bill Insert Calc (2)'!M17*2)/12 -> 451.480077 | N44: =D$22*J29+ROUND($F$14*365/12,2)+('Simple Bill Insert Calc (2)'!M17*2)/12 -> 108.9418907 | O44: =E$22*I29+ROUND($F$14*365/12,2)+('Simple Bill Insert Calc (2)'!M17*2)/12 -> 451.480077 | P44: =E$22*J29+ROUND($F$14*365/12,2)+('Simple Bill Insert Calc (2)'!M17*2)/12 -> 108.9418907 | R44: 15 hot | S44: =C$28*I29+ROUND($C$31*365/12,2)+('Simple Bill Insert Calc (2)'!M17*2)/12 -> 277.0774234 | T44: =C$28*J29+ROUND($C$31*365/12,2)+('Simple Bill Insert Calc (2)'!M17*2)/12 -> 52.90614089 | U44: =D$28*I29+ROUND($P$14*365/12,2)+('Simple Bill Insert Calc (2)'!M17*2)/12 -> 284.4395079 | V44: =D$28*J29+ROUND($P$14*365/12,2)+('Simple Bill Insert Calc (2)'!M17*2)/12 -> 58.68985689 | W44: =E$28*I29+ROUND($P$14*365/12,2)+('Simple Bill Insert Calc (2)'!M17*2)/12 -> 284.4395079 | X44: =E$28*J29+ROUND($P$14*365/12,2)+('Simple Bill Insert Calc (2)'!M17*2)/12 -> 58.68985689
B45: 16 cool | C45: =C$22*MIN(I30,P30)+IF(P30-I30>0,C$23*(P30-I30))+ROUND($C$25*365/12,2)+('Simple Bill Insert Calc (2)'!M17*2)/12 -> 191.0696506 | D45: =C$22*MIN(J30,Q30)+IF(Q30-J30>0,C$23*(Q30-J30))+ROUND($C$25*365/12,2)+('Simple Bill Insert Calc (2)'!M17*2)/12 -> 134.1442685 | E45: =D$22*MIN(I30,P30)+IF(P30-I30>0,D$23*(P30-I30))+ROUND($F$14*365/12,2)+('Simple Bill Insert Calc (2)'!M17*2)/12 -> 207.4383584 | F45: =D$22*MIN(J30,Q30)+IF(Q30-J30>0,D$23*(Q30-J30))+ROUND($F$14*365/12,2)+('Simple Bill Insert Calc (2)'!M17*2)/12 -> 151.8656491 | G45: =E$22*MIN(I30,P30)+IF(P30-I30>0,E$23*(P30-I30))+ROUND($F$14*365/12,2)+('Simple Bill Insert Calc (2)'!M17*2)/12 -> 207.4383584 | H45: =E$22*MIN(J30,Q30)+IF(Q30-J30>0,E$23*(Q30-J30))+ROUND($F$14*365/12,2)+('Simple Bill Insert Calc (2)'!M17*2)/12 -> 151.8656491 | J45: 16 cool | K45: =C$22*I30+ROUND($C$25*365/12,2)+('Simple Bill Insert Calc (2)'!M17*2)/12 -> 140.5366938 | L45: =C$22*J30+ROUND($C$25*365/12,2)+('Simple Bill Insert Calc (2)'!M17*2)/12 -> 117.2347167 | M45: =D$22*I30+ROUND($F$14*365/12,2)+('Simple Bill Insert Calc (2)'!M17*2)/12 -> 157.4600474 | N45: =D$22*J30+ROUND($F$14*365/12,2)+('Simple Bill Insert Calc (2)'!M17*2)/12 -> 135.1416953 | O45: =E$22*I30+ROUND($F$14*365/12,2)+('Simple Bill Insert Calc (2)'!M17*2)/12 -> 157.4600474 | P45: =E$22*J30+ROUND($F$14*365/12,2)+('Simple Bill Insert Calc (2)'!M17*2)/12 -> 135.1416953 | R45: 16 cool | S45: =C$28*I30+ROUND($C$31*365/12,2)+('Simple Bill Insert Calc (2)'!M17*2)/12 -> 84.65844719 | T45: =C$28*J30+ROUND($C$31*365/12,2)+('Simple Bill Insert Calc (2)'!M17*2)/12 -> 70.05238629 | U45: =D$28*I30+ROUND($P$14*365/12,2)+('Simple Bill Insert Calc (2)'!M17*2)/12 -> 90.66572814 | V45: =D$28*J30+ROUND($P$14*365/12,2)+('Simple Bill Insert Calc (2)'!M17*2)/12 -> 75.95682737 | W45: =E$28*I30+ROUND($P$14*365/12,2)+('Simple Bill Insert Calc (2)'!M17*2)/12 -> 90.66572814 | X45: =E$28*J30+ROUND($P$14*365/12,2)+('Simple Bill Insert Calc (2)'!M17*2)/12 -> 75.95682737
B46: ALL | C46: =SUMPRODUCT(C37:C45,$T$22:$T$30) -> 248.390766 | D46: 147.5374648 | E46: 263.4544339 | F46: 165.4219124 | G46: 263.4544339 | H46: 165.4219124 | J46: ALL | K46: =SUMPRODUCT(K37:K45,$T$22:$T$30) -> 163.7920629 | L46: 107.3275525 | M46: 179.733759 | N46: 125.6527331 | O46: 179.733759 | P46: 125.6527331 | R46: ALL | S46: =SUMPRODUCT(S37:S45,$U$22:$U$30) -> 109.9002144 | T46: =SUMPRODUCT(T37:T45,$U$22:$U$30) -> 65.32589318 | U46: 116.0852203 | V46: 71.19705547 | W46: 116.0852203 | X46: 71.19705547
C49: CARE | K49: Essential Use (All-Electric) - Non-CARE | S49: Essential Use (All-Electric) - CARE
C50: =C27 -> Jan 2025 | E50: =D27 -> 2025-11-15 | G50: =E27 -> Proposed | K50: =C50 -> Jan 2025 | M50: =E50 -> 2025-11-15 | O50: =G50 -> Proposed | S50: =K50 -> Jan 2025 | U50: =M50 -> 2025-11-15 | W50: =O50 -> Proposed
C51: Summer | D51: Winter | E51: Summer | F51: Winter | G51: Summer | H51: Winter | K51: Summer | L51: Winter | M51: Summer | N51: Winter | O51: Summer | P51: Winter | S51: Summer | T51: Winter | U51: Summer | V51: Winter | W51: Summer | X51: Winter
B52: 5 warm | C52: =C$28*MIN(I22,R22)+IF(R22-I22>0,C$29*(R22-I22))+ROUND($C$31*365/12,2)+('Simple Bill Insert Calc (2)'!M17*2)/12 -> 68.66764285 | D52: =C$28*MIN(J22,S22)+IF(S22-J22>0,C$29*(S22-J22))+ROUND($C$31*365/12,2)+('Simple Bill Insert Calc (2)'!M17*2)/12 -> 64.96695865 | E52: =D$28*MIN(I22,R22)+IF(R22-I22>0,D$29*(R22-I22))+ROUND($P$14*365/12,2)+('Simple Bill Insert Calc (2)'!M17*2)/12 -> 74.56233408 | F52: =D$28*MIN(J22,S22)+IF(S22-J22>0,D$29*(S22-J22))+ROUND($P$14*365/12,2)+('Simple Bill Insert Calc (2)'!M17*2)/12 -> 70.83559371 | G52: =E$28*MIN(I22,R22)+IF(R22-I22>0,E$29*(R22-I22))+ROUND($P$14*365/12,2)+('Simple Bill Insert Calc (2)'!M17*2)/12 -> 74.56233408 | H52: =E$28*MIN(J22,S22)+IF(S22-J22>0,E$29*(S22-J22))+ROUND($P$14*365/12,2)+('Simple Bill Insert Calc (2)'!M17*2)/12 -> 70.83559371 | J52: 5 warm | K52: =C$22*K22+ROUND($C$25*365/12,2)+('Simple Bill Insert Calc (2)'!M17*2)/12 -> 161.8124119 | L52: =C$22*L22+ROUND($C$25*365/12,2)+('Simple Bill Insert Calc (2)'!M17*2)/12 -> 265.1516144 | M52: =D$22*K22+ROUND($F$14*365/12,2)+('Simple Bill Insert Calc (2)'!M17*2)/12 -> 177.8376732 | N52: =D$22*L22+ROUND($F$14*365/12,2)+('Simple Bill Insert Calc (2)'!M17*2)/12 -> 276.8147128 | O52: =E$22*K22+ROUND($F$14*365/12,2)+('Simple Bill Insert Calc (2)'!M17*2)/12 -> 177.8376732 | P52: =E$22*L22+ROUND($F$14*365/12,2)+('Simple Bill Insert Calc (2)'!M17*2)/12 -> 276.8147128 | R52: 5 warm | S52: =C$28*K22+ROUND($C$31*365/12,2)+('Simple Bill Insert Calc (2)'!M17*2)/12 -> 97.99441583 | T52: =C$28*L22+ROUND($C$31*365/12,2)+('Simple Bill Insert Calc (2)'!M17*2)/12 -> 162.7691207 | U52: =D$28*K22+ROUND($P$14*365/12,2)+('Simple Bill Insert Calc (2)'!M17*2)/12 -> 104.0955941 | V52: =D$28*L22+ROUND($P$14*365/12,2)+('Simple Bill Insert Calc (2)'!M17*2)/12 -> 169.3263714 | W52: =E$28*K22+ROUND($P$14*365/12,2)+('Simple Bill Insert Calc (2)'!M17*2)/12 -> 104.0955941 | X52: =E$28*L22+ROUND($P$14*365/12,2)+('Simple Bill Insert Calc (2)'!M17*2)/12 -> 169.3263714
B53: 6 cool | C53: =C$28*MIN(I23,R23)+IF(R23-I23>0,C$29*(R23-I23))+ROUND($C$31*365/12,2)+('Simple Bill Insert Calc (2)'!M17*2)/12 -> 79.17496909 | D53: =C$28*MIN(J23,S23)+IF(S23-J23>0,C$29*(S23-J23))+ROUND($C$31*365/12,2)+('Simple Bill Insert Calc (2)'!M17*2)/12 -> 64.47961901 | E53: =D$28*MIN(I23,R23)+IF(R23-I23>0,D$29*(R23-I23))+ROUND($P$14*365/12,2)+('Simple Bill Insert Calc (2)'!M17*2)/12 -> 85.47623355 | F53: =D$28*MIN(J23,S23)+IF(S23-J23>0,D$29*(S23-J23))+ROUND($P$14*365/12,2)+('Simple Bill Insert Calc (2)'!M17*2)/12 -> 70.41614036 | G53: =E$28*MIN(I23,R23)+IF(R23-I23>0,E$29*(R23-I23))+ROUND($P$14*365/12,2)+('Simple Bill Insert Calc (2)'!M17*2)/12 -> 85.47623355 | H53: =E$28*MIN(J23,S23)+IF(S23-J23>0,E$29*(S23-J23))+ROUND($P$14*365/12,2)+('Simple Bill Insert Calc (2)'!M17*2)/12 -> 70.41614036 | J53: 6 cool | K53: =C$22*K23+ROUND($C$25*365/12,2)+('Simple Bill Insert Calc (2)'!M17*2)/12 -> 79.7489276 | L53: =C$22*L23+ROUND($C$25*365/12,2)+('Simple Bill Insert Calc (2)'!M17*2)/12 -> 119.2609756 | M53: =D$22*K23+ROUND($F$14*365/12,2)+('Simple Bill Insert Calc (2)'!M17*2)/12 -> 99.23825932 | N53: =D$22*L23+ROUND($F$14*365/12,2)+('Simple Bill Insert Calc (2)'!M17*2)/12 -> 137.0824216 | O53: =E$22*K23+ROUND($F$14*365/12,2)+('Simple Bill Insert Calc (2)'!M17*2)/12 -> 99.23825932 | P53: =E$22*L23+ROUND($F$14*365/12,2)+('Simple Bill Insert Calc (2)'!M17*2)/12 -> 137.0824216 | R53: 6 cool | S53: =C$28*K23+ROUND($C$31*365/12,2)+('Simple Bill Insert Calc (2)'!M17*2)/12 -> 46.55567963 | T53: =C$28*L23+ROUND($C$31*365/12,2)+('Simple Bill Insert Calc (2)'!M17*2)/12 -> 71.32247854 | U53: =D$28*K23+ROUND($P$14*365/12,2)+('Simple Bill Insert Calc (2)'!M17*2)/12 -> 52.29468264 | V53: =D$28*L23+ROUND($P$14*365/12,2)+('Simple Bill Insert Calc (2)'!M17*2)/12 -> 77.23586222 | W53: =E$28*K23+ROUND($P$14*365/12,2)+('Simple Bill Insert Calc (2)'!M17*2)/12 -> 52.29468264 | X53: =E$28*L23+ROUND($P$14*365/12,2)+('Simple Bill Insert Calc (2)'!M17*2)/12 -> 77.23586222
B54: 8 cool | C54: =C$28*MIN(I24,R24)+IF(R24-I24>0,C$29*(R24-I24))+ROUND($C$31*365/12,2)+('Simple Bill Insert Calc (2)'!M17*2)/12 -> 103.6442695 | D54: =C$28*MIN(J24,S24)+IF(S24-J24>0,C$29*(S24-J24))+ROUND($C$31*365/12,2)+('Simple Bill Insert Calc (2)'!M17*2)/12 -> 72.96840317 | E54: =D$28*MIN(I24,R24)+IF(R24-I24>0,D$29*(R24-I24))+ROUND($P$14*365/12,2)+('Simple Bill Insert Calc (2)'!M17*2)/12 -> 110.4526822 | F54: =D$28*MIN(J24,S24)+IF(S24-J24>0,D$29*(S24-J24))+ROUND($P$14*365/12,2)+('Simple Bill Insert Calc (2)'!M17*2)/12 -> 79.24271109 | G54: =E$28*MIN(I24,R24)+IF(R24-I24>0,E$29*(R24-I24))+ROUND($P$14*365/12,2)+('Simple Bill Insert Calc (2)'!M17*2)/12 -> 110.4526822 | H54: =E$28*MIN(J24,S24)+IF(S24-J24>0,E$29*(S24-J24))+ROUND($P$14*365/12,2)+('Simple Bill Insert Calc (2)'!M17*2)/12 -> 79.24271109 | J54: 8 cool | K54: =C$22*K24+ROUND($C$25*365/12,2)+('Simple Bill Insert Calc (2)'!M17*2)/12 -> 91.90648083 | L54: =C$22*L24+ROUND($C$25*365/12,2)+('Simple Bill Insert Calc (2)'!M17*2)/12 -> 116.2215873 | M54: =D$22*K24+ROUND($F$14*365/12,2)+('Simple Bill Insert Calc (2)'!M17*2)/12 -> 110.8826169 | N54: =D$22*L24+ROUND($F$14*365/12,2)+('Simple Bill Insert Calc (2)'!M17*2)/12 -> 134.1713321 | O54: =E$22*K24+ROUND($F$14*365/12,2)+('Simple Bill Insert Calc (2)'!M17*2)/12 -> 110.8826169 | P54: =E$22*L24+ROUND($F$14*365/12,2)+('Simple Bill Insert Calc (2)'!M17*2)/12 -> 134.1713321 | R54: 8 cool | S54: =C$28*K24+ROUND($C$31*365/12,2)+('Simple Bill Insert Calc (2)'!M17*2)/12 -> 54.17623314 | T54: =C$28*L24+ROUND($C$31*365/12,2)+('Simple Bill Insert Calc (2)'!M17*2)/12 -> 69.41734016 | U54: =D$28*K24+ROUND($P$14*365/12,2)+('Simple Bill Insert Calc (2)'!M17*2)/12 -> 59.96889174 | V54: =D$28*L24+ROUND($P$14*365/12,2)+('Simple Bill Insert Calc (2)'!M17*2)/12 -> 75.31730994 | W54: =E$28*K24+ROUND($P$14*365/12,2)+('Simple Bill Insert Calc (2)'!M17*2)/12 -> 59.96889174 | X54: =E$28*L24+ROUND($P$14*365/12,2)+('Simple Bill Insert Calc (2)'!M17*2)/12 -> 75.31730994
B55: 9 warm | C55: =C$28*MIN(I25,R25)+IF(R25-I25>0,C$29*(R25-I25))+ROUND($C$31*365/12,2)+('Simple Bill Insert Calc (2)'!M17*2)/12 -> 145.4334121 | D55: =C$28*MIN(J25,S25)+IF(S25-J25>0,C$29*(S25-J25))+ROUND($C$31*365/12,2)+('Simple Bill Insert Calc (2)'!M17*2)/12 -> 83.68430279 | E55: =D$28*MIN(I25,R25)+IF(R25-I25>0,D$29*(R25-I25))+ROUND($P$14*365/12,2)+('Simple Bill Insert Calc (2)'!M17*2)/12 -> 152.8746518 | F55: =D$28*MIN(J25,S25)+IF(S25-J25>0,D$29*(S25-J25))+ROUND($P$14*365/12,2)+('Simple Bill Insert Calc (2)'!M17*2)/12 -> 90.03234322 | G55: =E$28*MIN(I25,R25)+IF(R25-I25>0,E$29*(R25-I25))+ROUND($P$14*365/12,2)+('Simple Bill Insert Calc (2)'!M17*2)/12 -> 152.8746518 | H55: =E$28*MIN(J25,S25)+IF(S25-J25>0,E$29*(S25-J25))+ROUND($P$14*365/12,2)+('Simple Bill Insert Calc (2)'!M17*2)/12 -> 90.03234322 | J55: 9 warm | K55: =C$22*K25+ROUND($C$25*365/12,2)+('Simple Bill Insert Calc (2)'!M17*2)/12 -> 118.2478462 | L55: =C$22*L25+ROUND($C$25*365/12,2)+('Simple Bill Insert Calc (2)'!M17*2)/12 -> 132.4316583 | M55: =D$22*K25+ROUND($F$14*365/12,2)+('Simple Bill Insert Calc (2)'!M17*2)/12 -> 136.1120584 | N55: =D$22*L25+ROUND($F$14*365/12,2)+('Simple Bill Insert Calc (2)'!M17*2)/12 -> 149.6971423 | O55: =E$22*K25+ROUND($F$14*365/12,2)+('Simple Bill Insert Calc (2)'!M17*2)/12 -> 136.1120584 | P55: =E$22*L25+ROUND($F$14*365/12,2)+('Simple Bill Insert Calc (2)'!M17*2)/12 -> 149.6971423 | R55: 9 warm | S55: =C$28*K25+ROUND($C$31*365/12,2)+('Simple Bill Insert Calc (2)'!M17*2)/12 -> 70.68743242 | T55: =C$28*L25+ROUND($C$31*365/12,2)+('Simple Bill Insert Calc (2)'!M17*2)/12 -> 79.57807818 | U55: =D$28*K25+ROUND($P$14*365/12,2)+('Simple Bill Insert Calc (2)'!M17*2)/12 -> 76.59634479 | V55: =D$28*L25+ROUND($P$14*365/12,2)+('Simple Bill Insert Calc (2)'!M17*2)/12 -> 85.54958874 | W55: =E$28*K25+ROUND($P$14*365/12,2)+('Simple Bill Insert Calc (2)'!M17*2)/12 -> 76.59634479 | X55: =E$28*L25+ROUND($P$14*365/12,2)+('Simple Bill Insert Calc (2)'!M17*2)/12 -> 85.54958874
B56: 10 hot (Sec 745) | C56: =C$28*MIN(I26,R26)+IF(R26-I26>0,C$29*(R26-I26))+ROUND($C$31*365/12,2)+('Simple Bill Insert Calc (2)'!M17*2)/12 -> 204.3286138 | D56: =C$28*MIN(J26,S26)+IF(S26-J26>0,C$29*(S26-J26))+ROUND($C$31*365/12,2)+('Simple Bill Insert Calc (2)'!M17*2)/12 -> 104.0756369 | E56: =D$28*MIN(I26,R26)+IF(R26-I26>0,D$29*(R26-I26))+ROUND($P$14*365/12,2)+('Simple Bill Insert Calc (2)'!M17*2)/12 -> 213.1228711 | F56: =D$28*MIN(J26,S26)+IF(S26-J26>0,D$29*(S26-J26))+ROUND($P$14*365/12,2)+('Simple Bill Insert Calc (2)'!M17*2)/12 -> 110.991911 | G56: =E$28*MIN(I26,R26)+IF(R26-I26>0,E$29*(R26-I26))+ROUND($P$14*365/12,2)+('Simple Bill Insert Calc (2)'!M17*2)/12 -> 213.1228711 | H56: =E$28*MIN(J26,S26)+IF(S26-J26>0,E$29*(S26-J26))+ROUND($P$14*365/12,2)+('Simple Bill Insert Calc (2)'!M17*2)/12 -> 110.991911 | J56: 10 hot (Sec 745) | K56: =C$22*K26+ROUND($C$25*365/12,2)+('Simple Bill Insert Calc (2)'!M17*2)/12 -> 152.694247 | L56: =C$22*L26+ROUND($C$25*365/12,2)+('Simple Bill Insert Calc (2)'!M17*2)/12 -> 157.7598942 | M56: =D$22*K26+ROUND($F$14*365/12,2)+('Simple Bill Insert Calc (2)'!M17*2)/12 -> 169.104405 | N56: =D$22*L26+ROUND($F$14*365/12,2)+('Simple Bill Insert Calc (2)'!M17*2)/12 -> 173.9562206 | O56: =E$22*K26+ROUND($F$14*365/12,2)+('Simple Bill Insert Calc (2)'!M17*2)/12 -> 169.104405 | P56: =E$22*L26+ROUND($F$14*365/12,2)+('Simple Bill Insert Calc (2)'!M17*2)/12 -> 173.9562206 | R56: 10 hot (Sec 745) | S56: =C$28*K26+ROUND($C$31*365/12,2)+('Simple Bill Insert Calc (2)'!M17*2)/12 -> 92.2790007 | T56: =C$28*L26+ROUND($C$31*365/12,2)+('Simple Bill Insert Calc (2)'!M17*2)/12 -> 95.45423133 | U56: =D$28*K26+ROUND($P$14*365/12,2)+('Simple Bill Insert Calc (2)'!M17*2)/12 -> 98.33993724 | V56: =D$28*L26+ROUND($P$14*365/12,2)+('Simple Bill Insert Calc (2)'!M17*2)/12 -> 101.5375244 | W56: =E$28*K26+ROUND($P$14*365/12,2)+('Simple Bill Insert Calc (2)'!M17*2)/12 -> 98.33993724 | X56: =E$28*L26+ROUND($P$14*365/12,2)+('Simple Bill Insert Calc (2)'!M17*2)/12 -> 101.5375244
